Workbook

Sheet Colliers Dashboard
B2: LOAN REQUEST | C2: Page 4 | F2: SOURCES & USES | I2: Page 4 | K2: SQUARE FOOTAGE BREAKDOWN | O2: Page 12 | S2: DEVELOPMENT BUDGET | T2: Page 41
B4: Property | C4: 123-145 Cambridge St | F4: Sources | K4: Unit Type | L4: Type | M4: Units | N4: Avg. Unit Size | O4: Rent/SF/Month | T4: Amount | U4: Per Unit | V4: % of Total
C5: Charlestown, MA 02129 | G5: Amount | H5: $/Unit | I5: % | S5: Land/Ground Lease
B6: Property Type | C6: Multifamily Rental with Retail & Parking | F6: Constuction Loan | G6: =G9*I6 -> 15580381.78 | H6: =G6/$C$7 -> 299622.7266 | I6: 0.65 | K6: Studio | L6: Market | M6: 2 | N6: 506 | O6: 5.533596838 | S6: Capitalized Ground Rent During Development | T6: ='Development Budget'!D21 -> 528125 | U6: =T6/52 -> 10156.25 | V6: =T6/$T$34 -> 0.02203319948
B7: Multifamily Units | C7: 52 | F7: Limited Partner (LP) | G7: 7908750 | H7: =G7/$C$7 -> 152091.3462 | I7: =G7/$G$9 -> 0.3299461831 | K7: 1 Bedroom | L7: Market | M7: 19 | N7: 659.8 | O7: 5.15307669 | S7: Additional Ground Lease Costs | T7: ='Development Budget'!D35 -> 100100 | U7: =T7/52 -> 1925 | V7: =T7/$T$34 -> 0.004176138732
B8: Sponsor | C8: RISE | F8: RISE (GP) | G8: 416250 | H8: =G8/$C$7 -> 8004.807692 | I8: =G8/$G$9 -> 0.01736558858 | K8: 2 Bedroom | L8: Market | M8: 7 | N8: 990.0714286 | O8: 3.989611139 | S8: Subtotal: Land | T8: =T6+T7 -> 628225 | U8: =U6+U7 -> 12081.25 | V8: =T8/$T$34 -> 0.02620933821
C9: Principals: Jim Grossmann, Herby Duverne, Brian Anderson | F9: Total Sources | G9: =Project_Cost_Total -> 23969818.12 | H9: =G9/$C$7 -> 460958.0409 | I9: =G9/$G$9 -> 1 | K9: Studio (BHA) | L9: Affordable | M9: 1 | N9: 506 | O9: 5.385375494
B10: Loan Type | C10: Leasehold Construction Financing | K10: 1 Bedroom (BHA) | L10: Affordable | M10: 16 | N10: 659.8 | O10: 4.471051834 | S10: Hard Costs
B11: Loan Request | C11: 65.0% Loan to Cost | F11: Uses | K11: 2 Bedroom (BHA) | L11: Affordable | M11: 7 | N11: 990.0714286 | O11: 3.575499603 | S11: Construction (GMP) | T11: ='Development Budget'!D175 -> 18720000 | U11: =T11/52 -> 360000 | V11: =T11/$T$34 -> 0.7809921785
B12: Project Budget | C12: =G9 -> 23969818.12 | G12: Amount | H12: $/Unit | I12: % | K12: Total | M12: 52 | N12: 739.8461538 | O12: 4.334681471 | S12: Other Hard Costs | T12: ='Development Budget'!D182 -> 20000 | U12: =T12/52 -> 384.6153846 | V12: =T12/$T$34 -> 0.0008343933531
B13: Loan Amount | C13: =G6 -> 15580381.78 | F13: Capitalized Ground Lease Payments* | G13: ='Colliers Dashboard'!T8 -> 628225 | H13: =G13/$C$7 -> 12081.25 | I13: =G13/$G$17 -> 0.02620933821 | S13: FF&E | T13: ='Development Budget'!D184 -> 55000 | U13: =T13/52 -> 1057.692308 | V13: =T13/$T$34 -> 0.002294581721
B14: Borrower Equity | C14: =G7+G8 -> 8325000 | F14: Hard Costs | G14: =T15 -> 19358850 | H14: =G14/$C$7 -> 372285.5769 | I14: =G14/$G$17 -> 0.8076447881 | S14: Hard Cost Contingency | T14: ='Development Budget'!D185 -> 563850 | U14: =T14/52 -> 10843.26923 | V14: =T14/$T$34 -> 0.02352363461
B15: Term | C15: Up to 5 years | F15: Soft Costs | G15: =T28 -> 3438507.565 | H15: =G15/$C$7 -> 66125.14547 | I15: =G15/$G$17 -> 0.1434533928 | K15: RENT ROLL | Q15: Page 41 | S15: Subtotal: Hard Costs | T15: =SUM(T11:T14) -> 19358850 | U15: =SUM(U11:U14) -> 372285.5769 | V15: =T15/$T$34 -> 0.8076447881
B16: Rate | C16: Best Available | F16: Carry Costs | G16: =T31 -> 543927.6509 | H16: =G16/$C$7 -> 10460.14713 | I16: =G16/$G$17 -> 0.02269248082
B17: Prepayment | C17: Flexible | F17: Total Uses | G17: =SUM(G13:G16) -> 23969510.22 | H17: =G17/$C$7 -> 460952.1195 | I17: =G17/$G$17 -> 1 | S17: Soft Costs
B18: Amortization | C18: Interest Only | K18: Unit Type | L18: Type | M18: Units | N18: Avg. Unit Size | O18: Rent/Month | P18: Rent/SF/Month | Q18: Rent/Year | S18: Architectural & Engineering | T18: ='Development Budget'!D67 -> 1010733 | U18: =T18/52 -> 19437.17308 | V18: =T18/$T$34 -> 0.04216744485
B19: Recourse | C19: Non-recourse preferred with completion, interest and carry provided | K19: Studio | L19: Market | M19: 2 | N19: 506 | O19: 2800 | P19: 5.533596838 | Q19: 67200 | S19: Legal Costs | T19: ='Development Budget'!D77 -> 70000 | U19: 1346.153846 | V19: 0.002920376736
B20: Closing | C20: September 2023 | K20: 1 Bedroom | L20: Market | M20: 19 | N20: 659.8 | O20: 3400 | P20: 5.15307669 | Q20: 775200 | S20: Insurance | T20: ='Development Budget'!D88 -> 325000 | U20: 6250 | V20: 0.01355889199
C21: UNTRENDED | D21: TRENDED | K21: 2 Bedroom | L21: Market | M21: 7 | N21: 990.0714286 | O21: 3950 | P21: 3.989611139 | Q21: 331800 | S21: Building Permits & Misc. Fees | T21: ='Development Budget'!D110 -> 292250 | U21: 5620.192308 | V21: 0.01219257287
B22: Proforma NOI | C22: =C56 -> 1316447.575 | D22: =F56 -> 1403072.252 | K22: Studio (BHA) | L22: Affordable | M22: 1 | N22: 506 | O22: 2725 | P22: 5.385375494 | Q22: 32700 | S22: Mitigation | T22: ='Development Budget'!D122 -> 225000 | U22: 4326.923077 | V22: 0.009386925222
B23: Underwritten Cap Rate | C23: 0.045 | D23: 0.0485 | K23: 1 Bedroom (BHA) | L23: Affordable | M23: 16 | N23: 659.8 | O23: 2950 | P23: 4.471051834 | Q23: 566400 | S23: Marketing | T23: ='Development Budget'!D132 -> 232000 | U23: 4461.538462 | V23: 0.009678962896
B24: Valuation | C24: =C22/C23 -> 29254390.56 | D24: =D22/D23 -> 28929324.78 | K24: 2 Bedroom (BHA) | L24: Affordable | M24: 7 | N24: 990.0714286 | O24: 3540 | P24: 3.575499603 | Q24: 297360 | S24: Financing | T24: ='Development Budget'!D145 -> 344000 | U24: 6615.384615 | V24: 0.01435156567
B25: Market Value Per Unit | C25: =C24/52 -> 562584.4338 | D25: =D24/52 -> 556333.1688 | K25: Total | M25: 52 | N25: 739.8461538 | O25: 172555 | P25: 4.334681471 | Q25: 2070660 | S25: Operating Cost | T25: ='Development Budget'!D157 -> 190000 | U25: 3653.846154 | V25: 0.007926736854
B26: Loan to Stabilized Value | C26: =C13/C24 -> 0.5325826819 | D26: =C13/D24 -> 0.5385670734 | S26: Soft Cost Contingency | T26: ='Development Budget'!D161 -> 80669.49 | U26: 1551.336346 | V26: 0.003365504313
B27: Debt Yield | C27: =C22/C13 -> 0.08449392278 | D27: =D22/C13 -> 0.09005377862 | S27: Project Fees | T27: ='Development Budget'!D170 -> 668855.0747 | U27: 12862.59759 | V27: 0.02790441142
K28: RETAIL & OTHER INCOME | P28: Page 41 | S28: Subtotal: Soft Costs | T28: =SUM(T18:T27) -> 3438507.565 | U28: 66125.14547 | V28: 0.1434533928
B30: PROFORMA | E30: Page 42 | K30: Unit Type | L30: Spaces/SF/Unit | M30: $/Unit | N30: Measure | O30: % Leased | P30: Rent/Year | S30: Carry Costs
K31: Parking | L31: 14 | M31: 250 | N31: Per Space/Month | O31: 1 | P31: 42000 | S31: Capitalized Construction Interest | T31: ='Development Budget'!D192 -> 543927.6509 | U31: =T31/52 -> 10460.14713 | V31: =T31/$T$34 -> 0.02269248082
C32: UNTRENDED | F32: TRENDED | K32: Retail | L32: 1336 | M32: 40 | N32: PSF/Year | O32: 1 | P32: =L32*M32 -> 53440 | S32: Subtotal: Carry Costs | T32: =T31 -> 543927.6509 | U32: =T32/52 -> 10460.14713 | V32: =T32/$T$34 -> 0.02269248082
C33: Amount | D33: Per Unit | F33: Amount | G33: Per Unit | K33: Other | L33: 52 | M33: 1218.884615 | N33: Per Unit/Year | O33: 1 | P33: 63382
B34: Gross Rent | C34: =Underwriting!I124 -> 2070660 | D34: =C34/52 -> 39820.38462 | F34: =Underwriting!H181 -> 2232174.48 | G34: =F34/52 -> 42926.4323 | S34: Total Development Costs | T34: =T8+T15+T28+T32 -> 23969510.22 | U34: =U8+U15+U28+U32 -> 460952.1195 | V34: 1
B35: Retail Income | C35: =Underwriting!I136 -> 50768 | D35: =C35/52 -> 976.3076923 | F35: =Underwriting!H188 -> 33845.33333 | G35: =F35/52 -> 650.8717949
B36: Parking Income | C36: =Underwriting!I132 -> 39900 | D36: =C36/52 -> 767.3076923 | F36: =Underwriting!H185 -> 42541.55955 | G36: =F36/52 -> 818.1069144
B37: Other Income | C37: =Underwriting!I133 -> 63382 | D37: =C37/52 -> 1218.884615 | F37: =Underwriting!H186 -> 67578.17362 | G37: =F37/52 -> 1299.580262
B38: Total Potential Income | C38: =SUM(C34:C37) -> 2224710 | D38: =SUM(D34:D37) -> 42782.88462 | F38: 2376139.546 | G38: 45694.99127
B40: Vacancy and Collection Loss | C40: =Underwriting!I138 -> -103533 | D40: =C40/52 -> -1991.019231 | F40: =Underwriting!H190 -> -118806.9773 | G40: =F40/52 -> -2284.749564
B41: Effective Gross Income | C41: =C38+C40 -> 2121177 | D41: =D38+D40 -> 40791.86538 | F41: 2257332.569 | G41: 43410.24171
B43: Operating Expenses
B44: Cleaning | C44: =OpEx_1 -> 40350 | D44: =C44/52 -> 775.9615385 | E44: =C44/$C$41 -> 0.01902245781 | F44: =Underwriting!H194 -> 43021.35157 | G44: =F44/52 -> 827.3336841
B45: Utilities | C45: =OpEx_2 -> 67500 | D45: 1298.076923 | E45: =C45/$C$41 -> 0.03182195545 | F45: =Underwriting!H195 -> 71968.80375 | G45: 1384.015457
B46: Payroll | C46: =OpEx_3 -> 52615.92 | D46: 1011.844615 | E46: 0.0248050587 | F46: =Underwriting!H196 -> 56099.33068 | G46: 1078.833282
B47: Repairs & Maintenance | C47: =OpEx_4 -> 64672.16 | D47: 1243.695385 | E47: 0.03048880881 | F47: =Underwriting!H197 -> 68953.74802 | G47: 1326.033616
B48: Grounds Maintenance | C48: =OpEx_5 -> 12700 | D48: 244.2307692 | E48: 0.005987241989 | F48: =Underwriting!H198 -> 13540.79715 | G48: 260.3999452
B49: Administrative | C49: =OpEx_6 -> 33360 | D49: 641.5384615 | E49: 0.01572711754 | F49: =Underwriting!H199 -> 35568.58212 | G49: 684.0111946
B50: Management Fee | C50: =OpEx_MgtFee -> 64531.3449 | D50: 1240.987402 | E50: 0.03042242345 | F50: =Underwriting!H201 -> 67719.97164 | G50: 1302.307147
B51: Insurance | C51: =OpEx_Ins -> 24000 | D51: 461.5384615 | E51: 0.01131447305 | F51: =Underwriting!H202 -> 25588.908 | G51: 492.0943846
B52: Property Taxes | C52: =OpEx_Tax -> 195000 | D52: 3750 | E52: 0.09193009353 | F52: =Underwriting!H203 -> 210210.2825 | G52: 4042.505432
B53: Total Operating Expenses | C53: =SUM(C44:C52) -> 554729.4249 | D53: =SUM(D44:D52) -> 10667.87356 | E53: 0.2615196303 | F53: 592671.7754 | G53: 11397.53414
B55: Less Ground Rent | C55: =Underwriting!I162 -> 250000 | D55: =C55/52 -> 4807.692308 | F55: =Underwriting!H210 -> 261588.5417 | G55: =F55/52 -> 5030.548878
B56: Net Operating Income | C56: =C41-C53-C55 -> 1316447.575 | D56: =D41-D53-D55 -> 25316.29952 | F56: =F41-F53-F55 -> 1403072.252 | G56: =G41-G53-G55 -> 26982.15869

Sheet Project Summary
C3: RENDERING (3x2)
H4: 123 CAMBRIDGE STREET CHARLESTOWN
H6: KEY METRICS
I7: Total Units: | J7: =Units -> 52
I9: EMx: | J9: =Underwriting!G241 -> 1.667155697
I11: Yield-On-Cost: | J11: =Underwriting!G244 -> 0.05452525326
I13: W/MBE: | J13: 0.4
I15: EUI Reduction: | J15: 0.3
C17: PROJECT DETAILS | D17: Description: | F17: =IF(AND(Underwriting!I15=1,Retail_Income_Include?=0),"The Venture would develop "&Underwriting!E9&", a "&TEXT(Underwriting!E15,"0.00")&"-acre site located in "&Underwriting!E11&". The project would consist of a "&Underwriting!J16&"-story building containing "&Underwriting!I17&" rental units, along with "&Underwriting!E19&" parking spaces.", IF(AND(Underwriting!I15>1,Retail_Income_Include?=0),"The Venture would develop "&Underwriting!E9&", a "&TEXT(Underwriting!E15,"0.00")&"-acre site located in "&Underwriting!E11&". The project would consist of "&Underwriting!J15&" buildings containing "&Underwriting!I17&" rental units, along with "&Underwriting!E19&" parking spaces.", IF(AND(Underwriting!I15=1,Retail_Income_Include?=1),"The Venture would develop "&Underwriting!E9&", a "&TEXT(Underwriting!E15,"0.00")&"-acre site located in "&Underwriting!E11&". The project would consist of a "&Underwriting!J16&"-story building containing "&Underwriting!I17&" rental units, along with "&Underwriting!E19&" parking spaces and "&TEXT(Units_Retail,"0,0")&" SF of commercial space.", IF(AND(Underwriting!I15>1,Retail_Income_Include?=1),"The Venture would develop "&Underwriting!E9&", a "&TEXT(Underwriting!E15,"0.00")&"-acre site located in "&Underwriting!E11&". The project would consist of "&Underwriting!J15&" buildings containing "&Underwriting!I17&" rental units, along with "&Underwriting!E19&" parking spaces and "&TEXT(Units_Retail,"0,0")&" SF of commercial space.",0)))) -> The Venture would develop 123 Cambridge Street, a 0.30-acre site located in Charlestown. The project would consist of a six-story building containing 52 rental units, along with 14 parking spaces and 1,336 SF of commercial space.
D18: Unit Mix: | F18: ='Residential Income'!CB7&'Residential Income'!CB8&'Residential Income'!CB9&'Residential Income'!CB10 -> 3 Studios, 35 One Bedrooms, 14 Two Bedrooms
D19: Average Unit Size: | F19: ='Residential Income'!G32 -> 739.8461538
D20: Affordability: | F20: =IF('Residential Income'!P16=0,"None", IF(AND(SUM('Residential Income'!E6:E23)>=1,SUM('Residential Income'!E24:E31)>=1),'Residential Income'!E34&" Units ("&TEXT('Residential Income'!F34,"0%")&") @ various AMI levels", IF('Residential Income'!D16="BHA",'Residential Income'!P16&" Units supporting Boston Housing Authority (BHA) vouchers",'Residential Income'!P16&" Units ("&TEXT('Residential Income'!F34,"0%")&") @ "&'Residential Income'!D16))) -> 24 Units supporting Boston Housing Authority (BHA) vouchers
C22: DEMOGRAPHICS | D22: Area Description: | F22: =INDEX(Data!P4:P28,MATCH(Underwriting!E11,Data!O4:O28,0)) -> With a population of 19,890 as of 2020, Charlestown is home to a strong rental market made up mostly young professionals with a median age of 35.7. Nearly 70% of residents 25 and older have a bachelor’s degree or higher and a median household income of $127,400. These young professionals would make fantastic candidates for tenants in a city in which 53% of residences are renter-occupied. Furthermore, Charlestown boasts a vacancy rate of only 4.3%, far less than the Massachusetts average of 9%.
C24: CURRENT STATUS
D25: Design: | F25: Schematic design phase
D27: Permitting: | F27: PNF Filed with BPDA; Target approval in Q2 2023
D29: Construction: | F29: No site work completed to-date
D31: Site Control: | F31: Lease executed on Mystic Appliance parcel; Draft lease agreement on AAMCO parcel
D33: Financing: | F33: ="Anticipated equity contribution: "&TEXT(SUM(G51:H52),"$0,0") -> Anticipated equity contribution: $8,400,000
C36: TIMELINE
D37: Equity Closing: | F37: =EOMONTH(F41,-2) -> 2023-08-31
D39: Ready to Break Ground: | F39: =EOMONTH(F41,-1) -> 2023-09-30
D41: Construction Start: | F41: =INDEX(Underwriting!L23:EN23,MATCH(Underwriting!D34,Underwriting!L22:EN22,0)) -> 2023-10-31
D43: Stabilization: | F43: =INDEX(Underwriting!M92:EN92,MATCH(Stabilization_1st_Month,Underwriting!M91:EN91,0)) -> 2025-08-31
D45: Exit Date: | F45: =(INDEX(Underwriting!M92:EN92,MATCH(Timing_Reversion_Month,Underwriting!M91:EN91,0))) -> 2026-08-31
C48: FINANCIALS | D48: Sources & Uses:
F49: Sources | G49: Amount | I49: $/Unit | J49: %
F50: ='Financial Summary'!B32 -> Construction Loan | G50: =Underwriting!I66 -> 15569510.22 | I50: =G50/Units -> 299413.658 | J50: =G50/G53 -> 0.6495547917
F51: ='Financial Summary'!B34 -> Limited Partner (LP) | G51: ='Partnership Returns'!D9 -> 7560000 | I51: =G51/Units -> 145384.6154 | J51: =G51/G53 -> 0.3154006875
F52: ='Financial Summary'!B35 -> RISE (GP) | G52: ='Partnership Returns'!D8 -> 840000 | I52: =G52/Units -> 16153.84615 | J52: =G52/G53 -> 0.03504452083
F53: Total Sources | G53: =SUM(G50:G52) -> 23969510.22 | I53: =SUM(I50:I52) -> 460952.1195 | J53: =SUM(J50:J52) -> 1
F55: Uses | G55: Amount | I55: $/Unit | J55: %
F56: Land Costs | G56: =Underwriting!I31 -> 628225 | I56: =G56/Units -> 12081.25 | J56: =G56/G60 -> 0.02620933821
F57: Hard Costs | G57: =Underwriting!I39 -> 19358850 | I57: =G57/Units -> 372285.5769 | J57: =G57/G60 -> 0.8076447881
F58: Soft Costs | G58: =Underwriting!I52 -> 3438507.565 | I58: =G58/Units -> 66125.14547 | J58: =G58/G60 -> 0.1434533928
F59: Carry Costs | G59: =Underwriting!I60 -> 543927.6509 | I59: =G59/Units -> 10460.14713 | J59: =G59/G60 -> 0.02269248082
F60: Total Uses | G60: =SUM(G56:G59) -> 23969510.22 | I60: =SUM(I56:I59) -> 460952.1195 | J60: =SUM(J56:J59) -> 1
D63: Returns: | G63: Untrended | I63: Trended | J63: Sale
F64: Return on Cost | G64: =Underwriting!G244 -> 0.05452525326 | I64: =Underwriting!H244 -> 0.05807309838 | J64: =Underwriting!I244 -> 0.06078354177
F65: Capitalization Rate | G65: =Underwriting!G217 -> 0.045 | I65: =Underwriting!H217 -> 0.04846153846 | J65: =Underwriting!I217 -> 0.05
F66: Spread | G66: =Underwriting!G246 -> 95.25253263 | I66: =Underwriting!H246 -> 96.11559923 | J66: =Underwriting!I246 -> 107.8354177
F67: Annual NOI | G67: =Underwriting!G218 -> 1306943.615 | I67: =Underwriting!H218 -> 1391983.725 | J67: =Underwriting!I218 -> 1456951.725
F68: Valuation | G68: =Underwriting!G219 -> 29043191.45 | I68: =Valuation_Trended -> 28723473.69 | J68: =Valuation_Reversion -> 29139034.51
F69: Valuation/Unit | G69: =Underwriting!G220 -> 558522.9124 | I69: =Underwriting!H220 -> 552374.494 | J69: =Underwriting!I220 -> 560366.0482
D72: IRR and EMx: | F72: Unlevered IRR | G72: =Underwriting!H240 -> 0.1330023229 | I72: Unlevered EMx | J72: =Underwriting!G240 -> 1.310875413
F73: Levered IRR | G73: =Underwriting!H241 -> 0.2167340815 | I73: Levered EMx | J73: =Underwriting!G241 -> 1.667155697

Sheet Scorecard (hidden)
C3: SITE PLAN (3x2) | I3: Neponset Wharf Dorchester
I5: PERFORMANCE METRICS
I6: UNIT COUNT | L6: =Units -> 52
I8: BUILDING SIZE | L8: =Units_SF_M2 -> 39808
I10: RETURN ON COST | L10: =Underwriting!G244 -> 0.05452525326
I12: IRR | L12: =Underwriting!H241 -> 0.2167340815
I14: EQUITY MULTIPLE | L14: =Underwriting!G241 -> 1.667155697
C16: PROJECT DESCRIPTION | D16: Outline current site use, zoning & planned use.
C18: DUE DILIGENCE/MARKET INTELIGENCE | I18: INVESTMENT SUMMARY
C19: SURVEY & BOUNDRIES | L19: TOTAL | M19: /UNIT or SF
C20: CONTEXT & COMPETITION | F20: ='Rent Comparables'!E55 -> Graphic Lofts | I20: LAND PRICE | L20: =Underwriting!I26 -> 0 | M20: =L20/Units -> 0
F21: ='Rent Comparables'!E106 -> The Harvey | I21: TOTAL DEVELOPMENT BUDGET | L21: =Project_Cost_Total -> 23969510.22 | M21: =L21/Units -> 460952.1195
F22: ='Rent Comparables'!E157 -> Alta Revolution | I22: AVG. RENT PRICE | L22: =Underwriting!H124 -> 3318.365385 | M22: =Underwriting!G124 -> 4.334681471
F23: ='Rent Comparables'!E208 -> Avalon at Assembly Row | I23: OPERATING COST | L23: =Underwriting!I156 -> 553833.3849 | M23: =L23/Units -> 10650.64202
C24: ENVIROMENTAL | I24: EXIT PRICE | L24: ='Financial Summary'!I27 -> 29043191.45 | M24: =L24/Units -> 558522.9124
C25: CLOSING TIMELINE
C26: SITE SIZE | F26: =Underwriting!C15 -> 13042 | I26: PROPOSED PRE-DEVLOPMENT BUDGET
D27: SITE GEOMETRY | L27: TOTAL | M27: /UNIT
I28: ADDITIONAL LAND DEPOSITS | L28: 42460 | M28: =L28/Units -> 816.5384615
C29: PROPOSED ACQUISTION BUDGET | I29: ARCHITECTURE | L29: 55199 | M29: 1061.519231
F30: TOTAL | G30: /UNIT | I30: LANDSCAPE | L30: 8492 | M30: 163.3076923
C31: DEPOSIT | F31: 50000 | G31: =F31/Units -> 961.5384615 | I31: SURVEY | L31: 5095 | M31: 97.98076923
C32: OVERHEAD CONSTRUCTION | F32: 10000 | G32: 192.3076923 | I32: ENVIROMENTAL | L32: 46706 | M32: 898.1923077
C33: DESIGN TEST FIT | F33: 3500 | G33: 67.30769231 | I33: GEOTECHNICAL | L33: 46706 | M33: 898.1923077
C34: ENVIROMENTAL | F34: 5000 | G34: 96.15384615 | I34: PERMITTING CONSULTANT | L34: 29722 | M34: 571.5769231
C35: SURVEY | F35: 2500 | G35: 48.07692308 | I35: TRANSPORTATION | L35: 25476 | M35: 489.9230769
C36: TITLE | F36: 6000 | G36: 115.3846154 | I36: MEDIA/PR | L36: 8492 | M36: 163.3076923
C37: LEGAL – SITE CONTROL | F37: 15000 | G37: 288.4615385 | I37: LEGAL – SITE CONTROL | L37: 21230 | M37: 408.2692308
C38: LEGAL - ZONING | F38: 5000 | G38: 96.15384615 | I38: LEGAL - ZONING | L38: 29722 | M38: 571.5769231
C39: TOTAL | F39: =SUM(F31:F38) -> 97000 | G39: 1865.384615 | J39: INSURANCE | L39: 50451 | M39: 970.2115385
I40: MISC. FEES | L40: 12738 | M40: 244.9615385
C41: NOTES | I41: PRECON & PREDEV STAFF | L41: 127381 | M41: 2449.634615
I42: CONTIGENCY | L42: 13783 | M42: 265.0576923
I43: TOTAL | L43: =SUM(L28:L42) -> 523653 | M43: 10070.25

Sheet Financial Summary (hidden)
B2: =Underwriting!B2 -> 123 CAMBRIDGE STREET | P2: =UPPER(Underwriting!I2) -> RISE
B3: =Underwriting!E11&", "&Underwriting!I10 -> Charlestown, MA | P3: ="ANALYSIS START - "&UPPER(TEXT(Underwriting!E13,"MMM YYYY")) -> ANALYSIS START - JUN 2023
B4: INVESTMENT DESCRIPTION
B5: Address | F5: =Underwriting!E10&", "&Underwriting!E11&" "&Underwriting!I10 -> 123-145 Cambridge Street, Charlestown MA | G5: Building(s) | K5: =IF(Underwriting!I15=1,Underwriting!I15&" Bldg",Underwriting!I15&" Bldgs") -> 1 Bldg | L5: Analysis Start | P5: 1 | Q5: =Underwriting!E13 -> 2023-06-01
B6: Units | F6: =Units -> 52 | G6: Height | K6: =Underwriting!I16&"-Story" -> 6-Story | L6: Construction Start | P6: 1 | Q6: =Underwriting!E13 -> 2023-06-01
B7: GBA (SF) | F7: =Underwriting!E18 -> 60800 | G7: Parking Spaces | K7: =Parking_Total -> 14 | L7: Construction End | P7: =Timing_Construction_End -> 22 | Q7: =INDEX(Underwriting!$M$92:$EN$92,1,MATCH(Timing_Construction_End,Underwriting!$M$91:$EN$91,0)) -> 2025-03-31
B8: ="NRA ("&Unit_Type&")" -> NRA (SF) | F8: =Units_SF_M2 -> 39808 | G8: Parking Ratio | K8: =Underwriting!E20 -> 0.2692307692 | L8: 1st Unit Delivered | P8: =Timing_Operation_Begin_Month -> 23 | Q8: =INDEX(Underwriting!$M$92:$EN$92,1,MATCH(Timing_Operation_Begin_Month,Underwriting!$M$91:$EN$91,0)) -> 2025-04-30
B9: Land Area | F9: =Underwriting!E15 -> 0.2994031221 | L9: Stabilization | P9: =Stabilization_1st_Month -> 27 | Q9: =INDEX(Underwriting!$M$92:$EN$92,1,MATCH(Stabilization_1st_Month,Underwriting!$M$91:$EN$91,0)) -> 2025-08-31
L10: Sale Date | P10: =Timing_Reversion_Month -> 39 | Q10: =INDEX(Underwriting!$M$92:$EN$92,1,MATCH(Timing_Reversion_Month,Underwriting!$M$91:$EN$91,0)) -> 2026-08-31
B19: KEY ASSUMPTIONS & RETURN METRICS
B20: Growth Rates - Income / Expense | F20: =TEXT(Underwriting!D94,"0.00%")&" / "&TEXT(Underwriting!D142,"0.00%") -> 3.00% / 3.00% | G20: PRO FORMA | I20: Untrended | J20: Trended | K20: Sale | L20: PARTNERSHIP RETURNS | N20: ROI | O20: EMx | P20: IRR
B21: Effective Rent - PSF / Per Unit | F21: =TEXT(Underwriting!G128,"0.00")&" / "&TEXT(Underwriting!H128,"#,##0") -> 4.33 / 3,318 | G21: Effective Gross Revenue | I21: =Underwriting!G191 -> 2121177 | J21: =Underwriting!H191 -> 2257332.569 | K21: =Underwriting!I191 -> 2341129.079 | L21: ='Partnership Returns'!B9 -> Limited Partner (LP) | N21: ='Partnership Returns'!D27/'Partnership Returns'!D26 -> 0.6671556973 | O21: ='Partnership Returns'!D29 -> 1.667155697 | P21: ='Partnership Returns'!D28 -> 0.2167340815
B22: General Vacancy & Credit Loss | F22: =Underwriting!F138 -> 0.05 | G22: - Operating Expenses | I22: =-Underwriting!G204 -> -553833.3849 | J22: =-Underwriting!H204 -> -592671.7754 | K22: =-Underwriting!I204 -> -604627.9162 | L22: ='Partnership Returns'!B8 -> RISE (GP) | N22: ='Partnership Returns'!D39/'Partnership Returns'!D38 -> 0.6671556973 | O22: ='Partnership Returns'!D41 -> 1.667155697 | P22: ='Partnership Returns'!D40 -> 0.2167340815
B23: Operating Expense Ratio | F23: =Underwriting!G156 -> 0.2610972045 | G23: Net Operating Income | I23: =I21+I22 -> 1567343.615 | J23: =J21+J22 -> 1664660.793 | K23: =K21+K22 -> 1736501.163 | L23: =Underwriting!B253 ->  | N23: =Underwriting!G253 ->  | O23: =Underwriting!H253 ->  | P23: =Underwriting!I253 -> 
B24: Breakeven Occupancy (Untrended) | F24: =(-I22-I24+(MAX(Underwriting!$L$57:$EN$57)*12))/I21 -> 0.7768105626 | G24: - Capital Expenditures | I24: =-Underwriting!G212 -> -260400 | J24: =-Underwriting!H212 -> -272677.0685 | K24: =-Underwriting!I212 -> -279549.4378 | L24: PROPERTY RETURNS | N24: ROI | O24: EMx | P24: IRR
B25: Reversion Net Proceeds (After Selling Costs) | F25: =Underwriting!E218 -> 28847644.16 | G25: Cash Flow from Operations | I25: =SUM(I23:I24) -> 1306943.615 | J25: =SUM(J23:J24) -> 1391983.725 | K25: =SUM(K23:K24) -> 1456951.725 | L25: Unlevered | N25: =Underwriting!I240/Underwriting!I54 -> 0.3100766981 | O25: =Underwriting!G240 -> 1.310875413 | P25: =Underwriting!H240 -> 0.1330023229
B26: =IF(Perm_Debt?,"Permanent Loan Payoff","Construction Loan Payoff") -> Construction Loan Payoff | F26: =IF(Perm_Debt?,Underwriting!I88,-Underwriting!I80) -> -15569510.22 | G26: Cap Rate | I26: =Underwriting!G217 -> 0.045 | J26: =Underwriting!H217 -> 0.04846153846 | K26: =Underwriting!I217 -> 0.05 | L26: Levered | N26: =Underwriting!I241/Equity_Total -> 0.6671556973 | O26: =Underwriting!G241 -> 1.667155697 | P26: =Underwriting!H241 -> 0.2167340815
B27: Equity Proceeds from Sale | F27: =Underwriting!E220 -> 13278133.95 | G27: Valuation | I27: =Underwriting!G219 -> 29043191.45 | J27: =Underwriting!H219 -> 28723473.69 | K27: =Underwriting!I219 -> 29139034.51
B28: =IF(Perm_Debt?=0,"",Underwriting!E168) ->  | F28: =IF(Perm_Debt?=0,"",Underwriting!F168) ->  | G28: % of Total Project Cost | I28: =I27/$K$36 -> 1.211672295 | J28: =J27/$K$36 -> 1.198333776 | K28: =K27/$K$36 -> 1.215670835 | L28: DEVELOPMENT RETURNS | N28: =PROPER(Underwriting!G243) -> Untrended | O28: =PROPER(Underwriting!H243) -> Trended | P28: =PROPER(Underwriting!I243) -> Sale
B29: =IF(Perm_Debt?=0,"",Underwriting!G88) ->  | F29: =+Underwriting!H88 ->  | G29: Valuation/Unit | I29: =I27/Units -> 558522.9124 | J29: =J27/Units -> 552374.494 | K29: =K27/Units -> 560366.0482 | L29: =Underwriting!B244 -> Yield-on-Cost | N29: =Underwriting!G244 -> 0.05452525326 | O29: =Underwriting!H244 -> 0.05807309838 | P29: =Underwriting!I244 -> 0.06078354177
L30: =Underwriting!B245 -> Market Cap Rate | N30: =Underwriting!G245 -> 0.045 | O30: =Underwriting!H245 -> 0.04846153846 | P30: =Underwriting!I245 -> 0.05
B31: SOURCES | D31: % | E31: /Unit | F31: Amount | G31: USES | H31: % | I31: /Buildable SF | J31: /Unit | K31: Amount | L31: =Underwriting!B246 -> Development Spread | N31: =Underwriting!G246 -> 95.25253263 | O31: =Underwriting!H246 -> 96.11559923 | P31: =Underwriting!I246 -> 107.8354177
B32: =+Underwriting!B70 -> Construction Loan | D32: =IF(Dbl_Promote?=1,F32/$F$37,F32/$F$36) -> 0.6495547917 | E32: =IFERROR(F32/Units,"") -> 299413.658 | F32: =Underwriting!I70 -> 15569510.22 | G32: =Underwriting!B25 -> Land Costs | H32: =K32/$K$36 -> 0.02620933821 | I32: =K32/Underwriting!$E$18 -> 10.33264803 | J32: =IFERROR(K32/Units,"") -> 12081.25 | K32: =Underwriting!I31 -> 628225
B33: =+Underwriting!B71 -> Mezzanine Loan | D33: =IF(Dbl_Promote?=1,F33/$F$37,F33/$F$36) -> 0 | E33: 0 | F33: =Underwriting!I71 -> 0 | G33: =Underwriting!B33 -> Hard Costs | H33: =K33/$K$36 -> 0.8076447881 | I33: =K33/Underwriting!$E$18 -> 318.4021382 | J33: =IFERROR(K33/Units,"") -> 372285.5769 | K33: =Underwriting!I39 -> 19358850 | L33: SENSITIVITY | N33: Exit Cap Rate | O33: =Underwriting!H299 -> Yield-on-Cost | P33: =Underwriting!I299 -> Levered EMx
B34: ='Partnership Returns'!B9 -> Limited Partner (LP) | D34: =IF(Dbl_Promote?=1,F34/$F$37,F34/$F$36) -> 0.3154006875 | E34: 145384.6154 | F34: =Underwriting!I74*'Partnership Returns'!Equity_Share_LP -> 7560000 | G34: =Underwriting!B41 -> Soft Costs | H34: =K34/$K$36 -> 0.1434533928 | I34: =K34/Underwriting!$E$18 -> 56.55440074 | J34: =IFERROR(K34/Units,"") -> 66125.14547 | K34: =Underwriting!I52 -> 3438507.565 | M34: Upside | N34: =Underwriting!G301 -> 0.045 | O34: =Underwriting!H301 -> 0.05452525326 | P34: =Underwriting!I301 -> 2.048738292
B35: ='Partnership Returns'!B8 -> RISE (GP) | D35: =IF(Dbl_Promote?=1,F35/$F$37,F35/$F$36) -> 0.03504452083 | E35: 16153.84615 | F35: =IF(B37="",Equity_Total*'Partnership Returns'!Equity_Share_GP,(Equity_Total-F34)*Underwriting!H277) -> 840000 | G35: =Underwriting!B56 -> Carry Costs | H35: =K35/$K$36 -> 0.02269248082 | I35: =K35/Underwriting!$E$18 -> 8.946178469 | J35: =IFERROR(K35/Units,"") -> 10460.14713 | K35: =Underwriting!I60 -> 543927.6509 | M35: Base Case | N35: =Underwriting!G303 -> 0.05 | O35: =Underwriting!H303 -> 0.05452525326 | P35: =Underwriting!I303 -> 1.667155697
B36: =IF(Dbl_Promote?=1,Underwriting!B253,"Total Sources") -> Total Sources | D36: =IF(Dbl_Promote?=1,F36/$F$37,F36/$F$36) -> 1 | E36: 460952.1195 | F36: =IF(B37="",SUM(F32:F35),(Equity_Total-F34)*Underwriting!H278) -> 23969510.22 | G36: Total Uses | H36: =K36/$K$36 -> 1 | I36: =SUM(I32:I35) -> 394.2353654 | J36: =SUM(J32:J35) -> 460952.1195 | K36: =SUM(K32:K35) -> 23969510.22 | M36: Downside | N36: =Underwriting!G305 -> 0.055 | O36: =Underwriting!H305 -> 0.05452525326 | P36: =Underwriting!I305 -> 1.354951756
B37: =IF(Dbl_Promote?=1,"Total Sources","") ->  | D37: =IF(Dbl_Promote?=1,F37/$F$37,"") ->  | F37: =IF(B37="","",SUM(F32:F36)) -> 
A38: 0 | B38: PROPERTY-LEVEL CASH FLOW

Sheet Annual Cash Flow (hidden)
B2: =Underwriting!B2 -> 123 CAMBRIDGE STREET | R2: =UPPER(Underwriting!I2) -> RISE
B3: =Underwriting!E11&", "&Underwriting!I10 -> Charlestown, MA | R3: ="ANALYSIS START - "&UPPER(TEXT(Underwriting!E13,"mmm-yyyy")) -> ANALYSIS START - JUN-2023
B4: ANNUAL CASH FLOW | H4: =IF(H5="","",IF(EOMONTH(G6,12)>H6,"EXIT","")) ->  | I4: =IF(I5="","",IF(EOMONTH(H6,12)>I6,"EXIT","")) ->  | K4: EXIT
F5: Analysis Year | G5: 0 | H5: =IF(OR(G5="",G5=MAX($G$56:$EI$56)),"",G5+1) -> 1 | I5: 2 | J5: 3 | K5: 4
F6: Period Ending | G6: =EOMONTH(Underwriting!E13,-1) -> 2023-05-31 | H6: =IF(H5="","",IF(I5="",MAX(Underwriting!$L$224:$EN$224),EOMONTH(G6,12))) -> 2024-05-31 | I6: =IF(I5="","",IF(J5="",MAX(Underwriting!$L$224:$EN$224),EOMONTH(H6,12))) -> 2025-05-31 | J6: =IF(J5="","",IF(K5="",MAX(Underwriting!$L$224:$EN$224),EOMONTH(I6,12))) -> 2026-05-31 | K6: =IF(K5="","",IF(L5="",MAX(Underwriting!$L$224:$EN$224),EOMONTH(J6,12))) -> 2026-08-31 | L6: =IF(L5="","",IF(M5="",MAX(Underwriting!$L$224:$EN$224),EOMONTH(K6,12))) ->  | M6: =IF(M5="","",IF(N5="",MAX(Underwriting!$L$224:$EN$224),EOMONTH(L6,12))) ->  | N6: =IF(N5="","",IF(O5="",MAX(Underwriting!$L$224:$EN$224),EOMONTH(M6,12))) ->  | O6: =IF(O5="","",IF(P5="",MAX(Underwriting!$L$224:$EN$224),EOMONTH(N6,12))) ->  | P6: =IF(P5="","",IF(Q5="",MAX(Underwriting!$L$224:$EN$224),EOMONTH(O6,12))) ->  | Q6: =IF(Q5="","",IF(R5="",MAX(Underwriting!$L$224:$EN$224),EOMONTH(P6,12))) ->  | R6: =IF(R5="","",IF(S5="",MAX(Underwriting!$L$224:$EN$224),EOMONTH(Q6,12))) -> 
B7: ANNUAL DEVELOPMENT CASH FLOWS
B8: Land Costs | G8: =IF(G$5="","",SUMIF($G$56:$EI$56,G$5,$G58:$EI58)) -> 250100 | H8: 166666.6667 | I8: 211458.3333 | J8: 0 | K8: 0
B9: Hard Costs | G9: =IF(G$5="","",SUMIF($G$56:$EI$56,G$5,$G59:$EI59)) -> 0 | H9: 7886093.273 | I9: 11472756.73 | J9: 0 | K9: 0
B10: Soft Costs | G10: =IF(G$5="","",SUMIF($G$56:$EI$56,G$5,$G60:$EI60)) -> 303394.8696 | H10: 2181249.897 | I10: 920862.7983 | J10: 33000 | K10: 0
B11: TOTAL PROJECT COST BEFORE FINANCING | G11: =IF(G$5="","",SUMIF($G$56:$EI$56,G$5,$G61:$EI61)) -> 553494.8696 | H11: 10234009.84 | I11: 12605077.86 | J11: 33000 | K11: 0
B13: Carry Costs | G13: =IF(G$5="","",SUMIF($G$56:$EI$56,G$5,$G63:$EI63)) -> 0 | H13: 3427.796411 | I13: 540499.8545 | J13: 0 | K13: 0
B15: TOTAL PROJECT COST | G15: =IF(G$5="","",SUMIF($G$56:$EI$56,G$5,$G65:$EI65)) -> 553494.8696 | H15: 10237437.63 | I15: 13145577.71 | J15: 33000 | K15: 0
B17: SOURCES | G17: =IF(G$5="","",SUMIF($G$56:$EI$56,G$5,$G67:$EI67)) -> 553494.8696 | H17: 10237437.63 | I17: 13145577.71 | J17: 33000 | K17: 0
B18: USES | G18: =IF(G$5="","",SUMIF($G$56:$EI$56,G$5,$G68:$EI68)) -> 553494.8696 | H18: 10237437.63 | I18: 13145577.71 | J18: 33000 | K18: 0
B20: ANNUAL OPERATING CASH FLOWS
B21: Rental Income | G21: =IF(G$5="","",SUMIF($G$56:$EI$56,G$5,$G71:$EI71)) -> 0 | H21: 0 | I21: 162665.4835 | J21: 2154816.957 | K21: 571925.302
B22: Other Income | G22: =IF(G$5="","",SUMIF($G$56:$EI$56,G$5,$G72:$EI72)) -> 0 | H22: 0 | I22: 8796.845731 | J22: 107394.484 | K22: 28214.7575
B23: Retail Income (Net of Expenses) | G23: =IF(G$5="","",SUMIF($G$56:$EI$56,G$5,$G73:$EI73)) -> 0 | H23: 0 | I23: 0 | J23: 25384 | K23: 12692
B24: TOTAL POTENTIAL INCOME | G24: =IF(G$5="","",SUMIF($G$56:$EI$56,G$5,$G74:$EI74)) -> 0 | H24: 0 | I24: 171462.3292 | J24: 2287595.441 | K24: 612832.0595
B25: - General Vacancy and Credit Loss | G25: =IF(G$5="","",SUMIF($G$56:$EI$56,G$5,$G75:$EI75)) -> 0 | H25: 0 | I25: -8573.11646 | J25: -114379.7721 | K25: -30641.60298
B26: EFFECTIVE GROSS REVENUE | G26: =IF(G$5="","",SUMIF($G$56:$EI$56,G$5,$G76:$EI76)) -> 0 | H26: 0 | I26: 162889.2127 | J26: 2173215.669 | K26: 582190.4565
B28: OPERATING EXPENSES
B29: Repairs and Maintenance | G29: =IF(G$5="","",SUMIF($G$56:$EI$56,G$5,$G79:$EI79)) -> 0 | H29: 0 | I29: 5181.741827 | J29: 42381.98591 | K29: 11022.88361
B30: Payroll | G30: =IF(G$5="","",SUMIF($G$56:$EI$56,G$5,$G80:$EI80)) -> 0 | H30: 0 | I30: 8668.341346 | J30: 70899.23293 | K30: 18439.76813
B31: General & Administrative | G31: =IF(G$5="","",SUMIF($G$56:$EI$56,G$5,$G81:$EI81)) -> 0 | H31: 0 | I31: 9032.3996 | J31: 55820.22953 | K31: 14373.7091
B32: Marketing | G32: =IF(G$5="","",SUMIF($G$56:$EI$56,G$5,$G82:$EI82)) -> 0 | H32: 0 | I32: 11102.05413 | J32: 68610.69454 | K32: 17667.25385
B33: Utilities | G33: =IF(G$5="","",SUMIF($G$56:$EI$56,G$5,$G83:$EI83)) -> 0 | H33: 0 | I33: 2180.166667 | J33: 13473.43 | K33: 3469.408225
B34: Contract Services | G34: =IF(G$5="","",SUMIF($G$56:$EI$56,G$5,$G84:$EI84)) -> 0 | H34: 0 | I34: 4284.086923 | J34: 35039.97645 | K34: 9113.34318
B35: Make Ready Cost | G35: =IF(G$5="","",SUMIF($G$56:$EI$56,G$5,$G85:$EI85)) -> 0 | H35: 0 | I35: 0 | J35: 0 | K35: 0
B36: Management Fee | G36: =IF(G$5="","",SUMIF($G$56:$EI$56,G$5,$G86:$EI86)) -> 0 | H36: 0 | I36: 4886.67599 | J36: 65196.46484 | K36: 17465.7123
B37: Insurance | G37: =IF(G$5="","",SUMIF($G$56:$EI$56,G$5,$G87:$EI87)) -> 0 | H37: 0 | I37: 4120 | J37: 25461.6 | K37: 6556.362
B38: Property Taxes | G38: =IF(G$5="","",SUMIF($G$56:$EI$56,G$5,$G88:$EI88)) -> 0 | H38: 0 | I38: 16737.5 | J38: 112057.5625 | K38: 39952.83094
B39: TOTAL OPERATING EXPENSES | G39: =IF(G$5="","",SUMIF($G$56:$EI$56,G$5,$G89:$EI89)) -> 0 | H39: 0 | I39: 66192.96649 | J39: 488941.1767 | K39: 138061.2713
B41: NET OPERATING INCOME | G41: =IF(G$5="","",SUMIF($G$56:$EI$56,G$5,$G91:$EI91)) -> 0 | H41: 0 | I41: 96696.24625 | J41: 1684274.492 | K41: 444129.1852
B43: CAPITAL EXPENDITURES | G43: =IF(G$5="","",SUMIF($G$56:$EI$56,G$5,$G93:$EI93)) -> 0 | H43: 0 | I43: 43594.13333 | J43: 271334.9407 | K43: 68505.1527
B45: CASH FLOW FROM OPERATIONS | G45: =IF(G$5="","",SUMIF($G$56:$EI$56,G$5,$G95:$EI95)) -> 0 | H45: 0 | I45: 53102.11291 | J45: 1412939.552 | K45: 375624.0325
B47: ANNUAL PROPERTY-LEVEL CASH FLOWS
B49: Net Unlevered Cash Flow | G49: =IF(G$5="","",SUMIF($G$56:$EI$56,G$5,$G99:$EI99)) -> -553494.8696 | H49: =IF(H$5="","",SUMIF($G$56:$EI$56,H$5,$G99:$EI99)) -> -10234009.84 | I49: -12551975.75 | J49: 1379939.552 | K49: 29223268.19
B50: Net Levered Cash Flow | G50: =IF(G$5="","",SUMIF($G$56:$EI$56,G$5,$G100:$EI100)) -> -553494.8696 | H50: -7846505.13 | I50: -1.389707904e-09 | J50: 564178.7263 | K50: 13439929.13
B52: ='Partnership Returns'!B9&" Contributions/Distributions" -> Limited Partner (LP) Contributions/Distributions | G52: =IF(G$5="","",SUMIF($G$56:$EI$56,G$5,$G102:$EI102)) -> -498145.3826 | H52: =IF(H$5="","",SUMIF($G$56:$EI$56,H$5,$G102:$EI102)) -> -7061854.617 | I52: -1.250737114e-09 | J52: 507760.8537 | K52: 12095936.22
B53: ='Partnership Returns'!B8&" Contributions/Distributions" -> RISE (GP) Contributions/Distributions | G53: =IF(G$5="","",SUMIF($G$56:$EI$56,G$5,$G103:$EI103)) -> -55349.48696 | H53: =IF(H$5="","",SUMIF($G$56:$EI$56,H$5,$G103:$EI103)) -> -784650.513 | I53: -1.389707904e-10 | J53: 56417.87263 | K53: 1343992.913
F56: Analysis Year | G56: =IF(G57="","",Underwriting!L2) -> 0 | H56: =IF(H57="","",Underwriting!M2) -> 1 | I56: =IF(I57="","",Underwriting!N2) -> 1 | J56: =IF(J57="","",Underwriting!O2) -> 1 | K56: =IF(K57="","",Underwriting!P2) -> 1 | L56: =IF(L57="","",Underwriting!Q2) -> 1 | M56: =IF(M57="","",Underwriting!R2) -> 1 | N56: =IF(N57="","",Underwriting!S2) -> 1 | O56: =IF(O57="","",Underwriting!T2) -> 1 | P56: =IF(P57="","",Underwriting!U2) -> 1 | Q56: =IF(Q57="","",Underwriting!V2) -> 1 | R56: =IF(R57="","",Underwriting!W2) -> 1 | S56: =IF(S57="","",Underwriting!X2) -> 1 | T56: =IF(T57="","",Underwriting!Y2) -> 2 | U56: =IF(U57="","",Underwriting!Z2) -> 2 | V56: =IF(V57="","",Underwriting!AA2) -> 2 | W56: =IF(W57="","",Underwriting!AB2) -> 2 | X56: =IF(X57="","",Underwriting!AC2) -> 2 | Y56: =IF(Y57="","",Underwriting!AD2) -> 2 | Z56: =IF(Z57="","",Underwriting!AE2) -> 2 | AA56: =IF(AA57="","",Underwriting!AF2) -> 2 | AB56: =IF(AB57="","",Underwriting!AG2) -> 2 | AC56: =IF(AC57="","",Underwriting!AH2) -> 2 | AD56: =IF(AD57="","",Underwriting!AI2) -> 2 | AE56: =IF(AE57="","",Underwriting!AJ2) -> 2 | AF56: =IF(AF57="","",Underwriting!AK2) -> 3 | AG56: =IF(AG57="","",Underwriting!AL2) -> 3 | AH56: =IF(AH57="","",Underwriting!AM2) -> 3 | AI56: =IF(AI57="","",Underwriting!AN2) -> 3 | AJ56: =IF(AJ57="","",Underwriting!AO2) -> 3 | AK56: =IF(AK57="","",Underwriting!AP2) -> 3 | AL56: =IF(AL57="","",Underwriting!AQ2) -> 3 | AM56: =IF(AM57="","",Underwriting!AR2) -> 3 | AN56: =IF(AN57="","",Underwriting!AS2) -> 3 | AO56: =IF(AO57="","",Underwriting!AT2) -> 3 | AP56: =IF(AP57="","",Underwriting!AU2) -> 3 | AQ56: =IF(AQ57="","",Underwriting!AV2) -> 3 | AR56: =IF(AR57="","",Underwriting!AW2) -> 4 | AS56: =IF(AS57="","",Underwriting!AX2) -> 4 | AT56: =IF(AT57="","",Underwriting!AY2) -> 4 | AU56: =IF(AU57="","",Underwriting!AZ2) ->  | AV56: =IF(AV57="","",Underwriting!BA2) ->  | AW56: =IF(AW57="","",Underwriting!BB2) ->  | AX56: =IF(AX57="","",Underwriting!BC2) ->  | AY56: =IF(AY57="","",Underwriting!BD2) ->  | AZ56: =IF(AZ57="","",Underwriting!BE2) ->  | BA56: =IF(BA57="","",Underwriting!BF2) ->  | BB56: =IF(BB57="","",Underwriting!BG2) ->  | BC56: =IF(BC57="","",Underwriting!BH2) ->  | BD56: =IF(BD57="","",Underwriting!BI2) ->  | BE56: =IF(BE57="","",Underwriting!BJ2) ->  | BF56: =IF(BF57="","",Underwriting!BK2) ->  | BG56: =IF(BG57="","",Underwriting!BL2) ->  | BH56: =IF(BH57="","",Underwriting!BM2) ->  | BI56: =IF(BI57="","",Underwriting!BN2) ->  | BJ56: =IF(BJ57="","",Underwriting!BO2) ->  | BK56: =IF(BK57="","",Underwriting!BP2) ->  | BL56: =IF(BL57="","",Underwriting!BQ2) ->  | BM56: =IF(BM57="","",Underwriting!BR2) ->  | BN56: =IF(BN57="","",Underwriting!BS2) ->  | BO56: =IF(BO57="","",Underwriting!BT2) ->  | BP56: =IF(BP57="","",Underwriting!BU2) ->  | BQ56: =IF(BQ57="","",Underwriting!BV2) ->  | BR56: =IF(BR57="","",Underwriting!BW2) ->  | BS56: =IF(BS57="","",Underwriting!BX2) ->  | BT56: =IF(BT57="","",Underwriting!BY2) ->  | BU56: =IF(BU57="","",Underwriting!BZ2) ->  | BV56: =IF(BV57="","",Underwriting!CA2) ->  | BW56: =IF(BW57="","",Underwriting!CB2) ->  | BX56: =IF(BX57="","",Underwriting!CC2) ->  | BY56: =IF(BY57="","",Underwriting!CD2) ->  | BZ56: =IF(BZ57="","",Underwriting!CE2) ->  | CA56: =IF(CA57="","",Underwriting!CF2) ->  | CB56: =IF(CB57="","",Underwriting!CG2) ->  | CC56: =IF(CC57="","",Underwriting!CH2) ->  | CD56: =IF(CD57="","",Underwriting!CI2) ->  | CE56: =IF(CE57="","",Underwriting!CJ2) ->  | CF56: =IF(CF57="","",Underwriting!CK2) ->  | CG56: =IF(CG57="","",Underwriting!CL2) ->  | CH56: =IF(CH57="","",Underwriting!CM2) ->  | CI56: =IF(CI57="","",Underwriting!CN2) ->  | CJ56: =IF(CJ57="","",Underwriting!CO2) ->  | CK56: =IF(CK57="","",Underwriting!CP2) ->  | CL56: =IF(CL57="","",Underwriting!CQ2) ->  | CM56: =IF(CM57="","",Underwriting!CR2) ->  | CN56: =IF(CN57="","",Underwriting!CS2) ->  | CO56: =IF(CO57="","",Underwriting!CT2) ->  | CP56: =IF(CP57="","",Underwriting!CU2) ->  | CQ56: =IF(CQ57="","",Underwriting!CV2) ->  | CR56: =IF(CR57="","",Underwriting!CW2) ->  | CS56: =IF(CS57="","",Underwriting!CX2) ->  | CT56: =IF(CT57="","",Underwriting!CY2) ->  | CU56: =IF(CU57="","",Underwriting!CZ2) ->  | CV56: =IF(CV57="","",Underwriting!DA2) ->  | CW56: =IF(CW57="","",Underwriting!DB2) ->  | CX56: =IF(CX57="","",Underwriting!DC2) ->  | CY56: =IF(CY57="","",Underwriting!DD2) ->  | CZ56: =IF(CZ57="","",Underwriting!DE2) ->  | DA56: =IF(DA57="","",Underwriting!DF2) ->  | DB56: =IF(DB57="","",Underwriting!DG2) ->  | DC56: =IF(DC57="","",Underwriting!DH2) ->  | DD56: =IF(DD57="","",Underwriting!DI2) ->  | DE56: =IF(DE57="","",Underwriting!DJ2) ->  | DF56: =IF(DF57="","",Underwriting!DK2) ->  | DG56: =IF(DG57="","",Underwriting!DL2) ->  | DH56: =IF(DH57="","",Underwriting!DM2) ->  | DI56: =IF(DI57="","",Underwriting!DN2) ->  | DJ56: =IF(DJ57="","",Underwriting!DO2) ->  | DK56: =IF(DK57="","",Underwriting!DP2) ->  | DL56: =IF(DL57="","",Underwriting!DQ2) ->  | DM56: =IF(DM57="","",Underwriting!DR2) ->  | DN56: =IF(DN57="","",Underwriting!DS2) ->  | DO56: =IF(DO57="","",Underwriting!DT2) ->  | DP56: =IF(DP57="","",Underwriting!DU2) ->  | DQ56: =IF(DQ57="","",Underwriting!DV2) ->  | DR56: =IF(DR57="","",Underwriting!DW2) ->  | DS56: =IF(DS57="","",Underwriting!DX2) ->  | DT56: =IF(DT57="","",Underwriting!DY2) ->  | DU56: =IF(DU57="","",Underwriting!DZ2) ->  | DV56: =IF(DV57="","",Underwriting!EA2) ->  | DW56: =IF(DW57="","",Underwriting!EB2) ->  | DX56: =IF(DX57="","",Underwriting!EC2) ->  | DY56: =IF(DY57="","",Underwriting!ED2) ->  | DZ56: =IF(DZ57="","",Underwriting!EE2) ->  | EA56: =IF(EA57="","",Underwriting!EF2) ->  | EB56: =IF(EB57="","",Underwriting!EG2) ->  | EC56: =IF(EC57="","",Underwriting!EH2) ->  | ED56: =IF(ED57="","",Underwriting!EI2) ->  | EE56: =IF(EE57="","",Underwriting!EJ2) ->  | EF56: =IF(EF57="","",Underwriting!EK2) ->  | EG56: =IF(EG57="","",Underwriting!EL2) ->  | EH56: =IF(EH57="","",Underwriting!EM2) ->  | EI56: =IF(EI57="","",Underwriting!EN2) -> 
B57: MONTHLY DEVELOPMENT CASH FLOWS | G57: =Underwriting!L223 -> 0 | H57: =Underwriting!M223 -> 1 | I57: =Underwriting!N223 -> 2 | J57: =Underwriting!O223 -> 3 | K57: =Underwriting!P223 -> 4 | L57: =Underwriting!Q223 -> 5 | M57: =Underwriting!R223 -> 6 | N57: =Underwriting!S223 -> 7 | O57: =Underwriting!T223 -> 8 | P57: =Underwriting!U223 -> 9 | Q57: =Underwriting!V223 -> 10 | R57: =Underwriting!W223 -> 11 | S57: =Underwriting!X223 -> 12 | T57: =Underwriting!Y223 -> 13 | U57: =Underwriting!Z223 -> 14 | V57: =Underwriting!AA223 -> 15 | W57: =Underwriting!AB223 -> 16 | X57: =Underwriting!AC223 -> 17 | Y57: =Underwriting!AD223 -> 18 | Z57: =Underwriting!AE223 -> 19 | AA57: =Underwriting!AF223 -> 20 | AB57: =Underwriting!AG223 -> 21 | AC57: =Underwriting!AH223 -> 22 | AD57: =Underwriting!AI223 -> 23 | AE57: =Underwriting!AJ223 -> 24 | AF57: =Underwriting!AK223 -> 25 | AG57: =Underwriting!AL223 -> 26 | AH57: =Underwriting!AM223 -> 27 | AI57: =Underwriting!AN223 -> 28 | AJ57: =Underwriting!AO223 -> 29 | AK57: =Underwriting!AP223 -> 30 | AL57: =Underwriting!AQ223 -> 31 | AM57: =Underwriting!AR223 -> 32 | AN57: =Underwriting!AS223 -> 33 | AO57: =Underwriting!AT223 -> 34 | AP57: =Underwriting!AU223 -> 35 | AQ57: =Underwriting!AV223 -> 36 | AR57: =Underwriting!AW223 -> 37 | AS57: =Underwriting!AX223 -> 38 | AT57: =Underwriting!AY223 -> 39 | AU57: =Underwriting!AZ223 ->  | AV57: =Underwriting!BA223 ->  | AW57: =Underwriting!BB223 ->  | AX57: =Underwriting!BC223 ->  | AY57: =Underwriting!BD223 ->  | AZ57: =Underwriting!BE223 ->  | BA57: =Underwriting!BF223 ->  | BB57: =Underwriting!BG223 ->  | BC57: =Underwriting!BH223 ->  | BD57: =Underwriting!BI223 ->  | BE57: =Underwriting!BJ223 ->  | BF57: =Underwriting!BK223 ->  | BG57: =Underwriting!BL223 ->  | BH57: =Underwriting!BM223 ->  | BI57: =Underwriting!BN223 ->  | BJ57: =Underwriting!BO223 ->  | BK57: =Underwriting!BP223 ->  | BL57: =Underwriting!BQ223 ->  | BM57: =Underwriting!BR223 ->  | BN57: =Underwriting!BS223 ->  | BO57: =Underwriting!BT223 ->  | BP57: =Underwriting!BU223 ->  | BQ57: =Underwriting!BV223 ->  | BR57: =Underwriting!BW223 ->  | BS57: =Underwriting!BX223 ->  | BT57: =Underwriting!BY223 ->  | BU57: =Underwriting!BZ223 ->  | BV57: =Underwriting!CA223 ->  | BW57: =Underwriting!CB223 ->  | BX57: =Underwriting!CC223 ->  | BY57: =Underwriting!CD223 ->  | BZ57: =Underwriting!CE223 ->  | CA57: =Underwriting!CF223 ->  | CB57: =Underwriting!CG223 ->  | CC57: =Underwriting!CH223 ->  | CD57: =Underwriting!CI223 ->  | CE57: =Underwriting!CJ223 ->  | CF57: =Underwriting!CK223 ->  | CG57: =Underwriting!CL223 ->  | CH57: =Underwriting!CM223 ->  | CI57: =Underwriting!CN223 ->  | CJ57: =Underwriting!CO223 ->  | CK57: =Underwriting!CP223 ->  | CL57: =Underwriting!CQ223 ->  | CM57: =Underwriting!CR223 ->  | CN57: =Underwriting!CS223 ->  | CO57: =Underwriting!CT223 ->  | CP57: =Underwriting!CU223 ->  | CQ57: =Underwriting!CV223 ->  | CR57: =Underwriting!CW223 ->  | CS57: =Underwriting!CX223 ->  | CT57: =Underwriting!CY223 ->  | CU57: =Underwriting!CZ223 ->  | CV57: =Underwriting!DA223 ->  | CW57: =Underwriting!DB223 ->  | CX57: =Underwriting!DC223 ->  | CY57: =Underwriting!DD223 ->  | CZ57: =Underwriting!DE223 ->  | DA57: =Underwriting!DF223 ->  | DB57: =Underwriting!DG223 ->  | DC57: =Underwriting!DH223 ->  | DD57: =Underwriting!DI223 ->  | DE57: =Underwriting!DJ223 ->  | DF57: =Underwriting!DK223 ->  | DG57: =Underwriting!DL223 ->  | DH57: =Underwriting!DM223 ->  | DI57: =Underwriting!DN223 ->  | DJ57: =Underwriting!DO223 ->  | DK57: =Underwriting!DP223 ->  | DL57: =Underwriting!DQ223 ->  | DM57: =Underwriting!DR223 ->  | DN57: =Underwriting!DS223 ->  | DO57: =Underwriting!DT223 ->  | DP57: =Underwriting!DU223 ->  | DQ57: =Underwriting!DV223 ->  | DR57: =Underwriting!DW223 ->  | DS57: =Underwriting!DX223 ->  | DT57: =Underwriting!DY223 ->  | DU57: =Underwriting!DZ223 ->  | DV57: =Underwriting!EA223 ->  | DW57: =Underwriting!EB223 ->  | DX57: =Underwriting!EC223 ->  | DY57: =Underwriting!ED223 ->  | DZ57: =Underwriting!EE223 ->  | EA57: =Underwriting!EF223 ->  | EB57: =Underwriting!EG223 ->  | EC57: =Underwriting!EH223 ->  | ED57: =Underwriting!EI223 ->  | EE57: =Underwriting!EJ223 ->  | EF57: =Underwriting!EK223 ->  | EG57: =Underwriting!EL223 ->  | EH57: =Underwriting!EM223 ->  | EI57: =Underwriting!EN223 -> 
B58: Land Costs | G58: =IF(G$57="","",Underwriting!L31) -> 250100 | H58: =IF(H$57="","",Underwriting!M31) -> 0 | I58: =IF(I$57="","",Underwriting!N31) -> 0 | J58: =IF(J$57="","",Underwriting!O31) -> 0 | K58: =IF(K$57="","",Underwriting!P31) -> 0 | L58: =IF(L$57="","",Underwriting!Q31) -> 20833.33333 | M58: =IF(M$57="","",Underwriting!R31) -> 20833.33333 | N58: =IF(N$57="","",Underwriting!S31) -> 20833.33333 | O58: =IF(O$57="","",Underwriting!T31) -> 20833.33333 | P58: =IF(P$57="","",Underwriting!U31) -> 20833.33333 | Q58: =IF(Q$57="","",Underwriting!V31) -> 20833.33333 | R58: =IF(R$57="","",Underwriting!W31) -> 20833.33333 | S58: =IF(S$57="","",Underwriting!X31) -> 20833.33333 | T58: =IF(T$57="","",Underwriting!Y31) -> 20833.33333 | U58: =IF(U$57="","",Underwriting!Z31) -> 20833.33333 | V58: =IF(V$57="","",Underwriting!AA31) -> 20833.33333 | W58: =IF(W$57="","",Underwriting!AB31) -> 20833.33333 | X58: =IF(X$57="","",Underwriting!AC31) -> 21354.16667 | Y58: =IF(Y$57="","",Underwriting!AD31) -> 21354.16667 | Z58: =IF(Z$57="","",Underwriting!AE31) -> 21354.16667 | AA58: =IF(AA$57="","",Underwriting!AF31) -> 21354.16667 | AB58: =IF(AB$57="","",Underwriting!AG31) -> 21354.16667 | AC58: =IF(AC$57="","",Underwriting!AH31) -> 21354.16667 | AD58: =IF(AD$57="","",Underwriting!AI31) -> 0 | AE58: =IF(AE$57="","",Underwriting!AJ31) -> 0 | AF58: =IF(AF$57="","",Underwriting!AK31) -> 0 | AG58: =IF(AG$57="","",Underwriting!AL31) -> 0 | AH58: =IF(AH$57="","",Underwriting!AM31) -> 0 | AI58: =IF(AI$57="","",Underwriting!AN31) -> 0 | AJ58: =IF(AJ$57="","",Underwriting!AO31) -> 0 | AK58: =IF(AK$57="","",Underwriting!AP31) -> 0 | AL58: =IF(AL$57="","",Underwriting!AQ31) -> 0 | AM58: =IF(AM$57="","",Underwriting!AR31) -> 0 | AN58: =IF(AN$57="","",Underwriting!AS31) -> 0 | AO58: =IF(AO$57="","",Underwriting!AT31) -> 0 | AP58: =IF(AP$57="","",Underwriting!AU31) -> 0 | AQ58: =IF(AQ$57="","",Underwriting!AV31) -> 0 | AR58: =IF(AR$57="","",Underwriting!AW31) -> 0 | AS58: =IF(AS$57="","",Underwriting!AX31) -> 0 | AT58: =IF(AT$57="","",Underwriting!AY31) -> 0 | AU58: =IF(AU$57="","",Underwriting!AZ31) ->  | AV58: =IF(AV$57="","",Underwriting!BA31) ->  | AW58: =IF(AW$57="","",Underwriting!BB31) ->  | AX58: =IF(AX$57="","",Underwriting!BC31) ->  | AY58: =IF(AY$57="","",Underwriting!BD31) ->  | AZ58: =IF(AZ$57="","",Underwriting!BE31) ->  | BA58: =IF(BA$57="","",Underwriting!BF31) ->  | BB58: =IF(BB$57="","",Underwriting!BG31) ->  | BC58: =IF(BC$57="","",Underwriting!BH31) ->  | BD58: =IF(BD$57="","",Underwriting!BI31) ->  | BE58: =IF(BE$57="","",Underwriting!BJ31) ->  | BF58: =IF(BF$57="","",Underwriting!BK31) ->  | BG58: =IF(BG$57="","",Underwriting!BL31) ->  | BH58: =IF(BH$57="","",Underwriting!BM31) ->  | BI58: =IF(BI$57="","",Underwriting!BN31) ->  | BJ58: =IF(BJ$57="","",Underwriting!BO31) ->  | BK58: =IF(BK$57="","",Underwriting!BP31) ->  | BL58: =IF(BL$57="","",Underwriting!BQ31) ->  | BM58: =IF(BM$57="","",Underwriting!BR31) ->  | BN58: =IF(BN$57="","",Underwriting!BS31) ->  | BO58: =IF(BO$57="","",Underwriting!BT31) ->  | BP58: =IF(BP$57="","",Underwriting!BU31) ->  | BQ58: =IF(BQ$57="","",Underwriting!BV31) ->  | BR58: =IF(BR$57="","",Underwriting!BW31) ->  | BS58: =IF(BS$57="","",Underwriting!BX31) ->  | BT58: =IF(BT$57="","",Underwriting!BY31) ->  | BU58: =IF(BU$57="","",Underwriting!BZ31) ->  | BV58: =IF(BV$57="","",Underwriting!CA31) ->  | BW58: =IF(BW$57="","",Underwriting!CB31) ->  | BX58: =IF(BX$57="","",Underwriting!CC31) ->  | BY58: =IF(BY$57="","",Underwriting!CD31) ->  | BZ58: =IF(BZ$57="","",Underwriting!CE31) ->  | CA58: =IF(CA$57="","",Underwriting!CF31) ->  | CB58: =IF(CB$57="","",Underwriting!CG31) ->  | CC58: =IF(CC$57="","",Underwriting!CH31) ->  | CD58: =IF(CD$57="","",Underwriting!CI31) ->  | CE58: =IF(CE$57="","",Underwriting!CJ31) ->  | CF58: =IF(CF$57="","",Underwriting!CK31) ->  | CG58: =IF(CG$57="","",Underwriting!CL31) ->  | CH58: =IF(CH$57="","",Underwriting!CM31) ->  | CI58: =IF(CI$57="","",Underwriting!CN31) ->  | CJ58: =IF(CJ$57="","",Underwriting!CO31) ->  | CK58: =IF(CK$57="","",Underwriting!CP31) ->  | CL58: =IF(CL$57="","",Underwriting!CQ31) ->  | CM58: =IF(CM$57="","",Underwriting!CR31) ->  | CN58: =IF(CN$57="","",Underwriting!CS31) ->  | CO58: =IF(CO$57="","",Underwriting!CT31) ->  | CP58: =IF(CP$57="","",Underwriting!CU31) ->  | CQ58: =IF(CQ$57="","",Underwriting!CV31) ->  | CR58: =IF(CR$57="","",Underwriting!CW31) ->  | CS58: =IF(CS$57="","",Underwriting!CX31) ->  | CT58: =IF(CT$57="","",Underwriting!CY31) ->  | CU58: =IF(CU$57="","",Underwriting!CZ31) ->  | CV58: =IF(CV$57="","",Underwriting!DA31) ->  | CW58: =IF(CW$57="","",Underwriting!DB31) ->  | CX58: =IF(CX$57="","",Underwriting!DC31) ->  | CY58: =IF(CY$57="","",Underwriting!DD31) ->  | CZ58: =IF(CZ$57="","",Underwriting!DE31) ->  | DA58: =IF(DA$57="","",Underwriting!DF31) ->  | DB58: =IF(DB$57="","",Underwriting!DG31) ->  | DC58: =IF(DC$57="","",Underwriting!DH31) ->  | DD58: =IF(DD$57="","",Underwriting!DI31) ->  | DE58: =IF(DE$57="","",Underwriting!DJ31) ->  | DF58: =IF(DF$57="","",Underwriting!DK31) ->  | DG58: =IF(DG$57="","",Underwriting!DL31) ->  | DH58: =IF(DH$57="","",Underwriting!DM31) ->  | DI58: =IF(DI$57="","",Underwriting!DN31) ->  | DJ58: =IF(DJ$57="","",Underwriting!DO31) ->  | DK58: =IF(DK$57="","",Underwriting!DP31) ->  | DL58: =IF(DL$57="","",Underwriting!DQ31) ->  | DM58: =IF(DM$57="","",Underwriting!DR31) ->  | DN58: =IF(DN$57="","",Underwriting!DS31) ->  | DO58: =IF(DO$57="","",Underwriting!DT31) ->  | DP58: =IF(DP$57="","",Underwriting!DU31) ->  | DQ58: =IF(DQ$57="","",Underwriting!DV31) ->  | DR58: =IF(DR$57="","",Underwriting!DW31) ->  | DS58: =IF(DS$57="","",Underwriting!DX31) ->  | DT58: =IF(DT$57="","",Underwriting!DY31) ->  | DU58: =IF(DU$57="","",Underwriting!DZ31) ->  | DV58: =IF(DV$57="","",Underwriting!EA31) ->  | DW58: =IF(DW$57="","",Underwriting!EB31) ->  | DX58: =IF(DX$57="","",Underwriting!EC31) ->  | DY58: =IF(DY$57="","",Underwriting!ED31) ->  | DZ58: =IF(DZ$57="","",Underwriting!EE31) ->  | EA58: =IF(EA$57="","",Underwriting!EF31) ->  | EB58: =IF(EB$57="","",Underwriting!EG31) ->  | EC58: =IF(EC$57="","",Underwriting!EH31) ->  | ED58: =IF(ED$57="","",Underwriting!EI31) ->  | EE58: =IF(EE$57="","",Underwriting!EJ31) ->  | EF58: =IF(EF$57="","",Underwriting!EK31) ->  | EG58: =IF(EG$57="","",Underwriting!EL31) ->  | EH58: =IF(EH$57="","",Underwriting!EM31) ->  | EI58: =IF(EI$57="","",Underwriting!EN31) -> 
B59: Hard Costs | G59: =IF(G$57="","",Underwriting!L39) -> 0 | H59: =IF(H$57="","",Underwriting!M39) -> 0 | I59: =IF(I$57="","",Underwriting!N39) -> 0 | J59: =IF(J$57="","",Underwriting!O39) -> 0 | K59: =IF(K$57="","",Underwriting!P39) -> 0 | L59: =IF(L$57="","",Underwriting!Q39) -> 324923.0864 | M59: =IF(M$57="","",Underwriting!R39) -> 466459.2584 | N59: =IF(N$57="","",Underwriting!S39) -> 645276.6965 | O59: =IF(O$57="","",Underwriting!T39) -> 856006.3053 | P59: =IF(P$57="","",Underwriting!U39) -> 1085904.299 | Q59: =IF(Q$57="","",Underwriting!V39) -> 1315172.938 | R59: =IF(R$57="","",Underwriting!W39) -> 1519278.203 | S59: =IF(S$57="","",Underwriting!X39) -> 1673072.486 | T59: =IF(T$57="","",Underwriting!Y39) -> 1755831.727 | U59: =IF(U$57="","",Underwriting!Z39) -> 1755831.727 | V59: =IF(V$57="","",Underwriting!AA39) -> 1673072.486 | W59: =IF(W$57="","",Underwriting!AB39) -> 1519278.203 | X59: =IF(X$57="","",Underwriting!AC39) -> 1315172.938 | Y59: =IF(Y$57="","",Underwriting!AD39) -> 1089904.299 | Z59: =IF(Z$57="","",Underwriting!AE39) -> 860006.3053 | AA59: =IF(AA$57="","",Underwriting!AF39) -> 649276.6965 | AB59: =IF(AB$57="","",Underwriting!AG39) -> 497959.2584 | AC59: =IF(AC$57="","",Underwriting!AH39) -> 356423.0864 | AD59: =IF(AD$57="","",Underwriting!AI39) -> 0 | AE59: =IF(AE$57="","",Underwriting!AJ39) -> 0 | AF59: =IF(AF$57="","",Underwriting!AK39) -> 0 | AG59: =IF(AG$57="","",Underwriting!AL39) -> 0 | AH59: =IF(AH$57="","",Underwriting!AM39) -> 0 | AI59: =IF(AI$57="","",Underwriting!AN39) -> 0 | AJ59: =IF(AJ$57="","",Underwriting!AO39) -> 0 | AK59: =IF(AK$57="","",Underwriting!AP39) -> 0 | AL59: =IF(AL$57="","",Underwriting!AQ39) -> 0 | AM59: =IF(AM$57="","",Underwriting!AR39) -> 0 | AN59: =IF(AN$57="","",Underwriting!AS39) -> 0 | AO59: =IF(AO$57="","",Underwriting!AT39) -> 0 | AP59: =IF(AP$57="","",Underwriting!AU39) -> 0 | AQ59: =IF(AQ$57="","",Underwriting!AV39) -> 0 | AR59: =IF(AR$57="","",Underwriting!AW39) -> 0 | AS59: =IF(AS$57="","",Underwriting!AX39) -> 0 | AT59: =IF(AT$57="","",Underwriting!AY39) -> 0 | AU59: =IF(AU$57="","",Underwriting!AZ39) ->  | AV59: =IF(AV$57="","",Underwriting!BA39) ->  | AW59: =IF(AW$57="","",Underwriting!BB39) ->  | AX59: =IF(AX$57="","",Underwriting!BC39) ->  | AY59: =IF(AY$57="","",Underwriting!BD39) ->  | AZ59: =IF(AZ$57="","",Underwriting!BE39) ->  | BA59: =IF(BA$57="","",Underwriting!BF39) ->  | BB59: =IF(BB$57="","",Underwriting!BG39) ->  | BC59: =IF(BC$57="","",Underwriting!BH39) ->  | BD59: =IF(BD$57="","",Underwriting!BI39) ->  | BE59: =IF(BE$57="","",Underwriting!BJ39) ->  | BF59: =IF(BF$57="","",Underwriting!BK39) ->  | BG59: =IF(BG$57="","",Underwriting!BL39) ->  | BH59: =IF(BH$57="","",Underwriting!BM39) ->  | BI59: =IF(BI$57="","",Underwriting!BN39) ->  | BJ59: =IF(BJ$57="","",Underwriting!BO39) ->  | BK59: =IF(BK$57="","",Underwriting!BP39) ->  | BL59: =IF(BL$57="","",Underwriting!BQ39) ->  | BM59: =IF(BM$57="","",Underwriting!BR39) ->  | BN59: =IF(BN$57="","",Underwriting!BS39) ->  | BO59: =IF(BO$57="","",Underwriting!BT39) ->  | BP59: =IF(BP$57="","",Underwriting!BU39) ->  | BQ59: =IF(BQ$57="","",Underwriting!BV39) ->  | BR59: =IF(BR$57="","",Underwriting!BW39) ->  | BS59: =IF(BS$57="","",Underwriting!BX39) ->  | BT59: =IF(BT$57="","",Underwriting!BY39) ->  | BU59: =IF(BU$57="","",Underwriting!BZ39) ->  | BV59: =IF(BV$57="","",Underwriting!CA39) ->  | BW59: =IF(BW$57="","",Underwriting!CB39) ->  | BX59: =IF(BX$57="","",Underwriting!CC39) ->  | BY59: =IF(BY$57="","",Underwriting!CD39) ->  | BZ59: =IF(BZ$57="","",Underwriting!CE39) ->  | CA59: =IF(CA$57="","",Underwriting!CF39) ->  | CB59: =IF(CB$57="","",Underwriting!CG39) ->  | CC59: =IF(CC$57="","",Underwriting!CH39) ->  | CD59: =IF(CD$57="","",Underwriting!CI39) ->  | CE59: =IF(CE$57="","",Underwriting!CJ39) ->  | CF59: =IF(CF$57="","",Underwriting!CK39) ->  | CG59: =IF(CG$57="","",Underwriting!CL39) ->  | CH59: =IF(CH$57="","",Underwriting!CM39) ->  | CI59: =IF(CI$57="","",Underwriting!CN39) ->  | CJ59: =IF(CJ$57="","",Underwriting!CO39) ->  | CK59: =IF(CK$57="","",Underwriting!CP39) ->  | CL59: =IF(CL$57="","",Underwriting!CQ39) ->  | CM59: =IF(CM$57="","",Underwriting!CR39) ->  | CN59: =IF(CN$57="","",Underwriting!CS39) ->  | CO59: =IF(CO$57="","",Underwriting!CT39) ->  | CP59: =IF(CP$57="","",Underwriting!CU39) ->  | CQ59: =IF(CQ$57="","",Underwriting!CV39) ->  | CR59: =IF(CR$57="","",Underwriting!CW39) ->  | CS59: =IF(CS$57="","",Underwriting!CX39) ->  | CT59: =IF(CT$57="","",Underwriting!CY39) ->  | CU59: =IF(CU$57="","",Underwriting!CZ39) ->  | CV59: =IF(CV$57="","",Underwriting!DA39) ->  | CW59: =IF(CW$57="","",Underwriting!DB39) ->  | CX59: =IF(CX$57="","",Underwriting!DC39) ->  | CY59: =IF(CY$57="","",Underwriting!DD39) ->  | CZ59: =IF(CZ$57="","",Underwriting!DE39) ->  | DA59: =IF(DA$57="","",Underwriting!DF39) ->  | DB59: =IF(DB$57="","",Underwriting!DG39) ->  | DC59: =IF(DC$57="","",Underwriting!DH39) ->  | DD59: =IF(DD$57="","",Underwriting!DI39) ->  | DE59: =IF(DE$57="","",Underwriting!DJ39) ->  | DF59: =IF(DF$57="","",Underwriting!DK39) ->  | DG59: =IF(DG$57="","",Underwriting!DL39) ->  | DH59: =IF(DH$57="","",Underwriting!DM39) ->  | DI59: =IF(DI$57="","",Underwriting!DN39) ->  | DJ59: =IF(DJ$57="","",Underwriting!DO39) ->  | DK59: =IF(DK$57="","",Underwriting!DP39) ->  | DL59: =IF(DL$57="","",Underwriting!DQ39) ->  | DM59: =IF(DM$57="","",Underwriting!DR39) ->  | DN59: =IF(DN$57="","",Underwriting!DS39) ->  | DO59: =IF(DO$57="","",Underwriting!DT39) ->  | DP59: =IF(DP$57="","",Underwriting!DU39) ->  | DQ59: =IF(DQ$57="","",Underwriting!DV39) ->  | DR59: =IF(DR$57="","",Underwriting!DW39) ->  | DS59: =IF(DS$57="","",Underwriting!DX39) ->  | DT59: =IF(DT$57="","",Underwriting!DY39) ->  | DU59: =IF(DU$57="","",Underwriting!DZ39) ->  | DV59: =IF(DV$57="","",Underwriting!EA39) ->  | DW59: =IF(DW$57="","",Underwriting!EB39) ->  | DX59: =IF(DX$57="","",Underwriting!EC39) ->  | DY59: =IF(DY$57="","",Underwriting!ED39) ->  | DZ59: =IF(DZ$57="","",Underwriting!EE39) ->  | EA59: =IF(EA$57="","",Underwriting!EF39) ->  | EB59: =IF(EB$57="","",Underwriting!EG39) ->  | EC59: =IF(EC$57="","",Underwriting!EH39) ->  | ED59: =IF(ED$57="","",Underwriting!EI39) ->  | EE59: =IF(EE$57="","",Underwriting!EJ39) ->  | EF59: =IF(EF$57="","",Underwriting!EK39) ->  | EG59: =IF(EG$57="","",Underwriting!EL39) ->  | EH59: =IF(EH$57="","",Underwriting!EM39) ->  | EI59: =IF(EI$57="","",Underwriting!EN39) -> 
B60: Soft Costs | G60: =IF(G$57="","",Underwriting!L52) -> 303394.8696 | H60: =IF(H$57="","",Underwriting!M52) -> 26127.16457 | I60: =IF(I$57="","",Underwriting!N52) -> 35995.16457 | J60: =IF(J$57="","",Underwriting!O52) -> 97787.83123 | K60: =IF(K$57="","",Underwriting!P52) -> 205468.3646 | L60: =IF(L$57="","",Underwriting!Q52) -> 523692.4798 | M60: =IF(M$57="","",Underwriting!R52) -> 504811.8132 | N60: =IF(N$57="","",Underwriting!S52) -> 141943.4798 | O60: =IF(O$57="","",Underwriting!T52) -> 109478.4798 | P60: =IF(P$57="","",Underwriting!U52) -> 324799.0298 | Q60: =IF(Q$57="","",Underwriting!V52) -> 70382.02983 | R60: =IF(R$57="","",Underwriting!W52) -> 70382.02983 | S60: =IF(S$57="","",Underwriting!X52) -> 70382.02983 | T60: =IF(T$57="","",Underwriting!Y52) -> 65586.27983 | U60: =IF(U$57="","",Underwriting!Z52) -> 65586.27983 | V60: =IF(V$57="","",Underwriting!AA52) -> 65586.27983 | W60: =IF(W$57="","",Underwriting!AB52) -> 65586.27983 | X60: =IF(X$57="","",Underwriting!AC52) -> 65586.27983 | Y60: =IF(Y$57="","",Underwriting!AD52) -> 111986.2798 | Z60: =IF(Z$57="","",Underwriting!AE52) -> 111986.2798 | AA60: =IF(AA$57="","",Underwriting!AF52) -> 111986.2798 | AB60: =IF(AB$57="","",Underwriting!AG52) -> 111986.2798 | AC60: =IF(AC$57="","",Underwriting!AH52) -> 111986.2798 | AD60: =IF(AD$57="","",Underwriting!AI52) -> 16500 | AE60: =IF(AE$57="","",Underwriting!AJ52) -> 16500 | AF60: =IF(AF$57="","",Underwriting!AK52) -> 16500 | AG60: =IF(AG$57="","",Underwriting!AL52) -> 16500 | AH60: =IF(AH$57="","",Underwriting!AM52) -> 0 | AI60: =IF(AI$57="","",Underwriting!AN52) -> 0 | AJ60: =IF(AJ$57="","",Underwriting!AO52) -> 0 | AK60: =IF(AK$57="","",Underwriting!AP52) -> 0 | AL60: =IF(AL$57="","",Underwriting!AQ52) -> 0 | AM60: =IF(AM$57="","",Underwriting!AR52) -> 0 | AN60: =IF(AN$57="","",Underwriting!AS52) -> 0 | AO60: =IF(AO$57="","",Underwriting!AT52) -> 0 | AP60: =IF(AP$57="","",Underwriting!AU52) -> 0 | AQ60: =IF(AQ$57="","",Underwriting!AV52) -> 0 | AR60: =IF(AR$57="","",Underwriting!AW52) -> 0 | AS60: =IF(AS$57="","",Underwriting!AX52) -> 0 | AT60: =IF(AT$57="","",Underwriting!AY52) -> 0 | AU60: =IF(AU$57="","",Underwriting!AZ52) ->  | AV60: =IF(AV$57="","",Underwriting!BA52) ->  | AW60: =IF(AW$57="","",Underwriting!BB52) ->  | AX60: =IF(AX$57="","",Underwriting!BC52) ->  | AY60: =IF(AY$57="","",Underwriting!BD52) ->  | AZ60: =IF(AZ$57="","",Underwriting!BE52) ->  | BA60: =IF(BA$57="","",Underwriting!BF52) ->  | BB60: =IF(BB$57="","",Underwriting!BG52) ->  | BC60: =IF(BC$57="","",Underwriting!BH52) ->  | BD60: =IF(BD$57="","",Underwriting!BI52) ->  | BE60: =IF(BE$57="","",Underwriting!BJ52) ->  | BF60: =IF(BF$57="","",Underwriting!BK52) ->  | BG60: =IF(BG$57="","",Underwriting!BL52) ->  | BH60: =IF(BH$57="","",Underwriting!BM52) ->  | BI60: =IF(BI$57="","",Underwriting!BN52) ->  | BJ60: =IF(BJ$57="","",Underwriting!BO52) ->  | BK60: =IF(BK$57="","",Underwriting!BP52) ->  | BL60: =IF(BL$57="","",Underwriting!BQ52) ->  | BM60: =IF(BM$57="","",Underwriting!BR52) ->  | BN60: =IF(BN$57="","",Underwriting!BS52) ->  | BO60: =IF(BO$57="","",Underwriting!BT52) ->  | BP60: =IF(BP$57="","",Underwriting!BU52) ->  | BQ60: =IF(BQ$57="","",Underwriting!BV52) ->  | BR60: =IF(BR$57="","",Underwriting!BW52) ->  | BS60: =IF(BS$57="","",Underwriting!BX52) ->  | BT60: =IF(BT$57="","",Underwriting!BY52) ->  | BU60: =IF(BU$57="","",Underwriting!BZ52) ->  | BV60: =IF(BV$57="","",Underwriting!CA52) ->  | BW60: =IF(BW$57="","",Underwriting!CB52) ->  | BX60: =IF(BX$57="","",Underwriting!CC52) ->  | BY60: =IF(BY$57="","",Underwriting!CD52) ->  | BZ60: =IF(BZ$57="","",Underwriting!CE52) ->  | CA60: =IF(CA$57="","",Underwriting!CF52) ->  | CB60: =IF(CB$57="","",Underwriting!CG52) ->  | CC60: =IF(CC$57="","",Underwriting!CH52) ->  | CD60: =IF(CD$57="","",Underwriting!CI52) ->  | CE60: =IF(CE$57="","",Underwriting!CJ52) ->  | CF60: =IF(CF$57="","",Underwriting!CK52) ->  | CG60: =IF(CG$57="","",Underwriting!CL52) ->  | CH60: =IF(CH$57="","",Underwriting!CM52) ->  | CI60: =IF(CI$57="","",Underwriting!CN52) ->  | CJ60: =IF(CJ$57="","",Underwriting!CO52) ->  | CK60: =IF(CK$57="","",Underwriting!CP52) ->  | CL60: =IF(CL$57="","",Underwriting!CQ52) ->  | CM60: =IF(CM$57="","",Underwriting!CR52) ->  | CN60: =IF(CN$57="","",Underwriting!CS52) ->  | CO60: =IF(CO$57="","",Underwriting!CT52) ->  | CP60: =IF(CP$57="","",Underwriting!CU52) ->  | CQ60: =IF(CQ$57="","",Underwriting!CV52) ->  | CR60: =IF(CR$57="","",Underwriting!CW52) ->  | CS60: =IF(CS$57="","",Underwriting!CX52) ->  | CT60: =IF(CT$57="","",Underwriting!CY52) ->  | CU60: =IF(CU$57="","",Underwriting!CZ52) ->  | CV60: =IF(CV$57="","",Underwriting!DA52) ->  | CW60: =IF(CW$57="","",Underwriting!DB52) ->  | CX60: =IF(CX$57="","",Underwriting!DC52) ->  | CY60: =IF(CY$57="","",Underwriting!DD52) ->  | CZ60: =IF(CZ$57="","",Underwriting!DE52) ->  | DA60: =IF(DA$57="","",Underwriting!DF52) ->  | DB60: =IF(DB$57="","",Underwriting!DG52) ->  | DC60: =IF(DC$57="","",Underwriting!DH52) ->  | DD60: =IF(DD$57="","",Underwriting!DI52) ->  | DE60: =IF(DE$57="","",Underwriting!DJ52) ->  | DF60: =IF(DF$57="","",Underwriting!DK52) ->  | DG60: =IF(DG$57="","",Underwriting!DL52) ->  | DH60: =IF(DH$57="","",Underwriting!DM52) ->  | DI60: =IF(DI$57="","",Underwriting!DN52) ->  | DJ60: =IF(DJ$57="","",Underwriting!DO52) ->  | DK60: =IF(DK$57="","",Underwriting!DP52) ->  | DL60: =IF(DL$57="","",Underwriting!DQ52) ->  | DM60: =IF(DM$57="","",Underwriting!DR52) ->  | DN60: =IF(DN$57="","",Underwriting!DS52) ->  | DO60: =IF(DO$57="","",Underwriting!DT52) ->  | DP60: =IF(DP$57="","",Underwriting!DU52) ->  | DQ60: =IF(DQ$57="","",Underwriting!DV52) ->  | DR60: =IF(DR$57="","",Underwriting!DW52) ->  | DS60: =IF(DS$57="","",Underwriting!DX52) ->  | DT60: =IF(DT$57="","",Underwriting!DY52) ->  | DU60: =IF(DU$57="","",Underwriting!DZ52) ->  | DV60: =IF(DV$57="","",Underwriting!EA52) ->  | DW60: =IF(DW$57="","",Underwriting!EB52) ->  | DX60: =IF(DX$57="","",Underwriting!EC52) ->  | DY60: =IF(DY$57="","",Underwriting!ED52) ->  | DZ60: =IF(DZ$57="","",Underwriting!EE52) ->  | EA60: =IF(EA$57="","",Underwriting!EF52) ->  | EB60: =IF(EB$57="","",Underwriting!EG52) ->  | EC60: =IF(EC$57="","",Underwriting!EH52) ->  | ED60: =IF(ED$57="","",Underwriting!EI52) ->  | EE60: =IF(EE$57="","",Underwriting!EJ52) ->  | EF60: =IF(EF$57="","",Underwriting!EK52) ->  | EG60: =IF(EG$57="","",Underwriting!EL52) ->  | EH60: =IF(EH$57="","",Underwriting!EM52) ->  | EI60: =IF(EI$57="","",Underwriting!EN52) -> 
B61: TOTAL PROJECT COST BEFORE FINANCING | G61: =IF(G$57="","",SUM(G58:G60)) -> 553494.8696 | H61: =IF(H$57="","",SUM(H58:H60)) -> 26127.16457 | I61: 35995.16457 | J61: 97787.83123 | K61: 205468.3646 | L61: 869448.8996 | M61: 992104.4049 | N61: 808053.5097 | O61: 986318.1184 | P61: 1431536.663 | Q61: 1406388.302 | R61: 1610493.566 | S61: 1764287.849 | T61: 1842251.34 | U61: 1842251.34 | V61: 1759492.099 | W61: 1605697.816 | X61: 1402113.385 | Y61: 1223244.746 | Z61: 993346.7518 | AA61: 782617.143 | AB61: 631299.7049 | AC61: 489763.5329 | AD61: 16500 | AE61: 16500 | AF61: 16500 | AG61: 16500 | AH61: 0 | AI61: 0 | AJ61: 0 | AK61: 0 | AL61: 0 | AM61: 0 | AN61: 0 | AO61: 0 | AP61: 0 | AQ61: 0 | AR61: 0 | AS61: 0 | AT61: 0 | BT61: =IF(BT$57="","",SUM(BT58:BT60)) ->  | EF61: =IF(EF$57="","",SUM(EF58:EF60)) -> 
B63: Carry Costs | G63: =IF(G$57="","",Underwriting!L60) -> 0 | H63: =IF(H$57="","",Underwriting!M60) -> 0 | I63: =IF(I$57="","",Underwriting!N60) -> 0 | J63: =IF(J$57="","",Underwriting!O60) -> 0 | K63: =IF(K$57="","",Underwriting!P60) -> 0 | L63: =IF(L$57="","",Underwriting!Q60) -> 0 | M63: =IF(M$57="","",Underwriting!R60) -> 0 | N63: =IF(N$57="","",Underwriting!S60) -> 0 | O63: =IF(O$57="","",Underwriting!T60) -> 0 | P63: =IF(P$57="","",Underwriting!U60) -> 0 | Q63: =IF(Q$57="","",Underwriting!V60) -> 0 | R63: =IF(R$57="","",Underwriting!W60) -> 0 | S63: =IF(S$57="","",Underwriting!X60) -> 3427.796411 | T63: =IF(T$57="","",Underwriting!Y60) -> 12067.87317 | U63: =IF(U$57="","",Underwriting!Z60) -> 21703.05695 | V63: =IF(V$57="","",Underwriting!AA60) -> 31232.17587 | W63: =IF(W$57="","",Underwriting!AB60) -> 38019.66581 | X63: =IF(X$57="","",Underwriting!AC60) -> 46548.45587 | Y63: =IF(Y$57="","",Underwriting!AD60) -> 51313.10936 | Z63: =IF(Z$57="","",Underwriting!AE60) -> 58541.9558 | AA63: =IF(AA$57="","",Underwriting!AF60) -> 62990.45475 | AB63: =IF(AB$57="","",Underwriting!AG60) -> 60114.20553 | AC63: =IF(AC$57="","",Underwriting!AH60) -> 69459.94282 | AD63: =IF(AD$57="","",Underwriting!AI60) -> 58835.84839 | AE63: =IF(AE$57="","",Underwriting!AJ60) -> 29673.11015 | AF63: =IF(AF$57="","",Underwriting!AK60) -> 0 | AG63: =IF(AG$57="","",Underwriting!AL60) -> 0 | AH63: =IF(AH$57="","",Underwriting!AM60) -> 0 | AI63: =IF(AI$57="","",Underwriting!AN60) -> 0 | AJ63: =IF(AJ$57="","",Underwriting!AO60) -> 0 | AK63: =IF(AK$57="","",Underwriting!AP60) -> 0 | AL63: =IF(AL$57="","",Underwriting!AQ60) -> 0 | AM63: =IF(AM$57="","",Underwriting!AR60) -> 0 | AN63: =IF(AN$57="","",Underwriting!AS60) -> 0 | AO63: =IF(AO$57="","",Underwriting!AT60) -> 0 | AP63: =IF(AP$57="","",Underwriting!AU60) -> 0 | AQ63: =IF(AQ$57="","",Underwriting!AV60) -> 0 | AR63: =IF(AR$57="","",Underwriting!AW60) -> 0 | AS63: =IF(AS$57="","",Underwriting!AX60) -> 0 | AT63: =IF(AT$57="","",Underwriting!AY60) -> 0 | AU63: =IF(AU$57="","",Underwriting!AZ60) ->  | AV63: =IF(AV$57="","",Underwriting!BA60) ->  | AW63: =IF(AW$57="","",Underwriting!BB60) ->  | AX63: =IF(AX$57="","",Underwriting!BC60) ->  | AY63: =IF(AY$57="","",Underwriting!BD60) ->  | AZ63: =IF(AZ$57="","",Underwriting!BE60) ->  | BA63: =IF(BA$57="","",Underwriting!BF60) ->  | BB63: =IF(BB$57="","",Underwriting!BG60) ->  | BC63: =IF(BC$57="","",Underwriting!BH60) ->  | BD63: =IF(BD$57="","",Underwriting!BI60) ->  | BE63: =IF(BE$57="","",Underwriting!BJ60) ->  | BF63: =IF(BF$57="","",Underwriting!BK60) ->  | BG63: =IF(BG$57="","",Underwriting!BL60) ->  | BH63: =IF(BH$57="","",Underwriting!BM60) ->  | BI63: =IF(BI$57="","",Underwriting!BN60) ->  | BJ63: =IF(BJ$57="","",Underwriting!BO60) ->  | BK63: =IF(BK$57="","",Underwriting!BP60) ->  | BL63: =IF(BL$57="","",Underwriting!BQ60) ->  | BM63: =IF(BM$57="","",Underwriting!BR60) ->  | BN63: =IF(BN$57="","",Underwriting!BS60) ->  | BO63: =IF(BO$57="","",Underwriting!BT60) ->  | BP63: =IF(BP$57="","",Underwriting!BU60) ->  | BQ63: =IF(BQ$57="","",Underwriting!BV60) ->  | BR63: =IF(BR$57="","",Underwriting!BW60) ->  | BS63: =IF(BS$57="","",Underwriting!BX60) ->  | BT63: =IF(BT$57="","",Underwriting!BY60) ->  | BU63: =IF(BU$57="","",Underwriting!BZ60) ->  | BV63: =IF(BV$57="","",Underwriting!CA60) ->  | BW63: =IF(BW$57="","",Underwriting!CB60) ->  | BX63: =IF(BX$57="","",Underwriting!CC60) ->  | BY63: =IF(BY$57="","",Underwriting!CD60) ->  | BZ63: =IF(BZ$57="","",Underwriting!CE60) ->  | CA63: =IF(CA$57="","",Underwriting!CF60) ->  | CB63: =IF(CB$57="","",Underwriting!CG60) ->  | CC63: =IF(CC$57="","",Underwriting!CH60) ->  | CD63: =IF(CD$57="","",Underwriting!CI60) ->  | CE63: =IF(CE$57="","",Underwriting!CJ60) ->  | CF63: =IF(CF$57="","",Underwriting!CK60) ->  | CG63: =IF(CG$57="","",Underwriting!CL60) ->  | CH63: =IF(CH$57="","",Underwriting!CM60) ->  | CI63: =IF(CI$57="","",Underwriting!CN60) ->  | CJ63: =IF(CJ$57="","",Underwriting!CO60) ->  | CK63: =IF(CK$57="","",Underwriting!CP60) ->  | CL63: =IF(CL$57="","",Underwriting!CQ60) ->  | CM63: =IF(CM$57="","",Underwriting!CR60) ->  | CN63: =IF(CN$57="","",Underwriting!CS60) ->  | CO63: =IF(CO$57="","",Underwriting!CT60) ->  | CP63: =IF(CP$57="","",Underwriting!CU60) ->  | CQ63: =IF(CQ$57="","",Underwriting!CV60) ->  | CR63: =IF(CR$57="","",Underwriting!CW60) ->  | CS63: =IF(CS$57="","",Underwriting!CX60) ->  | CT63: =IF(CT$57="","",Underwriting!CY60) ->  | CU63: =IF(CU$57="","",Underwriting!CZ60) ->  | CV63: =IF(CV$57="","",Underwriting!DA60) ->  | CW63: =IF(CW$57="","",Underwriting!DB60) ->  | CX63: =IF(CX$57="","",Underwriting!DC60) ->  | CY63: =IF(CY$57="","",Underwriting!DD60) ->  | CZ63: =IF(CZ$57="","",Underwriting!DE60) ->  | DA63: =IF(DA$57="","",Underwriting!DF60) ->  | DB63: =IF(DB$57="","",Underwriting!DG60) ->  | DC63: =IF(DC$57="","",Underwriting!DH60) ->  | DD63: =IF(DD$57="","",Underwriting!DI60) ->  | DE63: =IF(DE$57="","",Underwriting!DJ60) ->  | DF63: =IF(DF$57="","",Underwriting!DK60) ->  | DG63: =IF(DG$57="","",Underwriting!DL60) ->  | DH63: =IF(DH$57="","",Underwriting!DM60) ->  | DI63: =IF(DI$57="","",Underwriting!DN60) ->  | DJ63: =IF(DJ$57="","",Underwriting!DO60) ->  | DK63: =IF(DK$57="","",Underwriting!DP60) ->  | DL63: =IF(DL$57="","",Underwriting!DQ60) ->  | DM63: =IF(DM$57="","",Underwriting!DR60) ->  | DN63: =IF(DN$57="","",Underwriting!DS60) ->  | DO63: =IF(DO$57="","",Underwriting!DT60) ->  | DP63: =IF(DP$57="","",Underwriting!DU60) ->  | DQ63: =IF(DQ$57="","",Underwriting!DV60) ->  | DR63: =IF(DR$57="","",Underwriting!DW60) ->  | DS63: =IF(DS$57="","",Underwriting!DX60) ->  | DT63: =IF(DT$57="","",Underwriting!DY60) ->  | DU63: =IF(DU$57="","",Underwriting!DZ60) ->  | DV63: =IF(DV$57="","",Underwriting!EA60) ->  | DW63: =IF(DW$57="","",Underwriting!EB60) ->  | DX63: =IF(DX$57="","",Underwriting!EC60) ->  | DY63: =IF(DY$57="","",Underwriting!ED60) ->  | DZ63: =IF(DZ$57="","",Underwriting!EE60) ->  | EA63: =IF(EA$57="","",Underwriting!EF60) ->  | EB63: =IF(EB$57="","",Underwriting!EG60) ->  | EC63: =IF(EC$57="","",Underwriting!EH60) ->  | ED63: =IF(ED$57="","",Underwriting!EI60) ->  | EE63: =IF(EE$57="","",Underwriting!EJ60) ->  | EF63: =IF(EF$57="","",Underwriting!EK60) ->  | EG63: =IF(EG$57="","",Underwriting!EL60) ->  | EH63: =IF(EH$57="","",Underwriting!EM60) ->  | EI63: =IF(EI$57="","",Underwriting!EN60) -> 
B65: TOTAL PROJECT COST | G65: =IF(G$57="","",G63+G61) -> 553494.8696 | H65: =IF(H$57="","",H63+H61) -> 26127.16457 | I65: 35995.16457 | J65: 97787.83123 | K65: 205468.3646 | L65: 869448.8996 | M65: 992104.4049 | N65: 808053.5097 | O65: 986318.1184 | P65: 1431536.663 | Q65: 1406388.302 | R65: 1610493.566 | S65: 1767715.645 | T65: 1854319.213 | U65: 1863954.397 | V65: 1790724.275 | W65: 1643717.482 | X65: 1448661.841 | Y65: 1274557.855 | Z65: 1051888.708 | AA65: 845607.5978 | AB65: 691413.9105 | AC65: 559223.4758 | AD65: 75335.84839 | AE65: 46173.11015 | AF65: 16500 | AG65: 16500 | AH65: 0 | AI65: 0 | AJ65: 0 | AK65: 0 | AL65: 0 | AM65: 0 | AN65: 0 | AO65: 0 | AP65: 0 | AQ65: 0 | AR65: 0 | AS65: 0 | AT65: 0 | BT65: =IF(BT$57="","",BT63+BT61) ->  | EF65: =IF(EF$57="","",EF63+EF61) -> 
B67: SOURCES | G67: =IF(G$57="","",Underwriting!L62) -> 553494.8696 | H67: =IF(H$57="","",Underwriting!M62) -> 26127.16457 | I67: =IF(I$57="","",Underwriting!N62) -> 35995.16457 | J67: =IF(J$57="","",Underwriting!O62) -> 97787.83123 | K67: =IF(K$57="","",Underwriting!P62) -> 205468.3646 | L67: =IF(L$57="","",Underwriting!Q62) -> 869448.8996 | M67: =IF(M$57="","",Underwriting!R62) -> 992104.4049 | N67: =IF(N$57="","",Underwriting!S62) -> 808053.5097 | O67: =IF(O$57="","",Underwriting!T62) -> 986318.1184 | P67: =IF(P$57="","",Underwriting!U62) -> 1431536.663 | Q67: =IF(Q$57="","",Underwriting!V62) -> 1406388.302 | R67: =IF(R$57="","",Underwriting!W62) -> 1610493.566 | S67: =IF(S$57="","",Underwriting!X62) -> 1767715.645 | T67: =IF(T$57="","",Underwriting!Y62) -> 1854319.213 | U67: =IF(U$57="","",Underwriting!Z62) -> 1863954.397 | V67: =IF(V$57="","",Underwriting!AA62) -> 1790724.275 | W67: =IF(W$57="","",Underwriting!AB62) -> 1643717.482 | X67: =IF(X$57="","",Underwriting!AC62) -> 1448661.841 | Y67: =IF(Y$57="","",Underwriting!AD62) -> 1274557.855 | Z67: =IF(Z$57="","",Underwriting!AE62) -> 1051888.708 | AA67: =IF(AA$57="","",Underwriting!AF62) -> 845607.5978 | AB67: =IF(AB$57="","",Underwriting!AG62) -> 691413.9105 | AC67: =IF(AC$57="","",Underwriting!AH62) -> 559223.4758 | AD67: =IF(AD$57="","",Underwriting!AI62) -> 75335.84839 | AE67: =IF(AE$57="","",Underwriting!AJ62) -> 46173.11015 | AF67: =IF(AF$57="","",Underwriting!AK62) -> 16500 | AG67: =IF(AG$57="","",Underwriting!AL62) -> 16500 | AH67: =IF(AH$57="","",Underwriting!AM62) -> 0 | AI67: =IF(AI$57="","",Underwriting!AN62) -> 0 | AJ67: =IF(AJ$57="","",Underwriting!AO62) -> 0 | AK67: =IF(AK$57="","",Underwriting!AP62) -> 0 | AL67: =IF(AL$57="","",Underwriting!AQ62) -> 0 | AM67: =IF(AM$57="","",Underwriting!AR62) -> 0 | AN67: =IF(AN$57="","",Underwriting!AS62) -> 0 | AO67: =IF(AO$57="","",Underwriting!AT62) -> 0 | AP67: =IF(AP$57="","",Underwriting!AU62) -> 0 | AQ67: =IF(AQ$57="","",Underwriting!AV62) -> 0 | AR67: =IF(AR$57="","",Underwriting!AW62) -> 0 | AS67: =IF(AS$57="","",Underwriting!AX62) -> 0 | AT67: =IF(AT$57="","",Underwriting!AY62) -> 0 | AU67: =IF(AU$57="","",Underwriting!AZ62) ->  | AV67: =IF(AV$57="","",Underwriting!BA62) ->  | AW67: =IF(AW$57="","",Underwriting!BB62) ->  | AX67: =IF(AX$57="","",Underwriting!BC62) ->  | AY67: =IF(AY$57="","",Underwriting!BD62) ->  | AZ67: =IF(AZ$57="","",Underwriting!BE62) ->  | BA67: =IF(BA$57="","",Underwriting!BF62) ->  | BB67: =IF(BB$57="","",Underwriting!BG62) ->  | BC67: =IF(BC$57="","",Underwriting!BH62) ->  | BD67: =IF(BD$57="","",Underwriting!BI62) ->  | BE67: =IF(BE$57="","",Underwriting!BJ62) ->  | BF67: =IF(BF$57="","",Underwriting!BK62) ->  | BG67: =IF(BG$57="","",Underwriting!BL62) ->  | BH67: =IF(BH$57="","",Underwriting!BM62) ->  | BI67: =IF(BI$57="","",Underwriting!BN62) ->  | BJ67: =IF(BJ$57="","",Underwriting!BO62) ->  | BK67: =IF(BK$57="","",Underwriting!BP62) ->  | BL67: =IF(BL$57="","",Underwriting!BQ62) ->  | BM67: =IF(BM$57="","",Underwriting!BR62) ->  | BN67: =IF(BN$57="","",Underwriting!BS62) ->  | BO67: =IF(BO$57="","",Underwriting!BT62) ->  | BP67: =IF(BP$57="","",Underwriting!BU62) ->  | BQ67: =IF(BQ$57="","",Underwriting!BV62) ->  | BR67: =IF(BR$57="","",Underwriting!BW62) ->  | BS67: =IF(BS$57="","",Underwriting!BX62) ->  | BT67: =IF(BT$57="","",Underwriting!BY62) ->  | BU67: =IF(BU$57="","",Underwriting!BZ62) ->  | BV67: =IF(BV$57="","",Underwriting!CA62) ->  | BW67: =IF(BW$57="","",Underwriting!CB62) ->  | BX67: =IF(BX$57="","",Underwriting!CC62) ->  | BY67: =IF(BY$57="","",Underwriting!CD62) ->  | BZ67: =IF(BZ$57="","",Underwriting!CE62) ->  | CA67: =IF(CA$57="","",Underwriting!CF62) ->  | CB67: =IF(CB$57="","",Underwriting!CG62) ->  | CC67: =IF(CC$57="","",Underwriting!CH62) ->  | CD67: =IF(CD$57="","",Underwriting!CI62) ->  | CE67: =IF(CE$57="","",Underwriting!CJ62) ->  | CF67: =IF(CF$57="","",Underwriting!CK62) ->  | CG67: =IF(CG$57="","",Underwriting!CL62) ->  | CH67: =IF(CH$57="","",Underwriting!CM62) ->  | CI67: =IF(CI$57="","",Underwriting!CN62) ->  | CJ67: =IF(CJ$57="","",Underwriting!CO62) ->  | CK67: =IF(CK$57="","",Underwriting!CP62) ->  | CL67: =IF(CL$57="","",Underwriting!CQ62) ->  | CM67: =IF(CM$57="","",Underwriting!CR62) ->  | CN67: =IF(CN$57="","",Underwriting!CS62) ->  | CO67: =IF(CO$57="","",Underwriting!CT62) ->  | CP67: =IF(CP$57="","",Underwriting!CU62) ->  | CQ67: =IF(CQ$57="","",Underwriting!CV62) ->  | CR67: =IF(CR$57="","",Underwriting!CW62) ->  | CS67: =IF(CS$57="","",Underwriting!CX62) ->  | CT67: =IF(CT$57="","",Underwriting!CY62) ->  | CU67: =IF(CU$57="","",Underwriting!CZ62) ->  | CV67: =IF(CV$57="","",Underwriting!DA62) ->  | CW67: =IF(CW$57="","",Underwriting!DB62) ->  | CX67: =IF(CX$57="","",Underwriting!DC62) ->  | CY67: =IF(CY$57="","",Underwriting!DD62) ->  | CZ67: =IF(CZ$57="","",Underwriting!DE62) ->  | DA67: =IF(DA$57="","",Underwriting!DF62) ->  | DB67: =IF(DB$57="","",Underwriting!DG62) ->  | DC67: =IF(DC$57="","",Underwriting!DH62) ->  | DD67: =IF(DD$57="","",Underwriting!DI62) ->  | DE67: =IF(DE$57="","",Underwriting!DJ62) ->  | DF67: =IF(DF$57="","",Underwriting!DK62) ->  | DG67: =IF(DG$57="","",Underwriting!DL62) ->  | DH67: =IF(DH$57="","",Underwriting!DM62) ->  | DI67: =IF(DI$57="","",Underwriting!DN62) ->  | DJ67: =IF(DJ$57="","",Underwriting!DO62) ->  | DK67: =IF(DK$57="","",Underwriting!DP62) ->  | DL67: =IF(DL$57="","",Underwriting!DQ62) ->  | DM67: =IF(DM$57="","",Underwriting!DR62) ->  | DN67: =IF(DN$57="","",Underwriting!DS62) ->  | DO67: =IF(DO$57="","",Underwriting!DT62) ->  | DP67: =IF(DP$57="","",Underwriting!DU62) ->  | DQ67: =IF(DQ$57="","",Underwriting!DV62) ->  | DR67: =IF(DR$57="","",Underwriting!DW62) ->  | DS67: =IF(DS$57="","",Underwriting!DX62) ->  | DT67: =IF(DT$57="","",Underwriting!DY62) ->  | DU67: =IF(DU$57="","",Underwriting!DZ62) ->  | DV67: =IF(DV$57="","",Underwriting!EA62) ->  | DW67: =IF(DW$57="","",Underwriting!EB62) ->  | DX67: =IF(DX$57="","",Underwriting!EC62) ->  | DY67: =IF(DY$57="","",Underwriting!ED62) ->  | DZ67: =IF(DZ$57="","",Underwriting!EE62) ->  | EA67: =IF(EA$57="","",Underwriting!EF62) ->  | EB67: =IF(EB$57="","",Underwriting!EG62) ->  | EC67: =IF(EC$57="","",Underwriting!EH62) ->  | ED67: =IF(ED$57="","",Underwriting!EI62) ->  | EE67: =IF(EE$57="","",Underwriting!EJ62) ->  | EF67: =IF(EF$57="","",Underwriting!EK62) ->  | EG67: =IF(EG$57="","",Underwriting!EL62) ->  | EH67: =IF(EH$57="","",Underwriting!EM62) ->  | EI67: =IF(EI$57="","",Underwriting!EN62) -> 
B68: USES | G68: =IF(G$57="","",Underwriting!L82) -> 553494.8696 | H68: =IF(H$57="","",Underwriting!M82) -> 26127.16457 | I68: =IF(I$57="","",Underwriting!N82) -> 35995.16457 | J68: =IF(J$57="","",Underwriting!O82) -> 97787.83123 | K68: =IF(K$57="","",Underwriting!P82) -> 205468.3646 | L68: =IF(L$57="","",Underwriting!Q82) -> 869448.8996 | M68: =IF(M$57="","",Underwriting!R82) -> 992104.4049 | N68: =IF(N$57="","",Underwriting!S82) -> 808053.5097 | O68: =IF(O$57="","",Underwriting!T82) -> 986318.1184 | P68: =IF(P$57="","",Underwriting!U82) -> 1431536.663 | Q68: =IF(Q$57="","",Underwriting!V82) -> 1406388.302 | R68: =IF(R$57="","",Underwriting!W82) -> 1610493.566 | S68: =IF(S$57="","",Underwriting!X82) -> 1767715.645 | T68: =IF(T$57="","",Underwriting!Y82) -> 1854319.213 | U68: =IF(U$57="","",Underwriting!Z82) -> 1863954.397 | V68: =IF(V$57="","",Underwriting!AA82) -> 1790724.275 | W68: =IF(W$57="","",Underwriting!AB82) -> 1643717.482 | X68: =IF(X$57="","",Underwriting!AC82) -> 1448661.841 | Y68: =IF(Y$57="","",Underwriting!AD82) -> 1274557.855 | Z68: =IF(Z$57="","",Underwriting!AE82) -> 1051888.708 | AA68: =IF(AA$57="","",Underwriting!AF82) -> 845607.5978 | AB68: =IF(AB$57="","",Underwriting!AG82) -> 691413.9105 | AC68: =IF(AC$57="","",Underwriting!AH82) -> 559223.4758 | AD68: =IF(AD$57="","",Underwriting!AI82) -> 75335.84839 | AE68: =IF(AE$57="","",Underwriting!AJ82) -> 46173.11015 | AF68: =IF(AF$57="","",Underwriting!AK82) -> 16500 | AG68: =IF(AG$57="","",Underwriting!AL82) -> 16500 | AH68: =IF(AH$57="","",Underwriting!AM82) -> 0 | AI68: =IF(AI$57="","",Underwriting!AN82) -> 0 | AJ68: =IF(AJ$57="","",Underwriting!AO82) -> 0 | AK68: =IF(AK$57="","",Underwriting!AP82) -> 0 | AL68: =IF(AL$57="","",Underwriting!AQ82) -> 0 | AM68: =IF(AM$57="","",Underwriting!AR82) -> 0 | AN68: =IF(AN$57="","",Underwriting!AS82) -> 0 | AO68: =IF(AO$57="","",Underwriting!AT82) -> 0 | AP68: =IF(AP$57="","",Underwriting!AU82) -> 0 | AQ68: =IF(AQ$57="","",Underwriting!AV82) -> 0 | AR68: =IF(AR$57="","",Underwriting!AW82) -> 0 | AS68: =IF(AS$57="","",Underwriting!AX82) -> 0 | AT68: =IF(AT$57="","",Underwriting!AY82) -> 0 | AU68: =IF(AU$57="","",Underwriting!AZ82) ->  | AV68: =IF(AV$57="","",Underwriting!BA82) ->  | AW68: =IF(AW$57="","",Underwriting!BB82) ->  | AX68: =IF(AX$57="","",Underwriting!BC82) ->  | AY68: =IF(AY$57="","",Underwriting!BD82) ->  | AZ68: =IF(AZ$57="","",Underwriting!BE82) ->  | BA68: =IF(BA$57="","",Underwriting!BF82) ->  | BB68: =IF(BB$57="","",Underwriting!BG82) ->  | BC68: =IF(BC$57="","",Underwriting!BH82) ->  | BD68: =IF(BD$57="","",Underwriting!BI82) ->  | BE68: =IF(BE$57="","",Underwriting!BJ82) ->  | BF68: =IF(BF$57="","",Underwriting!BK82) ->  | BG68: =IF(BG$57="","",Underwriting!BL82) ->  | BH68: =IF(BH$57="","",Underwriting!BM82) ->  | BI68: =IF(BI$57="","",Underwriting!BN82) ->  | BJ68: =IF(BJ$57="","",Underwriting!BO82) ->  | BK68: =IF(BK$57="","",Underwriting!BP82) ->  | BL68: =IF(BL$57="","",Underwriting!BQ82) ->  | BM68: =IF(BM$57="","",Underwriting!BR82) ->  | BN68: =IF(BN$57="","",Underwriting!BS82) ->  | BO68: =IF(BO$57="","",Underwriting!BT82) ->  | BP68: =IF(BP$57="","",Underwriting!BU82) ->  | BQ68: =IF(BQ$57="","",Underwriting!BV82) ->  | BR68: =IF(BR$57="","",Underwriting!BW82) ->  | BS68: =IF(BS$57="","",Underwriting!BX82) ->  | BT68: =IF(BT$57="","",Underwriting!BY82) ->  | BU68: =IF(BU$57="","",Underwriting!BZ82) ->  | BV68: =IF(BV$57="","",Underwriting!CA82) ->  | BW68: =IF(BW$57="","",Underwriting!CB82) ->  | BX68: =IF(BX$57="","",Underwriting!CC82) ->  | BY68: =IF(BY$57="","",Underwriting!CD82) ->  | BZ68: =IF(BZ$57="","",Underwriting!CE82) ->  | CA68: =IF(CA$57="","",Underwriting!CF82) ->  | CB68: =IF(CB$57="","",Underwriting!CG82) ->  | CC68: =IF(CC$57="","",Underwriting!CH82) ->  | CD68: =IF(CD$57="","",Underwriting!CI82) ->  | CE68: =IF(CE$57="","",Underwriting!CJ82) ->  | CF68: =IF(CF$57="","",Underwriting!CK82) ->  | CG68: =IF(CG$57="","",Underwriting!CL82) ->  | CH68: =IF(CH$57="","",Underwriting!CM82) ->  | CI68: =IF(CI$57="","",Underwriting!CN82) ->  | CJ68: =IF(CJ$57="","",Underwriting!CO82) ->  | CK68: =IF(CK$57="","",Underwriting!CP82) ->  | CL68: =IF(CL$57="","",Underwriting!CQ82) ->  | CM68: =IF(CM$57="","",Underwriting!CR82) ->  | CN68: =IF(CN$57="","",Underwriting!CS82) ->  | CO68: =IF(CO$57="","",Underwriting!CT82) ->  | CP68: =IF(CP$57="","",Underwriting!CU82) ->  | CQ68: =IF(CQ$57="","",Underwriting!CV82) ->  | CR68: =IF(CR$57="","",Underwriting!CW82) ->  | CS68: =IF(CS$57="","",Underwriting!CX82) ->  | CT68: =IF(CT$57="","",Underwriting!CY82) ->  | CU68: =IF(CU$57="","",Underwriting!CZ82) ->  | CV68: =IF(CV$57="","",Underwriting!DA82) ->  | CW68: =IF(CW$57="","",Underwriting!DB82) ->  | CX68: =IF(CX$57="","",Underwriting!DC82) ->  | CY68: =IF(CY$57="","",Underwriting!DD82) ->  | CZ68: =IF(CZ$57="","",Underwriting!DE82) ->  | DA68: =IF(DA$57="","",Underwriting!DF82) ->  | DB68: =IF(DB$57="","",Underwriting!DG82) ->  | DC68: =IF(DC$57="","",Underwriting!DH82) ->  | DD68: =IF(DD$57="","",Underwriting!DI82) ->  | DE68: =IF(DE$57="","",Underwriting!DJ82) ->  | DF68: =IF(DF$57="","",Underwriting!DK82) ->  | DG68: =IF(DG$57="","",Underwriting!DL82) ->  | DH68: =IF(DH$57="","",Underwriting!DM82) ->  | DI68: =IF(DI$57="","",Underwriting!DN82) ->  | DJ68: =IF(DJ$57="","",Underwriting!DO82) ->  | DK68: =IF(DK$57="","",Underwriting!DP82) ->  | DL68: =IF(DL$57="","",Underwriting!DQ82) ->  | DM68: =IF(DM$57="","",Underwriting!DR82) ->  | DN68: =IF(DN$57="","",Underwriting!DS82) ->  | DO68: =IF(DO$57="","",Underwriting!DT82) ->  | DP68: =IF(DP$57="","",Underwriting!DU82) ->  | DQ68: =IF(DQ$57="","",Underwriting!DV82) ->  | DR68: =IF(DR$57="","",Underwriting!DW82) ->  | DS68: =IF(DS$57="","",Underwriting!DX82) ->  | DT68: =IF(DT$57="","",Underwriting!DY82) ->  | DU68: =IF(DU$57="","",Underwriting!DZ82) ->  | DV68: =IF(DV$57="","",Underwriting!EA82) ->  | DW68: =IF(DW$57="","",Underwriting!EB82) ->  | DX68: =IF(DX$57="","",Underwriting!EC82) ->  | DY68: =IF(DY$57="","",Underwriting!ED82) ->  | DZ68: =IF(DZ$57="","",Underwriting!EE82) ->  | EA68: =IF(EA$57="","",Underwriting!EF82) ->  | EB68: =IF(EB$57="","",Underwriting!EG82) ->  | EC68: =IF(EC$57="","",Underwriting!EH82) ->  | ED68: =IF(ED$57="","",Underwriting!EI82) ->  | EE68: =IF(EE$57="","",Underwriting!EJ82) ->  | EF68: =IF(EF$57="","",Underwriting!EK82) ->  | EG68: =IF(EG$57="","",Underwriting!EL82) ->  | EH68: =IF(EH$57="","",Underwriting!EM82) ->  | EI68: =IF(EI$57="","",Underwriting!EN82) -> 
B70: MONTHLY OPERATING CASH FLOWS | G70: =+G57 -> 0 | H70: =+H57 -> 1 | I70: 2 | J70: 3 | K70: 4 | L70: 5 | M70: 6 | N70: 7 | O70: 8 | P70: 9 | Q70: 10 | R70: 11 | S70: 12 | T70: 13 | U70: 14 | V70: 15 | W70: 16 | X70: 17 | Y70: 18 | Z70: 19 | AA70: 20 | AB70: 21 | AC70: 22 | AD70: 23 | AE70: 24 | AF70: 25 | AG70: 26 | AH70: 27 | AI70: 28 | AJ70: 29 | AK70: 30 | AL70: 31 | AM70: 32 | AN70: 33 | AO70: 34 | AP70: 35 | AQ70: 36 | AR70: 37 | AS70: 38 | AT70: 39 | BT70: =+BT57 ->  | EF70: =+EF57 -> 
B71: Rental Income | G71: =IF(G$70="","",Underwriting!L128) -> 0 | H71: =IF(H$70="","",Underwriting!M128) -> 0 | I71: =IF(I$70="","",Underwriting!N128) -> 0 | J71: =IF(J$70="","",Underwriting!O128) -> 0 | K71: =IF(K$70="","",Underwriting!P128) -> 0 | L71: =IF(L$70="","",Underwriting!Q128) -> 0 | M71: =IF(M$70="","",Underwriting!R128) -> 0 | N71: =IF(N$70="","",Underwriting!S128) -> 0 | O71: =IF(O$70="","",Underwriting!T128) -> 0 | P71: =IF(P$70="","",Underwriting!U128) -> 0 | Q71: =IF(Q$70="","",Underwriting!V128) -> 0 | R71: =IF(R$70="","",Underwriting!W128) -> 0 | S71: =IF(S$70="","",Underwriting!X128) -> 0 | T71: =IF(T$70="","",Underwriting!Y128) -> 0 | U71: =IF(U$70="","",Underwriting!Z128) -> 0 | V71: =IF(V$70="","",Underwriting!AA128) -> 0 | W71: =IF(W$70="","",Underwriting!AB128) -> 0 | X71: =IF(X$70="","",Underwriting!AC128) -> 0 | Y71: =IF(Y$70="","",Underwriting!AD128) -> 0 | Z71: =IF(Z$70="","",Underwriting!AE128) -> 0 | AA71: =IF(AA$70="","",Underwriting!AF128) -> 0 | AB71: =IF(AB$70="","",Underwriting!AG128) -> 0 | AC71: =IF(AC$70="","",Underwriting!AH128) -> 0 | AD71: =IF(AD$70="","",Underwriting!AI128) -> 64243.16 | AE71: =IF(AE$70="","",Underwriting!AJ128) -> 98422.32346 | AF71: =IF(AF$70="","",Underwriting!AK128) -> 134360.7368 | AG71: =IF(AG$70="","",Underwriting!AL128) -> 169565.2752 | AH71: =IF(AH$70="","",Underwriting!AM128) -> 185089.0945 | AI71: =IF(AI$70="","",Underwriting!AN128) -> 185089.0945 | AJ71: =IF(AJ$70="","",Underwriting!AO128) -> 185089.0945 | AK71: =IF(AK$70="","",Underwriting!AP128) -> 185089.0945 | AL71: =IF(AL$70="","",Underwriting!AQ128) -> 185089.0945 | AM71: =IF(AM$70="","",Underwriting!AR128) -> 185089.0945 | AN71: =IF(AN$70="","",Underwriting!AS128) -> 185089.0945 | AO71: =IF(AO$70="","",Underwriting!AT128) -> 185089.0945 | AP71: =IF(AP$70="","",Underwriting!AU128) -> 185089.0945 | AQ71: =IF(AQ$70="","",Underwriting!AV128) -> 185089.0945 | AR71: =IF(AR$70="","",Underwriting!AW128) -> 190641.7673 | AS71: =IF(AS$70="","",Underwriting!AX128) -> 190641.7673 | AT71: =IF(AT$70="","",Underwriting!AY128) -> 190641.7673 | AU71: =IF(AU$70="","",Underwriting!AZ128) ->  | AV71: =IF(AV$70="","",Underwriting!BA128) ->  | AW71: =IF(AW$70="","",Underwriting!BB128) ->  | AX71: =IF(AX$70="","",Underwriting!BC128) ->  | AY71: =IF(AY$70="","",Underwriting!BD128) ->  | AZ71: =IF(AZ$70="","",Underwriting!BE128) ->  | BA71: =IF(BA$70="","",Underwriting!BF128) ->  | BB71: =IF(BB$70="","",Underwriting!BG128) ->  | BC71: =IF(BC$70="","",Underwriting!BH128) ->  | BD71: =IF(BD$70="","",Underwriting!BI128) ->  | BE71: =IF(BE$70="","",Underwriting!BJ128) ->  | BF71: =IF(BF$70="","",Underwriting!BK128) ->  | BG71: =IF(BG$70="","",Underwriting!BL128) ->  | BH71: =IF(BH$70="","",Underwriting!BM128) ->  | BI71: =IF(BI$70="","",Underwriting!BN128) ->  | BJ71: =IF(BJ$70="","",Underwriting!BO128) ->  | BK71: =IF(BK$70="","",Underwriting!BP128) ->  | BL71: =IF(BL$70="","",Underwriting!BQ128) ->  | BM71: =IF(BM$70="","",Underwriting!BR128) ->  | BN71: =IF(BN$70="","",Underwriting!BS128) ->  | BO71: =IF(BO$70="","",Underwriting!BT128) ->  | BP71: =IF(BP$70="","",Underwriting!BU128) ->  | BQ71: =IF(BQ$70="","",Underwriting!BV128) ->  | BR71: =IF(BR$70="","",Underwriting!BW128) ->  | BS71: =IF(BS$70="","",Underwriting!BX128) ->  | BT71: =IF(BT$70="","",Underwriting!BY128) ->  | BU71: =IF(BU$70="","",Underwriting!BZ128) ->  | BV71: =IF(BV$70="","",Underwriting!CA128) ->  | BW71: =IF(BW$70="","",Underwriting!CB128) ->  | BX71: =IF(BX$70="","",Underwriting!CC128) ->  | BY71: =IF(BY$70="","",Underwriting!CD128) ->  | BZ71: =IF(BZ$70="","",Underwriting!CE128) ->  | CA71: =IF(CA$70="","",Underwriting!CF128) ->  | CB71: =IF(CB$70="","",Underwriting!CG128) ->  | CC71: =IF(CC$70="","",Underwriting!CH128) ->  | CD71: =IF(CD$70="","",Underwriting!CI128) ->  | CE71: =IF(CE$70="","",Underwriting!CJ128) ->  | CF71: =IF(CF$70="","",Underwriting!CK128) ->  | CG71: =IF(CG$70="","",Underwriting!CL128) ->  | CH71: =IF(CH$70="","",Underwriting!CM128) ->  | CI71: =IF(CI$70="","",Underwriting!CN128) ->  | CJ71: =IF(CJ$70="","",Underwriting!CO128) ->  | CK71: =IF(CK$70="","",Underwriting!CP128) ->  | CL71: =IF(CL$70="","",Underwriting!CQ128) ->  | CM71: =IF(CM$70="","",Underwriting!CR128) ->  | CN71: =IF(CN$70="","",Underwriting!CS128) ->  | CO71: =IF(CO$70="","",Underwriting!CT128) ->  | CP71: =IF(CP$70="","",Underwriting!CU128) ->  | CQ71: =IF(CQ$70="","",Underwriting!CV128) ->  | CR71: =IF(CR$70="","",Underwriting!CW128) ->  | CS71: =IF(CS$70="","",Underwriting!CX128) ->  | CT71: =IF(CT$70="","",Underwriting!CY128) ->  | CU71: =IF(CU$70="","",Underwriting!CZ128) ->  | CV71: =IF(CV$70="","",Underwriting!DA128) ->  | CW71: =IF(CW$70="","",Underwriting!DB128) ->  | CX71: =IF(CX$70="","",Underwriting!DC128) ->  | CY71: =IF(CY$70="","",Underwriting!DD128) ->  | CZ71: =IF(CZ$70="","",Underwriting!DE128) ->  | DA71: =IF(DA$70="","",Underwriting!DF128) ->  | DB71: =IF(DB$70="","",Underwriting!DG128) ->  | DC71: =IF(DC$70="","",Underwriting!DH128) ->  | DD71: =IF(DD$70="","",Underwriting!DI128) ->  | DE71: =IF(DE$70="","",Underwriting!DJ128) ->  | DF71: =IF(DF$70="","",Underwriting!DK128) ->  | DG71: =IF(DG$70="","",Underwriting!DL128) ->  | DH71: =IF(DH$70="","",Underwriting!DM128) ->  | DI71: =IF(DI$70="","",Underwriting!DN128) ->  | DJ71: =IF(DJ$70="","",Underwriting!DO128) ->  | DK71: =IF(DK$70="","",Underwriting!DP128) ->  | DL71: =IF(DL$70="","",Underwriting!DQ128) ->  | DM71: =IF(DM$70="","",Underwriting!DR128) ->  | DN71: =IF(DN$70="","",Underwriting!DS128) ->  | DO71: =IF(DO$70="","",Underwriting!DT128) ->  | DP71: =IF(DP$70="","",Underwriting!DU128) ->  | DQ71: =IF(DQ$70="","",Underwriting!DV128) ->  | DR71: =IF(DR$70="","",Underwriting!DW128) ->  | DS71: =IF(DS$70="","",Underwriting!DX128) ->  | DT71: =IF(DT$70="","",Underwriting!DY128) ->  | DU71: =IF(DU$70="","",Underwriting!DZ128) ->  | DV71: =IF(DV$70="","",Underwriting!EA128) ->  | DW71: =IF(DW$70="","",Underwriting!EB128) ->  | DX71: =IF(DX$70="","",Underwriting!EC128) ->  | DY71: =IF(DY$70="","",Underwriting!ED128) ->  | DZ71: =IF(DZ$70="","",Underwriting!EE128) ->  | EA71: =IF(EA$70="","",Underwriting!EF128) ->  | EB71: =IF(EB$70="","",Underwriting!EG128) ->  | EC71: =IF(EC$70="","",Underwriting!EH128) ->  | ED71: =IF(ED$70="","",Underwriting!EI128) ->  | EE71: =IF(EE$70="","",Underwriting!EJ128) ->  | EF71: =IF(EF$70="","",Underwriting!EK128) ->  | EG71: =IF(EG$70="","",Underwriting!EL128) ->  | EH71: =IF(EH$70="","",Underwriting!EM128) ->  | EI71: =IF(EI$70="","",Underwriting!EN128) -> 
B72: Other Income | G72: =IF(G$70="","",Underwriting!L134) -> 0 | H72: =IF(H$70="","",Underwriting!M134) -> 0 | I72: =IF(I$70="","",Underwriting!N134) -> 0 | J72: =IF(J$70="","",Underwriting!O134) -> 0 | K72: =IF(K$70="","",Underwriting!P134) -> 0 | L72: =IF(L$70="","",Underwriting!Q134) -> 0 | M72: =IF(M$70="","",Underwriting!R134) -> 0 | N72: =IF(N$70="","",Underwriting!S134) -> 0 | O72: =IF(O$70="","",Underwriting!T134) -> 0 | P72: =IF(P$70="","",Underwriting!U134) -> 0 | Q72: =IF(Q$70="","",Underwriting!V134) -> 0 | R72: =IF(R$70="","",Underwriting!W134) -> 0 | S72: =IF(S$70="","",Underwriting!X134) -> 0 | T72: =IF(T$70="","",Underwriting!Y134) -> 0 | U72: =IF(U$70="","",Underwriting!Z134) -> 0 | V72: =IF(V$70="","",Underwriting!AA134) -> 0 | W72: =IF(W$70="","",Underwriting!AB134) -> 0 | X72: =IF(X$70="","",Underwriting!AC134) -> 0 | Y72: =IF(Y$70="","",Underwriting!AD134) -> 0 | Z72: =IF(Z$70="","",Underwriting!AE134) -> 0 | AA72: =IF(AA$70="","",Underwriting!AF134) -> 0 | AB72: =IF(AB$70="","",Underwriting!AG134) -> 0 | AC72: =IF(AC$70="","",Underwriting!AH134) -> 0 | AD72: =IF(AD$70="","",Underwriting!AI134) -> 3546.015333 | AE72: =IF(AE$70="","",Underwriting!AJ134) -> 5250.830397 | AF72: =IF(AF$70="","",Underwriting!AK134) -> 7164.314825 | AG72: =IF(AG$70="","",Underwriting!AL134) -> 8920.274341 | AH72: =IF(AH$70="","",Underwriting!AM134) -> 9130.989483 | AI72: =IF(AI$70="","",Underwriting!AN134) -> 9130.989483 | AJ72: =IF(AJ$70="","",Underwriting!AO134) -> 9130.989483 | AK72: =IF(AK$70="","",Underwriting!AP134) -> 9130.989483 | AL72: =IF(AL$70="","",Underwriting!AQ134) -> 9130.989483 | AM72: =IF(AM$70="","",Underwriting!AR134) -> 9130.989483 | AN72: =IF(AN$70="","",Underwriting!AS134) -> 9130.989483 | AO72: =IF(AO$70="","",Underwriting!AT134) -> 9130.989483 | AP72: =IF(AP$70="","",Underwriting!AU134) -> 9130.989483 | AQ72: =IF(AQ$70="","",Underwriting!AV134) -> 9130.989483 | AR72: =IF(AR$70="","",Underwriting!AW134) -> 9404.919168 | AS72: =IF(AS$70="","",Underwriting!AX134) -> 9404.919168 | AT72: =IF(AT$70="","",Underwriting!AY134) -> 9404.919168 | AU72: =IF(AU$70="","",Underwriting!AZ134) ->  | AV72: =IF(AV$70="","",Underwriting!BA134) ->  | AW72: =IF(AW$70="","",Underwriting!BB134) ->  | AX72: =IF(AX$70="","",Underwriting!BC134) ->  | AY72: =IF(AY$70="","",Underwriting!BD134) ->  | AZ72: =IF(AZ$70="","",Underwriting!BE134) ->  | BA72: =IF(BA$70="","",Underwriting!BF134) ->  | BB72: =IF(BB$70="","",Underwriting!BG134) ->  | BC72: =IF(BC$70="","",Underwriting!BH134) ->  | BD72: =IF(BD$70="","",Underwriting!BI134) ->  | BE72: =IF(BE$70="","",Underwriting!BJ134) ->  | BF72: =IF(BF$70="","",Underwriting!BK134) ->  | BG72: =IF(BG$70="","",Underwriting!BL134) ->  | BH72: =IF(BH$70="","",Underwriting!BM134) ->  | BI72: =IF(BI$70="","",Underwriting!BN134) ->  | BJ72: =IF(BJ$70="","",Underwriting!BO134) ->  | BK72: =IF(BK$70="","",Underwriting!BP134) ->  | BL72: =IF(BL$70="","",Underwriting!BQ134) ->  | BM72: =IF(BM$70="","",Underwriting!BR134) ->  | BN72: =IF(BN$70="","",Underwriting!BS134) ->  | BO72: =IF(BO$70="","",Underwriting!BT134) ->  | BP72: =IF(BP$70="","",Underwriting!BU134) ->  | BQ72: =IF(BQ$70="","",Underwriting!BV134) ->  | BR72: =IF(BR$70="","",Underwriting!BW134) ->  | BS72: =IF(BS$70="","",Underwriting!BX134) ->  | BT72: =IF(BT$70="","",Underwriting!BY134) ->  | BU72: =IF(BU$70="","",Underwriting!BZ134) ->  | BV72: =IF(BV$70="","",Underwriting!CA134) ->  | BW72: =IF(BW$70="","",Underwriting!CB134) ->  | BX72: =IF(BX$70="","",Underwriting!CC134) ->  | BY72: =IF(BY$70="","",Underwriting!CD134) ->  | BZ72: =IF(BZ$70="","",Underwriting!CE134) ->  | CA72: =IF(CA$70="","",Underwriting!CF134) ->  | CB72: =IF(CB$70="","",Underwriting!CG134) ->  | CC72: =IF(CC$70="","",Underwriting!CH134) ->  | CD72: =IF(CD$70="","",Underwriting!CI134) ->  | CE72: =IF(CE$70="","",Underwriting!CJ134) ->  | CF72: =IF(CF$70="","",Underwriting!CK134) ->  | CG72: =IF(CG$70="","",Underwriting!CL134) ->  | CH72: =IF(CH$70="","",Underwriting!CM134) ->  | CI72: =IF(CI$70="","",Underwriting!CN134) ->  | CJ72: =IF(CJ$70="","",Underwriting!CO134) ->  | CK72: =IF(CK$70="","",Underwriting!CP134) ->  | CL72: =IF(CL$70="","",Underwriting!CQ134) ->  | CM72: =IF(CM$70="","",Underwriting!CR134) ->  | CN72: =IF(CN$70="","",Underwriting!CS134) ->  | CO72: =IF(CO$70="","",Underwriting!CT134) ->  | CP72: =IF(CP$70="","",Underwriting!CU134) ->  | CQ72: =IF(CQ$70="","",Underwriting!CV134) ->  | CR72: =IF(CR$70="","",Underwriting!CW134) ->  | CS72: =IF(CS$70="","",Underwriting!CX134) ->  | CT72: =IF(CT$70="","",Underwriting!CY134) ->  | CU72: =IF(CU$70="","",Underwriting!CZ134) ->  | CV72: =IF(CV$70="","",Underwriting!DA134) ->  | CW72: =IF(CW$70="","",Underwriting!DB134) ->  | CX72: =IF(CX$70="","",Underwriting!DC134) ->  | CY72: =IF(CY$70="","",Underwriting!DD134) ->  | CZ72: =IF(CZ$70="","",Underwriting!DE134) ->  | DA72: =IF(DA$70="","",Underwriting!DF134) ->  | DB72: =IF(DB$70="","",Underwriting!DG134) ->  | DC72: =IF(DC$70="","",Underwriting!DH134) ->  | DD72: =IF(DD$70="","",Underwriting!DI134) ->  | DE72: =IF(DE$70="","",Underwriting!DJ134) ->  | DF72: =IF(DF$70="","",Underwriting!DK134) ->  | DG72: =IF(DG$70="","",Underwriting!DL134) ->  | DH72: =IF(DH$70="","",Underwriting!DM134) ->  | DI72: =IF(DI$70="","",Underwriting!DN134) ->  | DJ72: =IF(DJ$70="","",Underwriting!DO134) ->  | DK72: =IF(DK$70="","",Underwriting!DP134) ->  | DL72: =IF(DL$70="","",Underwriting!DQ134) ->  | DM72: =IF(DM$70="","",Underwriting!DR134) ->  | DN72: =IF(DN$70="","",Underwriting!DS134) ->  | DO72: =IF(DO$70="","",Underwriting!DT134) ->  | DP72: =IF(DP$70="","",Underwriting!DU134) ->  | DQ72: =IF(DQ$70="","",Underwriting!DV134) ->  | DR72: =IF(DR$70="","",Underwriting!DW134) ->  | DS72: =IF(DS$70="","",Underwriting!DX134) ->  | DT72: =IF(DT$70="","",Underwriting!DY134) ->  | DU72: =IF(DU$70="","",Underwriting!DZ134) ->  | DV72: =IF(DV$70="","",Underwriting!EA134) ->  | DW72: =IF(DW$70="","",Underwriting!EB134) ->  | DX72: =IF(DX$70="","",Underwriting!EC134) ->  | DY72: =IF(DY$70="","",Underwriting!ED134) ->  | DZ72: =IF(DZ$70="","",Underwriting!EE134) ->  | EA72: =IF(EA$70="","",Underwriting!EF134) ->  | EB72: =IF(EB$70="","",Underwriting!EG134) ->  | EC72: =IF(EC$70="","",Underwriting!EH134) ->  | ED72: =IF(ED$70="","",Underwriting!EI134) ->  | EE72: =IF(EE$70="","",Underwriting!EJ134) ->  | EF72: =IF(EF$70="","",Underwriting!EK134) ->  | EG72: =IF(EG$70="","",Underwriting!EL134) ->  | EH72: =IF(EH$70="","",Underwriting!EM134) ->  | EI72: =IF(EI$70="","",Underwriting!EN134) -> 
B73: Retail Income (Net of Expenses) | G73: =IF(G$70="","",Underwriting!L136) -> 0 | H73: =IF(H$70="","",Underwriting!M136) -> 0 | I73: =IF(I$70="","",Underwriting!N136) -> 0 | J73: =IF(J$70="","",Underwriting!O136) -> 0 | K73: =IF(K$70="","",Underwriting!P136) -> 0 | L73: =IF(L$70="","",Underwriting!Q136) -> 0 | M73: =IF(M$70="","",Underwriting!R136) -> 0 | N73: =IF(N$70="","",Underwriting!S136) -> 0 | O73: =IF(O$70="","",Underwriting!T136) -> 0 | P73: =IF(P$70="","",Underwriting!U136) -> 0 | Q73: =IF(Q$70="","",Underwriting!V136) -> 0 | R73: =IF(R$70="","",Underwriting!W136) -> 0 | S73: =IF(S$70="","",Underwriting!X136) -> 0 | T73: =IF(T$70="","",Underwriting!Y136) -> 0 | U73: =IF(U$70="","",Underwriting!Z136) -> 0 | V73: =IF(V$70="","",Underwriting!AA136) -> 0 | W73: =IF(W$70="","",Underwriting!AB136) -> 0 | X73: =IF(X$70="","",Underwriting!AC136) -> 0 | Y73: =IF(Y$70="","",Underwriting!AD136) -> 0 | Z73: =IF(Z$70="","",Underwriting!AE136) -> 0 | AA73: =IF(AA$70="","",Underwriting!AF136) -> 0 | AB73: =IF(AB$70="","",Underwriting!AG136) -> 0 | AC73: =IF(AC$70="","",Underwriting!AH136) -> 0 | AD73: =IF(AD$70="","",Underwriting!AI136) -> 0 | AE73: =IF(AE$70="","",Underwriting!AJ136) -> 0 | AF73: =IF(AF$70="","",Underwriting!AK136) -> 0 | AG73: =IF(AG$70="","",Underwriting!AL136) -> 0 | AH73: =IF(AH$70="","",Underwriting!AM136) -> 0 | AI73: =IF(AI$70="","",Underwriting!AN136) -> 0 | AJ73: =IF(AJ$70="","",Underwriting!AO136) -> 0 | AK73: =IF(AK$70="","",Underwriting!AP136) -> 0 | AL73: =IF(AL$70="","",Underwriting!AQ136) -> 4230.666667 | AM73: =IF(AM$70="","",Underwriting!AR136) -> 4230.666667 | AN73: =IF(AN$70="","",Underwriting!AS136) -> 4230.666667 | AO73: =IF(AO$70="","",Underwriting!AT136) -> 4230.666667 | AP73: =IF(AP$70="","",Underwriting!AU136) -> 4230.666667 | AQ73: =IF(AQ$70="","",Underwriting!AV136) -> 4230.666667 | AR73: =IF(AR$70="","",Underwriting!AW136) -> 4230.666667 | AS73: =IF(AS$70="","",Underwriting!AX136) -> 4230.666667 | AT73: =IF(AT$70="","",Underwriting!AY136) -> 4230.666667 | AU73: =IF(AU$70="","",Underwriting!AZ136) ->  | AV73: =IF(AV$70="","",Underwriting!BA136) ->  | AW73: =IF(AW$70="","",Underwriting!BB136) ->  | AX73: =IF(AX$70="","",Underwriting!BC136) ->  | AY73: =IF(AY$70="","",Underwriting!BD136) ->  | AZ73: =IF(AZ$70="","",Underwriting!BE136) ->  | BA73: =IF(BA$70="","",Underwriting!BF136) ->  | BB73: =IF(BB$70="","",Underwriting!BG136) ->  | BC73: =IF(BC$70="","",Underwriting!BH136) ->  | BD73: =IF(BD$70="","",Underwriting!BI136) ->  | BE73: =IF(BE$70="","",Underwriting!BJ136) ->  | BF73: =IF(BF$70="","",Underwriting!BK136) ->  | BG73: =IF(BG$70="","",Underwriting!BL136) ->  | BH73: =IF(BH$70="","",Underwriting!BM136) ->  | BI73: =IF(BI$70="","",Underwriting!BN136) ->  | BJ73: =IF(BJ$70="","",Underwriting!BO136) ->  | BK73: =IF(BK$70="","",Underwriting!BP136) ->  | BL73: =IF(BL$70="","",Underwriting!BQ136) ->  | BM73: =IF(BM$70="","",Underwriting!BR136) ->  | BN73: =IF(BN$70="","",Underwriting!BS136) ->  | BO73: =IF(BO$70="","",Underwriting!BT136) ->  | BP73: =IF(BP$70="","",Underwriting!BU136) ->  | BQ73: =IF(BQ$70="","",Underwriting!BV136) ->  | BR73: =IF(BR$70="","",Underwriting!BW136) ->  | BS73: =IF(BS$70="","",Underwriting!BX136) ->  | BT73: =IF(BT$70="","",Underwriting!BY136) ->  | BU73: =IF(BU$70="","",Underwriting!BZ136) ->  | BV73: =IF(BV$70="","",Underwriting!CA136) ->  | BW73: =IF(BW$70="","",Underwriting!CB136) ->  | BX73: =IF(BX$70="","",Underwriting!CC136) ->  | BY73: =IF(BY$70="","",Underwriting!CD136) ->  | BZ73: =IF(BZ$70="","",Underwriting!CE136) ->  | CA73: =IF(CA$70="","",Underwriting!CF136) ->  | CB73: =IF(CB$70="","",Underwriting!CG136) ->  | CC73: =IF(CC$70="","",Underwriting!CH136) ->  | CD73: =IF(CD$70="","",Underwriting!CI136) ->  | CE73: =IF(CE$70="","",Underwriting!CJ136) ->  | CF73: =IF(CF$70="","",Underwriting!CK136) ->  | CG73: =IF(CG$70="","",Underwriting!CL136) ->  | CH73: =IF(CH$70="","",Underwriting!CM136) ->  | CI73: =IF(CI$70="","",Underwriting!CN136) ->  | CJ73: =IF(CJ$70="","",Underwriting!CO136) ->  | CK73: =IF(CK$70="","",Underwriting!CP136) ->  | CL73: =IF(CL$70="","",Underwriting!CQ136) ->  | CM73: =IF(CM$70="","",Underwriting!CR136) ->  | CN73: =IF(CN$70="","",Underwriting!CS136) ->  | CO73: =IF(CO$70="","",Underwriting!CT136) ->  | CP73: =IF(CP$70="","",Underwriting!CU136) ->  | CQ73: =IF(CQ$70="","",Underwriting!CV136) ->  | CR73: =IF(CR$70="","",Underwriting!CW136) ->  | CS73: =IF(CS$70="","",Underwriting!CX136) ->  | CT73: =IF(CT$70="","",Underwriting!CY136) ->  | CU73: =IF(CU$70="","",Underwriting!CZ136) ->  | CV73: =IF(CV$70="","",Underwriting!DA136) ->  | CW73: =IF(CW$70="","",Underwriting!DB136) ->  | CX73: =IF(CX$70="","",Underwriting!DC136) ->  | CY73: =IF(CY$70="","",Underwriting!DD136) ->  | CZ73: =IF(CZ$70="","",Underwriting!DE136) ->  | DA73: =IF(DA$70="","",Underwriting!DF136) ->  | DB73: =IF(DB$70="","",Underwriting!DG136) ->  | DC73: =IF(DC$70="","",Underwriting!DH136) ->  | DD73: =IF(DD$70="","",Underwriting!DI136) ->  | DE73: =IF(DE$70="","",Underwriting!DJ136) ->  | DF73: =IF(DF$70="","",Underwriting!DK136) ->  | DG73: =IF(DG$70="","",Underwriting!DL136) ->  | DH73: =IF(DH$70="","",Underwriting!DM136) ->  | DI73: =IF(DI$70="","",Underwriting!DN136) ->  | DJ73: =IF(DJ$70="","",Underwriting!DO136) ->  | DK73: =IF(DK$70="","",Underwriting!DP136) ->  | DL73: =IF(DL$70="","",Underwriting!DQ136) ->  | DM73: =IF(DM$70="","",Underwriting!DR136) ->  | DN73: =IF(DN$70="","",Underwriting!DS136) ->  | DO73: =IF(DO$70="","",Underwriting!DT136) ->  | DP73: =IF(DP$70="","",Underwriting!DU136) ->  | DQ73: =IF(DQ$70="","",Underwriting!DV136) ->  | DR73: =IF(DR$70="","",Underwriting!DW136) ->  | DS73: =IF(DS$70="","",Underwriting!DX136) ->  | DT73: =IF(DT$70="","",Underwriting!DY136) ->  | DU73: =IF(DU$70="","",Underwriting!DZ136) ->  | DV73: =IF(DV$70="","",Underwriting!EA136) ->  | DW73: =IF(DW$70="","",Underwriting!EB136) ->  | DX73: =IF(DX$70="","",Underwriting!EC136) ->  | DY73: =IF(DY$70="","",Underwriting!ED136) ->  | DZ73: =IF(DZ$70="","",Underwriting!EE136) ->  | EA73: =IF(EA$70="","",Underwriting!EF136) ->  | EB73: =IF(EB$70="","",Underwriting!EG136) ->  | EC73: =IF(EC$70="","",Underwriting!EH136) ->  | ED73: =IF(ED$70="","",Underwriting!EI136) ->  | EE73: =IF(EE$70="","",Underwriting!EJ136) ->  | EF73: =IF(EF$70="","",Underwriting!EK136) ->  | EG73: =IF(EG$70="","",Underwriting!EL136) ->  | EH73: =IF(EH$70="","",Underwriting!EM136) ->  | EI73: =IF(EI$70="","",Underwriting!EN136) -> 
B74: TOTAL POTENTIAL INCOME | G74: =SUM(G71:G73) -> 0 | H74: =SUM(H71:H73) -> 0 | I74: 0 | J74: 0 | K74: 0 | L74: 0 | M74: 0 | N74: 0 | O74: 0 | P74: 0 | Q74: 0 | R74: 0 | S74: 0 | T74: 0 | U74: 0 | V74: 0 | W74: 0 | X74: 0 | Y74: 0 | Z74: 0 | AA74: 0 | AB74: 0 | AC74: 0 | AD74: 67789.17533 | AE74: 103673.1539 | AF74: 141525.0517 | AG74: 178485.5495 | AH74: 194220.084 | AI74: 194220.084 | AJ74: 194220.084 | AK74: 194220.084 | AL74: 198450.7507 | AM74: 198450.7507 | AN74: 198450.7507 | AO74: 198450.7507 | AP74: 198450.7507 | AQ74: 198450.7507 | AR74: 204277.3532 | AS74: 204277.3532 | AT74: 204277.3532 | AU74: 0 | AV74: 0 | AW74: 0 | AX74: 0 | AY74: 0 | AZ74: 0 | BA74: 0 | BB74: 0 | BC74: 0 | BD74: 0 | BE74: 0 | BF74: 0 | BG74: 0 | BH74: 0 | BI74: 0 | BJ74: 0 | BK74: 0 | BL74: 0 | BM74: 0 | BN74: 0 | BO74: 0 | BP74: 0 | BQ74: 0 | BR74: 0 | BS74: 0 | BT74: =SUM(BT71:BT73) -> 0 | BU74: 0 | BV74: 0 | BW74: 0 | BX74: 0 | BY74: 0 | BZ74: 0 | CA74: 0 | CB74: 0 | CC74: 0 | CD74: 0 | CE74: 0 | CF74: 0 | CG74: 0 | CH74: 0 | CI74: 0 | CJ74: 0 | CK74: 0 | CL74: 0 | CM74: 0 | CN74: 0 | CO74: 0 | CP74: 0 | CQ74: 0 | CR74: 0 | CS74: 0 | CT74: 0 | CU74: 0 | CV74: 0 | CW74: 0 | CX74: 0 | CY74: 0 | CZ74: 0 | DA74: 0 | DB74: 0 | DC74: 0 | DD74: 0 | DE74: 0 | DF74: 0 | DG74: 0 | DH74: 0 | DI74: 0 | DJ74: 0 | DK74: 0 | DL74: 0 | DM74: 0 | DN74: 0 | DO74: 0 | DP74: 0 | DQ74: 0 | DR74: 0 | DS74: 0 | DT74: 0 | DU74: 0 | DV74: 0 | DW74: 0 | DX74: 0 | DY74: 0 | DZ74: 0 | EA74: 0 | EB74: 0 | EC74: 0 | ED74: 0 | EE74: 0 | EF74: =SUM(EF71:EF73) -> 0 | EG74: 0 | EH74: 0 | EI74: 0
B75: - General Vacancy and Credit Loss | G75: =IF(G$70="","",Underwriting!L138) -> 0 | H75: =IF(H$70="","",Underwriting!M138) -> 0 | I75: =IF(I$70="","",Underwriting!N138) -> 0 | J75: =IF(J$70="","",Underwriting!O138) -> 0 | K75: =IF(K$70="","",Underwriting!P138) -> 0 | L75: =IF(L$70="","",Underwriting!Q138) -> 0 | M75: =IF(M$70="","",Underwriting!R138) -> 0 | N75: =IF(N$70="","",Underwriting!S138) -> 0 | O75: =IF(O$70="","",Underwriting!T138) -> 0 | P75: =IF(P$70="","",Underwriting!U138) -> 0 | Q75: =IF(Q$70="","",Underwriting!V138) -> 0 | R75: =IF(R$70="","",Underwriting!W138) -> 0 | S75: =IF(S$70="","",Underwriting!X138) -> 0 | T75: =IF(T$70="","",Underwriting!Y138) -> 0 | U75: =IF(U$70="","",Underwriting!Z138) -> 0 | V75: =IF(V$70="","",Underwriting!AA138) -> 0 | W75: =IF(W$70="","",Underwriting!AB138) -> 0 | X75: =IF(X$70="","",Underwriting!AC138) -> 0 | Y75: =IF(Y$70="","",Underwriting!AD138) -> 0 | Z75: =IF(Z$70="","",Underwriting!AE138) -> 0 | AA75: =IF(AA$70="","",Underwriting!AF138) -> 0 | AB75: =IF(AB$70="","",Underwriting!AG138) -> 0 | AC75: =IF(AC$70="","",Underwriting!AH138) -> 0 | AD75: =IF(AD$70="","",Underwriting!AI138) -> -3389.458767 | AE75: =IF(AE$70="","",Underwriting!AJ138) -> -5183.657693 | AF75: =IF(AF$70="","",Underwriting!AK138) -> -7076.252583 | AG75: =IF(AG$70="","",Underwriting!AL138) -> -8924.277477 | AH75: =IF(AH$70="","",Underwriting!AM138) -> -9711.004199 | AI75: =IF(AI$70="","",Underwriting!AN138) -> -9711.004199 | AJ75: =IF(AJ$70="","",Underwriting!AO138) -> -9711.004199 | AK75: =IF(AK$70="","",Underwriting!AP138) -> -9711.004199 | AL75: =IF(AL$70="","",Underwriting!AQ138) -> -9922.537533 | AM75: =IF(AM$70="","",Underwriting!AR138) -> -9922.537533 | AN75: =IF(AN$70="","",Underwriting!AS138) -> -9922.537533 | AO75: =IF(AO$70="","",Underwriting!AT138) -> -9922.537533 | AP75: =IF(AP$70="","",Underwriting!AU138) -> -9922.537533 | AQ75: =IF(AQ$70="","",Underwriting!AV138) -> -9922.537533 | AR75: =IF(AR$70="","",Underwriting!AW138) -> -10213.86766 | AS75: =IF(AS$70="","",Underwriting!AX138) -> -10213.86766 | AT75: =IF(AT$70="","",Underwriting!AY138) -> -10213.86766 | AU75: =IF(AU$70="","",Underwriting!AZ138) ->  | AV75: =IF(AV$70="","",Underwriting!BA138) ->  | AW75: =IF(AW$70="","",Underwriting!BB138) ->  | AX75: =IF(AX$70="","",Underwriting!BC138) ->  | AY75: =IF(AY$70="","",Underwriting!BD138) ->  | AZ75: =IF(AZ$70="","",Underwriting!BE138) ->  | BA75: =IF(BA$70="","",Underwriting!BF138) ->  | BB75: =IF(BB$70="","",Underwriting!BG138) ->  | BC75: =IF(BC$70="","",Underwriting!BH138) ->  | BD75: =IF(BD$70="","",Underwriting!BI138) ->  | BE75: =IF(BE$70="","",Underwriting!BJ138) ->  | BF75: =IF(BF$70="","",Underwriting!BK138) ->  | BG75: =IF(BG$70="","",Underwriting!BL138) ->  | BH75: =IF(BH$70="","",Underwriting!BM138) ->  | BI75: =IF(BI$70="","",Underwriting!BN138) ->  | BJ75: =IF(BJ$70="","",Underwriting!BO138) ->  | BK75: =IF(BK$70="","",Underwriting!BP138) ->  | BL75: =IF(BL$70="","",Underwriting!BQ138) ->  | BM75: =IF(BM$70="","",Underwriting!BR138) ->  | BN75: =IF(BN$70="","",Underwriting!BS138) ->  | BO75: =IF(BO$70="","",Underwriting!BT138) ->  | BP75: =IF(BP$70="","",Underwriting!BU138) ->  | BQ75: =IF(BQ$70="","",Underwriting!BV138) ->  | BR75: =IF(BR$70="","",Underwriting!BW138) ->  | BS75: =IF(BS$70="","",Underwriting!BX138) ->  | BT75: =IF(BT$70="","",Underwriting!BY138) ->  | BU75: =IF(BU$70="","",Underwriting!BZ138) ->  | BV75: =IF(BV$70="","",Underwriting!CA138) ->  | BW75: =IF(BW$70="","",Underwriting!CB138) ->  | BX75: =IF(BX$70="","",Underwriting!CC138) ->  | BY75: =IF(BY$70="","",Underwriting!CD138) ->  | BZ75: =IF(BZ$70="","",Underwriting!CE138) ->  | CA75: =IF(CA$70="","",Underwriting!CF138) ->  | CB75: =IF(CB$70="","",Underwriting!CG138) ->  | CC75: =IF(CC$70="","",Underwriting!CH138) ->  | CD75: =IF(CD$70="","",Underwriting!CI138) ->  | CE75: =IF(CE$70="","",Underwriting!CJ138) ->  | CF75: =IF(CF$70="","",Underwriting!CK138) ->  | CG75: =IF(CG$70="","",Underwriting!CL138) ->  | CH75: =IF(CH$70="","",Underwriting!CM138) ->  | CI75: =IF(CI$70="","",Underwriting!CN138) ->  | CJ75: =IF(CJ$70="","",Underwriting!CO138) ->  | CK75: =IF(CK$70="","",Underwriting!CP138) ->  | CL75: =IF(CL$70="","",Underwriting!CQ138) ->  | CM75: =IF(CM$70="","",Underwriting!CR138) ->  | CN75: =IF(CN$70="","",Underwriting!CS138) ->  | CO75: =IF(CO$70="","",Underwriting!CT138) ->  | CP75: =IF(CP$70="","",Underwriting!CU138) ->  | CQ75: =IF(CQ$70="","",Underwriting!CV138) ->  | CR75: =IF(CR$70="","",Underwriting!CW138) ->  | CS75: =IF(CS$70="","",Underwriting!CX138) ->  | CT75: =IF(CT$70="","",Underwriting!CY138) ->  | CU75: =IF(CU$70="","",Underwriting!CZ138) ->  | CV75: =IF(CV$70="","",Underwriting!DA138) ->  | CW75: =IF(CW$70="","",Underwriting!DB138) ->  | CX75: =IF(CX$70="","",Underwriting!DC138) ->  | CY75: =IF(CY$70="","",Underwriting!DD138) ->  | CZ75: =IF(CZ$70="","",Underwriting!DE138) ->  | DA75: =IF(DA$70="","",Underwriting!DF138) ->  | DB75: =IF(DB$70="","",Underwriting!DG138) ->  | DC75: =IF(DC$70="","",Underwriting!DH138) ->  | DD75: =IF(DD$70="","",Underwriting!DI138) ->  | DE75: =IF(DE$70="","",Underwriting!DJ138) ->  | DF75: =IF(DF$70="","",Underwriting!DK138) ->  | DG75: =IF(DG$70="","",Underwriting!DL138) ->  | DH75: =IF(DH$70="","",Underwriting!DM138) ->  | DI75: =IF(DI$70="","",Underwriting!DN138) ->  | DJ75: =IF(DJ$70="","",Underwriting!DO138) ->  | DK75: =IF(DK$70="","",Underwriting!DP138) ->  | DL75: =IF(DL$70="","",Underwriting!DQ138) ->  | DM75: =IF(DM$70="","",Underwriting!DR138) ->  | DN75: =IF(DN$70="","",Underwriting!DS138) ->  | DO75: =IF(DO$70="","",Underwriting!DT138) ->  | DP75: =IF(DP$70="","",Underwriting!DU138) ->  | DQ75: =IF(DQ$70="","",Underwriting!DV138) ->  | DR75: =IF(DR$70="","",Underwriting!DW138) ->  | DS75: =IF(DS$70="","",Underwriting!DX138) ->  | DT75: =IF(DT$70="","",Underwriting!DY138) ->  | DU75: =IF(DU$70="","",Underwriting!DZ138) ->  | DV75: =IF(DV$70="","",Underwriting!EA138) ->  | DW75: =IF(DW$70="","",Underwriting!EB138) ->  | DX75: =IF(DX$70="","",Underwriting!EC138) ->  | DY75: =IF(DY$70="","",Underwriting!ED138) ->  | DZ75: =IF(DZ$70="","",Underwriting!EE138) ->  | EA75: =IF(EA$70="","",Underwriting!EF138) ->  | EB75: =IF(EB$70="","",Underwriting!EG138) ->  | EC75: =IF(EC$70="","",Underwriting!EH138) ->  | ED75: =IF(ED$70="","",Underwriting!EI138) ->  | EE75: =IF(EE$70="","",Underwriting!EJ138) ->  | EF75: =IF(EF$70="","",Underwriting!EK138) ->  | EG75: =IF(EG$70="","",Underwriting!EL138) ->  | EH75: =IF(EH$70="","",Underwriting!EM138) ->  | EI75: =IF(EI$70="","",Underwriting!EN138) -> 
B76: EFFECTIVE GROSS REVENUE | G76: =SUM(G74:G75) -> 0 | H76: =SUM(H74:H75) -> 0 | I76: 0 | J76: 0 | K76: 0 | L76: 0 | M76: 0 | N76: 0 | O76: 0 | P76: 0 | Q76: 0 | R76: 0 | S76: 0 | T76: 0 | U76: 0 | V76: 0 | W76: 0 | X76: 0 | Y76: 0 | Z76: 0 | AA76: 0 | AB76: 0 | AC76: 0 | AD76: 64399.71657 | AE76: 98489.49617 | AF76: 134448.7991 | AG76: 169561.2721 | AH76: 184509.0798 | AI76: 184509.0798 | AJ76: 184509.0798 | AK76: 184509.0798 | AL76: 188528.2131 | AM76: 188528.2131 | AN76: 188528.2131 | AO76: 188528.2131 | AP76: 188528.2131 | AQ76: 188528.2131 | AR76: 194063.4855 | AS76: 194063.4855 | AT76: 194063.4855 | AU76: 0 | AV76: 0 | AW76: 0 | AX76: 0 | AY76: 0 | AZ76: 0 | BA76: 0 | BB76: 0 | BC76: 0 | BD76: 0 | BE76: 0 | BF76: 0 | BG76: 0 | BH76: 0 | BI76: 0 | BJ76: 0 | BK76: 0 | BL76: 0 | BM76: 0 | BN76: 0 | BO76: 0 | BP76: 0 | BQ76: 0 | BR76: 0 | BS76: 0 | BT76: =SUM(BT74:BT75) -> 0 | BU76: 0 | BV76: 0 | BW76: 0 | BX76: 0 | BY76: 0 | BZ76: 0 | CA76: 0 | CB76: 0 | CC76: 0 | CD76: 0 | CE76: 0 | CF76: 0 | CG76: 0 | CH76: 0 | CI76: 0 | CJ76: 0 | CK76: 0 | CL76: 0 | CM76: 0 | CN76: 0 | CO76: 0 | CP76: 0 | CQ76: 0 | CR76: 0 | CS76: 0 | CT76: 0 | CU76: 0 | CV76: 0 | CW76: 0 | CX76: 0 | CY76: 0 | CZ76: 0 | DA76: 0 | DB76: 0 | DC76: 0 | DD76: 0 | DE76: 0 | DF76: 0 | DG76: 0 | DH76: 0 | DI76: 0 | DJ76: 0 | DK76: 0 | DL76: 0 | DM76: 0 | DN76: 0 | DO76: 0 | DP76: 0 | DQ76: 0 | DR76: 0 | DS76: 0 | DT76: 0 | DU76: 0 | DV76: 0 | DW76: 0 | DX76: 0 | DY76: 0 | DZ76: 0 | EA76: 0 | EB76: 0 | EC76: 0 | ED76: 0 | EE76: 0 | EF76: =SUM(EF74:EF75) -> 0 | EG76: 0 | EH76: 0 | EI76: 0
B78: OPERATING EXPENSES
B79: Repairs and Maintenance | G79: =IF(G$70="","",Underwriting!L146) -> 0 | H79: =IF(H$70="","",Underwriting!M146) -> 0 | I79: =IF(I$70="","",Underwriting!N146) -> 0 | J79: =IF(J$70="","",Underwriting!O146) -> 0 | K79: =IF(K$70="","",Underwriting!P146) -> 0 | L79: =IF(L$70="","",Underwriting!Q146) -> 0 | M79: =IF(M$70="","",Underwriting!R146) -> 0 | N79: =IF(N$70="","",Underwriting!S146) -> 0 | O79: =IF(O$70="","",Underwriting!T146) -> 0 | P79: =IF(P$70="","",Underwriting!U146) -> 0 | Q79: =IF(Q$70="","",Underwriting!V146) -> 0 | R79: =IF(R$70="","",Underwriting!W146) -> 0 | S79: =IF(S$70="","",Underwriting!X146) -> 0 | T79: =IF(T$70="","",Underwriting!Y146) -> 0 | U79: =IF(U$70="","",Underwriting!Z146) -> 0 | V79: =IF(V$70="","",Underwriting!AA146) -> 0 | W79: =IF(W$70="","",Underwriting!AB146) -> 0 | X79: =IF(X$70="","",Underwriting!AC146) -> 0 | Y79: =IF(Y$70="","",Underwriting!AD146) -> 0 | Z79: =IF(Z$70="","",Underwriting!AE146) -> 0 | AA79: =IF(AA$70="","",Underwriting!AF146) -> 0 | AB79: =IF(AB$70="","",Underwriting!AG146) -> 0 | AC79: =IF(AC$70="","",Underwriting!AH146) -> 0 | AD79: =IF(AD$70="","",Underwriting!AI146) -> 2424.3625 | AE79: =IF(AE$70="","",Underwriting!AJ146) -> 2757.379327 | AF79: =IF(AF$70="","",Underwriting!AK146) -> 3183.108038 | AG79: =IF(AG$70="","",Underwriting!AL146) -> 3526.11537 | AH79: =IF(AH$70="","",Underwriting!AM146) -> 3567.27625 | AI79: =IF(AI$70="","",Underwriting!AN146) -> 3567.27625 | AJ79: =IF(AJ$70="","",Underwriting!AO146) -> 3567.27625 | AK79: =IF(AK$70="","",Underwriting!AP146) -> 3567.27625 | AL79: =IF(AL$70="","",Underwriting!AQ146) -> 3567.27625 | AM79: =IF(AM$70="","",Underwriting!AR146) -> 3567.27625 | AN79: =IF(AN$70="","",Underwriting!AS146) -> 3567.27625 | AO79: =IF(AO$70="","",Underwriting!AT146) -> 3567.27625 | AP79: =IF(AP$70="","",Underwriting!AU146) -> 3567.27625 | AQ79: =IF(AQ$70="","",Underwriting!AV146) -> 3567.27625 | AR79: =IF(AR$70="","",Underwriting!AW146) -> 3674.294537 | AS79: =IF(AS$70="","",Underwriting!AX146) -> 3674.294537 | AT79: =IF(AT$70="","",Underwriting!AY146) -> 3674.294537 | AU79: =IF(AU$70="","",Underwriting!AZ146) ->  | AV79: =IF(AV$70="","",Underwriting!BA146) ->  | AW79: =IF(AW$70="","",Underwriting!BB146) ->  | AX79: =IF(AX$70="","",Underwriting!BC146) ->  | AY79: =IF(AY$70="","",Underwriting!BD146) ->  | AZ79: =IF(AZ$70="","",Underwriting!BE146) ->  | BA79: =IF(BA$70="","",Underwriting!BF146) ->  | BB79: =IF(BB$70="","",Underwriting!BG146) ->  | BC79: =IF(BC$70="","",Underwriting!BH146) ->  | BD79: =IF(BD$70="","",Underwriting!BI146) ->  | BE79: =IF(BE$70="","",Underwriting!BJ146) ->  | BF79: =IF(BF$70="","",Underwriting!BK146) ->  | BG79: =IF(BG$70="","",Underwriting!BL146) ->  | BH79: =IF(BH$70="","",Underwriting!BM146) ->  | BI79: =IF(BI$70="","",Underwriting!BN146) ->  | BJ79: =IF(BJ$70="","",Underwriting!BO146) ->  | BK79: =IF(BK$70="","",Underwriting!BP146) ->  | BL79: =IF(BL$70="","",Underwriting!BQ146) ->  | BM79: =IF(BM$70="","",Underwriting!BR146) ->  | BN79: =IF(BN$70="","",Underwriting!BS146) ->  | BO79: =IF(BO$70="","",Underwriting!BT146) ->  | BP79: =IF(BP$70="","",Underwriting!BU146) ->  | BQ79: =IF(BQ$70="","",Underwriting!BV146) ->  | BR79: =IF(BR$70="","",Underwriting!BW146) ->  | BS79: =IF(BS$70="","",Underwriting!BX146) ->  | BT79: =IF(BT$70="","",Underwriting!BY146) ->  | BU79: =IF(BU$70="","",Underwriting!BZ146) ->  | BV79: =IF(BV$70="","",Underwriting!CA146) ->  | BW79: =IF(BW$70="","",Underwriting!CB146) ->  | BX79: =IF(BX$70="","",Underwriting!CC146) ->  | BY79: =IF(BY$70="","",Underwriting!CD146) ->  | BZ79: =IF(BZ$70="","",Underwriting!CE146) ->  | CA79: =IF(CA$70="","",Underwriting!CF146) ->  | CB79: =IF(CB$70="","",Underwriting!CG146) ->  | CC79: =IF(CC$70="","",Underwriting!CH146) ->  | CD79: =IF(CD$70="","",Underwriting!CI146) ->  | CE79: =IF(CE$70="","",Underwriting!CJ146) ->  | CF79: =IF(CF$70="","",Underwriting!CK146) ->  | CG79: =IF(CG$70="","",Underwriting!CL146) ->  | CH79: =IF(CH$70="","",Underwriting!CM146) ->  | CI79: =IF(CI$70="","",Underwriting!CN146) ->  | CJ79: =IF(CJ$70="","",Underwriting!CO146) ->  | CK79: =IF(CK$70="","",Underwriting!CP146) ->  | CL79: =IF(CL$70="","",Underwriting!CQ146) ->  | CM79: =IF(CM$70="","",Underwriting!CR146) ->  | CN79: =IF(CN$70="","",Underwriting!CS146) ->  | CO79: =IF(CO$70="","",Underwriting!CT146) ->  | CP79: =IF(CP$70="","",Underwriting!CU146) ->  | CQ79: =IF(CQ$70="","",Underwriting!CV146) ->  | CR79: =IF(CR$70="","",Underwriting!CW146) ->  | CS79: =IF(CS$70="","",Underwriting!CX146) ->  | CT79: =IF(CT$70="","",Underwriting!CY146) ->  | CU79: =IF(CU$70="","",Underwriting!CZ146) ->  | CV79: =IF(CV$70="","",Underwriting!DA146) ->  | CW79: =IF(CW$70="","",Underwriting!DB146) ->  | CX79: =IF(CX$70="","",Underwriting!DC146) ->  | CY79: =IF(CY$70="","",Underwriting!DD146) ->  | CZ79: =IF(CZ$70="","",Underwriting!DE146) ->  | DA79: =IF(DA$70="","",Underwriting!DF146) ->  | DB79: =IF(DB$70="","",Underwriting!DG146) ->  | DC79: =IF(DC$70="","",Underwriting!DH146) ->  | DD79: =IF(DD$70="","",Underwriting!DI146) ->  | DE79: =IF(DE$70="","",Underwriting!DJ146) ->  | DF79: =IF(DF$70="","",Underwriting!DK146) ->  | DG79: =IF(DG$70="","",Underwriting!DL146) ->  | DH79: =IF(DH$70="","",Underwriting!DM146) ->  | DI79: =IF(DI$70="","",Underwriting!DN146) ->  | DJ79: =IF(DJ$70="","",Underwriting!DO146) ->  | DK79: =IF(DK$70="","",Underwriting!DP146) ->  | DL79: =IF(DL$70="","",Underwriting!DQ146) ->  | DM79: =IF(DM$70="","",Underwriting!DR146) ->  | DN79: =IF(DN$70="","",Underwriting!DS146) ->  | DO79: =IF(DO$70="","",Underwriting!DT146) ->  | DP79: =IF(DP$70="","",Underwriting!DU146) ->  | DQ79: =IF(DQ$70="","",Underwriting!DV146) ->  | DR79: =IF(DR$70="","",Underwriting!DW146) ->  | DS79: =IF(DS$70="","",Underwriting!DX146) ->  | DT79: =IF(DT$70="","",Underwriting!DY146) ->  | DU79: =IF(DU$70="","",Underwriting!DZ146) ->  | DV79: =IF(DV$70="","",Underwriting!EA146) ->  | DW79: =IF(DW$70="","",Underwriting!EB146) ->  | DX79: =IF(DX$70="","",Underwriting!EC146) ->  | DY79: =IF(DY$70="","",Underwriting!ED146) ->  | DZ79: =IF(DZ$70="","",Underwriting!EE146) ->  | EA79: =IF(EA$70="","",Underwriting!EF146) ->  | EB79: =IF(EB$70="","",Underwriting!EG146) ->  | EC79: =IF(EC$70="","",Underwriting!EH146) ->  | ED79: =IF(ED$70="","",Underwriting!EI146) ->  | EE79: =IF(EE$70="","",Underwriting!EJ146) ->  | EF79: =IF(EF$70="","",Underwriting!EK146) ->  | EG79: =IF(EG$70="","",Underwriting!EL146) ->  | EH79: =IF(EH$70="","",Underwriting!EM146) ->  | EI79: =IF(EI$70="","",Underwriting!EN146) -> 
B80: Payroll | G80: =IF(G$70="","",Underwriting!L147) -> 0 | H80: =IF(H$70="","",Underwriting!M147) -> 0 | I80: =IF(I$70="","",Underwriting!N147) -> 0 | J80: =IF(J$70="","",Underwriting!O147) -> 0 | K80: =IF(K$70="","",Underwriting!P147) -> 0 | L80: =IF(L$70="","",Underwriting!Q147) -> 0 | M80: =IF(M$70="","",Underwriting!R147) -> 0 | N80: =IF(N$70="","",Underwriting!S147) -> 0 | O80: =IF(O$70="","",Underwriting!T147) -> 0 | P80: =IF(P$70="","",Underwriting!U147) -> 0 | Q80: =IF(Q$70="","",Underwriting!V147) -> 0 | R80: =IF(R$70="","",Underwriting!W147) -> 0 | S80: =IF(S$70="","",Underwriting!X147) -> 0 | T80: =IF(T$70="","",Underwriting!Y147) -> 0 | U80: =IF(U$70="","",Underwriting!Z147) -> 0 | V80: =IF(V$70="","",Underwriting!AA147) -> 0 | W80: =IF(W$70="","",Underwriting!AB147) -> 0 | X80: =IF(X$70="","",Underwriting!AC147) -> 0 | Y80: =IF(Y$70="","",Underwriting!AD147) -> 0 | Z80: =IF(Z$70="","",Underwriting!AE147) -> 0 | AA80: =IF(AA$70="","",Underwriting!AF147) -> 0 | AB80: =IF(AB$70="","",Underwriting!AG147) -> 0 | AC80: =IF(AC$70="","",Underwriting!AH147) -> 0 | AD80: =IF(AD$70="","",Underwriting!AI147) -> 4055.625 | AE80: =IF(AE$70="","",Underwriting!AJ147) -> 4612.716346 | AF80: =IF(AF$70="","",Underwriting!AK147) -> 5324.901923 | AG80: =IF(AG$70="","",Underwriting!AL147) -> 5898.70601 | AH80: =IF(AH$70="","",Underwriting!AM147) -> 5967.5625 | AI80: =IF(AI$70="","",Underwriting!AN147) -> 5967.5625 | AJ80: =IF(AJ$70="","",Underwriting!AO147) -> 5967.5625 | AK80: =IF(AK$70="","",Underwriting!AP147) -> 5967.5625 | AL80: =IF(AL$70="","",Underwriting!AQ147) -> 5967.5625 | AM80: =IF(AM$70="","",Underwriting!AR147) -> 5967.5625 | AN80: =IF(AN$70="","",Underwriting!AS147) -> 5967.5625 | AO80: =IF(AO$70="","",Underwriting!AT147) -> 5967.5625 | AP80: =IF(AP$70="","",Underwriting!AU147) -> 5967.5625 | AQ80: =IF(AQ$70="","",Underwriting!AV147) -> 5967.5625 | AR80: =IF(AR$70="","",Underwriting!AW147) -> 6146.589375 | AS80: =IF(AS$70="","",Underwriting!AX147) -> 6146.589375 | AT80: =IF(AT$70="","",Underwriting!AY147) -> 6146.589375 | AU80: =IF(AU$70="","",Underwriting!AZ147) ->  | AV80: =IF(AV$70="","",Underwriting!BA147) ->  | AW80: =IF(AW$70="","",Underwriting!BB147) ->  | AX80: =IF(AX$70="","",Underwriting!BC147) ->  | AY80: =IF(AY$70="","",Underwriting!BD147) ->  | AZ80: =IF(AZ$70="","",Underwriting!BE147) ->  | BA80: =IF(BA$70="","",Underwriting!BF147) ->  | BB80: =IF(BB$70="","",Underwriting!BG147) ->  | BC80: =IF(BC$70="","",Underwriting!BH147) ->  | BD80: =IF(BD$70="","",Underwriting!BI147) ->  | BE80: =IF(BE$70="","",Underwriting!BJ147) ->  | BF80: =IF(BF$70="","",Underwriting!BK147) ->  | BG80: =IF(BG$70="","",Underwriting!BL147) ->  | BH80: =IF(BH$70="","",Underwriting!BM147) ->  | BI80: =IF(BI$70="","",Underwriting!BN147) ->  | BJ80: =IF(BJ$70="","",Underwriting!BO147) ->  | BK80: =IF(BK$70="","",Underwriting!BP147) ->  | BL80: =IF(BL$70="","",Underwriting!BQ147) ->  | BM80: =IF(BM$70="","",Underwriting!BR147) ->  | BN80: =IF(BN$70="","",Underwriting!BS147) ->  | BO80: =IF(BO$70="","",Underwriting!BT147) ->  | BP80: =IF(BP$70="","",Underwriting!BU147) ->  | BQ80: =IF(BQ$70="","",Underwriting!BV147) ->  | BR80: =IF(BR$70="","",Underwriting!BW147) ->  | BS80: =IF(BS$70="","",Underwriting!BX147) ->  | BT80: =IF(BT$70="","",Underwriting!BY147) ->  | BU80: =IF(BU$70="","",Underwriting!BZ147) ->  | BV80: =IF(BV$70="","",Underwriting!CA147) ->  | BW80: =IF(BW$70="","",Underwriting!CB147) ->  | BX80: =IF(BX$70="","",Underwriting!CC147) ->  | BY80: =IF(BY$70="","",Underwriting!CD147) ->  | BZ80: =IF(BZ$70="","",Underwriting!CE147) ->  | CA80: =IF(CA$70="","",Underwriting!CF147) ->  | CB80: =IF(CB$70="","",Underwriting!CG147) ->  | CC80: =IF(CC$70="","",Underwriting!CH147) ->  | CD80: =IF(CD$70="","",Underwriting!CI147) ->  | CE80: =IF(CE$70="","",Underwriting!CJ147) ->  | CF80: =IF(CF$70="","",Underwriting!CK147) ->  | CG80: =IF(CG$70="","",Underwriting!CL147) ->  | CH80: =IF(CH$70="","",Underwriting!CM147) ->  | CI80: =IF(CI$70="","",Underwriting!CN147) ->  | CJ80: =IF(CJ$70="","",Underwriting!CO147) ->  | CK80: =IF(CK$70="","",Underwriting!CP147) ->  | CL80: =IF(CL$70="","",Underwriting!CQ147) ->  | CM80: =IF(CM$70="","",Underwriting!CR147) ->  | CN80: =IF(CN$70="","",Underwriting!CS147) ->  | CO80: =IF(CO$70="","",Underwriting!CT147) ->  | CP80: =IF(CP$70="","",Underwriting!CU147) ->  | CQ80: =IF(CQ$70="","",Underwriting!CV147) ->  | CR80: =IF(CR$70="","",Underwriting!CW147) ->  | CS80: =IF(CS$70="","",Underwriting!CX147) ->  | CT80: =IF(CT$70="","",Underwriting!CY147) ->  | CU80: =IF(CU$70="","",Underwriting!CZ147) ->  | CV80: =IF(CV$70="","",Underwriting!DA147) ->  | CW80: =IF(CW$70="","",Underwriting!DB147) ->  | CX80: =IF(CX$70="","",Underwriting!DC147) ->  | CY80: =IF(CY$70="","",Underwriting!DD147) ->  | CZ80: =IF(CZ$70="","",Underwriting!DE147) ->  | DA80: =IF(DA$70="","",Underwriting!DF147) ->  | DB80: =IF(DB$70="","",Underwriting!DG147) ->  | DC80: =IF(DC$70="","",Underwriting!DH147) ->  | DD80: =IF(DD$70="","",Underwriting!DI147) ->  | DE80: =IF(DE$70="","",Underwriting!DJ147) ->  | DF80: =IF(DF$70="","",Underwriting!DK147) ->  | DG80: =IF(DG$70="","",Underwriting!DL147) ->  | DH80: =IF(DH$70="","",Underwriting!DM147) ->  | DI80: =IF(DI$70="","",Underwriting!DN147) ->  | DJ80: =IF(DJ$70="","",Underwriting!DO147) ->  | DK80: =IF(DK$70="","",Underwriting!DP147) ->  | DL80: =IF(DL$70="","",Underwriting!DQ147) ->  | DM80: =IF(DM$70="","",Underwriting!DR147) ->  | DN80: =IF(DN$70="","",Underwriting!DS147) ->  | DO80: =IF(DO$70="","",Underwriting!DT147) ->  | DP80: =IF(DP$70="","",Underwriting!DU147) ->  | DQ80: =IF(DQ$70="","",Underwriting!DV147) ->  | DR80: =IF(DR$70="","",Underwriting!DW147) ->  | DS80: =IF(DS$70="","",Underwriting!DX147) ->  | DT80: =IF(DT$70="","",Underwriting!DY147) ->  | DU80: =IF(DU$70="","",Underwriting!DZ147) ->  | DV80: =IF(DV$70="","",Underwriting!EA147) ->  | DW80: =IF(DW$70="","",Underwriting!EB147) ->  | DX80: =IF(DX$70="","",Underwriting!EC147) ->  | DY80: =IF(DY$70="","",Underwriting!ED147) ->  | DZ80: =IF(DZ$70="","",Underwriting!EE147) ->  | EA80: =IF(EA$70="","",Underwriting!EF147) ->  | EB80: =IF(EB$70="","",Underwriting!EG147) ->  | EC80: =IF(EC$70="","",Underwriting!EH147) ->  | ED80: =IF(ED$70="","",Underwriting!EI147) ->  | EE80: =IF(EE$70="","",Underwriting!EJ147) ->  | EF80: =IF(EF$70="","",Underwriting!EK147) ->  | EG80: =IF(EG$70="","",Underwriting!EL147) ->  | EH80: =IF(EH$70="","",Underwriting!EM147) ->  | EI80: =IF(EI$70="","",Underwriting!EN147) -> 
B81: General & Administrative | G81: =IF(G$70="","",Underwriting!L148) -> 0 | H81: =IF(H$70="","",Underwriting!M148) -> 0 | I81: =IF(I$70="","",Underwriting!N148) -> 0 | J81: =IF(J$70="","",Underwriting!O148) -> 0 | K81: =IF(K$70="","",Underwriting!P148) -> 0 | L81: =IF(L$70="","",Underwriting!Q148) -> 0 | M81: =IF(M$70="","",Underwriting!R148) -> 0 | N81: =IF(N$70="","",Underwriting!S148) -> 0 | O81: =IF(O$70="","",Underwriting!T148) -> 0 | P81: =IF(P$70="","",Underwriting!U148) -> 0 | Q81: =IF(Q$70="","",Underwriting!V148) -> 0 | R81: =IF(R$70="","",Underwriting!W148) -> 0 | S81: =IF(S$70="","",Underwriting!X148) -> 0 | T81: =IF(T$70="","",Underwriting!Y148) -> 0 | U81: =IF(U$70="","",Underwriting!Z148) -> 0 | V81: =IF(V$70="","",Underwriting!AA148) -> 0 | W81: =IF(W$70="","",Underwriting!AB148) -> 0 | X81: =IF(X$70="","",Underwriting!AC148) -> 0 | Y81: =IF(Y$70="","",Underwriting!AD148) -> 0 | Z81: =IF(Z$70="","",Underwriting!AE148) -> 0 | AA81: =IF(AA$70="","",Underwriting!AF148) -> 0 | AB81: =IF(AB$70="","",Underwriting!AG148) -> 0 | AC81: =IF(AC$70="","",Underwriting!AH148) -> 0 | AD81: =IF(AD$70="","",Underwriting!AI148) -> 4516.1998 | AE81: =IF(AE$70="","",Underwriting!AJ148) -> 4516.1998 | AF81: =IF(AF$70="","",Underwriting!AK148) -> 4651.685794 | AG81: =IF(AG$70="","",Underwriting!AL148) -> 4651.685794 | AH81: =IF(AH$70="","",Underwriting!AM148) -> 4651.685794 | AI81: =IF(AI$70="","",Underwriting!AN148) -> 4651.685794 | AJ81: =IF(AJ$70="","",Underwriting!AO148) -> 4651.685794 | AK81: =IF(AK$70="","",Underwriting!AP148) -> 4651.685794 | AL81: =IF(AL$70="","",Underwriting!AQ148) -> 4651.685794 | AM81: =IF(AM$70="","",Underwriting!AR148) -> 4651.685794 | AN81: =IF(AN$70="","",Underwriting!AS148) -> 4651.685794 | AO81: =IF(AO$70="","",Underwriting!AT148) -> 4651.685794 | AP81: =IF(AP$70="","",Underwriting!AU148) -> 4651.685794 | AQ81: =IF(AQ$70="","",Underwriting!AV148) -> 4651.685794 | AR81: =IF(AR$70="","",Underwriting!AW148) -> 4791.236368 | AS81: =IF(AS$70="","",Underwriting!AX148) -> 4791.236368 | AT81: =IF(AT$70="","",Underwriting!AY148) -> 4791.236368 | AU81: =IF(AU$70="","",Underwriting!AZ148) ->  | AV81: =IF(AV$70="","",Underwriting!BA148) ->  | AW81: =IF(AW$70="","",Underwriting!BB148) ->  | AX81: =IF(AX$70="","",Underwriting!BC148) ->  | AY81: =IF(AY$70="","",Underwriting!BD148) ->  | AZ81: =IF(AZ$70="","",Underwriting!BE148) ->  | BA81: =IF(BA$70="","",Underwriting!BF148) ->  | BB81: =IF(BB$70="","",Underwriting!BG148) ->  | BC81: =IF(BC$70="","",Underwriting!BH148) ->  | BD81: =IF(BD$70="","",Underwriting!BI148) ->  | BE81: =IF(BE$70="","",Underwriting!BJ148) ->  | BF81: =IF(BF$70="","",Underwriting!BK148) ->  | BG81: =IF(BG$70="","",Underwriting!BL148) ->  | BH81: =IF(BH$70="","",Underwriting!BM148) ->  | BI81: =IF(BI$70="","",Underwriting!BN148) ->  | BJ81: =IF(BJ$70="","",Underwriting!BO148) ->  | BK81: =IF(BK$70="","",Underwriting!BP148) ->  | BL81: =IF(BL$70="","",Underwriting!BQ148) ->  | BM81: =IF(BM$70="","",Underwriting!BR148) ->  | BN81: =IF(BN$70="","",Underwriting!BS148) ->  | BO81: =IF(BO$70="","",Underwriting!BT148) ->  | BP81: =IF(BP$70="","",Underwriting!BU148) ->  | BQ81: =IF(BQ$70="","",Underwriting!BV148) ->  | BR81: =IF(BR$70="","",Underwriting!BW148) ->  | BS81: =IF(BS$70="","",Underwriting!BX148) ->  | BT81: =IF(BT$70="","",Underwriting!BY148) ->  | BU81: =IF(BU$70="","",Underwriting!BZ148) ->  | BV81: =IF(BV$70="","",Underwriting!CA148) ->  | BW81: =IF(BW$70="","",Underwriting!CB148) ->  | BX81: =IF(BX$70="","",Underwriting!CC148) ->  | BY81: =IF(BY$70="","",Underwriting!CD148) ->  | BZ81: =IF(BZ$70="","",Underwriting!CE148) ->  | CA81: =IF(CA$70="","",Underwriting!CF148) ->  | CB81: =IF(CB$70="","",Underwriting!CG148) ->  | CC81: =IF(CC$70="","",Underwriting!CH148) ->  | CD81: =IF(CD$70="","",Underwriting!CI148) ->  | CE81: =IF(CE$70="","",Underwriting!CJ148) ->  | CF81: =IF(CF$70="","",Underwriting!CK148) ->  | CG81: =IF(CG$70="","",Underwriting!CL148) ->  | CH81: =IF(CH$70="","",Underwriting!CM148) ->  | CI81: =IF(CI$70="","",Underwriting!CN148) ->  | CJ81: =IF(CJ$70="","",Underwriting!CO148) ->  | CK81: =IF(CK$70="","",Underwriting!CP148) ->  | CL81: =IF(CL$70="","",Underwriting!CQ148) ->  | CM81: =IF(CM$70="","",Underwriting!CR148) ->  | CN81: =IF(CN$70="","",Underwriting!CS148) ->  | CO81: =IF(CO$70="","",Underwriting!CT148) ->  | CP81: =IF(CP$70="","",Underwriting!CU148) ->  | CQ81: =IF(CQ$70="","",Underwriting!CV148) ->  | CR81: =IF(CR$70="","",Underwriting!CW148) ->  | CS81: =IF(CS$70="","",Underwriting!CX148) ->  | CT81: =IF(CT$70="","",Underwriting!CY148) ->  | CU81: =IF(CU$70="","",Underwriting!CZ148) ->  | CV81: =IF(CV$70="","",Underwriting!DA148) ->  | CW81: =IF(CW$70="","",Underwriting!DB148) ->  | CX81: =IF(CX$70="","",Underwriting!DC148) ->  | CY81: =IF(CY$70="","",Underwriting!DD148) ->  | CZ81: =IF(CZ$70="","",Underwriting!DE148) ->  | DA81: =IF(DA$70="","",Underwriting!DF148) ->  | DB81: =IF(DB$70="","",Underwriting!DG148) ->  | DC81: =IF(DC$70="","",Underwriting!DH148) ->  | DD81: =IF(DD$70="","",Underwriting!DI148) ->  | DE81: =IF(DE$70="","",Underwriting!DJ148) ->  | DF81: =IF(DF$70="","",Underwriting!DK148) ->  | DG81: =IF(DG$70="","",Underwriting!DL148) ->  | DH81: =IF(DH$70="","",Underwriting!DM148) ->  | DI81: =IF(DI$70="","",Underwriting!DN148) ->  | DJ81: =IF(DJ$70="","",Underwriting!DO148) ->  | DK81: =IF(DK$70="","",Underwriting!DP148) ->  | DL81: =IF(DL$70="","",Underwriting!DQ148) ->  | DM81: =IF(DM$70="","",Underwriting!DR148) ->  | DN81: =IF(DN$70="","",Underwriting!DS148) ->  | DO81: =IF(DO$70="","",Underwriting!DT148) ->  | DP81: =IF(DP$70="","",Underwriting!DU148) ->  | DQ81: =IF(DQ$70="","",Underwriting!DV148) ->  | DR81: =IF(DR$70="","",Underwriting!DW148) ->  | DS81: =IF(DS$70="","",Underwriting!DX148) ->  | DT81: =IF(DT$70="","",Underwriting!DY148) ->  | DU81: =IF(DU$70="","",Underwriting!DZ148) ->  | DV81: =IF(DV$70="","",Underwriting!EA148) ->  | DW81: =IF(DW$70="","",Underwriting!EB148) ->  | DX81: =IF(DX$70="","",Underwriting!EC148) ->  | DY81: =IF(DY$70="","",Underwriting!ED148) ->  | DZ81: =IF(DZ$70="","",Underwriting!EE148) ->  | EA81: =IF(EA$70="","",Underwriting!EF148) ->  | EB81: =IF(EB$70="","",Underwriting!EG148) ->  | EC81: =IF(EC$70="","",Underwriting!EH148) ->  | ED81: =IF(ED$70="","",Underwriting!EI148) ->  | EE81: =IF(EE$70="","",Underwriting!EJ148) ->  | EF81: =IF(EF$70="","",Underwriting!EK148) ->  | EG81: =IF(EG$70="","",Underwriting!EL148) ->  | EH81: =IF(EH$70="","",Underwriting!EM148) ->  | EI81: =IF(EI$70="","",Underwriting!EN148) -> 
B82: Marketing | G82: =IF(G$70="","",Underwriting!L149) -> 0 | H82: =IF(H$70="","",Underwriting!M149) -> 0 | I82: =IF(I$70="","",Underwriting!N149) -> 0 | J82: =IF(J$70="","",Underwriting!O149) -> 0 | K82: =IF(K$70="","",Underwriting!P149) -> 0 | L82: =IF(L$70="","",Underwriting!Q149) -> 0 | M82: =IF(M$70="","",Underwriting!R149) -> 0 | N82: =IF(N$70="","",Underwriting!S149) -> 0 | O82: =IF(O$70="","",Underwriting!T149) -> 0 | P82: =IF(P$70="","",Underwriting!U149) -> 0 | Q82: =IF(Q$70="","",Underwriting!V149) -> 0 | R82: =IF(R$70="","",Underwriting!W149) -> 0 | S82: =IF(S$70="","",Underwriting!X149) -> 0 | T82: =IF(T$70="","",Underwriting!Y149) -> 0 | U82: =IF(U$70="","",Underwriting!Z149) -> 0 | V82: =IF(V$70="","",Underwriting!AA149) -> 0 | W82: =IF(W$70="","",Underwriting!AB149) -> 0 | X82: =IF(X$70="","",Underwriting!AC149) -> 0 | Y82: =IF(Y$70="","",Underwriting!AD149) -> 0 | Z82: =IF(Z$70="","",Underwriting!AE149) -> 0 | AA82: =IF(AA$70="","",Underwriting!AF149) -> 0 | AB82: =IF(AB$70="","",Underwriting!AG149) -> 0 | AC82: =IF(AC$70="","",Underwriting!AH149) -> 0 | AD82: =IF(AD$70="","",Underwriting!AI149) -> 5551.027067 | AE82: =IF(AE$70="","",Underwriting!AJ149) -> 5551.027067 | AF82: =IF(AF$70="","",Underwriting!AK149) -> 5717.557879 | AG82: =IF(AG$70="","",Underwriting!AL149) -> 5717.557879 | AH82: =IF(AH$70="","",Underwriting!AM149) -> 5717.557879 | AI82: =IF(AI$70="","",Underwriting!AN149) -> 5717.557879 | AJ82: =IF(AJ$70="","",Underwriting!AO149) -> 5717.557879 | AK82: =IF(AK$70="","",Underwriting!AP149) -> 5717.557879 | AL82: =IF(AL$70="","",Underwriting!AQ149) -> 5717.557879 | AM82: =IF(AM$70="","",Underwriting!AR149) -> 5717.557879 | AN82: =IF(AN$70="","",Underwriting!AS149) -> 5717.557879 | AO82: =IF(AO$70="","",Underwriting!AT149) -> 5717.557879 | AP82: =IF(AP$70="","",Underwriting!AU149) -> 5717.557879 | AQ82: =IF(AQ$70="","",Underwriting!AV149) -> 5717.557879 | AR82: =IF(AR$70="","",Underwriting!AW149) -> 5889.084615 | AS82: =IF(AS$70="","",Underwriting!AX149) -> 5889.084615 | AT82: =IF(AT$70="","",Underwriting!AY149) -> 5889.084615 | AU82: =IF(AU$70="","",Underwriting!AZ149) ->  | AV82: =IF(AV$70="","",Underwriting!BA149) ->  | AW82: =IF(AW$70="","",Underwriting!BB149) ->  | AX82: =IF(AX$70="","",Underwriting!BC149) ->  | AY82: =IF(AY$70="","",Underwriting!BD149) ->  | AZ82: =IF(AZ$70="","",Underwriting!BE149) ->  | BA82: =IF(BA$70="","",Underwriting!BF149) ->  | BB82: =IF(BB$70="","",Underwriting!BG149) ->  | BC82: =IF(BC$70="","",Underwriting!BH149) ->  | BD82: =IF(BD$70="","",Underwriting!BI149) ->  | BE82: =IF(BE$70="","",Underwriting!BJ149) ->  | BF82: =IF(BF$70="","",Underwriting!BK149) ->  | BG82: =IF(BG$70="","",Underwriting!BL149) ->  | BH82: =IF(BH$70="","",Underwriting!BM149) ->  | BI82: =IF(BI$70="","",Underwriting!BN149) ->  | BJ82: =IF(BJ$70="","",Underwriting!BO149) ->  | BK82: =IF(BK$70="","",Underwriting!BP149) ->  | BL82: =IF(BL$70="","",Underwriting!BQ149) ->  | BM82: =IF(BM$70="","",Underwriting!BR149) ->  | BN82: =IF(BN$70="","",Underwriting!BS149) ->  | BO82: =IF(BO$70="","",Underwriting!BT149) ->  | BP82: =IF(BP$70="","",Underwriting!BU149) ->  | BQ82: =IF(BQ$70="","",Underwriting!BV149) ->  | BR82: =IF(BR$70="","",Underwriting!BW149) ->  | BS82: =IF(BS$70="","",Underwriting!BX149) ->  | BT82: =IF(BT$70="","",Underwriting!BY149) ->  | BU82: =IF(BU$70="","",Underwriting!BZ149) ->  | BV82: =IF(BV$70="","",Underwriting!CA149) ->  | BW82: =IF(BW$70="","",Underwriting!CB149) ->  | BX82: =IF(BX$70="","",Underwriting!CC149) ->  | BY82: =IF(BY$70="","",Underwriting!CD149) ->  | BZ82: =IF(BZ$70="","",Underwriting!CE149) ->  | CA82: =IF(CA$70="","",Underwriting!CF149) ->  | CB82: =IF(CB$70="","",Underwriting!CG149) ->  | CC82: =IF(CC$70="","",Underwriting!CH149) ->  | CD82: =IF(CD$70="","",Underwriting!CI149) ->  | CE82: =IF(CE$70="","",Underwriting!CJ149) ->  | CF82: =IF(CF$70="","",Underwriting!CK149) ->  | CG82: =IF(CG$70="","",Underwriting!CL149) ->  | CH82: =IF(CH$70="","",Underwriting!CM149) ->  | CI82: =IF(CI$70="","",Underwriting!CN149) ->  | CJ82: =IF(CJ$70="","",Underwriting!CO149) ->  | CK82: =IF(CK$70="","",Underwriting!CP149) ->  | CL82: =IF(CL$70="","",Underwriting!CQ149) ->  | CM82: =IF(CM$70="","",Underwriting!CR149) ->  | CN82: =IF(CN$70="","",Underwriting!CS149) ->  | CO82: =IF(CO$70="","",Underwriting!CT149) ->  | CP82: =IF(CP$70="","",Underwriting!CU149) ->  | CQ82: =IF(CQ$70="","",Underwriting!CV149) ->  | CR82: =IF(CR$70="","",Underwriting!CW149) ->  | CS82: =IF(CS$70="","",Underwriting!CX149) ->  | CT82: =IF(CT$70="","",Underwriting!CY149) ->  | CU82: =IF(CU$70="","",Underwriting!CZ149) ->  | CV82: =IF(CV$70="","",Underwriting!DA149) ->  | CW82: =IF(CW$70="","",Underwriting!DB149) ->  | CX82: =IF(CX$70="","",Underwriting!DC149) ->  | CY82: =IF(CY$70="","",Underwriting!DD149) ->  | CZ82: =IF(CZ$70="","",Underwriting!DE149) ->  | DA82: =IF(DA$70="","",Underwriting!DF149) ->  | DB82: =IF(DB$70="","",Underwriting!DG149) ->  | DC82: =IF(DC$70="","",Underwriting!DH149) ->  | DD82: =IF(DD$70="","",Underwriting!DI149) ->  | DE82: =IF(DE$70="","",Underwriting!DJ149) ->  | DF82: =IF(DF$70="","",Underwriting!DK149) ->  | DG82: =IF(DG$70="","",Underwriting!DL149) ->  | DH82: =IF(DH$70="","",Underwriting!DM149) ->  | DI82: =IF(DI$70="","",Underwriting!DN149) ->  | DJ82: =IF(DJ$70="","",Underwriting!DO149) ->  | DK82: =IF(DK$70="","",Underwriting!DP149) ->  | DL82: =IF(DL$70="","",Underwriting!DQ149) ->  | DM82: =IF(DM$70="","",Underwriting!DR149) ->  | DN82: =IF(DN$70="","",Underwriting!DS149) ->  | DO82: =IF(DO$70="","",Underwriting!DT149) ->  | DP82: =IF(DP$70="","",Underwriting!DU149) ->  | DQ82: =IF(DQ$70="","",Underwriting!DV149) ->  | DR82: =IF(DR$70="","",Underwriting!DW149) ->  | DS82: =IF(DS$70="","",Underwriting!DX149) ->  | DT82: =IF(DT$70="","",Underwriting!DY149) ->  | DU82: =IF(DU$70="","",Underwriting!DZ149) ->  | DV82: =IF(DV$70="","",Underwriting!EA149) ->  | DW82: =IF(DW$70="","",Underwriting!EB149) ->  | DX82: =IF(DX$70="","",Underwriting!EC149) ->  | DY82: =IF(DY$70="","",Underwriting!ED149) ->  | DZ82: =IF(DZ$70="","",Underwriting!EE149) ->  | EA82: =IF(EA$70="","",Underwriting!EF149) ->  | EB82: =IF(EB$70="","",Underwriting!EG149) ->  | EC82: =IF(EC$70="","",Underwriting!EH149) ->  | ED82: =IF(ED$70="","",Underwriting!EI149) ->  | EE82: =IF(EE$70="","",Underwriting!EJ149) ->  | EF82: =IF(EF$70="","",Underwriting!EK149) ->  | EG82: =IF(EG$70="","",Underwriting!EL149) ->  | EH82: =IF(EH$70="","",Underwriting!EM149) ->  | EI82: =IF(EI$70="","",Underwriting!EN149) -> 
B83: Utilities | G83: =IF(G$70="","",Underwriting!L150) -> 0 | H83: =IF(H$70="","",Underwriting!M150) -> 0 | I83: =IF(I$70="","",Underwriting!N150) -> 0 | J83: =IF(J$70="","",Underwriting!O150) -> 0 | K83: =IF(K$70="","",Underwriting!P150) -> 0 | L83: =IF(L$70="","",Underwriting!Q150) -> 0 | M83: =IF(M$70="","",Underwriting!R150) -> 0 | N83: =IF(N$70="","",Underwriting!S150) -> 0 | O83: =IF(O$70="","",Underwriting!T150) -> 0 | P83: =IF(P$70="","",Underwriting!U150) -> 0 | Q83: =IF(Q$70="","",Underwriting!V150) -> 0 | R83: =IF(R$70="","",Underwriting!W150) -> 0 | S83: =IF(S$70="","",Underwriting!X150) -> 0 | T83: =IF(T$70="","",Underwriting!Y150) -> 0 | U83: =IF(U$70="","",Underwriting!Z150) -> 0 | V83: =IF(V$70="","",Underwriting!AA150) -> 0 | W83: =IF(W$70="","",Underwriting!AB150) -> 0 | X83: =IF(X$70="","",Underwriting!AC150) -> 0 | Y83: =IF(Y$70="","",Underwriting!AD150) -> 0 | Z83: =IF(Z$70="","",Underwriting!AE150) -> 0 | AA83: =IF(AA$70="","",Underwriting!AF150) -> 0 | AB83: =IF(AB$70="","",Underwriting!AG150) -> 0 | AC83: =IF(AC$70="","",Underwriting!AH150) -> 0 | AD83: =IF(AD$70="","",Underwriting!AI150) -> 1090.083333 | AE83: =IF(AE$70="","",Underwriting!AJ150) -> 1090.083333 | AF83: =IF(AF$70="","",Underwriting!AK150) -> 1122.785833 | AG83: =IF(AG$70="","",Underwriting!AL150) -> 1122.785833 | AH83: =IF(AH$70="","",Underwriting!AM150) -> 1122.785833 | AI83: =IF(AI$70="","",Underwriting!AN150) -> 1122.785833 | AJ83: =IF(AJ$70="","",Underwriting!AO150) -> 1122.785833 | AK83: =IF(AK$70="","",Underwriting!AP150) -> 1122.785833 | AL83: =IF(AL$70="","",Underwriting!AQ150) -> 1122.785833 | AM83: =IF(AM$70="","",Underwriting!AR150) -> 1122.785833 | AN83: =IF(AN$70="","",Underwriting!AS150) -> 1122.785833 | AO83: =IF(AO$70="","",Underwriting!AT150) -> 1122.785833 | AP83: =IF(AP$70="","",Underwriting!AU150) -> 1122.785833 | AQ83: =IF(AQ$70="","",Underwriting!AV150) -> 1122.785833 | AR83: =IF(AR$70="","",Underwriting!AW150) -> 1156.469408 | AS83: =IF(AS$70="","",Underwriting!AX150) -> 1156.469408 | AT83: =IF(AT$70="","",Underwriting!AY150) -> 1156.469408 | AU83: =IF(AU$70="","",Underwriting!AZ150) ->  | AV83: =IF(AV$70="","",Underwriting!BA150) ->  | AW83: =IF(AW$70="","",Underwriting!BB150) ->  | AX83: =IF(AX$70="","",Underwriting!BC150) ->  | AY83: =IF(AY$70="","",Underwriting!BD150) ->  | AZ83: =IF(AZ$70="","",Underwriting!BE150) ->  | BA83: =IF(BA$70="","",Underwriting!BF150) ->  | BB83: =IF(BB$70="","",Underwriting!BG150) ->  | BC83: =IF(BC$70="","",Underwriting!BH150) ->  | BD83: =IF(BD$70="","",Underwriting!BI150) ->  | BE83: =IF(BE$70="","",Underwriting!BJ150) ->  | BF83: =IF(BF$70="","",Underwriting!BK150) ->  | BG83: =IF(BG$70="","",Underwriting!BL150) ->  | BH83: =IF(BH$70="","",Underwriting!BM150) ->  | BI83: =IF(BI$70="","",Underwriting!BN150) ->  | BJ83: =IF(BJ$70="","",Underwriting!BO150) ->  | BK83: =IF(BK$70="","",Underwriting!BP150) ->  | BL83: =IF(BL$70="","",Underwriting!BQ150) ->  | BM83: =IF(BM$70="","",Underwriting!BR150) ->  | BN83: =IF(BN$70="","",Underwriting!BS150) ->  | BO83: =IF(BO$70="","",Underwriting!BT150) ->  | BP83: =IF(BP$70="","",Underwriting!BU150) ->  | BQ83: =IF(BQ$70="","",Underwriting!BV150) ->  | BR83: =IF(BR$70="","",Underwriting!BW150) ->  | BS83: =IF(BS$70="","",Underwriting!BX150) ->  | BT83: =IF(BT$70="","",Underwriting!BY150) ->  | BU83: =IF(BU$70="","",Underwriting!BZ150) ->  | BV83: =IF(BV$70="","",Underwriting!CA150) ->  | BW83: =IF(BW$70="","",Underwriting!CB150) ->  | BX83: =IF(BX$70="","",Underwriting!CC150) ->  | BY83: =IF(BY$70="","",Underwriting!CD150) ->  | BZ83: =IF(BZ$70="","",Underwriting!CE150) ->  | CA83: =IF(CA$70="","",Underwriting!CF150) ->  | CB83: =IF(CB$70="","",Underwriting!CG150) ->  | CC83: =IF(CC$70="","",Underwriting!CH150) ->  | CD83: =IF(CD$70="","",Underwriting!CI150) ->  | CE83: =IF(CE$70="","",Underwriting!CJ150) ->  | CF83: =IF(CF$70="","",Underwriting!CK150) ->  | CG83: =IF(CG$70="","",Underwriting!CL150) ->  | CH83: =IF(CH$70="","",Underwriting!CM150) ->  | CI83: =IF(CI$70="","",Underwriting!CN150) ->  | CJ83: =IF(CJ$70="","",Underwriting!CO150) ->  | CK83: =IF(CK$70="","",Underwriting!CP150) ->  | CL83: =IF(CL$70="","",Underwriting!CQ150) ->  | CM83: =IF(CM$70="","",Underwriting!CR150) ->  | CN83: =IF(CN$70="","",Underwriting!CS150) ->  | CO83: =IF(CO$70="","",Underwriting!CT150) ->  | CP83: =IF(CP$70="","",Underwriting!CU150) ->  | CQ83: =IF(CQ$70="","",Underwriting!CV150) ->  | CR83: =IF(CR$70="","",Underwriting!CW150) ->  | CS83: =IF(CS$70="","",Underwriting!CX150) ->  | CT83: =IF(CT$70="","",Underwriting!CY150) ->  | CU83: =IF(CU$70="","",Underwriting!CZ150) ->  | CV83: =IF(CV$70="","",Underwriting!DA150) ->  | CW83: =IF(CW$70="","",Underwriting!DB150) ->  | CX83: =IF(CX$70="","",Underwriting!DC150) ->  | CY83: =IF(CY$70="","",Underwriting!DD150) ->  | CZ83: =IF(CZ$70="","",Underwriting!DE150) ->  | DA83: =IF(DA$70="","",Underwriting!DF150) ->  | DB83: =IF(DB$70="","",Underwriting!DG150) ->  | DC83: =IF(DC$70="","",Underwriting!DH150) ->  | DD83: =IF(DD$70="","",Underwriting!DI150) ->  | DE83: =IF(DE$70="","",Underwriting!DJ150) ->  | DF83: =IF(DF$70="","",Underwriting!DK150) ->  | DG83: =IF(DG$70="","",Underwriting!DL150) ->  | DH83: =IF(DH$70="","",Underwriting!DM150) ->  | DI83: =IF(DI$70="","",Underwriting!DN150) ->  | DJ83: =IF(DJ$70="","",Underwriting!DO150) ->  | DK83: =IF(DK$70="","",Underwriting!DP150) ->  | DL83: =IF(DL$70="","",Underwriting!DQ150) ->  | DM83: =IF(DM$70="","",Underwriting!DR150) ->  | DN83: =IF(DN$70="","",Underwriting!DS150) ->  | DO83: =IF(DO$70="","",Underwriting!DT150) ->  | DP83: =IF(DP$70="","",Underwriting!DU150) ->  | DQ83: =IF(DQ$70="","",Underwriting!DV150) ->  | DR83: =IF(DR$70="","",Underwriting!DW150) ->  | DS83: =IF(DS$70="","",Underwriting!DX150) ->  | DT83: =IF(DT$70="","",Underwriting!DY150) ->  | DU83: =IF(DU$70="","",Underwriting!DZ150) ->  | DV83: =IF(DV$70="","",Underwriting!EA150) ->  | DW83: =IF(DW$70="","",Underwriting!EB150) ->  | DX83: =IF(DX$70="","",Underwriting!EC150) ->  | DY83: =IF(DY$70="","",Underwriting!ED150) ->  | DZ83: =IF(DZ$70="","",Underwriting!EE150) ->  | EA83: =IF(EA$70="","",Underwriting!EF150) ->  | EB83: =IF(EB$70="","",Underwriting!EG150) ->  | EC83: =IF(EC$70="","",Underwriting!EH150) ->  | ED83: =IF(ED$70="","",Underwriting!EI150) ->  | EE83: =IF(EE$70="","",Underwriting!EJ150) ->  | EF83: =IF(EF$70="","",Underwriting!EK150) ->  | EG83: =IF(EG$70="","",Underwriting!EL150) ->  | EH83: =IF(EH$70="","",Underwriting!EM150) ->  | EI83: =IF(EI$70="","",Underwriting!EN150) -> 
B84: Contract Services | G84: =IF(G$70="","",Underwriting!L151) -> 0 | H84: =IF(H$70="","",Underwriting!M151) -> 0 | I84: =IF(I$70="","",Underwriting!N151) -> 0 | J84: =IF(J$70="","",Underwriting!O151) -> 0 | K84: =IF(K$70="","",Underwriting!P151) -> 0 | L84: =IF(L$70="","",Underwriting!Q151) -> 0 | M84: =IF(M$70="","",Underwriting!R151) -> 0 | N84: =IF(N$70="","",Underwriting!S151) -> 0 | O84: =IF(O$70="","",Underwriting!T151) -> 0 | P84: =IF(P$70="","",Underwriting!U151) -> 0 | Q84: =IF(Q$70="","",Underwriting!V151) -> 0 | R84: =IF(R$70="","",Underwriting!W151) -> 0 | S84: =IF(S$70="","",Underwriting!X151) -> 0 | T84: =IF(T$70="","",Underwriting!Y151) -> 0 | U84: =IF(U$70="","",Underwriting!Z151) -> 0 | V84: =IF(V$70="","",Underwriting!AA151) -> 0 | W84: =IF(W$70="","",Underwriting!AB151) -> 0 | X84: =IF(X$70="","",Underwriting!AC151) -> 0 | Y84: =IF(Y$70="","",Underwriting!AD151) -> 0 | Z84: =IF(Z$70="","",Underwriting!AE151) -> 0 | AA84: =IF(AA$70="","",Underwriting!AF151) -> 0 | AB84: =IF(AB$70="","",Underwriting!AG151) -> 0 | AC84: =IF(AC$70="","",Underwriting!AH151) -> 0 | AD84: =IF(AD$70="","",Underwriting!AI151) -> 2004.38 | AE84: =IF(AE$70="","",Underwriting!AJ151) -> 2279.706923 | AF84: =IF(AF$70="","",Underwriting!AK151) -> 2631.684862 | AG84: =IF(AG$70="","",Underwriting!AL151) -> 2915.271592 | AH84: =IF(AH$70="","",Underwriting!AM151) -> 2949.302 | AI84: =IF(AI$70="","",Underwriting!AN151) -> 2949.302 | AJ84: =IF(AJ$70="","",Underwriting!AO151) -> 2949.302 | AK84: =IF(AK$70="","",Underwriting!AP151) -> 2949.302 | AL84: =IF(AL$70="","",Underwriting!AQ151) -> 2949.302 | AM84: =IF(AM$70="","",Underwriting!AR151) -> 2949.302 | AN84: =IF(AN$70="","",Underwriting!AS151) -> 2949.302 | AO84: =IF(AO$70="","",Underwriting!AT151) -> 2949.302 | AP84: =IF(AP$70="","",Underwriting!AU151) -> 2949.302 | AQ84: =IF(AQ$70="","",Underwriting!AV151) -> 2949.302 | AR84: =IF(AR$70="","",Underwriting!AW151) -> 3037.78106 | AS84: =IF(AS$70="","",Underwriting!AX151) -> 3037.78106 | AT84: =IF(AT$70="","",Underwriting!AY151) -> 3037.78106 | AU84: =IF(AU$70="","",Underwriting!AZ151) ->  | AV84: =IF(AV$70="","",Underwriting!BA151) ->  | AW84: =IF(AW$70="","",Underwriting!BB151) ->  | AX84: =IF(AX$70="","",Underwriting!BC151) ->  | AY84: =IF(AY$70="","",Underwriting!BD151) ->  | AZ84: =IF(AZ$70="","",Underwriting!BE151) ->  | BA84: =IF(BA$70="","",Underwriting!BF151) ->  | BB84: =IF(BB$70="","",Underwriting!BG151) ->  | BC84: =IF(BC$70="","",Underwriting!BH151) ->  | BD84: =IF(BD$70="","",Underwriting!BI151) ->  | BE84: =IF(BE$70="","",Underwriting!BJ151) ->  | BF84: =IF(BF$70="","",Underwriting!BK151) ->  | BG84: =IF(BG$70="","",Underwriting!BL151) ->  | BH84: =IF(BH$70="","",Underwriting!BM151) ->  | BI84: =IF(BI$70="","",Underwriting!BN151) ->  | BJ84: =IF(BJ$70="","",Underwriting!BO151) ->  | BK84: =IF(BK$70="","",Underwriting!BP151) ->  | BL84: =IF(BL$70="","",Underwriting!BQ151) ->  | BM84: =IF(BM$70="","",Underwriting!BR151) ->  | BN84: =IF(BN$70="","",Underwriting!BS151) ->  | BO84: =IF(BO$70="","",Underwriting!BT151) ->  | BP84: =IF(BP$70="","",Underwriting!BU151) ->  | BQ84: =IF(BQ$70="","",Underwriting!BV151) ->  | BR84: =IF(BR$70="","",Underwriting!BW151) ->  | BS84: =IF(BS$70="","",Underwriting!BX151) ->  | BT84: =IF(BT$70="","",Underwriting!BY151) ->  | BU84: =IF(BU$70="","",Underwriting!BZ151) ->  | BV84: =IF(BV$70="","",Underwriting!CA151) ->  | BW84: =IF(BW$70="","",Underwriting!CB151) ->  | BX84: =IF(BX$70="","",Underwriting!CC151) ->  | BY84: =IF(BY$70="","",Underwriting!CD151) ->  | BZ84: =IF(BZ$70="","",Underwriting!CE151) ->  | CA84: =IF(CA$70="","",Underwriting!CF151) ->  | CB84: =IF(CB$70="","",Underwriting!CG151) ->  | CC84: =IF(CC$70="","",Underwriting!CH151) ->  | CD84: =IF(CD$70="","",Underwriting!CI151) ->  | CE84: =IF(CE$70="","",Underwriting!CJ151) ->  | CF84: =IF(CF$70="","",Underwriting!CK151) ->  | CG84: =IF(CG$70="","",Underwriting!CL151) ->  | CH84: =IF(CH$70="","",Underwriting!CM151) ->  | CI84: =IF(CI$70="","",Underwriting!CN151) ->  | CJ84: =IF(CJ$70="","",Underwriting!CO151) ->  | CK84: =IF(CK$70="","",Underwriting!CP151) ->  | CL84: =IF(CL$70="","",Underwriting!CQ151) ->  | CM84: =IF(CM$70="","",Underwriting!CR151) ->  | CN84: =IF(CN$70="","",Underwriting!CS151) ->  | CO84: =IF(CO$70="","",Underwriting!CT151) ->  | CP84: =IF(CP$70="","",Underwriting!CU151) ->  | CQ84: =IF(CQ$70="","",Underwriting!CV151) ->  | CR84: =IF(CR$70="","",Underwriting!CW151) ->  | CS84: =IF(CS$70="","",Underwriting!CX151) ->  | CT84: =IF(CT$70="","",Underwriting!CY151) ->  | CU84: =IF(CU$70="","",Underwriting!CZ151) ->  | CV84: =IF(CV$70="","",Underwriting!DA151) ->  | CW84: =IF(CW$70="","",Underwriting!DB151) ->  | CX84: =IF(CX$70="","",Underwriting!DC151) ->  | CY84: =IF(CY$70="","",Underwriting!DD151) ->  | CZ84: =IF(CZ$70="","",Underwriting!DE151) ->  | DA84: =IF(DA$70="","",Underwriting!DF151) ->  | DB84: =IF(DB$70="","",Underwriting!DG151) ->  | DC84: =IF(DC$70="","",Underwriting!DH151) ->  | DD84: =IF(DD$70="","",Underwriting!DI151) ->  | DE84: =IF(DE$70="","",Underwriting!DJ151) ->  | DF84: =IF(DF$70="","",Underwriting!DK151) ->  | DG84: =IF(DG$70="","",Underwriting!DL151) ->  | DH84: =IF(DH$70="","",Underwriting!DM151) ->  | DI84: =IF(DI$70="","",Underwriting!DN151) ->  | DJ84: =IF(DJ$70="","",Underwriting!DO151) ->  | DK84: =IF(DK$70="","",Underwriting!DP151) ->  | DL84: =IF(DL$70="","",Underwriting!DQ151) ->  | DM84: =IF(DM$70="","",Underwriting!DR151) ->  | DN84: =IF(DN$70="","",Underwriting!DS151) ->  | DO84: =IF(DO$70="","",Underwriting!DT151) ->  | DP84: =IF(DP$70="","",Underwriting!DU151) ->  | DQ84: =IF(DQ$70="","",Underwriting!DV151) ->  | DR84: =IF(DR$70="","",Underwriting!DW151) ->  | DS84: =IF(DS$70="","",Underwriting!DX151) ->  | DT84: =IF(DT$70="","",Underwriting!DY151) ->  | DU84: =IF(DU$70="","",Underwriting!DZ151) ->  | DV84: =IF(DV$70="","",Underwriting!EA151) ->  | DW84: =IF(DW$70="","",Underwriting!EB151) ->  | DX84: =IF(DX$70="","",Underwriting!EC151) ->  | DY84: =IF(DY$70="","",Underwriting!ED151) ->  | DZ84: =IF(DZ$70="","",Underwriting!EE151) ->  | EA84: =IF(EA$70="","",Underwriting!EF151) ->  | EB84: =IF(EB$70="","",Underwriting!EG151) ->  | EC84: =IF(EC$70="","",Underwriting!EH151) ->  | ED84: =IF(ED$70="","",Underwriting!EI151) ->  | EE84: =IF(EE$70="","",Underwriting!EJ151) ->  | EF84: =IF(EF$70="","",Underwriting!EK151) ->  | EG84: =IF(EG$70="","",Underwriting!EL151) ->  | EH84: =IF(EH$70="","",Underwriting!EM151) ->  | EI84: =IF(EI$70="","",Underwriting!EN151) -> 
B85: Make Ready Cost | G85: =IF(G$70="","",Underwriting!L152) -> 0 | H85: =IF(H$70="","",Underwriting!M152) -> 0 | I85: =IF(I$70="","",Underwriting!N152) -> 0 | J85: =IF(J$70="","",Underwriting!O152) -> 0 | K85: =IF(K$70="","",Underwriting!P152) -> 0 | L85: =IF(L$70="","",Underwriting!Q152) -> 0 | M85: =IF(M$70="","",Underwriting!R152) -> 0 | N85: =IF(N$70="","",Underwriting!S152) -> 0 | O85: =IF(O$70="","",Underwriting!T152) -> 0 | P85: =IF(P$70="","",Underwriting!U152) -> 0 | Q85: =IF(Q$70="","",Underwriting!V152) -> 0 | R85: =IF(R$70="","",Underwriting!W152) -> 0 | S85: =IF(S$70="","",Underwriting!X152) -> 0 | T85: =IF(T$70="","",Underwriting!Y152) -> 0 | U85: =IF(U$70="","",Underwriting!Z152) -> 0 | V85: =IF(V$70="","",Underwriting!AA152) -> 0 | W85: =IF(W$70="","",Underwriting!AB152) -> 0 | X85: =IF(X$70="","",Underwriting!AC152) -> 0 | Y85: =IF(Y$70="","",Underwriting!AD152) -> 0 | Z85: =IF(Z$70="","",Underwriting!AE152) -> 0 | AA85: =IF(AA$70="","",Underwriting!AF152) -> 0 | AB85: =IF(AB$70="","",Underwriting!AG152) -> 0 | AC85: =IF(AC$70="","",Underwriting!AH152) -> 0 | AD85: =IF(AD$70="","",Underwriting!AI152) -> 0 | AE85: =IF(AE$70="","",Underwriting!AJ152) -> 0 | AF85: =IF(AF$70="","",Underwriting!AK152) -> 0 | AG85: =IF(AG$70="","",Underwriting!AL152) -> 0 | AH85: =IF(AH$70="","",Underwriting!AM152) -> 0 | AI85: =IF(AI$70="","",Underwriting!AN152) -> 0 | AJ85: =IF(AJ$70="","",Underwriting!AO152) -> 0 | AK85: =IF(AK$70="","",Underwriting!AP152) -> 0 | AL85: =IF(AL$70="","",Underwriting!AQ152) -> 0 | AM85: =IF(AM$70="","",Underwriting!AR152) -> 0 | AN85: =IF(AN$70="","",Underwriting!AS152) -> 0 | AO85: =IF(AO$70="","",Underwriting!AT152) -> 0 | AP85: =IF(AP$70="","",Underwriting!AU152) -> 0 | AQ85: =IF(AQ$70="","",Underwriting!AV152) -> 0 | AR85: =IF(AR$70="","",Underwriting!AW152) -> 0 | AS85: =IF(AS$70="","",Underwriting!AX152) -> 0 | AT85: =IF(AT$70="","",Underwriting!AY152) -> 0 | AU85: =IF(AU$70="","",Underwriting!AZ152) ->  | AV85: =IF(AV$70="","",Underwriting!BA152) ->  | AW85: =IF(AW$70="","",Underwriting!BB152) ->  | AX85: =IF(AX$70="","",Underwriting!BC152) ->  | AY85: =IF(AY$70="","",Underwriting!BD152) ->  | AZ85: =IF(AZ$70="","",Underwriting!BE152) ->  | BA85: =IF(BA$70="","",Underwriting!BF152) ->  | BB85: =IF(BB$70="","",Underwriting!BG152) ->  | BC85: =IF(BC$70="","",Underwriting!BH152) ->  | BD85: =IF(BD$70="","",Underwriting!BI152) ->  | BE85: =IF(BE$70="","",Underwriting!BJ152) ->  | BF85: =IF(BF$70="","",Underwriting!BK152) ->  | BG85: =IF(BG$70="","",Underwriting!BL152) ->  | BH85: =IF(BH$70="","",Underwriting!BM152) ->  | BI85: =IF(BI$70="","",Underwriting!BN152) ->  | BJ85: =IF(BJ$70="","",Underwriting!BO152) ->  | BK85: =IF(BK$70="","",Underwriting!BP152) ->  | BL85: =IF(BL$70="","",Underwriting!BQ152) ->  | BM85: =IF(BM$70="","",Underwriting!BR152) ->  | BN85: =IF(BN$70="","",Underwriting!BS152) ->  | BO85: =IF(BO$70="","",Underwriting!BT152) ->  | BP85: =IF(BP$70="","",Underwriting!BU152) ->  | BQ85: =IF(BQ$70="","",Underwriting!BV152) ->  | BR85: =IF(BR$70="","",Underwriting!BW152) ->  | BS85: =IF(BS$70="","",Underwriting!BX152) ->  | BT85: =IF(BT$70="","",Underwriting!BY152) ->  | BU85: =IF(BU$70="","",Underwriting!BZ152) ->  | BV85: =IF(BV$70="","",Underwriting!CA152) ->  | BW85: =IF(BW$70="","",Underwriting!CB152) ->  | BX85: =IF(BX$70="","",Underwriting!CC152) ->  | BY85: =IF(BY$70="","",Underwriting!CD152) ->  | BZ85: =IF(BZ$70="","",Underwriting!CE152) ->  | CA85: =IF(CA$70="","",Underwriting!CF152) ->  | CB85: =IF(CB$70="","",Underwriting!CG152) ->  | CC85: =IF(CC$70="","",Underwriting!CH152) ->  | CD85: =IF(CD$70="","",Underwriting!CI152) ->  | CE85: =IF(CE$70="","",Underwriting!CJ152) ->  | CF85: =IF(CF$70="","",Underwriting!CK152) ->  | CG85: =IF(CG$70="","",Underwriting!CL152) ->  | CH85: =IF(CH$70="","",Underwriting!CM152) ->  | CI85: =IF(CI$70="","",Underwriting!CN152) ->  | CJ85: =IF(CJ$70="","",Underwriting!CO152) ->  | CK85: =IF(CK$70="","",Underwriting!CP152) ->  | CL85: =IF(CL$70="","",Underwriting!CQ152) ->  | CM85: =IF(CM$70="","",Underwriting!CR152) ->  | CN85: =IF(CN$70="","",Underwriting!CS152) ->  | CO85: =IF(CO$70="","",Underwriting!CT152) ->  | CP85: =IF(CP$70="","",Underwriting!CU152) ->  | CQ85: =IF(CQ$70="","",Underwriting!CV152) ->  | CR85: =IF(CR$70="","",Underwriting!CW152) ->  | CS85: =IF(CS$70="","",Underwriting!CX152) ->  | CT85: =IF(CT$70="","",Underwriting!CY152) ->  | CU85: =IF(CU$70="","",Underwriting!CZ152) ->  | CV85: =IF(CV$70="","",Underwriting!DA152) ->  | CW85: =IF(CW$70="","",Underwriting!DB152) ->  | CX85: =IF(CX$70="","",Underwriting!DC152) ->  | CY85: =IF(CY$70="","",Underwriting!DD152) ->  | CZ85: =IF(CZ$70="","",Underwriting!DE152) ->  | DA85: =IF(DA$70="","",Underwriting!DF152) ->  | DB85: =IF(DB$70="","",Underwriting!DG152) ->  | DC85: =IF(DC$70="","",Underwriting!DH152) ->  | DD85: =IF(DD$70="","",Underwriting!DI152) ->  | DE85: =IF(DE$70="","",Underwriting!DJ152) ->  | DF85: =IF(DF$70="","",Underwriting!DK152) ->  | DG85: =IF(DG$70="","",Underwriting!DL152) ->  | DH85: =IF(DH$70="","",Underwriting!DM152) ->  | DI85: =IF(DI$70="","",Underwriting!DN152) ->  | DJ85: =IF(DJ$70="","",Underwriting!DO152) ->  | DK85: =IF(DK$70="","",Underwriting!DP152) ->  | DL85: =IF(DL$70="","",Underwriting!DQ152) ->  | DM85: =IF(DM$70="","",Underwriting!DR152) ->  | DN85: =IF(DN$70="","",Underwriting!DS152) ->  | DO85: =IF(DO$70="","",Underwriting!DT152) ->  | DP85: =IF(DP$70="","",Underwriting!DU152) ->  | DQ85: =IF(DQ$70="","",Underwriting!DV152) ->  | DR85: =IF(DR$70="","",Underwriting!DW152) ->  | DS85: =IF(DS$70="","",Underwriting!DX152) ->  | DT85: =IF(DT$70="","",Underwriting!DY152) ->  | DU85: =IF(DU$70="","",Underwriting!DZ152) ->  | DV85: =IF(DV$70="","",Underwriting!EA152) ->  | DW85: =IF(DW$70="","",Underwriting!EB152) ->  | DX85: =IF(DX$70="","",Underwriting!EC152) ->  | DY85: =IF(DY$70="","",Underwriting!ED152) ->  | DZ85: =IF(DZ$70="","",Underwriting!EE152) ->  | EA85: =IF(EA$70="","",Underwriting!EF152) ->  | EB85: =IF(EB$70="","",Underwriting!EG152) ->  | EC85: =IF(EC$70="","",Underwriting!EH152) ->  | ED85: =IF(ED$70="","",Underwriting!EI152) ->  | EE85: =IF(EE$70="","",Underwriting!EJ152) ->  | EF85: =IF(EF$70="","",Underwriting!EK152) ->  | EG85: =IF(EG$70="","",Underwriting!EL152) ->  | EH85: =IF(EH$70="","",Underwriting!EM152) ->  | EI85: =IF(EI$70="","",Underwriting!EN152) -> 
B86: Management Fee | G86: =IF(G$70="","",Underwriting!L153) -> 0 | H86: =IF(H$70="","",Underwriting!M153) -> 0 | I86: =IF(I$70="","",Underwriting!N153) -> 0 | J86: =IF(J$70="","",Underwriting!O153) -> 0 | K86: =IF(K$70="","",Underwriting!P153) -> 0 | L86: =IF(L$70="","",Underwriting!Q153) -> 0 | M86: =IF(M$70="","",Underwriting!R153) -> 0 | N86: =IF(N$70="","",Underwriting!S153) -> 0 | O86: =IF(O$70="","",Underwriting!T153) -> 0 | P86: =IF(P$70="","",Underwriting!U153) -> 0 | Q86: =IF(Q$70="","",Underwriting!V153) -> 0 | R86: =IF(R$70="","",Underwriting!W153) -> 0 | S86: =IF(S$70="","",Underwriting!X153) -> 0 | T86: =IF(T$70="","",Underwriting!Y153) -> 0 | U86: =IF(U$70="","",Underwriting!Z153) -> 0 | V86: =IF(V$70="","",Underwriting!AA153) -> 0 | W86: =IF(W$70="","",Underwriting!AB153) -> 0 | X86: =IF(X$70="","",Underwriting!AC153) -> 0 | Y86: =IF(Y$70="","",Underwriting!AD153) -> 0 | Z86: =IF(Z$70="","",Underwriting!AE153) -> 0 | AA86: =IF(AA$70="","",Underwriting!AF153) -> 0 | AB86: =IF(AB$70="","",Underwriting!AG153) -> 0 | AC86: =IF(AC$70="","",Underwriting!AH153) -> 0 | AD86: =IF(AD$70="","",Underwriting!AI153) -> 1931.991342 | AE86: =IF(AE$70="","",Underwriting!AJ153) -> 2954.684648 | AF86: =IF(AF$70="","",Underwriting!AK153) -> 4033.463649 | AG86: =IF(AG$70="","",Underwriting!AL153) -> 5086.837754 | AH86: =IF(AH$70="","",Underwriting!AM153) -> 5535.27195 | AI86: =IF(AI$70="","",Underwriting!AN153) -> 5535.27195 | AJ86: =IF(AJ$70="","",Underwriting!AO153) -> 5535.27195 | AK86: =IF(AK$70="","",Underwriting!AP153) -> 5535.27195 | AL86: =IF(AL$70="","",Underwriting!AQ153) -> 5655.84594 | AM86: =IF(AM$70="","",Underwriting!AR153) -> 5655.84594 | AN86: =IF(AN$70="","",Underwriting!AS153) -> 5655.84594 | AO86: =IF(AO$70="","",Underwriting!AT153) -> 5655.84594 | AP86: =IF(AP$70="","",Underwriting!AU153) -> 5655.84594 | AQ86: =IF(AQ$70="","",Underwriting!AV153) -> 5655.84594 | AR86: =IF(AR$70="","",Underwriting!AW153) -> 5821.904099 | AS86: =IF(AS$70="","",Underwriting!AX153) -> 5821.904099 | AT86: =IF(AT$70="","",Underwriting!AY153) -> 5821.904099 | AU86: =IF(AU$70="","",Underwriting!AZ153) ->  | AV86: =IF(AV$70="","",Underwriting!BA153) ->  | AW86: =IF(AW$70="","",Underwriting!BB153) ->  | AX86: =IF(AX$70="","",Underwriting!BC153) ->  | AY86: =IF(AY$70="","",Underwriting!BD153) ->  | AZ86: =IF(AZ$70="","",Underwriting!BE153) ->  | BA86: =IF(BA$70="","",Underwriting!BF153) ->  | BB86: =IF(BB$70="","",Underwriting!BG153) ->  | BC86: =IF(BC$70="","",Underwriting!BH153) ->  | BD86: =IF(BD$70="","",Underwriting!BI153) ->  | BE86: =IF(BE$70="","",Underwriting!BJ153) ->  | BF86: =IF(BF$70="","",Underwriting!BK153) ->  | BG86: =IF(BG$70="","",Underwriting!BL153) ->  | BH86: =IF(BH$70="","",Underwriting!BM153) ->  | BI86: =IF(BI$70="","",Underwriting!BN153) ->  | BJ86: =IF(BJ$70="","",Underwriting!BO153) ->  | BK86: =IF(BK$70="","",Underwriting!BP153) ->  | BL86: =IF(BL$70="","",Underwriting!BQ153) ->  | BM86: =IF(BM$70="","",Underwriting!BR153) ->  | BN86: =IF(BN$70="","",Underwriting!BS153) ->  | BO86: =IF(BO$70="","",Underwriting!BT153) ->  | BP86: =IF(BP$70="","",Underwriting!BU153) ->  | BQ86: =IF(BQ$70="","",Underwriting!BV153) ->  | BR86: =IF(BR$70="","",Underwriting!BW153) ->  | BS86: =IF(BS$70="","",Underwriting!BX153) ->  | BT86: =IF(BT$70="","",Underwriting!BY153) ->  | BU86: =IF(BU$70="","",Underwriting!BZ153) ->  | BV86: =IF(BV$70="","",Underwriting!CA153) ->  | BW86: =IF(BW$70="","",Underwriting!CB153) ->  | BX86: =IF(BX$70="","",Underwriting!CC153) ->  | BY86: =IF(BY$70="","",Underwriting!CD153) ->  | BZ86: =IF(BZ$70="","",Underwriting!CE153) ->  | CA86: =IF(CA$70="","",Underwriting!CF153) ->  | CB86: =IF(CB$70="","",Underwriting!CG153) ->  | CC86: =IF(CC$70="","",Underwriting!CH153) ->  | CD86: =IF(CD$70="","",Underwriting!CI153) ->  | CE86: =IF(CE$70="","",Underwriting!CJ153) ->  | CF86: =IF(CF$70="","",Underwriting!CK153) ->  | CG86: =IF(CG$70="","",Underwriting!CL153) ->  | CH86: =IF(CH$70="","",Underwriting!CM153) ->  | CI86: =IF(CI$70="","",Underwriting!CN153) ->  | CJ86: =IF(CJ$70="","",Underwriting!CO153) ->  | CK86: =IF(CK$70="","",Underwriting!CP153) ->  | CL86: =IF(CL$70="","",Underwriting!CQ153) ->  | CM86: =IF(CM$70="","",Underwriting!CR153) ->  | CN86: =IF(CN$70="","",Underwriting!CS153) ->  | CO86: =IF(CO$70="","",Underwriting!CT153) ->  | CP86: =IF(CP$70="","",Underwriting!CU153) ->  | CQ86: =IF(CQ$70="","",Underwriting!CV153) ->  | CR86: =IF(CR$70="","",Underwriting!CW153) ->  | CS86: =IF(CS$70="","",Underwriting!CX153) ->  | CT86: =IF(CT$70="","",Underwriting!CY153) ->  | CU86: =IF(CU$70="","",Underwriting!CZ153) ->  | CV86: =IF(CV$70="","",Underwriting!DA153) ->  | CW86: =IF(CW$70="","",Underwriting!DB153) ->  | CX86: =IF(CX$70="","",Underwriting!DC153) ->  | CY86: =IF(CY$70="","",Underwriting!DD153) ->  | CZ86: =IF(CZ$70="","",Underwriting!DE153) ->  | DA86: =IF(DA$70="","",Underwriting!DF153) ->  | DB86: =IF(DB$70="","",Underwriting!DG153) ->  | DC86: =IF(DC$70="","",Underwriting!DH153) ->  | DD86: =IF(DD$70="","",Underwriting!DI153) ->  | DE86: =IF(DE$70="","",Underwriting!DJ153) ->  | DF86: =IF(DF$70="","",Underwriting!DK153) ->  | DG86: =IF(DG$70="","",Underwriting!DL153) ->  | DH86: =IF(DH$70="","",Underwriting!DM153) ->  | DI86: =IF(DI$70="","",Underwriting!DN153) ->  | DJ86: =IF(DJ$70="","",Underwriting!DO153) ->  | DK86: =IF(DK$70="","",Underwriting!DP153) ->  | DL86: =IF(DL$70="","",Underwriting!DQ153) ->  | DM86: =IF(DM$70="","",Underwriting!DR153) ->  | DN86: =IF(DN$70="","",Underwriting!DS153) ->  | DO86: =IF(DO$70="","",Underwriting!DT153) ->  | DP86: =IF(DP$70="","",Underwriting!DU153) ->  | DQ86: =IF(DQ$70="","",Underwriting!DV153) ->  | DR86: =IF(DR$70="","",Underwriting!DW153) ->  | DS86: =IF(DS$70="","",Underwriting!DX153) ->  | DT86: =IF(DT$70="","",Underwriting!DY153) ->  | DU86: =IF(DU$70="","",Underwriting!DZ153) ->  | DV86: =IF(DV$70="","",Underwriting!EA153) ->  | DW86: =IF(DW$70="","",Underwriting!EB153) ->  | DX86: =IF(DX$70="","",Underwriting!EC153) ->  | DY86: =IF(DY$70="","",Underwriting!ED153) ->  | DZ86: =IF(DZ$70="","",Underwriting!EE153) ->  | EA86: =IF(EA$70="","",Underwriting!EF153) ->  | EB86: =IF(EB$70="","",Underwriting!EG153) ->  | EC86: =IF(EC$70="","",Underwriting!EH153) ->  | ED86: =IF(ED$70="","",Underwriting!EI153) ->  | EE86: =IF(EE$70="","",Underwriting!EJ153) ->  | EF86: =IF(EF$70="","",Underwriting!EK153) ->  | EG86: =IF(EG$70="","",Underwriting!EL153) ->  | EH86: =IF(EH$70="","",Underwriting!EM153) ->  | EI86: =IF(EI$70="","",Underwriting!EN153) -> 
B87: Insurance | G87: =IF(G$70="","",Underwriting!L154) -> 0 | H87: =IF(H$70="","",Underwriting!M154) -> 0 | I87: =IF(I$70="","",Underwriting!N154) -> 0 | J87: =IF(J$70="","",Underwriting!O154) -> 0 | K87: =IF(K$70="","",Underwriting!P154) -> 0 | L87: =IF(L$70="","",Underwriting!Q154) -> 0 | M87: =IF(M$70="","",Underwriting!R154) -> 0 | N87: =IF(N$70="","",Underwriting!S154) -> 0 | O87: =IF(O$70="","",Underwriting!T154) -> 0 | P87: =IF(P$70="","",Underwriting!U154) -> 0 | Q87: =IF(Q$70="","",Underwriting!V154) -> 0 | R87: =IF(R$70="","",Underwriting!W154) -> 0 | S87: =IF(S$70="","",Underwriting!X154) -> 0 | T87: =IF(T$70="","",Underwriting!Y154) -> 0 | U87: =IF(U$70="","",Underwriting!Z154) -> 0 | V87: =IF(V$70="","",Underwriting!AA154) -> 0 | W87: =IF(W$70="","",Underwriting!AB154) -> 0 | X87: =IF(X$70="","",Underwriting!AC154) -> 0 | Y87: =IF(Y$70="","",Underwriting!AD154) -> 0 | Z87: =IF(Z$70="","",Underwriting!AE154) -> 0 | AA87: =IF(AA$70="","",Underwriting!AF154) -> 0 | AB87: =IF(AB$70="","",Underwriting!AG154) -> 0 | AC87: =IF(AC$70="","",Underwriting!AH154) -> 0 | AD87: =IF(AD$70="","",Underwriting!AI154) -> 2060 | AE87: =IF(AE$70="","",Underwriting!AJ154) -> 2060 | AF87: =IF(AF$70="","",Underwriting!AK154) -> 2121.8 | AG87: =IF(AG$70="","",Underwriting!AL154) -> 2121.8 | AH87: =IF(AH$70="","",Underwriting!AM154) -> 2121.8 | AI87: =IF(AI$70="","",Underwriting!AN154) -> 2121.8 | AJ87: =IF(AJ$70="","",Underwriting!AO154) -> 2121.8 | AK87: =IF(AK$70="","",Underwriting!AP154) -> 2121.8 | AL87: =IF(AL$70="","",Underwriting!AQ154) -> 2121.8 | AM87: =IF(AM$70="","",Underwriting!AR154) -> 2121.8 | AN87: =IF(AN$70="","",Underwriting!AS154) -> 2121.8 | AO87: =IF(AO$70="","",Underwriting!AT154) -> 2121.8 | AP87: =IF(AP$70="","",Underwriting!AU154) -> 2121.8 | AQ87: =IF(AQ$70="","",Underwriting!AV154) -> 2121.8 | AR87: =IF(AR$70="","",Underwriting!AW154) -> 2185.454 | AS87: =IF(AS$70="","",Underwriting!AX154) -> 2185.454 | AT87: =IF(AT$70="","",Underwriting!AY154) -> 2185.454 | AU87: =IF(AU$70="","",Underwriting!AZ154) ->  | AV87: =IF(AV$70="","",Underwriting!BA154) ->  | AW87: =IF(AW$70="","",Underwriting!BB154) ->  | AX87: =IF(AX$70="","",Underwriting!BC154) ->  | AY87: =IF(AY$70="","",Underwriting!BD154) ->  | AZ87: =IF(AZ$70="","",Underwriting!BE154) ->  | BA87: =IF(BA$70="","",Underwriting!BF154) ->  | BB87: =IF(BB$70="","",Underwriting!BG154) ->  | BC87: =IF(BC$70="","",Underwriting!BH154) ->  | BD87: =IF(BD$70="","",Underwriting!BI154) ->  | BE87: =IF(BE$70="","",Underwriting!BJ154) ->  | BF87: =IF(BF$70="","",Underwriting!BK154) ->  | BG87: =IF(BG$70="","",Underwriting!BL154) ->  | BH87: =IF(BH$70="","",Underwriting!BM154) ->  | BI87: =IF(BI$70="","",Underwriting!BN154) ->  | BJ87: =IF(BJ$70="","",Underwriting!BO154) ->  | BK87: =IF(BK$70="","",Underwriting!BP154) ->  | BL87: =IF(BL$70="","",Underwriting!BQ154) ->  | BM87: =IF(BM$70="","",Underwriting!BR154) ->  | BN87: =IF(BN$70="","",Underwriting!BS154) ->  | BO87: =IF(BO$70="","",Underwriting!BT154) ->  | BP87: =IF(BP$70="","",Underwriting!BU154) ->  | BQ87: =IF(BQ$70="","",Underwriting!BV154) ->  | BR87: =IF(BR$70="","",Underwriting!BW154) ->  | BS87: =IF(BS$70="","",Underwriting!BX154) ->  | BT87: =IF(BT$70="","",Underwriting!BY154) ->  | BU87: =IF(BU$70="","",Underwriting!BZ154) ->  | BV87: =IF(BV$70="","",Underwriting!CA154) ->  | BW87: =IF(BW$70="","",Underwriting!CB154) ->  | BX87: =IF(BX$70="","",Underwriting!CC154) ->  | BY87: =IF(BY$70="","",Underwriting!CD154) ->  | BZ87: =IF(BZ$70="","",Underwriting!CE154) ->  | CA87: =IF(CA$70="","",Underwriting!CF154) ->  | CB87: =IF(CB$70="","",Underwriting!CG154) ->  | CC87: =IF(CC$70="","",Underwriting!CH154) ->  | CD87: =IF(CD$70="","",Underwriting!CI154) ->  | CE87: =IF(CE$70="","",Underwriting!CJ154) ->  | CF87: =IF(CF$70="","",Underwriting!CK154) ->  | CG87: =IF(CG$70="","",Underwriting!CL154) ->  | CH87: =IF(CH$70="","",Underwriting!CM154) ->  | CI87: =IF(CI$70="","",Underwriting!CN154) ->  | CJ87: =IF(CJ$70="","",Underwriting!CO154) ->  | CK87: =IF(CK$70="","",Underwriting!CP154) ->  | CL87: =IF(CL$70="","",Underwriting!CQ154) ->  | CM87: =IF(CM$70="","",Underwriting!CR154) ->  | CN87: =IF(CN$70="","",Underwriting!CS154) ->  | CO87: =IF(CO$70="","",Underwriting!CT154) ->  | CP87: =IF(CP$70="","",Underwriting!CU154) ->  | CQ87: =IF(CQ$70="","",Underwriting!CV154) ->  | CR87: =IF(CR$70="","",Underwriting!CW154) ->  | CS87: =IF(CS$70="","",Underwriting!CX154) ->  | CT87: =IF(CT$70="","",Underwriting!CY154) ->  | CU87: =IF(CU$70="","",Underwriting!CZ154) ->  | CV87: =IF(CV$70="","",Underwriting!DA154) ->  | CW87: =IF(CW$70="","",Underwriting!DB154) ->  | CX87: =IF(CX$70="","",Underwriting!DC154) ->  | CY87: =IF(CY$70="","",Underwriting!DD154) ->  | CZ87: =IF(CZ$70="","",Underwriting!DE154) ->  | DA87: =IF(DA$70="","",Underwriting!DF154) ->  | DB87: =IF(DB$70="","",Underwriting!DG154) ->  | DC87: =IF(DC$70="","",Underwriting!DH154) ->  | DD87: =IF(DD$70="","",Underwriting!DI154) ->  | DE87: =IF(DE$70="","",Underwriting!DJ154) ->  | DF87: =IF(DF$70="","",Underwriting!DK154) ->  | DG87: =IF(DG$70="","",Underwriting!DL154) ->  | DH87: =IF(DH$70="","",Underwriting!DM154) ->  | DI87: =IF(DI$70="","",Underwriting!DN154) ->  | DJ87: =IF(DJ$70="","",Underwriting!DO154) ->  | DK87: =IF(DK$70="","",Underwriting!DP154) ->  | DL87: =IF(DL$70="","",Underwriting!DQ154) ->  | DM87: =IF(DM$70="","",Underwriting!DR154) ->  | DN87: =IF(DN$70="","",Underwriting!DS154) ->  | DO87: =IF(DO$70="","",Underwriting!DT154) ->  | DP87: =IF(DP$70="","",Underwriting!DU154) ->  | DQ87: =IF(DQ$70="","",Underwriting!DV154) ->  | DR87: =IF(DR$70="","",Underwriting!DW154) ->  | DS87: =IF(DS$70="","",Underwriting!DX154) ->  | DT87: =IF(DT$70="","",Underwriting!DY154) ->  | DU87: =IF(DU$70="","",Underwriting!DZ154) ->  | DV87: =IF(DV$70="","",Underwriting!EA154) ->  | DW87: =IF(DW$70="","",Underwriting!EB154) ->  | DX87: =IF(DX$70="","",Underwriting!EC154) ->  | DY87: =IF(DY$70="","",Underwriting!ED154) ->  | DZ87: =IF(DZ$70="","",Underwriting!EE154) ->  | EA87: =IF(EA$70="","",Underwriting!EF154) ->  | EB87: =IF(EB$70="","",Underwriting!EG154) ->  | EC87: =IF(EC$70="","",Underwriting!EH154) ->  | ED87: =IF(ED$70="","",Underwriting!EI154) ->  | EE87: =IF(EE$70="","",Underwriting!EJ154) ->  | EF87: =IF(EF$70="","",Underwriting!EK154) ->  | EG87: =IF(EG$70="","",Underwriting!EL154) ->  | EH87: =IF(EH$70="","",Underwriting!EM154) ->  | EI87: =IF(EI$70="","",Underwriting!EN154) -> 
B88: Property Taxes | G88: =IF(G$70="","",Underwriting!L155) -> 0 | H88: =IF(H$70="","",Underwriting!M155) -> 0 | I88: =IF(I$70="","",Underwriting!N155) -> 0 | J88: =IF(J$70="","",Underwriting!O155) -> 0 | K88: =IF(K$70="","",Underwriting!P155) -> 0 | L88: =IF(L$70="","",Underwriting!Q155) -> 0 | M88: =IF(M$70="","",Underwriting!R155) -> 0 | N88: =IF(N$70="","",Underwriting!S155) -> 0 | O88: =IF(O$70="","",Underwriting!T155) -> 0 | P88: =IF(P$70="","",Underwriting!U155) -> 0 | Q88: =IF(Q$70="","",Underwriting!V155) -> 0 | R88: =IF(R$70="","",Underwriting!W155) -> 0 | S88: =IF(S$70="","",Underwriting!X155) -> 0 | T88: =IF(T$70="","",Underwriting!Y155) -> 0 | U88: =IF(U$70="","",Underwriting!Z155) -> 0 | V88: =IF(V$70="","",Underwriting!AA155) -> 0 | W88: =IF(W$70="","",Underwriting!AB155) -> 0 | X88: =IF(X$70="","",Underwriting!AC155) -> 0 | Y88: =IF(Y$70="","",Underwriting!AD155) -> 0 | Z88: =IF(Z$70="","",Underwriting!AE155) -> 0 | AA88: =IF(AA$70="","",Underwriting!AF155) -> 0 | AB88: =IF(AB$70="","",Underwriting!AG155) -> 0 | AC88: =IF(AC$70="","",Underwriting!AH155) -> 0 | AD88: =IF(AD$70="","",Underwriting!AI155) -> 8368.75 | AE88: =IF(AE$70="","",Underwriting!AJ155) -> 8368.75 | AF88: =IF(AF$70="","",Underwriting!AK155) -> 8619.8125 | AG88: =IF(AG$70="","",Underwriting!AL155) -> 8619.8125 | AH88: =IF(AH$70="","",Underwriting!AM155) -> 8619.8125 | AI88: =IF(AI$70="","",Underwriting!AN155) -> 8619.8125 | AJ88: =IF(AJ$70="","",Underwriting!AO155) -> 8619.8125 | AK88: =IF(AK$70="","",Underwriting!AP155) -> 8619.8125 | AL88: =IF(AL$70="","",Underwriting!AQ155) -> 8619.8125 | AM88: =IF(AM$70="","",Underwriting!AR155) -> 8619.8125 | AN88: =IF(AN$70="","",Underwriting!AS155) -> 8619.8125 | AO88: =IF(AO$70="","",Underwriting!AT155) -> 8619.8125 | AP88: =IF(AP$70="","",Underwriting!AU155) -> 12929.71875 | AQ88: =IF(AQ$70="","",Underwriting!AV155) -> 12929.71875 | AR88: =IF(AR$70="","",Underwriting!AW155) -> 13317.61031 | AS88: =IF(AS$70="","",Underwriting!AX155) -> 13317.61031 | AT88: =IF(AT$70="","",Underwriting!AY155) -> 13317.61031 | AU88: =IF(AU$70="","",Underwriting!AZ155) ->  | AV88: =IF(AV$70="","",Underwriting!BA155) ->  | AW88: =IF(AW$70="","",Underwriting!BB155) ->  | AX88: =IF(AX$70="","",Underwriting!BC155) ->  | AY88: =IF(AY$70="","",Underwriting!BD155) ->  | AZ88: =IF(AZ$70="","",Underwriting!BE155) ->  | BA88: =IF(BA$70="","",Underwriting!BF155) ->  | BB88: =IF(BB$70="","",Underwriting!BG155) ->  | BC88: =IF(BC$70="","",Underwriting!BH155) ->  | BD88: =IF(BD$70="","",Underwriting!BI155) ->  | BE88: =IF(BE$70="","",Underwriting!BJ155) ->  | BF88: =IF(BF$70="","",Underwriting!BK155) ->  | BG88: =IF(BG$70="","",Underwriting!BL155) ->  | BH88: =IF(BH$70="","",Underwriting!BM155) ->  | BI88: =IF(BI$70="","",Underwriting!BN155) ->  | BJ88: =IF(BJ$70="","",Underwriting!BO155) ->  | BK88: =IF(BK$70="","",Underwriting!BP155) ->  | BL88: =IF(BL$70="","",Underwriting!BQ155) ->  | BM88: =IF(BM$70="","",Underwriting!BR155) ->  | BN88: =IF(BN$70="","",Underwriting!BS155) ->  | BO88: =IF(BO$70="","",Underwriting!BT155) ->  | BP88: =IF(BP$70="","",Underwriting!BU155) ->  | BQ88: =IF(BQ$70="","",Underwriting!BV155) ->  | BR88: =IF(BR$70="","",Underwriting!BW155) ->  | BS88: =IF(BS$70="","",Underwriting!BX155) ->  | BT88: =IF(BT$70="","",Underwriting!BY155) ->  | BU88: =IF(BU$70="","",Underwriting!BZ155) ->  | BV88: =IF(BV$70="","",Underwriting!CA155) ->  | BW88: =IF(BW$70="","",Underwriting!CB155) ->  | BX88: =IF(BX$70="","",Underwriting!CC155) ->  | BY88: =IF(BY$70="","",Underwriting!CD155) ->  | BZ88: =IF(BZ$70="","",Underwriting!CE155) ->  | CA88: =IF(CA$70="","",Underwriting!CF155) ->  | CB88: =IF(CB$70="","",Underwriting!CG155) ->  | CC88: =IF(CC$70="","",Underwriting!CH155) ->  | CD88: =IF(CD$70="","",Underwriting!CI155) ->  | CE88: =IF(CE$70="","",Underwriting!CJ155) ->  | CF88: =IF(CF$70="","",Underwriting!CK155) ->  | CG88: =IF(CG$70="","",Underwriting!CL155) ->  | CH88: =IF(CH$70="","",Underwriting!CM155) ->  | CI88: =IF(CI$70="","",Underwriting!CN155) ->  | CJ88: =IF(CJ$70="","",Underwriting!CO155) ->  | CK88: =IF(CK$70="","",Underwriting!CP155) ->  | CL88: =IF(CL$70="","",Underwriting!CQ155) ->  | CM88: =IF(CM$70="","",Underwriting!CR155) ->  | CN88: =IF(CN$70="","",Underwriting!CS155) ->  | CO88: =IF(CO$70="","",Underwriting!CT155) ->  | CP88: =IF(CP$70="","",Underwriting!CU155) ->  | CQ88: =IF(CQ$70="","",Underwriting!CV155) ->  | CR88: =IF(CR$70="","",Underwriting!CW155) ->  | CS88: =IF(CS$70="","",Underwriting!CX155) ->  | CT88: =IF(CT$70="","",Underwriting!CY155) ->  | CU88: =IF(CU$70="","",Underwriting!CZ155) ->  | CV88: =IF(CV$70="","",Underwriting!DA155) ->  | CW88: =IF(CW$70="","",Underwriting!DB155) ->  | CX88: =IF(CX$70="","",Underwriting!DC155) ->  | CY88: =IF(CY$70="","",Underwriting!DD155) ->  | CZ88: =IF(CZ$70="","",Underwriting!DE155) ->  | DA88: =IF(DA$70="","",Underwriting!DF155) ->  | DB88: =IF(DB$70="","",Underwriting!DG155) ->  | DC88: =IF(DC$70="","",Underwriting!DH155) ->  | DD88: =IF(DD$70="","",Underwriting!DI155) ->  | DE88: =IF(DE$70="","",Underwriting!DJ155) ->  | DF88: =IF(DF$70="","",Underwriting!DK155) ->  | DG88: =IF(DG$70="","",Underwriting!DL155) ->  | DH88: =IF(DH$70="","",Underwriting!DM155) ->  | DI88: =IF(DI$70="","",Underwriting!DN155) ->  | DJ88: =IF(DJ$70="","",Underwriting!DO155) ->  | DK88: =IF(DK$70="","",Underwriting!DP155) ->  | DL88: =IF(DL$70="","",Underwriting!DQ155) ->  | DM88: =IF(DM$70="","",Underwriting!DR155) ->  | DN88: =IF(DN$70="","",Underwriting!DS155) ->  | DO88: =IF(DO$70="","",Underwriting!DT155) ->  | DP88: =IF(DP$70="","",Underwriting!DU155) ->  | DQ88: =IF(DQ$70="","",Underwriting!DV155) ->  | DR88: =IF(DR$70="","",Underwriting!DW155) ->  | DS88: =IF(DS$70="","",Underwriting!DX155) ->  | DT88: =IF(DT$70="","",Underwriting!DY155) ->  | DU88: =IF(DU$70="","",Underwriting!DZ155) ->  | DV88: =IF(DV$70="","",Underwriting!EA155) ->  | DW88: =IF(DW$70="","",Underwriting!EB155) ->  | DX88: =IF(DX$70="","",Underwriting!EC155) ->  | DY88: =IF(DY$70="","",Underwriting!ED155) ->  | DZ88: =IF(DZ$70="","",Underwriting!EE155) ->  | EA88: =IF(EA$70="","",Underwriting!EF155) ->  | EB88: =IF(EB$70="","",Underwriting!EG155) ->  | EC88: =IF(EC$70="","",Underwriting!EH155) ->  | ED88: =IF(ED$70="","",Underwriting!EI155) ->  | EE88: =IF(EE$70="","",Underwriting!EJ155) ->  | EF88: =IF(EF$70="","",Underwriting!EK155) ->  | EG88: =IF(EG$70="","",Underwriting!EL155) ->  | EH88: =IF(EH$70="","",Underwriting!EM155) ->  | EI88: =IF(EI$70="","",Underwriting!EN155) -> 
B89: TOTAL OPERATING EXPENSES | G89: =IF(G$70="","",SUM(G79:G88)) -> 0 | H89: =IF(H$70="","",SUM(H79:H88)) -> 0 | I89: 0 | J89: 0 | K89: 0 | L89: 0 | M89: 0 | N89: 0 | O89: 0 | P89: 0 | Q89: 0 | R89: 0 | S89: 0 | T89: 0 | U89: 0 | V89: 0 | W89: 0 | X89: 0 | Y89: 0 | Z89: 0 | AA89: 0 | AB89: 0 | AC89: 0 | AD89: 32002.41904 | AE89: 34190.54744 | AF89: 37406.80048 | AG89: 39660.57273 | AH89: 40253.05471 | AI89: 40253.05471 | AJ89: 40253.05471 | AK89: 40253.05471 | AL89: 40373.6287 | AM89: 40373.6287 | AN89: 40373.6287 | AO89: 40373.6287 | AP89: 44683.53495 | AQ89: 44683.53495 | AR89: 46020.42377 | AS89: 46020.42377 | AT89: 46020.42377 | BT89: =IF(BT$70="","",SUM(BT79:BT88)) ->  | EF89: =IF(EF$70="","",SUM(EF79:EF88)) -> 
B91: NET OPERATING INCOME | G91: =IF(G$70="","",G76-G89) -> 0 | H91: =IF(H$70="","",H76-H89) -> 0 | I91: 0 | J91: 0 | K91: 0 | L91: 0 | M91: 0 | N91: 0 | O91: 0 | P91: 0 | Q91: 0 | R91: 0 | S91: 0 | T91: 0 | U91: 0 | V91: 0 | W91: 0 | X91: 0 | Y91: 0 | Z91: 0 | AA91: 0 | AB91: 0 | AC91: 0 | AD91: 32397.29752 | AE91: 64298.94872 | AF91: 97041.99859 | AG91: 129900.6993 | AH91: 144256.0251 | AI91: 144256.0251 | AJ91: 144256.0251 | AK91: 144256.0251 | AL91: 148154.5844 | AM91: 148154.5844 | AN91: 148154.5844 | AO91: 148154.5844 | AP91: 143844.6782 | AQ91: 143844.6782 | AR91: 148043.0617 | AS91: 148043.0617 | AT91: 148043.0617 | BT91: =IF(BT$70="","",BT76-BT89) ->  | EF91: =IF(EF$70="","",EF76-EF89) -> 
B93: CAPITAL EXPENDITURES | G93: =IF(G$70="","",Underwriting!L164) -> 0 | H93: =IF(H$70="","",Underwriting!M164) -> 0 | I93: =IF(I$70="","",Underwriting!N164) -> 0 | J93: =IF(J$70="","",Underwriting!O164) -> 0 | K93: =IF(K$70="","",Underwriting!P164) -> 0 | L93: =IF(L$70="","",Underwriting!Q164) -> 0 | M93: =IF(M$70="","",Underwriting!R164) -> 0 | N93: =IF(N$70="","",Underwriting!S164) -> 0 | O93: =IF(O$70="","",Underwriting!T164) -> 0 | P93: =IF(P$70="","",Underwriting!U164) -> 0 | Q93: =IF(Q$70="","",Underwriting!V164) -> 0 | R93: =IF(R$70="","",Underwriting!W164) -> 0 | S93: =IF(S$70="","",Underwriting!X164) -> 0 | T93: =IF(T$70="","",Underwriting!Y164) -> 0 | U93: =IF(U$70="","",Underwriting!Z164) -> 0 | V93: =IF(V$70="","",Underwriting!AA164) -> 0 | W93: =IF(W$70="","",Underwriting!AB164) -> 0 | X93: =IF(X$70="","",Underwriting!AC164) -> 0 | Y93: =IF(Y$70="","",Underwriting!AD164) -> 0 | Z93: =IF(Z$70="","",Underwriting!AE164) -> 0 | AA93: =IF(AA$70="","",Underwriting!AF164) -> 0 | AB93: =IF(AB$70="","",Underwriting!AG164) -> 0 | AC93: =IF(AC$70="","",Underwriting!AH164) -> 0 | AD93: =IF(AD$70="","",Underwriting!AI164) -> 21711.23333 | AE93: =IF(AE$70="","",Underwriting!AJ164) -> 21882.9 | AF93: =IF(AF$70="","",Underwriting!AK164) -> 22075.57867 | AG93: =IF(AG$70="","",Underwriting!AL164) -> 22252.39533 | AH93: =IF(AH$70="","",Underwriting!AM164) -> 22273.61333 | AI93: =IF(AI$70="","",Underwriting!AN164) -> 22273.61333 | AJ93: =IF(AJ$70="","",Underwriting!AO164) -> 22807.4675 | AK93: =IF(AK$70="","",Underwriting!AP164) -> 22807.4675 | AL93: =IF(AL$70="","",Underwriting!AQ164) -> 22807.4675 | AM93: =IF(AM$70="","",Underwriting!AR164) -> 22807.4675 | AN93: =IF(AN$70="","",Underwriting!AS164) -> 22807.4675 | AO93: =IF(AO$70="","",Underwriting!AT164) -> 22807.4675 | AP93: =IF(AP$70="","",Underwriting!AU164) -> 22807.4675 | AQ93: =IF(AQ$70="","",Underwriting!AV164) -> 22807.4675 | AR93: =IF(AR$70="","",Underwriting!AW164) -> 22835.0509 | AS93: =IF(AS$70="","",Underwriting!AX164) -> 22835.0509 | AT93: =IF(AT$70="","",Underwriting!AY164) -> 22835.0509 | AU93: =IF(AU$70="","",Underwriting!AZ164) ->  | AV93: =IF(AV$70="","",Underwriting!BA164) ->  | AW93: =IF(AW$70="","",Underwriting!BB164) ->  | AX93: =IF(AX$70="","",Underwriting!BC164) ->  | AY93: =IF(AY$70="","",Underwriting!BD164) ->  | AZ93: =IF(AZ$70="","",Underwriting!BE164) ->  | BA93: =IF(BA$70="","",Underwriting!BF164) ->  | BB93: =IF(BB$70="","",Underwriting!BG164) ->  | BC93: =IF(BC$70="","",Underwriting!BH164) ->  | BD93: =IF(BD$70="","",Underwriting!BI164) ->  | BE93: =IF(BE$70="","",Underwriting!BJ164) ->  | BF93: =IF(BF$70="","",Underwriting!BK164) ->  | BG93: =IF(BG$70="","",Underwriting!BL164) ->  | BH93: =IF(BH$70="","",Underwriting!BM164) ->  | BI93: =IF(BI$70="","",Underwriting!BN164) ->  | BJ93: =IF(BJ$70="","",Underwriting!BO164) ->  | BK93: =IF(BK$70="","",Underwriting!BP164) ->  | BL93: =IF(BL$70="","",Underwriting!BQ164) ->  | BM93: =IF(BM$70="","",Underwriting!BR164) ->  | BN93: =IF(BN$70="","",Underwriting!BS164) ->  | BO93: =IF(BO$70="","",Underwriting!BT164) ->  | BP93: =IF(BP$70="","",Underwriting!BU164) ->  | BQ93: =IF(BQ$70="","",Underwriting!BV164) ->  | BR93: =IF(BR$70="","",Underwriting!BW164) ->  | BS93: =IF(BS$70="","",Underwriting!BX164) ->  | BT93: =IF(BT$70="","",Underwriting!BY164) ->  | BU93: =IF(BU$70="","",Underwriting!BZ164) ->  | BV93: =IF(BV$70="","",Underwriting!CA164) ->  | BW93: =IF(BW$70="","",Underwriting!CB164) ->  | BX93: =IF(BX$70="","",Underwriting!CC164) ->  | BY93: =IF(BY$70="","",Underwriting!CD164) ->  | BZ93: =IF(BZ$70="","",Underwriting!CE164) ->  | CA93: =IF(CA$70="","",Underwriting!CF164) ->  | CB93: =IF(CB$70="","",Underwriting!CG164) ->  | CC93: =IF(CC$70="","",Underwriting!CH164) ->  | CD93: =IF(CD$70="","",Underwriting!CI164) ->  | CE93: =IF(CE$70="","",Underwriting!CJ164) ->  | CF93: =IF(CF$70="","",Underwriting!CK164) ->  | CG93: =IF(CG$70="","",Underwriting!CL164) ->  | CH93: =IF(CH$70="","",Underwriting!CM164) ->  | CI93: =IF(CI$70="","",Underwriting!CN164) ->  | CJ93: =IF(CJ$70="","",Underwriting!CO164) ->  | CK93: =IF(CK$70="","",Underwriting!CP164) ->  | CL93: =IF(CL$70="","",Underwriting!CQ164) ->  | CM93: =IF(CM$70="","",Underwriting!CR164) ->  | CN93: =IF(CN$70="","",Underwriting!CS164) ->  | CO93: =IF(CO$70="","",Underwriting!CT164) ->  | CP93: =IF(CP$70="","",Underwriting!CU164) ->  | CQ93: =IF(CQ$70="","",Underwriting!CV164) ->  | CR93: =IF(CR$70="","",Underwriting!CW164) ->  | CS93: =IF(CS$70="","",Underwriting!CX164) ->  | CT93: =IF(CT$70="","",Underwriting!CY164) ->  | CU93: =IF(CU$70="","",Underwriting!CZ164) ->  | CV93: =IF(CV$70="","",Underwriting!DA164) ->  | CW93: =IF(CW$70="","",Underwriting!DB164) ->  | CX93: =IF(CX$70="","",Underwriting!DC164) ->  | CY93: =IF(CY$70="","",Underwriting!DD164) ->  | CZ93: =IF(CZ$70="","",Underwriting!DE164) ->  | DA93: =IF(DA$70="","",Underwriting!DF164) ->  | DB93: =IF(DB$70="","",Underwriting!DG164) ->  | DC93: =IF(DC$70="","",Underwriting!DH164) ->  | DD93: =IF(DD$70="","",Underwriting!DI164) ->  | DE93: =IF(DE$70="","",Underwriting!DJ164) ->  | DF93: =IF(DF$70="","",Underwriting!DK164) ->  | DG93: =IF(DG$70="","",Underwriting!DL164) ->  | DH93: =IF(DH$70="","",Underwriting!DM164) ->  | DI93: =IF(DI$70="","",Underwriting!DN164) ->  | DJ93: =IF(DJ$70="","",Underwriting!DO164) ->  | DK93: =IF(DK$70="","",Underwriting!DP164) ->  | DL93: =IF(DL$70="","",Underwriting!DQ164) ->  | DM93: =IF(DM$70="","",Underwriting!DR164) ->  | DN93: =IF(DN$70="","",Underwriting!DS164) ->  | DO93: =IF(DO$70="","",Underwriting!DT164) ->  | DP93: =IF(DP$70="","",Underwriting!DU164) ->  | DQ93: =IF(DQ$70="","",Underwriting!DV164) ->  | DR93: =IF(DR$70="","",Underwriting!DW164) ->  | DS93: =IF(DS$70="","",Underwriting!DX164) ->  | DT93: =IF(DT$70="","",Underwriting!DY164) ->  | DU93: =IF(DU$70="","",Underwriting!DZ164) ->  | DV93: =IF(DV$70="","",Underwriting!EA164) ->  | DW93: =IF(DW$70="","",Underwriting!EB164) ->  | DX93: =IF(DX$70="","",Underwriting!EC164) ->  | DY93: =IF(DY$70="","",Underwriting!ED164) ->  | DZ93: =IF(DZ$70="","",Underwriting!EE164) ->  | EA93: =IF(EA$70="","",Underwriting!EF164) ->  | EB93: =IF(EB$70="","",Underwriting!EG164) ->  | EC93: =IF(EC$70="","",Underwriting!EH164) ->  | ED93: =IF(ED$70="","",Underwriting!EI164) ->  | EE93: =IF(EE$70="","",Underwriting!EJ164) ->  | EF93: =IF(EF$70="","",Underwriting!EK164) ->  | EG93: =IF(EG$70="","",Underwriting!EL164) ->  | EH93: =IF(EH$70="","",Underwriting!EM164) ->  | EI93: =IF(EI$70="","",Underwriting!EN164) -> 
B95: CASH FLOW FROM OPERATIONS | G95: =IF(G$70="","",G91-G93) -> 0 | H95: =IF(H$70="","",H91-H93) -> 0 | I95: 0 | J95: 0 | K95: 0 | L95: 0 | M95: 0 | N95: 0 | O95: 0 | P95: 0 | Q95: 0 | R95: 0 | S95: 0 | T95: 0 | U95: 0 | V95: 0 | W95: 0 | X95: 0 | Y95: 0 | Z95: 0 | AA95: 0 | AB95: 0 | AC95: 0 | AD95: 10686.06419 | AE95: 42416.04872 | AF95: 74966.41993 | AG95: 107648.304 | AH95: 121982.4117 | AI95: 121982.4117 | AJ95: 121448.5576 | AK95: 121448.5576 | AL95: 125347.1169 | AM95: 125347.1169 | AN95: 125347.1169 | AO95: 125347.1169 | AP95: 121037.2107 | AQ95: 121037.2107 | AR95: 125208.0108 | AS95: 125208.0108 | AT95: 125208.0108 | BT95: =IF(BT$70="","",BT91-BT93) ->  | EF95: =IF(EF$70="","",EF91-EF93) -> 
B97: MONTHLY PROPERTY-LEVEL CASH FLOWS | G97: =+G70 -> 0 | H97: =+H70 -> 1 | I97: 2 | J97: 3 | K97: 4 | L97: 5 | M97: 6 | N97: 7 | O97: 8 | P97: 9 | Q97: 10 | R97: 11 | S97: 12 | T97: 13 | U97: 14 | V97: 15 | W97: 16 | X97: 17 | Y97: 18 | Z97: 19 | AA97: 20 | AB97: 21 | AC97: 22 | AD97: 23 | AE97: 24 | AF97: 25 | AG97: 26 | AH97: 27 | AI97: 28 | AJ97: 29 | AK97: 30 | AL97: 31 | AM97: 32 | AN97: 33 | AO97: 34 | AP97: 35 | AQ97: 36 | AR97: 37 | AS97: 38 | AT97: 39 | BT97: =+BT70 ->  | EF97: =+EF70 -> 
B99: Net Unlevered Cash Flow | G99: =IF(G$97="","",Underwriting!L240) -> -553494.8696 | H99: =IF(H$97="","",Underwriting!M240) -> -26127.16457 | I99: =IF(I$97="","",Underwriting!N240) -> -35995.16457 | J99: =IF(J$97="","",Underwriting!O240) -> -97787.83123 | K99: =IF(K$97="","",Underwriting!P240) -> -205468.3646 | L99: =IF(L$97="","",Underwriting!Q240) -> -869448.8996 | M99: =IF(M$97="","",Underwriting!R240) -> -992104.4049 | N99: =IF(N$97="","",Underwriting!S240) -> -808053.5097 | O99: =IF(O$97="","",Underwriting!T240) -> -986318.1184 | P99: =IF(P$97="","",Underwriting!U240) -> -1431536.663 | Q99: =IF(Q$97="","",Underwriting!V240) -> -1406388.302 | R99: =IF(R$97="","",Underwriting!W240) -> -1610493.566 | S99: =IF(S$97="","",Underwriting!X240) -> -1764287.849 | T99: =IF(T$97="","",Underwriting!Y240) -> -1842251.34 | U99: =IF(U$97="","",Underwriting!Z240) -> -1842251.34 | V99: =IF(V$97="","",Underwriting!AA240) -> -1759492.099 | W99: =IF(W$97="","",Underwriting!AB240) -> -1605697.816 | X99: =IF(X$97="","",Underwriting!AC240) -> -1402113.385 | Y99: =IF(Y$97="","",Underwriting!AD240) -> -1223244.746 | Z99: =IF(Z$97="","",Underwriting!AE240) -> -993346.7518 | AA99: =IF(AA$97="","",Underwriting!AF240) -> -782617.143 | AB99: =IF(AB$97="","",Underwriting!AG240) -> -631299.7049 | AC99: =IF(AC$97="","",Underwriting!AH240) -> -489763.5329 | AD99: =IF(AD$97="","",Underwriting!AI240) -> -5813.935809 | AE99: =IF(AE$97="","",Underwriting!AJ240) -> 25916.04872 | AF99: =IF(AF$97="","",Underwriting!AK240) -> 58466.41993 | AG99: =IF(AG$97="","",Underwriting!AL240) -> 91148.30399 | AH99: =IF(AH$97="","",Underwriting!AM240) -> 121982.4117 | AI99: =IF(AI$97="","",Underwriting!AN240) -> 121982.4117 | AJ99: =IF(AJ$97="","",Underwriting!AO240) -> 121448.5576 | AK99: =IF(AK$97="","",Underwriting!AP240) -> 121448.5576 | AL99: =IF(AL$97="","",Underwriting!AQ240) -> 125347.1169 | AM99: =IF(AM$97="","",Underwriting!AR240) -> 125347.1169 | AN99: =IF(AN$97="","",Underwriting!AS240) -> 125347.1169 | AO99: =IF(AO$97="","",Underwriting!AT240) -> 125347.1169 | AP99: =IF(AP$97="","",Underwriting!AU240) -> 121037.2107 | AQ99: =IF(AQ$97="","",Underwriting!AV240) -> 121037.2107 | AR99: =IF(AR$97="","",Underwriting!AW240) -> 125208.0108 | AS99: =IF(AS$97="","",Underwriting!AX240) -> 125208.0108 | AT99: =IF(AT$97="","",Underwriting!AY240) -> 28972852.17 | AU99: =IF(AU$97="","",Underwriting!AZ240) ->  | AV99: =IF(AV$97="","",Underwriting!BA240) ->  | AW99: =IF(AW$97="","",Underwriting!BB240) ->  | AX99: =IF(AX$97="","",Underwriting!BC240) ->  | AY99: =IF(AY$97="","",Underwriting!BD240) ->  | AZ99: =IF(AZ$97="","",Underwriting!BE240) ->  | BA99: =IF(BA$97="","",Underwriting!BF240) ->  | BB99: =IF(BB$97="","",Underwriting!BG240) ->  | BC99: =IF(BC$97="","",Underwriting!BH240) ->  | BD99: =IF(BD$97="","",Underwriting!BI240) ->  | BE99: =IF(BE$97="","",Underwriting!BJ240) ->  | BF99: =IF(BF$97="","",Underwriting!BK240) ->  | BG99: =IF(BG$97="","",Underwriting!BL240) ->  | BH99: =IF(BH$97="","",Underwriting!BM240) ->  | BI99: =IF(BI$97="","",Underwriting!BN240) ->  | BJ99: =IF(BJ$97="","",Underwriting!BO240) ->  | BK99: =IF(BK$97="","",Underwriting!BP240) ->  | BL99: =IF(BL$97="","",Underwriting!BQ240) ->  | BM99: =IF(BM$97="","",Underwriting!BR240) ->  | BN99: =IF(BN$97="","",Underwriting!BS240) ->  | BO99: =IF(BO$97="","",Underwriting!BT240) ->  | BP99: =IF(BP$97="","",Underwriting!BU240) ->  | BQ99: =IF(BQ$97="","",Underwriting!BV240) ->  | BR99: =IF(BR$97="","",Underwriting!BW240) ->  | BS99: =IF(BS$97="","",Underwriting!BX240) ->  | BT99: =IF(BT$97="","",Underwriting!BY240) ->  | BU99: =IF(BU$97="","",Underwriting!BZ240) ->  | BV99: =IF(BV$97="","",Underwriting!CA240) ->  | BW99: =IF(BW$97="","",Underwriting!CB240) ->  | BX99: =IF(BX$97="","",Underwriting!CC240) ->  | BY99: =IF(BY$97="","",Underwriting!CD240) ->  | BZ99: =IF(BZ$97="","",Underwriting!CE240) ->  | CA99: =IF(CA$97="","",Underwriting!CF240) ->  | CB99: =IF(CB$97="","",Underwriting!CG240) ->  | CC99: =IF(CC$97="","",Underwriting!CH240) ->  | CD99: =IF(CD$97="","",Underwriting!CI240) ->  | CE99: =IF(CE$97="","",Underwriting!CJ240) ->  | CF99: =IF(CF$97="","",Underwriting!CK240) ->  | CG99: =IF(CG$97="","",Underwriting!CL240) ->  | CH99: =IF(CH$97="","",Underwriting!CM240) ->  | CI99: =IF(CI$97="","",Underwriting!CN240) ->  | CJ99: =IF(CJ$97="","",Underwriting!CO240) ->  | CK99: =IF(CK$97="","",Underwriting!CP240) ->  | CL99: =IF(CL$97="","",Underwriting!CQ240) ->  | CM99: =IF(CM$97="","",Underwriting!CR240) ->  | CN99: =IF(CN$97="","",Underwriting!CS240) ->  | CO99: =IF(CO$97="","",Underwriting!CT240) ->  | CP99: =IF(CP$97="","",Underwriting!CU240) ->  | CQ99: =IF(CQ$97="","",Underwriting!CV240) ->  | CR99: =IF(CR$97="","",Underwriting!CW240) ->  | CS99: =IF(CS$97="","",Underwriting!CX240) ->  | CT99: =IF(CT$97="","",Underwriting!CY240) ->  | CU99: =IF(CU$97="","",Underwriting!CZ240) ->  | CV99: =IF(CV$97="","",Underwriting!DA240) ->  | CW99: =IF(CW$97="","",Underwriting!DB240) ->  | CX99: =IF(CX$97="","",Underwriting!DC240) ->  | CY99: =IF(CY$97="","",Underwriting!DD240) ->  | CZ99: =IF(CZ$97="","",Underwriting!DE240) ->  | DA99: =IF(DA$97="","",Underwriting!DF240) ->  | DB99: =IF(DB$97="","",Underwriting!DG240) ->  | DC99: =IF(DC$97="","",Underwriting!DH240) ->  | DD99: =IF(DD$97="","",Underwriting!DI240) ->  | DE99: =IF(DE$97="","",Underwriting!DJ240) ->  | DF99: =IF(DF$97="","",Underwriting!DK240) ->  | DG99: =IF(DG$97="","",Underwriting!DL240) ->  | DH99: =IF(DH$97="","",Underwriting!DM240) ->  | DI99: =IF(DI$97="","",Underwriting!DN240) ->  | DJ99: =IF(DJ$97="","",Underwriting!DO240) ->  | DK99: =IF(DK$97="","",Underwriting!DP240) ->  | DL99: =IF(DL$97="","",Underwriting!DQ240) ->  | DM99: =IF(DM$97="","",Underwriting!DR240) ->  | DN99: =IF(DN$97="","",Underwriting!DS240) ->  | DO99: =IF(DO$97="","",Underwriting!DT240) ->  | DP99: =IF(DP$97="","",Underwriting!DU240) ->  | DQ99: =IF(DQ$97="","",Underwriting!DV240) ->  | DR99: =IF(DR$97="","",Underwriting!DW240) ->  | DS99: =IF(DS$97="","",Underwriting!DX240) ->  | DT99: =IF(DT$97="","",Underwriting!DY240) ->  | DU99: =IF(DU$97="","",Underwriting!DZ240) ->  | DV99: =IF(DV$97="","",Underwriting!EA240) ->  | DW99: =IF(DW$97="","",Underwriting!EB240) ->  | DX99: =IF(DX$97="","",Underwriting!EC240) ->  | DY99: =IF(DY$97="","",Underwriting!ED240) ->  | DZ99: =IF(DZ$97="","",Underwriting!EE240) ->  | EA99: =IF(EA$97="","",Underwriting!EF240) ->  | EB99: =IF(EB$97="","",Underwriting!EG240) ->  | EC99: =IF(EC$97="","",Underwriting!EH240) ->  | ED99: =IF(ED$97="","",Underwriting!EI240) ->  | EE99: =IF(EE$97="","",Underwriting!EJ240) ->  | EF99: =IF(EF$97="","",Underwriting!EK240) ->  | EG99: =IF(EG$97="","",Underwriting!EL240) ->  | EH99: =IF(EH$97="","",Underwriting!EM240) ->  | EI99: =IF(EI$97="","",Underwriting!EN240) -> 
B100: Net Levered Cash Flow | G100: =IF(G$97="","",Underwriting!L241) -> -553494.8696 | H100: =IF(H$97="","",Underwriting!M241) -> -26127.16457 | I100: =IF(I$97="","",Underwriting!N241) -> -35995.16457 | J100: =IF(J$97="","",Underwriting!O241) -> -97787.83123 | K100: =IF(K$97="","",Underwriting!P241) -> -205468.3646 | L100: =IF(L$97="","",Underwriting!Q241) -> -869448.8996 | M100: =IF(M$97="","",Underwriting!R241) -> -992104.4049 | N100: =IF(N$97="","",Underwriting!S241) -> -808053.5097 | O100: =IF(O$97="","",Underwriting!T241) -> -986318.1184 | P100: =IF(P$97="","",Underwriting!U241) -> -1431536.663 | Q100: =IF(Q$97="","",Underwriting!V241) -> -1406388.302 | R100: =IF(R$97="","",Underwriting!W241) -> -987276.7088 | S100: =IF(S$97="","",Underwriting!X241) -> -2.328306437e-10 | T100: =IF(T$97="","",Underwriting!Y241) -> -2.328306437e-10 | U100: =IF(U$97="","",Underwriting!Z241) -> -2.328306437e-10 | V100: =IF(V$97="","",Underwriting!AA241) -> -2.328306437e-10 | W100: =IF(W$97="","",Underwriting!AB241) -> -2.328306437e-10 | X100: =IF(X$97="","",Underwriting!AC241) -> -2.328306437e-10 | Y100: =IF(Y$97="","",Underwriting!AD241) -> -2.328306437e-10 | Z100: =IF(Z$97="","",Underwriting!AE241) -> 0 | AA100: =IF(AA$97="","",Underwriting!AF241) -> 0 | AB100: =IF(AB$97="","",Underwriting!AG241) -> 0 | AC100: =IF(AC$97="","",Underwriting!AH241) -> 0 | AD100: =IF(AD$97="","",Underwriting!AI241) -> 7.275957614e-12 | AE100: =IF(AE$97="","",Underwriting!AJ241) -> 0 | AF100: =IF(AF$97="","",Underwriting!AK241) -> 5076.8529 | AG100: =IF(AG$97="","",Underwriting!AL241) -> 35431.27087 | AH100: =IF(AH$97="","",Underwriting!AM241) -> 49752.71622 | AI100: =IF(AI$97="","",Underwriting!AN241) -> 52140.44333 | AJ100: =IF(AJ$97="","",Underwriting!AO241) -> 49332.28593 | AK100: =IF(AK$97="","",Underwriting!AP241) -> 51698.57902 | AL100: =IF(AL$97="","",Underwriting!AQ241) -> 53305.79084 | AM100: =IF(AM$97="","",Underwriting!AR241) -> 53332.87314 | AN100: =IF(AN$97="","",Underwriting!AS241) -> 60321.85328 | AO100: =IF(AO$97="","",Underwriting!AT241) -> 53360.35765 | AP100: =IF(AP$97="","",Underwriting!AU241) -> 51377.66502 | AQ100: =IF(AQ$97="","",Underwriting!AV241) -> 49048.03813 | AR100: =IF(AR$97="","",Underwriting!AW241) -> 55521.47803 | AS100: =IF(AS$97="","",Underwriting!AX241) -> 53163.33299 | AT100: =IF(AT$97="","",Underwriting!AY241) -> 13331244.32 | AU100: =IF(AU$97="","",Underwriting!AZ241) ->  | AV100: =IF(AV$97="","",Underwriting!BA241) ->  | AW100: =IF(AW$97="","",Underwriting!BB241) ->  | AX100: =IF(AX$97="","",Underwriting!BC241) ->  | AY100: =IF(AY$97="","",Underwriting!BD241) ->  | AZ100: =IF(AZ$97="","",Underwriting!BE241) ->  | BA100: =IF(BA$97="","",Underwriting!BF241) ->  | BB100: =IF(BB$97="","",Underwriting!BG241) ->  | BC100: =IF(BC$97="","",Underwriting!BH241) ->  | BD100: =IF(BD$97="","",Underwriting!BI241) ->  | BE100: =IF(BE$97="","",Underwriting!BJ241) ->  | BF100: =IF(BF$97="","",Underwriting!BK241) ->  | BG100: =IF(BG$97="","",Underwriting!BL241) ->  | BH100: =IF(BH$97="","",Underwriting!BM241) ->  | BI100: =IF(BI$97="","",Underwriting!BN241) ->  | BJ100: =IF(BJ$97="","",Underwriting!BO241) ->  | BK100: =IF(BK$97="","",Underwriting!BP241) ->  | BL100: =IF(BL$97="","",Underwriting!BQ241) ->  | BM100: =IF(BM$97="","",Underwriting!BR241) ->  | BN100: =IF(BN$97="","",Underwriting!BS241) ->  | BO100: =IF(BO$97="","",Underwriting!BT241) ->  | BP100: =IF(BP$97="","",Underwriting!BU241) ->  | BQ100: =IF(BQ$97="","",Underwriting!BV241) ->  | BR100: =IF(BR$97="","",Underwriting!BW241) ->  | BS100: =IF(BS$97="","",Underwriting!BX241) ->  | BT100: =IF(BT$97="","",Underwriting!BY241) ->  | BU100: =IF(BU$97="","",Underwriting!BZ241) ->  | BV100: =IF(BV$97="","",Underwriting!CA241) ->  | BW100: =IF(BW$97="","",Underwriting!CB241) ->  | BX100: =IF(BX$97="","",Underwriting!CC241) ->  | BY100: =IF(BY$97="","",Underwriting!CD241) ->  | BZ100: =IF(BZ$97="","",Underwriting!CE241) ->  | CA100: =IF(CA$97="","",Underwriting!CF241) ->  | CB100: =IF(CB$97="","",Underwriting!CG241) ->  | CC100: =IF(CC$97="","",Underwriting!CH241) ->  | CD100: =IF(CD$97="","",Underwriting!CI241) ->  | CE100: =IF(CE$97="","",Underwriting!CJ241) ->  | CF100: =IF(CF$97="","",Underwriting!CK241) ->  | CG100: =IF(CG$97="","",Underwriting!CL241) ->  | CH100: =IF(CH$97="","",Underwriting!CM241) ->  | CI100: =IF(CI$97="","",Underwriting!CN241) ->  | CJ100: =IF(CJ$97="","",Underwriting!CO241) ->  | CK100: =IF(CK$97="","",Underwriting!CP241) ->  | CL100: =IF(CL$97="","",Underwriting!CQ241) ->  | CM100: =IF(CM$97="","",Underwriting!CR241) ->  | CN100: =IF(CN$97="","",Underwriting!CS241) ->  | CO100: =IF(CO$97="","",Underwriting!CT241) ->  | CP100: =IF(CP$97="","",Underwriting!CU241) ->  | CQ100: =IF(CQ$97="","",Underwriting!CV241) ->  | CR100: =IF(CR$97="","",Underwriting!CW241) ->  | CS100: =IF(CS$97="","",Underwriting!CX241) ->  | CT100: =IF(CT$97="","",Underwriting!CY241) ->  | CU100: =IF(CU$97="","",Underwriting!CZ241) ->  | CV100: =IF(CV$97="","",Underwriting!DA241) ->  | CW100: =IF(CW$97="","",Underwriting!DB241) ->  | CX100: =IF(CX$97="","",Underwriting!DC241) ->  | CY100: =IF(CY$97="","",Underwriting!DD241) ->  | CZ100: =IF(CZ$97="","",Underwriting!DE241) ->  | DA100: =IF(DA$97="","",Underwriting!DF241) ->  | DB100: =IF(DB$97="","",Underwriting!DG241) ->  | DC100: =IF(DC$97="","",Underwriting!DH241) ->  | DD100: =IF(DD$97="","",Underwriting!DI241) ->  | DE100: =IF(DE$97="","",Underwriting!DJ241) ->  | DF100: =IF(DF$97="","",Underwriting!DK241) ->  | DG100: =IF(DG$97="","",Underwriting!DL241) ->  | DH100: =IF(DH$97="","",Underwriting!DM241) ->  | DI100: =IF(DI$97="","",Underwriting!DN241) ->  | DJ100: =IF(DJ$97="","",Underwriting!DO241) ->  | DK100: =IF(DK$97="","",Underwriting!DP241) ->  | DL100: =IF(DL$97="","",Underwriting!DQ241) ->  | DM100: =IF(DM$97="","",Underwriting!DR241) ->  | DN100: =IF(DN$97="","",Underwriting!DS241) ->  | DO100: =IF(DO$97="","",Underwriting!DT241) ->  | DP100: =IF(DP$97="","",Underwriting!DU241) ->  | DQ100: =IF(DQ$97="","",Underwriting!DV241) ->  | DR100: =IF(DR$97="","",Underwriting!DW241) ->  | DS100: =IF(DS$97="","",Underwriting!DX241) ->  | DT100: =IF(DT$97="","",Underwriting!DY241) ->  | DU100: =IF(DU$97="","",Underwriting!DZ241) ->  | DV100: =IF(DV$97="","",Underwriting!EA241) ->  | DW100: =IF(DW$97="","",Underwriting!EB241) ->  | DX100: =IF(DX$97="","",Underwriting!EC241) ->  | DY100: =IF(DY$97="","",Underwriting!ED241) ->  | DZ100: =IF(DZ$97="","",Underwriting!EE241) ->  | EA100: =IF(EA$97="","",Underwriting!EF241) ->  | EB100: =IF(EB$97="","",Underwriting!EG241) ->  | EC100: =IF(EC$97="","",Underwriting!EH241) ->  | ED100: =IF(ED$97="","",Underwriting!EI241) ->  | EE100: =IF(EE$97="","",Underwriting!EJ241) ->  | EF100: =IF(EF$97="","",Underwriting!EK241) ->  | EG100: =IF(EG$97="","",Underwriting!EL241) ->  | EH100: =IF(EH$97="","",Underwriting!EM241) ->  | EI100: =IF(EI$97="","",Underwriting!EN241) -> 
B102: ='Partnership Returns'!B20 -> Limited Partner (LP) Returns | G102: ='Partnership Returns'!F28 -> -498145.3826 | H102: ='Partnership Returns'!G28 -> -23514.44811 | I102: ='Partnership Returns'!H28 -> -32395.64811 | J102: ='Partnership Returns'!I28 -> -88009.04811 | K102: ='Partnership Returns'!J28 -> -184921.5281 | L102: ='Partnership Returns'!K28 -> -782504.0096 | M102: ='Partnership Returns'!L28 -> -892893.9644 | N102: ='Partnership Returns'!M28 -> -727248.1587 | O102: ='Partnership Returns'!N28 -> -887686.3066 | P102: ='Partnership Returns'!O28 -> -1288382.996 | Q102: ='Partnership Returns'!P28 -> -1265749.471 | R102: ='Partnership Returns'!Q28 -> -888549.0379 | S102: ='Partnership Returns'!R28 -> -2.095475793e-10 | T102: ='Partnership Returns'!S28 -> -2.095475793e-10 | U102: ='Partnership Returns'!T28 -> -2.095475793e-10 | V102: ='Partnership Returns'!U28 -> -2.095475793e-10 | W102: ='Partnership Returns'!V28 -> -2.095475793e-10 | X102: ='Partnership Returns'!W28 -> -2.095475793e-10 | Y102: ='Partnership Returns'!X28 -> -2.095475793e-10 | Z102: ='Partnership Returns'!Y28 -> 0 | AA102: ='Partnership Returns'!Z28 -> 0 | AB102: ='Partnership Returns'!AA28 -> 0 | AC102: ='Partnership Returns'!AB28 -> 0 | AD102: ='Partnership Returns'!AC28 -> 6.548361853e-12 | AE102: ='Partnership Returns'!AD28 -> 0 | AF102: ='Partnership Returns'!AE28 -> 4569.16761 | AG102: ='Partnership Returns'!AF28 -> 31888.14379 | AH102: ='Partnership Returns'!AG28 -> 44777.44459 | AI102: ='Partnership Returns'!AH28 -> 46926.399 | AJ102: ='Partnership Returns'!AI28 -> 44399.05734 | AK102: ='Partnership Returns'!AJ28 -> 46528.72112 | AL102: ='Partnership Returns'!AK28 -> 47975.21176 | AM102: ='Partnership Returns'!AL28 -> 47999.58583 | AN102: ='Partnership Returns'!AM28 -> 54289.66795 | AO102: ='Partnership Returns'!AN28 -> 48024.32189 | AP102: ='Partnership Returns'!AO28 -> 46239.89851 | AQ102: ='Partnership Returns'!AP28 -> 44143.23431 | AR102: ='Partnership Returns'!AQ28 -> 49969.33023 | AS102: ='Partnership Returns'!AR28 -> 47846.99969 | AT102: ='Partnership Returns'!AS28 -> 11998119.89 | AU102: ='Partnership Returns'!AT28 ->  | AV102: ='Partnership Returns'!AU28 ->  | AW102: ='Partnership Returns'!AV28 ->  | AX102: ='Partnership Returns'!AW28 ->  | AY102: ='Partnership Returns'!AX28 ->  | AZ102: ='Partnership Returns'!AY28 ->  | BA102: ='Partnership Returns'!AZ28 ->  | BB102: ='Partnership Returns'!BA28 ->  | BC102: ='Partnership Returns'!BB28 ->  | BD102: ='Partnership Returns'!BC28 ->  | BE102: ='Partnership Returns'!BD28 ->  | BF102: ='Partnership Returns'!BE28 ->  | BG102: ='Partnership Returns'!BF28 ->  | BH102: ='Partnership Returns'!BG28 ->  | BI102: ='Partnership Returns'!BH28 ->  | BJ102: ='Partnership Returns'!BI28 ->  | BK102: ='Partnership Returns'!BJ28 ->  | BL102: ='Partnership Returns'!BK28 ->  | BM102: ='Partnership Returns'!BL28 ->  | BN102: ='Partnership Returns'!BM28 ->  | BO102: ='Partnership Returns'!BN28 ->  | BP102: ='Partnership Returns'!BO28 ->  | BQ102: ='Partnership Returns'!BP28 ->  | BR102: ='Partnership Returns'!BQ28 ->  | BS102: ='Partnership Returns'!BR28 ->  | BT102: ='Partnership Returns'!BS28 ->  | BU102: ='Partnership Returns'!BT28 ->  | BV102: ='Partnership Returns'!BU28 ->  | BW102: ='Partnership Returns'!BV28 ->  | BX102: ='Partnership Returns'!BW28 ->  | BY102: ='Partnership Returns'!BX28 ->  | BZ102: ='Partnership Returns'!BY28 ->  | CA102: ='Partnership Returns'!BZ28 ->  | CB102: ='Partnership Returns'!CA28 ->  | CC102: ='Partnership Returns'!CB28 ->  | CD102: ='Partnership Returns'!CC28 ->  | CE102: ='Partnership Returns'!CD28 ->  | CF102: ='Partnership Returns'!CE28 ->  | CG102: ='Partnership Returns'!CF28 ->  | CH102: ='Partnership Returns'!CG28 ->  | CI102: ='Partnership Returns'!CH28 ->  | CJ102: ='Partnership Returns'!CI28 ->  | CK102: ='Partnership Returns'!CJ28 ->  | CL102: ='Partnership Returns'!CK28 ->  | CM102: ='Partnership Returns'!CL28 ->  | CN102: ='Partnership Returns'!CM28 ->  | CO102: ='Partnership Returns'!CN28 ->  | CP102: ='Partnership Returns'!CO28 ->  | CQ102: ='Partnership Returns'!CP28 ->  | CR102: ='Partnership Returns'!CQ28 ->  | CS102: ='Partnership Returns'!CR28 ->  | CT102: ='Partnership Returns'!CS28 ->  | CU102: ='Partnership Returns'!CT28 ->  | CV102: ='Partnership Returns'!CU28 ->  | CW102: ='Partnership Returns'!CV28 ->  | CX102: ='Partnership Returns'!CW28 ->  | CY102: ='Partnership Returns'!CX28 ->  | CZ102: ='Partnership Returns'!CY28 ->  | DA102: ='Partnership Returns'!CZ28 ->  | DB102: ='Partnership Returns'!DA28 ->  | DC102: ='Partnership Returns'!DB28 ->  | DD102: ='Partnership Returns'!DC28 ->  | DE102: ='Partnership Returns'!DD28 ->  | DF102: ='Partnership Returns'!DE28 ->  | DG102: ='Partnership Returns'!DF28 ->  | DH102: ='Partnership Returns'!DG28 ->  | DI102: ='Partnership Returns'!DH28 ->  | DJ102: ='Partnership Returns'!DI28 ->  | DK102: ='Partnership Returns'!DJ28 ->  | DL102: ='Partnership Returns'!DK28 ->  | DM102: ='Partnership Returns'!DL28 ->  | DN102: ='Partnership Returns'!DM28 ->  | DO102: ='Partnership Returns'!DN28 ->  | DP102: ='Partnership Returns'!DO28 ->  | DQ102: ='Partnership Returns'!DP28 ->  | DR102: ='Partnership Returns'!DQ28 ->  | DS102: ='Partnership Returns'!DR28 ->  | DT102: ='Partnership Returns'!DS28 ->  | DU102: ='Partnership Returns'!DT28 ->  | DV102: ='Partnership Returns'!DU28 ->  | DW102: ='Partnership Returns'!DV28 ->  | DX102: ='Partnership Returns'!DW28 -> 0 | DY102: ='Partnership Returns'!DX28 -> 0 | DZ102: ='Partnership Returns'!DY28 -> 0 | EA102: ='Partnership Returns'!DZ28 -> 0 | EB102: ='Partnership Returns'!EA28 -> 0 | EC102: ='Partnership Returns'!EB28 -> 0 | ED102: ='Partnership Returns'!EC28 -> 0 | EE102: ='Partnership Returns'!ED28 -> 0 | EF102: ='Partnership Returns'!EE28 -> 0 | EG102: ='Partnership Returns'!EF28 -> 0 | EH102: ='Partnership Returns'!EG28 -> 0 | EI102: ='Partnership Returns'!EH28 -> 0
B103: ='Partnership Returns'!B31 -> RISE (GP) Returns | G103: ='Partnership Returns'!F40 -> -55349.48696 | H103: ='Partnership Returns'!G40 -> -2612.716457 | I103: ='Partnership Returns'!H40 -> -3599.516457 | J103: ='Partnership Returns'!I40 -> -9778.783123 | K103: ='Partnership Returns'!J40 -> -20546.83646 | L103: ='Partnership Returns'!K40 -> -86944.88996 | M103: ='Partnership Returns'!L40 -> -99210.44049 | N103: ='Partnership Returns'!M40 -> -80805.35097 | O103: ='Partnership Returns'!N40 -> -98631.81184 | P103: ='Partnership Returns'!O40 -> -143153.6663 | Q103: ='Partnership Returns'!P40 -> -140638.8302 | R103: ='Partnership Returns'!Q40 -> -98727.67088 | S103: ='Partnership Returns'!R40 -> -2.328306437e-11 | T103: ='Partnership Returns'!S40 -> -2.328306437e-11 | U103: ='Partnership Returns'!T40 -> -2.328306437e-11 | V103: ='Partnership Returns'!U40 -> -2.328306437e-11 | W103: ='Partnership Returns'!V40 -> -2.328306437e-11 | X103: ='Partnership Returns'!W40 -> -2.328306437e-11 | Y103: ='Partnership Returns'!X40 -> -2.328306437e-11 | Z103: ='Partnership Returns'!Y40 -> 0 | AA103: ='Partnership Returns'!Z40 -> 0 | AB103: ='Partnership Returns'!AA40 -> 0 | AC103: ='Partnership Returns'!AB40 -> 0 | AD103: ='Partnership Returns'!AC40 -> 7.275957614e-13 | AE103: ='Partnership Returns'!AD40 -> 0 | AF103: ='Partnership Returns'!AE40 -> 507.68529 | AG103: ='Partnership Returns'!AF40 -> 3543.127087 | AH103: ='Partnership Returns'!AG40 -> 4975.271622 | AI103: ='Partnership Returns'!AH40 -> 5214.044333 | AJ103: ='Partnership Returns'!AI40 -> 4933.228593 | AK103: ='Partnership Returns'!AJ40 -> 5169.857902 | AL103: ='Partnership Returns'!AK40 -> 5330.579084 | AM103: ='Partnership Returns'!AL40 -> 5333.287314 | AN103: ='Partnership Returns'!AM40 -> 6032.185328 | AO103: ='Partnership Returns'!AN40 -> 5336.035765 | AP103: ='Partnership Returns'!AO40 -> 5137.766502 | AQ103: ='Partnership Returns'!AP40 -> 4904.803813 | AR103: ='Partnership Returns'!AQ40 -> 5552.147803 | AS103: ='Partnership Returns'!AR40 -> 5316.333299 | AT103: ='Partnership Returns'!AS40 -> 1333124.432 | AU103: ='Partnership Returns'!AT40 ->  | AV103: ='Partnership Returns'!AU40 ->  | AW103: ='Partnership Returns'!AV40 ->  | AX103: ='Partnership Returns'!AW40 ->  | AY103: ='Partnership Returns'!AX40 ->  | AZ103: ='Partnership Returns'!AY40 ->  | BA103: ='Partnership Returns'!AZ40 ->  | BB103: ='Partnership Returns'!BA40 ->  | BC103: ='Partnership Returns'!BB40 ->  | BD103: ='Partnership Returns'!BC40 ->  | BE103: ='Partnership Returns'!BD40 ->  | BF103: ='Partnership Returns'!BE40 ->  | BG103: ='Partnership Returns'!BF40 ->  | BH103: ='Partnership Returns'!BG40 ->  | BI103: ='Partnership Returns'!BH40 ->  | BJ103: ='Partnership Returns'!BI40 ->  | BK103: ='Partnership Returns'!BJ40 ->  | BL103: ='Partnership Returns'!BK40 ->  | BM103: ='Partnership Returns'!BL40 ->  | BN103: ='Partnership Returns'!BM40 ->  | BO103: ='Partnership Returns'!BN40 ->  | BP103: ='Partnership Returns'!BO40 ->  | BQ103: ='Partnership Returns'!BP40 ->  | BR103: ='Partnership Returns'!BQ40 ->  | BS103: ='Partnership Returns'!BR40 ->  | BT103: ='Partnership Returns'!BS40 ->  | BU103: ='Partnership Returns'!BT40 ->  | BV103: ='Partnership Returns'!BU40 ->  | BW103: ='Partnership Returns'!BV40 ->  | BX103: ='Partnership Returns'!BW40 ->  | BY103: ='Partnership Returns'!BX40 ->  | BZ103: ='Partnership Returns'!BY40 ->  | CA103: ='Partnership Returns'!BZ40 ->  | CB103: ='Partnership Returns'!CA40 ->  | CC103: ='Partnership Returns'!CB40 ->  | CD103: ='Partnership Returns'!CC40 ->  | CE103: ='Partnership Returns'!CD40 ->  | CF103: ='Partnership Returns'!CE40 ->  | CG103: ='Partnership Returns'!CF40 ->  | CH103: ='Partnership Returns'!CG40 ->  | CI103: ='Partnership Returns'!CH40 ->  | CJ103: ='Partnership Returns'!CI40 ->  | CK103: ='Partnership Returns'!CJ40 ->  | CL103: ='Partnership Returns'!CK40 ->  | CM103: ='Partnership Returns'!CL40 ->  | CN103: ='Partnership Returns'!CM40 ->  | CO103: ='Partnership Returns'!CN40 ->  | CP103: ='Partnership Returns'!CO40 ->  | CQ103: ='Partnership Returns'!CP40 ->  | CR103: ='Partnership Returns'!CQ40 ->  | CS103: ='Partnership Returns'!CR40 ->  | CT103: ='Partnership Returns'!CS40 ->  | CU103: ='Partnership Returns'!CT40 ->  | CV103: ='Partnership Returns'!CU40 ->  | CW103: ='Partnership Returns'!CV40 ->  | CX103: ='Partnership Returns'!CW40 ->  | CY103: ='Partnership Returns'!CX40 ->  | CZ103: ='Partnership Returns'!CY40 ->  | DA103: ='Partnership Returns'!CZ40 ->  | DB103: ='Partnership Returns'!DA40 ->  | DC103: ='Partnership Returns'!DB40 ->  | DD103: ='Partnership Returns'!DC40 ->  | DE103: ='Partnership Returns'!DD40 ->  | DF103: ='Partnership Returns'!DE40 ->  | DG103: ='Partnership Returns'!DF40 ->  | DH103: ='Partnership Returns'!DG40 ->  | DI103: ='Partnership Returns'!DH40 ->  | DJ103: ='Partnership Returns'!DI40 ->  | DK103: ='Partnership Returns'!DJ40 ->  | DL103: ='Partnership Returns'!DK40 ->  | DM103: ='Partnership Returns'!DL40 ->  | DN103: ='Partnership Returns'!DM40 ->  | DO103: ='Partnership Returns'!DN40 ->  | DP103: ='Partnership Returns'!DO40 ->  | DQ103: ='Partnership Returns'!DP40 ->  | DR103: ='Partnership Returns'!DQ40 ->  | DS103: ='Partnership Returns'!DR40 ->  | DT103: ='Partnership Returns'!DS40 ->  | DU103: ='Partnership Returns'!DT40 ->  | DV103: ='Partnership Returns'!DU40 ->  | DW103: ='Partnership Returns'!DV40 ->  | DX103: ='Partnership Returns'!DW40 -> 0 | DY103: ='Partnership Returns'!DX40 -> 0 | DZ103: ='Partnership Returns'!DY40 -> 0 | EA103: ='Partnership Returns'!DZ40 -> 0 | EB103: ='Partnership Returns'!EA40 -> 0 | EC103: ='Partnership Returns'!EB40 -> 0 | ED103: ='Partnership Returns'!EC40 -> 0 | EE103: ='Partnership Returns'!ED40 -> 0 | EF103: ='Partnership Returns'!EE40 -> 0 | EG103: ='Partnership Returns'!EF40 -> 0 | EH103: ='Partnership Returns'!EG40 -> 0 | EI103: ='Partnership Returns'!EH40 -> 0

Sheet Underwriting
B2: =UPPER(Investment_Name) -> 123 CAMBRIDGE STREET | I2: RISE | K2: Analysis Year | L2: =ROUNDUP(L3/12,0) -> 0 | M2: =ROUNDUP(M3/12,0) -> 1 | N2: =ROUNDUP(N3/12,0) -> 1 | O2: 1 | P2: 1 | Q2: 1 | R2: 1 | S2: 1 | T2: 1 | U2: 1 | V2: 1 | W2: 1 | X2: 1 | Y2: 2 | Z2: 2 | AA2: 2 | AB2: 2 | AC2: 2 | AD2: 2 | AE2: 2 | AF2: 2 | AG2: 2 | AH2: 2 | AI2: 2 | AJ2: 2 | AK2: 3 | AL2: 3 | AM2: 3 | AN2: 3 | AO2: 3 | AP2: 3 | AQ2: 3 | AR2: 3 | AS2: 3 | AT2: 3 | AU2: 3 | AV2: 3 | AW2: 4 | AX2: 4 | AY2: 4 | AZ2: 4 | BA2: 4 | BB2: 4 | BC2: 4 | BD2: 4 | BE2: 4 | BF2: 4 | BG2: 4 | BH2: 4 | BI2: 5 | BJ2: 5 | BK2: 5 | BL2: 5 | BM2: 5 | BN2: 5 | BO2: 5 | BP2: 5 | BQ2: 5 | BR2: 5 | BS2: 5 | BT2: 5 | BU2: 6 | BV2: 6 | BW2: 6 | BX2: 6 | BY2: 6 | BZ2: =ROUNDUP(BZ3/12,0) -> 6 | CA2: 6 | CB2: 6 | CC2: 6 | CD2: 6 | CE2: 6 | CF2: 6 | CG2: 7 | CH2: 7 | CI2: 7 | CJ2: 7 | CK2: 7 | CL2: 7 | CM2: 7 | CN2: 7 | CO2: 7 | CP2: 7 | CQ2: 7 | CR2: 7 | CS2: 8 | CT2: 8 | CU2: 8 | CV2: 8 | CW2: 8 | CX2: 8 | CY2: 8 | CZ2: 8 | DA2: 8 | DB2: 8 | DC2: 8 | DD2: 8 | DE2: 9 | DF2: 9 | DG2: 9 | DH2: 9 | DI2: 9 | DJ2: 9 | DK2: 9 | DL2: 9 | DM2: 9 | DN2: 9 | DO2: 9 | DP2: 9 | DQ2: 10 | DR2: 10 | DS2: 10 | DT2: 10 | DU2: 10 | DV2: 10 | DW2: 10 | DX2: 10 | DY2: 10 | DZ2: 10 | EA2: 10 | EB2: 10 | EC2: 11 | ED2: 11 | EE2: 11 | EF2: 11 | EG2: 11 | EH2: 11 | EI2: 11 | EJ2: 11 | EK2: 11 | EL2: =ROUNDUP(EL3/12,0) -> 11 | EM2: =ROUNDUP(EM3/12,0) -> 11 | EN2: =ROUNDUP(EN3/12,0) -> 11 | EV2: =L2 -> 0 | EW2: 1 | EX2: 1 | EY2: 1 | EZ2: 1 | FA2: 1 | FB2: 1 | FC2: 1 | FD2: 1 | FE2: 1 | FF2: =V2 -> 1 | FG2: 1 | FH2: 1 | FI2: 2 | FJ2: 2 | FK2: 2 | FL2: 2 | FM2: 2 | FN2: 2 | FO2: 2 | FP2: =AF2 -> 2 | FQ2: 2 | FR2: 2 | FS2: 2 | FT2: 2 | FU2: 3 | FV2: 3 | FW2: 3 | FX2: 3 | FY2: 3 | FZ2: =AP2 -> 3 | GA2: 3 | GB2: 3 | GC2: 3 | GD2: 3 | GE2: 3 | GF2: 3 | GG2: 4 | GH2: 4 | GI2: 4 | GJ2: =AZ2 -> 4 | GK2: 4 | GL2: 4 | GM2: 4 | GN2: 4 | GO2: 4 | GP2: 4 | GQ2: 4 | GR2: 4 | GS2: 5 | GT2: =BJ2 -> 5 | GU2: 5 | GV2: 5 | GW2: 5 | GX2: 5 | GY2: 5 | GZ2: 5 | HA2: 5 | HB2: 5 | HC2: 5 | HD2: =BT2 -> 5 | HE2: 6 | HF2: 6 | HG2: 6 | HH2: 6 | HI2: 6 | HJ2: 6 | HK2: 6 | HL2: 6 | HM2: 6 | HN2: =CD2 -> 6 | HO2: 6 | HP2: 6 | HQ2: 7 | HR2: 7 | HS2: 7 | HT2: 7 | HU2: 7 | HV2: 7 | HW2: 7 | HX2: =CN2 -> 7 | HY2: 7 | HZ2: 7 | IA2: 7 | IB2: 7 | IC2: 8 | ID2: 8 | IE2: 8 | IF2: 8 | IG2: 8 | IH2: =CX2 -> 8 | II2: 8 | IJ2: 8 | IK2: 8 | IL2: 8 | IM2: 8 | IN2: 8 | IO2: 9 | IP2: 9 | IQ2: 9 | IR2: =DH2 -> 9 | IS2: 9 | IT2: 9 | IU2: 9 | IV2: 9 | IW2: 9 | IX2: 9 | IY2: 9 | IZ2: 9 | JA2: 10 | JB2: =DR2 -> 10 | JC2: 10 | JD2: 10 | JE2: 10 | JF2: 10 | JG2: 10 | JH2: 10 | JI2: 10 | JJ2: 10 | JK2: 10 | JL2: =EB2 -> 10 | JM2: 11 | JN2: 11 | JO2: 11 | JP2: 11 | JQ2: 11 | JR2: 11 | JS2: 11 | JT2: 11 | JU2: 11 | JV2: =EL2 -> 11 | JW2: 11 | JX2: 11
K3: Analysis Month | L3: 0 | M3: =L3+1 -> 1 | N3: =M3+1 -> 2 | O3: 3 | P3: 4 | Q3: 5 | R3: 6 | S3: 7 | T3: 8 | U3: 9 | V3: 10 | W3: 11 | X3: 12 | Y3: 13 | Z3: 14 | AA3: 15 | AB3: 16 | AC3: 17 | AD3: 18 | AE3: 19 | AF3: 20 | AG3: 21 | AH3: 22 | AI3: 23 | AJ3: 24 | AK3: 25 | AL3: 26 | AM3: 27 | AN3: 28 | AO3: 29 | AP3: 30 | AQ3: 31 | AR3: 32 | AS3: 33 | AT3: 34 | AU3: 35 | AV3: 36 | AW3: 37 | AX3: 38 | AY3: 39 | AZ3: 40 | BA3: 41 | BB3: 42 | BC3: 43 | BD3: 44 | BE3: 45 | BF3: 46 | BG3: 47 | BH3: 48 | BI3: 49 | BJ3: 50 | BK3: 51 | BL3: 52 | BM3: 53 | BN3: 54 | BO3: 55 | BP3: 56 | BQ3: 57 | BR3: 58 | BS3: 59 | BT3: 60 | BU3: 61 | BV3: 62 | BW3: 63 | BX3: 64 | BY3: 65 | BZ3: =BY3+1 -> 66 | CA3: 67 | CB3: 68 | CC3: 69 | CD3: 70 | CE3: 71 | CF3: 72 | CG3: 73 | CH3: 74 | CI3: 75 | CJ3: 76 | CK3: 77 | CL3: 78 | CM3: 79 | CN3: 80 | CO3: 81 | CP3: 82 | CQ3: 83 | CR3: 84 | CS3: 85 | CT3: 86 | CU3: 87 | CV3: 88 | CW3: 89 | CX3: 90 | CY3: 91 | CZ3: 92 | DA3: 93 | DB3: 94 | DC3: 95 | DD3: 96 | DE3: 97 | DF3: 98 | DG3: 99 | DH3: 100 | DI3: 101 | DJ3: 102 | DK3: 103 | DL3: 104 | DM3: 105 | DN3: 106 | DO3: 107 | DP3: 108 | DQ3: 109 | DR3: 110 | DS3: 111 | DT3: 112 | DU3: 113 | DV3: 114 | DW3: 115 | DX3: 116 | DY3: 117 | DZ3: 118 | EA3: 119 | EB3: 120 | EC3: 121 | ED3: 122 | EE3: 123 | EF3: 124 | EG3: 125 | EH3: 126 | EI3: 127 | EJ3: 128 | EK3: 129 | EL3: =EK3+1 -> 130 | EM3: =EL3+1 -> 131 | EN3: =EM3+1 -> 132 | EV3: 0 | EW3: 1 | EX3: 2 | EY3: 3 | EZ3: 4 | FA3: 5 | FB3: 6 | FC3: 7 | FD3: 8 | FE3: 9 | FF3: 10 | FG3: 11 | FH3: 12 | FI3: 13 | FJ3: 14 | FK3: 15 | FL3: 16 | FM3: 17 | FN3: 18 | FO3: 19 | FP3: 20 | FQ3: 21 | FR3: 22 | FS3: 23 | FT3: 24 | FU3: 25 | FV3: 26 | FW3: 27 | FX3: 28 | FY3: 29 | FZ3: 30 | GA3: 31 | GB3: 32 | GC3: 33 | GD3: 34 | GE3: 35 | GF3: 36 | GG3: 37 | GH3: 38 | GI3: 39 | GJ3: 40 | GK3: 41 | GL3: 42 | GM3: 43 | GN3: 44 | GO3: 45 | GP3: 46 | GQ3: 47 | GR3: 48 | GS3: 49 | GT3: 50 | GU3: 51 | GV3: 52 | GW3: 53 | GX3: 54 | GY3: 55 | GZ3: 56 | HA3: 57 | HB3: 58 | HC3: 59 | HD3: 60 | HE3: 61 | HF3: 62 | HG3: 63 | HH3: 64 | HI3: 65 | HJ3: 66 | HK3: 67 | HL3: 68 | HM3: 69 | HN3: 70 | HO3: 71 | HP3: 72 | HQ3: 73 | HR3: 74 | HS3: 75 | HT3: 76 | HU3: 77 | HV3: 78 | HW3: 79 | HX3: 80 | HY3: 81 | HZ3: 82 | IA3: 83 | IB3: 84 | IC3: 85 | ID3: 86 | IE3: 87 | IF3: 88 | IG3: 89 | IH3: 90 | II3: 91 | IJ3: 92 | IK3: 93 | IL3: 94 | IM3: 95 | IN3: 96 | IO3: 97 | IP3: 98 | IQ3: 99 | IR3: 100 | IS3: 101 | IT3: 102 | IU3: 103 | IV3: 104 | IW3: 105 | IX3: 106 | IY3: 107 | IZ3: 108 | JA3: 109 | JB3: 110 | JC3: 111 | JD3: 112 | JE3: 113 | JF3: 114 | JG3: 115 | JH3: 116 | JI3: 117 | JJ3: 118 | JK3: 119 | JL3: 120 | JM3: 121 | JN3: 122 | JO3: 123 | JP3: 124 | JQ3: 125 | JR3: 126 | JS3: 127 | JT3: 128 | JU3: 129 | JV3: 130 | JW3: 131 | JX3: 132
C5: Levered IRR: | D5: =H241 -> 0.2167340815 | E5: Levered EMx: | F5: =G241 -> 1.667155697 | H5: Yield-on-Cost (Untrended): | I5: =G244 -> 0.05452525326 | EM5: Hide Calc | EN5: Show Calc | EO5: 1
B8: INVESTMENT DESCRIPTION | I8: SF
B9: Name | E9: 123 Cambridge Street | F9: County | I9: Suffolk
B10: Address | E10: 123-145 Cambridge Street | F10: State | I10: MA
B11: City/Neighborhood | E11: Charlestown | F11: Zip Code | I11: 2129
B13: Analysis Begin Date | E13: 2023-06-01 | F13: Sale Date | H13: =Timing_Reversion_Month -> 39 | I13: =EDATE(E13,H13-1) -> 2026-08-01
B15: Land Area | C15: 13042 | D15: =Unit_Type -> SF | E15: =C15/43560 -> 0.2994031221 | F15: Buildings | I15: 1 | J15: =VLOOKUP(I15,Data!L3:M33,2,FALSE) -> one
B16: Units/Acre | E16: =I17/E15 -> 173.6788836 | F16: Avg. # of Stories | I16: 6 | J16: =VLOOKUP(I16,Data!L4:M33,2,FALSE) -> six
B17: FAR | E17: =E18/C15 -> 4.661861678 | F17: Units | I17: =C124 -> 52
B18: ="Gross Buildable (GBA - "&Unit_Type&")" -> Gross Buildable (GBA - SF) | E18: 60800 | F18: ="Net Rentable (NRA - "&Unit_Type&")" -> Net Rentable (NRA - SF) | H18: =TEXT(Units_SF_M2/E18,"0.0%")&" of GBA" -> 65.5% of GBA | I18: =IF(Retail_Income_Include?=0,(I17*D124),(I17*D124)+Units_Retail) -> 39808
B19: Total Parking Spaces | E19: =SUM(I19:I20) -> 14 | F19: Structured Parking Spaces | I19: 14
B20: Parking Ratio | E20: =E19/I17 -> 0.2692307692 | F20: Surface Parking Spaces | I20: 0 | L20: ='Development Budget'!T10 -> Incurred | M20: ='Development Budget'!U10 -> Pre-Construction | N20: ='Development Budget'!V10 -> Pre-Construction | O20: ='Development Budget'!W10 -> Pre-Construction | P20: ='Development Budget'!X10 -> Pre-Construction | Q20: ='Development Budget'!Y10 -> Construction | R20: ='Development Budget'!Z10 -> Construction | S20: ='Development Budget'!AA10 -> Construction | T20: ='Development Budget'!AB10 -> Construction | U20: ='Development Budget'!AC10 -> Construction | V20: ='Development Budget'!AD10 -> Construction | W20: ='Development Budget'!AE10 -> Construction | X20: ='Development Budget'!AF10 -> Construction | Y20: ='Development Budget'!AG10 -> Construction | Z20: ='Development Budget'!AH10 -> Construction | AA20: ='Development Budget'!AI10 -> Construction | AB20: ='Development Budget'!AJ10 -> Construction | AC20: ='Development Budget'!AK10 -> Construction | AD20: ='Development Budget'!AL10 -> Construction | AE20: ='Development Budget'!AM10 -> Construction | AF20: ='Development Budget'!AN10 -> Construction | AG20: ='Development Budget'!AO10 -> Construction | AH20: ='Development Budget'!AP10 -> Construction | AI20: ='Development Budget'!AQ10 -> Operation | AJ20: ='Development Budget'!AR10 -> Operation | AK20: ='Development Budget'!AS10 -> Operation | AL20: ='Development Budget'!AT10 -> Operation | AM20: ='Development Budget'!AU10 -> Operation | AN20: ='Development Budget'!AV10 -> Operation | AO20: ='Development Budget'!AW10 -> Operation | AP20: ='Development Budget'!AX10 -> Operation | AQ20: ='Development Budget'!AY10 -> Operation | AR20: ='Development Budget'!AZ10 -> Operation | AS20: ='Development Budget'!BA10 -> Operation | AT20: ='Development Budget'!BB10 -> Operation | AU20: ='Development Budget'!BC10 -> Operation | AV20: ='Development Budget'!BD10 -> Operation | AW20: ='Development Budget'!BE10 -> Operation | AX20: ='Development Budget'!BF10 -> Operation | AY20: ='Development Budget'!BG10 -> Operation | AZ20: ='Development Budget'!BH10 -> Operation | BA20: ='Development Budget'!BI10 -> Operation | BB20: ='Development Budget'!BJ10 -> Operation | BC20: ='Development Budget'!BK10 -> Operation | BD20: ='Development Budget'!BL10 -> Operation | BE20: ='Development Budget'!BM10 -> Operation | BF20: ='Development Budget'!BN10 -> Operation | BG20: ='Development Budget'!BO10 -> Operation | BH20: ='Development Budget'!BP10 -> Operation | BI20: ='Development Budget'!BQ10 -> Operation | BJ20: ='Development Budget'!BR10 -> Operation | BK20: ='Development Budget'!BS10 -> Operation | BL20: ='Development Budget'!BT10 -> Operation | BM20: ='Development Budget'!BU10 -> Operation | BN20: ='Development Budget'!BV10 -> Operation | BO20: ='Development Budget'!BW10 -> Operation | BP20: ='Development Budget'!BX10 -> Operation | BQ20: ='Development Budget'!BY10 -> Operation | BR20: ='Development Budget'!BZ10 -> Operation | BS20: ='Development Budget'!CA10 -> Operation | BT20: ='Development Budget'!CB10 -> Operation | BU20: ='Development Budget'!CC10 -> Operation | BV20: ='Development Budget'!CD10 -> Operation | BW20: ='Development Budget'!CE10 -> Operation | BX20: ='Development Budget'!CF10 -> Operation | BY20: ='Development Budget'!CG10 -> Operation | BZ20: ='Development Budget'!CH10 -> Operation | CA20: ='Development Budget'!CI10 -> Operation | CB20: ='Development Budget'!CJ10 -> Operation | CC20: ='Development Budget'!CK10 -> Operation | CD20: ='Development Budget'!CL10 -> Operation | CE20: ='Development Budget'!CM10 -> Operation | CF20: ='Development Budget'!CN10 -> Operation | CG20: ='Development Budget'!CO10 -> Operation | CH20: ='Development Budget'!CP10 -> Operation | CI20: ='Development Budget'!CQ10 -> Operation | CJ20: ='Development Budget'!CR10 -> Operation | CK20: ='Development Budget'!CS10 -> Operation | CL20: ='Development Budget'!CT10 -> Operation | CM20: ='Development Budget'!CU10 -> Operation | CN20: ='Development Budget'!CV10 -> Operation | CO20: ='Development Budget'!CW10 -> Operation | CP20: ='Development Budget'!CX10 -> Operation | CQ20: ='Development Budget'!CY10 -> Operation | CR20: ='Development Budget'!CZ10 -> Operation | CS20: ='Development Budget'!DA10 -> Operation | CT20: ='Development Budget'!DB10 -> Operation | CU20: ='Development Budget'!DC10 -> Operation | CV20: ='Development Budget'!DD10 -> Operation | CW20: ='Development Budget'!DE10 -> Operation | CX20: ='Development Budget'!DF10 -> Operation | CY20: ='Development Budget'!DG10 -> Operation | CZ20: ='Development Budget'!DH10 -> Operation | DA20: ='Development Budget'!DI10 -> Operation | DB20: ='Development Budget'!DJ10 -> Operation | DC20: ='Development Budget'!DK10 -> Operation | DD20: ='Development Budget'!DL10 -> Operation | DE20: ='Development Budget'!DM10 -> Operation | DF20: ='Development Budget'!DN10 -> Operation | DG20: ='Development Budget'!DO10 -> Operation | DH20: ='Development Budget'!DP10 -> Operation | DI20: ='Development Budget'!DQ10 -> Operation | DJ20: ='Development Budget'!DR10 -> Operation | DK20: ='Development Budget'!DS10 -> Operation | DL20: ='Development Budget'!DT10 -> Operation | DM20: ='Development Budget'!DU10 -> Operation | DN20: ='Development Budget'!DV10 -> Operation | DO20: ='Development Budget'!DW10 -> Operation | DP20: ='Development Budget'!DX10 -> Operation | DQ20: ='Development Budget'!DY10 -> Operation | DR20: ='Development Budget'!DZ10 -> Operation | DS20: ='Development Budget'!EA10 -> Operation | DT20: ='Development Budget'!EB10 -> Operation | DU20: ='Development Budget'!EC10 -> Operation | DV20: ='Development Budget'!ED10 -> Operation | DW20: ='Development Budget'!EE10 -> Operation | DX20: ='Development Budget'!EF10 -> Operation | DY20: ='Development Budget'!EG10 -> Operation | DZ20: ='Development Budget'!EH10 -> Operation | EA20: ='Development Budget'!EI10 -> Operation | EB20: ='Development Budget'!EJ10 -> Operation | EC20: ='Development Budget'!EK10 -> Operation | ED20: ='Development Budget'!EL10 -> Operation | EE20: ='Development Budget'!EM10 -> Operation | EF20: ='Development Budget'!EN10 -> Operation | EG20: ='Development Budget'!EO10 -> Operation | EH20: ='Development Budget'!EP10 -> Operation | EI20: ='Development Budget'!EQ10 -> Operation | EJ20: ='Development Budget'!ER10 -> Operation | EK20: ='Development Budget'!ES10 -> Operation | EL20: ='Development Budget'!ET10 -> Operation | EM20: ='Development Budget'!EU10 -> Operation | EN20: ='Development Budget'!EV10 -> Operation
B22: INVESTMENT PERIOD CASH FLOWS | K22: Analysis Month | L22: 0 | M22: =L22+1 -> 1 | N22: 2 | O22: 3 | P22: 4 | Q22: 5 | R22: 6 | S22: 7 | T22: 8 | U22: 9 | V22: 10 | W22: 11 | X22: 12 | Y22: 13 | Z22: 14 | AA22: 15 | AB22: 16 | AC22: 17 | AD22: 18 | AE22: 19 | AF22: 20 | AG22: 21 | AH22: 22 | AI22: 23 | AJ22: 24 | AK22: 25 | AL22: 26 | AM22: 27 | AN22: 28 | AO22: 29 | AP22: 30 | AQ22: 31 | AR22: 32 | AS22: 33 | AT22: 34 | AU22: 35 | AV22: 36 | AW22: 37 | AX22: 38 | AY22: 39 | AZ22: 40 | BA22: 41 | BB22: 42 | BC22: 43 | BD22: 44 | BE22: 45 | BF22: 46 | BG22: 47 | BH22: 48 | BI22: 49 | BJ22: 50 | BK22: 51 | BL22: 52 | BM22: 53 | BN22: 54 | BO22: 55 | BP22: 56 | BQ22: 57 | BR22: 58 | BS22: 59 | BT22: 60 | BU22: 61 | BV22: 62 | BW22: 63 | BX22: 64 | BY22: =BX22+1 -> 65 | BZ22: 66 | CA22: 67 | CB22: 68 | CC22: 69 | CD22: 70 | CE22: 71 | CF22: 72 | CG22: 73 | CH22: 74 | CI22: 75 | CJ22: 76 | CK22: 77 | CL22: 78 | CM22: 79 | CN22: 80 | CO22: 81 | CP22: 82 | CQ22: 83 | CR22: 84 | CS22: 85 | CT22: 86 | CU22: 87 | CV22: 88 | CW22: 89 | CX22: 90 | CY22: 91 | CZ22: 92 | DA22: 93 | DB22: 94 | DC22: 95 | DD22: 96 | DE22: 97 | DF22: 98 | DG22: 99 | DH22: 100 | DI22: 101 | DJ22: 102 | DK22: 103 | DL22: 104 | DM22: 105 | DN22: 106 | DO22: 107 | DP22: 108 | DQ22: 109 | DR22: 110 | DS22: 111 | DT22: 112 | DU22: 113 | DV22: 114 | DW22: 115 | DX22: 116 | DY22: 117 | DZ22: 118 | EA22: 119 | EB22: 120 | EC22: 121 | ED22: 122 | EE22: 123 | EF22: 124 | EG22: 125 | EH22: 126 | EI22: 127 | EJ22: 128 | EK22: =EJ22+1 -> 129 | EL22: =EK22+1 -> 130 | EM22: =EL22+1 -> 131 | EN22: =EM22+1 -> 132 | EP22: S-CURVE CALCULATION | EV22: =L22 -> 0 | EW22: 1 | EX22: 2 | EY22: 3 | EZ22: 4 | FA22: 5 | FB22: 6 | FC22: 7 | FD22: 8 | FE22: 9 | FF22: =V22 -> 10 | FG22: 11 | FH22: 12 | FI22: 13 | FJ22: 14 | FK22: 15 | FL22: 16 | FM22: 17 | FN22: 18 | FO22: 19 | FP22: =AF22 -> 20 | FQ22: 21 | FR22: 22 | FS22: 23 | FT22: 24 | FU22: 25 | FV22: 26 | FW22: 27 | FX22: 28 | FY22: 29 | FZ22: =AP22 -> 30 | GA22: 31 | GB22: 32 | GC22: 33 | GD22: 34 | GE22: 35 | GF22: 36 | GG22: 37 | GH22: 38 | GI22: 39 | GJ22: =AZ22 -> 40 | GK22: 41 | GL22: 42 | GM22: 43 | GN22: 44 | GO22: 45 | GP22: 46 | GQ22: 47 | GR22: 48 | GS22: 49 | GT22: =BJ22 -> 50 | GU22: 51 | GV22: 52 | GW22: 53 | GX22: 54 | GY22: 55 | GZ22: 56 | HA22: 57 | HB22: 58 | HC22: 59 | HD22: =BT22 -> 60 | HE22: 61 | HF22: 62 | HG22: 63 | HH22: 64 | HI22: 65 | HJ22: 66 | HK22: 67 | HL22: 68 | HM22: 69 | HN22: =CD22 -> 70 | HO22: 71 | HP22: 72 | HQ22: 73 | HR22: 74 | HS22: 75 | HT22: 76 | HU22: 77 | HV22: 78 | HW22: 79 | HX22: =CN22 -> 80 | HY22: 81 | HZ22: 82 | IA22: 83 | IB22: 84 | IC22: 85 | ID22: 86 | IE22: 87 | IF22: 88 | IG22: 89 | IH22: =CX22 -> 90 | II22: 91 | IJ22: 92 | IK22: 93 | IL22: 94 | IM22: 95 | IN22: 96 | IO22: 97 | IP22: 98 | IQ22: 99 | IR22: =DH22 -> 100 | IS22: 101 | IT22: 102 | IU22: 103 | IV22: 104 | IW22: 105 | IX22: 106 | IY22: 107 | IZ22: 108 | JA22: 109 | JB22: =DR22 -> 110 | JC22: 111 | JD22: 112 | JE22: 113 | JF22: 114 | JG22: 115 | JH22: 116 | JI22: 117 | JJ22: 118 | JK22: 119 | JL22: =EB22 -> 120 | JM22: 121 | JN22: 122 | JO22: 123 | JP22: 124 | JQ22: 125 | JR22: 126 | JS22: 127 | JT22: 128 | JU22: 129 | JV22: =EL22 -> 130 | JW22: 131 | JX22: 132 | KA22: GROWTH/DECLINE CALCULATION | KG22: =EV22 -> 0 | KH22: 1 | KI22: 2 | KJ22: 3 | KK22: 4 | KL22: 5 | KM22: 6 | KN22: 7 | KO22: 8 | KP22: 9 | KQ22: =FF22 -> 10 | KR22: 11 | KS22: 12 | KT22: 13 | KU22: 14 | KV22: 15 | KW22: 16 | KX22: 17 | KY22: 18 | KZ22: 19 | LA22: =FP22 -> 20 | LB22: 21 | LC22: 22 | LD22: 23 | LE22: 24 | LF22: 25 | LG22: 26 | LH22: 27 | LI22: 28 | LJ22: 29 | LK22: =FZ22 -> 30 | LL22: 31 | LM22: 32 | LN22: 33 | LO22: 34 | LP22: 35 | LQ22: 36 | LR22: 37 | LS22: 38 | LT22: 39 | LU22: =GJ22 -> 40 | LV22: 41 | LW22: 42 | LX22: 43 | LY22: 44 | LZ22: 45 | MA22: 46 | MB22: 47 | MC22: 48 | MD22: 49 | ME22: =GT22 -> 50 | MF22: 51 | MG22: 52 | MH22: 53 | MI22: 54 | MJ22: 55 | MK22: 56 | ML22: 57 | MM22: 58 | MN22: 59 | MO22: =HD22 -> 60 | MP22: 61 | MQ22: 62 | MR22: 63 | MS22: 64 | MT22: 65 | MU22: 66 | MV22: 67 | MW22: 68 | MX22: 69 | MY22: =HN22 -> 70 | MZ22: 71 | NA22: 72 | NB22: 73 | NC22: 74 | ND22: 75 | NE22: 76 | NF22: 77 | NG22: 78 | NH22: 79 | NI22: =HX22 -> 80 | NJ22: 81 | NK22: 82 | NL22: 83 | NM22: 84 | NN22: 85 | NO22: 86 | NP22: 87 | NQ22: 88 | NR22: 89 | NS22: =IH22 -> 90 | NT22: 91 | NU22: 92 | NV22: 93 | NW22: 94 | NX22: 95 | NY22: 96 | NZ22: 97 | OA22: 98 | OB22: 99 | OC22: =IR22 -> 100 | OD22: 101 | OE22: 102 | OF22: 103 | OG22: 104 | OH22: 105 | OI22: 106 | OJ22: 107 | OK22: 108 | OL22: 109 | OM22: =JB22 -> 110 | ON22: 111 | OO22: 112 | OP22: 113 | OQ22: 114 | OR22: 115 | OS22: 116 | OT22: 117 | OU22: 118 | OV22: 119 | OW22: =JL22 -> 120 | OX22: 121 | OY22: 122 | OZ22: 123 | PA22: 124 | PB22: 125 | PC22: 126 | PD22: 127 | PE22: 128 | PF22: 129 | PG22: =JV22 -> 130 | PH22: 131 | PI22: 132
B23: SOURCES AND USES | G23: =TEXT(E18,"#,##0")&" GBA" -> 60,800 GBA | H23: =Units -> 52 | K23: Analysis Date | L23: =EOMONTH(E13,-1) -> 2023-05-31 | M23: =EOMONTH(L23,1) -> 2023-06-30 | N23: =EOMONTH(M23,1) -> 2023-07-31 | O23: 2023-08-31 | P23: 2023-09-30 | Q23: 2023-10-31 | R23: 2023-11-30 | S23: 2023-12-31 | T23: 2024-01-31 | U23: 2024-02-29 | V23: 2024-03-31 | W23: 2024-04-30 | X23: 2024-05-31 | Y23: 2024-06-30 | Z23: 2024-07-31 | AA23: 2024-08-31 | AB23: 2024-09-30 | AC23: 2024-10-31 | AD23: 2024-11-30 | AE23: 2024-12-31 | AF23: 2025-01-31 | AG23: 2025-02-28 | AH23: 2025-03-31 | AI23: 2025-04-30 | AJ23: 2025-05-31 | AK23: 2025-06-30 | AL23: 2025-07-31 | AM23: 2025-08-31 | AN23: 2025-09-30 | AO23: 2025-10-31 | AP23: 2025-11-30 | AQ23: 2025-12-31 | AR23: 2026-01-31 | AS23: 2026-02-28 | AT23: 2026-03-31 | AU23: 2026-04-30 | AV23: 2026-05-31 | AW23: 2026-06-30 | AX23: 2026-07-31 | AY23: 2026-08-31 | AZ23: 2026-09-30 | BA23: 2026-10-31 | BB23: 2026-11-30 | BC23: 2026-12-31 | BD23: 2027-01-31 | BE23: 2027-02-28 | BF23: 2027-03-31 | BG23: 2027-04-30 | BH23: 2027-05-31 | BI23: 2027-06-30 | BJ23: 2027-07-31 | BK23: 2027-08-31 | BL23: 2027-09-30 | BM23: 2027-10-31 | BN23: 2027-11-30 | BO23: 2027-12-31 | BP23: 2028-01-31 | BQ23: 2028-02-29 | BR23: 2028-03-31 | BS23: 2028-04-30 | BT23: 2028-05-31 | BU23: 2028-06-30 | BV23: 2028-07-31 | BW23: 2028-08-31 | BX23: 2028-09-30 | BY23: 2028-10-31 | BZ23: =EOMONTH(BY23,1) -> 2028-11-30 | CA23: 2028-12-31 | CB23: 2029-01-31 | CC23: 2029-02-28 | CD23: 2029-03-31 | CE23: 2029-04-30 | CF23: 2029-05-31 | CG23: 2029-06-30 | CH23: 2029-07-31 | CI23: 2029-08-31 | CJ23: 2029-09-30 | CK23: 2029-10-31 | CL23: 2029-11-30 | CM23: 2029-12-31 | CN23: 2030-01-31 | CO23: 2030-02-28 | CP23: 2030-03-31 | CQ23: 2030-04-30 | CR23: 2030-05-31 | CS23: 2030-06-30 | CT23: 2030-07-31 | CU23: 2030-08-31 | CV23: 2030-09-30 | CW23: 2030-10-31 | CX23: 2030-11-30 | CY23: 2030-12-31 | CZ23: 2031-01-31 | DA23: 2031-02-28 | DB23: 2031-03-31 | DC23: 2031-04-30 | DD23: 2031-05-31 | DE23: 2031-06-30 | DF23: 2031-07-31 | DG23: 2031-08-31 | DH23: 2031-09-30 | DI23: 2031-10-31 | DJ23: 2031-11-30 | DK23: 2031-12-31 | DL23: 2032-01-31 | DM23: 2032-02-29 | DN23: 2032-03-31 | DO23: 2032-04-30 | DP23: 2032-05-31 | DQ23: 2032-06-30 | DR23: 2032-07-31 | DS23: 2032-08-31 | DT23: 2032-09-30 | DU23: 2032-10-31 | DV23: 2032-11-30 | DW23: 2032-12-31 | DX23: 2033-01-31 | DY23: 2033-02-28 | DZ23: 2033-03-31 | EA23: 2033-04-30 | EB23: 2033-05-31 | EC23: 2033-06-30 | ED23: 2033-07-31 | EE23: 2033-08-31 | EF23: 2033-09-30 | EG23: 2033-10-31 | EH23: 2033-11-30 | EI23: 2033-12-31 | EJ23: 2034-01-31 | EK23: 2034-02-28 | EL23: =EOMONTH(EK23,1) -> 2034-03-31 | EM23: =EOMONTH(EL23,1) -> 2034-04-30 | EN23: =EOMONTH(EM23,1) -> 2034-05-31 | EP23: Amount | EQ23: Start Period | ER23: End Period | ES23: Months | ET23: Timing | EU23: StDev | EV23: 2023-05-31 | EW23: 2023-06-30 | EX23: 2023-07-31 | EY23: 2023-08-31 | EZ23: 2023-09-30 | FA23: 2023-10-31 | FB23: 2023-11-30 | FC23: 2023-12-31 | FD23: 2024-01-31 | FE23: 2024-02-29 | FF23: 2024-03-31 | FG23: 2024-04-30 | FH23: 2024-05-31 | FI23: 2024-06-30 | FJ23: 2024-07-31 | FK23: 2024-08-31 | FL23: 2024-09-30 | FM23: 2024-10-31 | FN23: 2024-11-30 | FO23: 2024-12-31 | FP23: 2025-01-31 | FQ23: 2025-02-28 | FR23: 2025-03-31 | FS23: 2025-04-30 | FT23: 2025-05-31 | FU23: 2025-06-30 | FV23: 2025-07-31 | FW23: 2025-08-31 | FX23: 2025-09-30 | FY23: 2025-10-31 | FZ23: 2025-11-30 | GA23: 2025-12-31 | GB23: 2026-01-31 | GC23: 2026-02-28 | GD23: 2026-03-31 | GE23: 2026-04-30 | GF23: 2026-05-31 | GG23: 2026-06-30 | GH23: 2026-07-31 | GI23: 2026-08-31 | GJ23: 2026-09-30 | GK23: 2026-10-31 | GL23: 2026-11-30 | GM23: 2026-12-31 | GN23: 2027-01-31 | GO23: 2027-02-28 | GP23: 2027-03-31 | GQ23: 2027-04-30 | GR23: 2027-05-31 | GS23: 2027-06-30 | GT23: 2027-07-31 | GU23: 2027-08-31 | GV23: 2027-09-30 | GW23: 2027-10-31 | GX23: 2027-11-30 | GY23: 2027-12-31 | GZ23: 2028-01-31 | HA23: 2028-02-29 | HB23: 2028-03-31 | HC23: 2028-04-30 | HD23: 2028-05-31 | HE23: 2028-06-30 | HF23: 2028-07-31 | HG23: 2028-08-31 | HH23: 2028-09-30 | HI23: 2028-10-31 | HJ23: 2028-11-30 | HK23: 2028-12-31 | HL23: 2029-01-31 | HM23: 2029-02-28 | HN23: 2029-03-31 | HO23: 2029-04-30 | HP23: 2029-05-31 | HQ23: 2029-06-30 | HR23: 2029-07-31 | HS23: 2029-08-31 | HT23: 2029-09-30 | HU23: 2029-10-31 | HV23: 2029-11-30 | HW23: 2029-12-31 | HX23: 2030-01-31 | HY23: 2030-02-28 | HZ23: 2030-03-31 | IA23: 2030-04-30 | IB23: 2030-05-31 | IC23: 2030-06-30 | ID23: 2030-07-31 | IE23: 2030-08-31 | IF23: 2030-09-30 | IG23: 2030-10-31 | IH23: 2030-11-30 | II23: 2030-12-31 | IJ23: 2031-01-31 | IK23: 2031-02-28 | IL23: 2031-03-31 | IM23: 2031-04-30 | IN23: 2031-05-31 | IO23: 2031-06-30 | IP23: 2031-07-31 | IQ23: 2031-08-31 | IR23: 2031-09-30 | IS23: 2031-10-31 | IT23: 2031-11-30 | IU23: 2031-12-31 | IV23: 2032-01-31 | IW23: 2032-02-29 | IX23: 2032-03-31 | IY23: 2032-04-30 | IZ23: 2032-05-31 | JA23: 2032-06-30 | JB23: 2032-07-31 | JC23: 2032-08-31 | JD23: 2032-09-30 | JE23: 2032-10-31 | JF23: 2032-11-30 | JG23: 2032-12-31 | JH23: 2033-01-31 | JI23: 2033-02-28 | JJ23: 2033-03-31 | JK23: 2033-04-30 | JL23: 2033-05-31 | JM23: 2033-06-30 | JN23: 2033-07-31 | JO23: 2033-08-31 | JP23: 2033-09-30 | JQ23: 2033-10-31 | JR23: 2033-11-30 | JS23: 2033-12-31 | JT23: 2034-01-31 | JU23: 2034-02-28 | JV23: 2034-03-31 | JW23: 2034-04-30 | JX23: 2034-05-31 | KG23: 2023-05-31 | KH23: 2023-06-30 | KI23: 2023-07-31 | KJ23: 2023-08-31 | KK23: 2023-09-30 | KL23: 2023-10-31 | KM23: 2023-11-30 | KN23: 2023-12-31 | KO23: 2024-01-31 | KP23: 2024-02-29 | KQ23: 2024-03-31 | KR23: 2024-04-30 | KS23: 2024-05-31 | KT23: 2024-06-30 | KU23: 2024-07-31 | KV23: 2024-08-31 | KW23: 2024-09-30 | KX23: 2024-10-31 | KY23: 2024-11-30 | KZ23: 2024-12-31 | LA23: 2025-01-31 | LB23: 2025-02-28 | LC23: 2025-03-31 | LD23: 2025-04-30 | LE23: 2025-05-31 | LF23: 2025-06-30 | LG23: 2025-07-31 | LH23: 2025-08-31 | LI23: 2025-09-30 | LJ23: 2025-10-31 | LK23: 2025-11-30 | LL23: 2025-12-31 | LM23: 2026-01-31 | LN23: 2026-02-28 | LO23: 2026-03-31 | LP23: 2026-04-30 | LQ23: 2026-05-31 | LR23: 2026-06-30 | LS23: 2026-07-31 | LT23: 2026-08-31 | LU23: 2026-09-30 | LV23: 2026-10-31 | LW23: 2026-11-30 | LX23: 2026-12-31 | LY23: 2027-01-31 | LZ23: 2027-02-28 | MA23: 2027-03-31 | MB23: 2027-04-30 | MC23: 2027-05-31 | MD23: 2027-06-30 | ME23: 2027-07-31 | MF23: 2027-08-31 | MG23: 2027-09-30 | MH23: 2027-10-31 | MI23: 2027-11-30 | MJ23: 2027-12-31 | MK23: 2028-01-31 | ML23: 2028-02-29 | MM23: 2028-03-31 | MN23: 2028-04-30 | MO23: 2028-05-31 | MP23: 2028-06-30 | MQ23: 2028-07-31 | MR23: 2028-08-31 | MS23: 2028-09-30 | MT23: 2028-10-31 | MU23: 2028-11-30 | MV23: 2028-12-31 | MW23: 2029-01-31 | MX23: 2029-02-28 | MY23: 2029-03-31 | MZ23: 2029-04-30 | NA23: 2029-05-31 | NB23: 2029-06-30 | NC23: 2029-07-31 | ND23: 2029-08-31 | NE23: 2029-09-30 | NF23: 2029-10-31 | NG23: 2029-11-30 | NH23: 2029-12-31 | NI23: 2030-01-31 | NJ23: 2030-02-28 | NK23: 2030-03-31 | NL23: 2030-04-30 | NM23: 2030-05-31 | NN23: 2030-06-30 | NO23: 2030-07-31 | NP23: 2030-08-31 | NQ23: 2030-09-30 | NR23: 2030-10-31 | NS23: 2030-11-30 | NT23: 2030-12-31 | NU23: 2031-01-31 | NV23: 2031-02-28 | NW23: 2031-03-31 | NX23: 2031-04-30 | NY23: 2031-05-31 | NZ23: 2031-06-30 | OA23: 2031-07-31 | OB23: 2031-08-31 | OC23: 2031-09-30 | OD23: 2031-10-31 | OE23: 2031-11-30 | OF23: 2031-12-31 | OG23: 2032-01-31 | OH23: 2032-02-29 | OI23: 2032-03-31 | OJ23: 2032-04-30 | OK23: 2032-05-31 | OL23: 2032-06-30 | OM23: 2032-07-31 | ON23: 2032-08-31 | OO23: 2032-09-30 | OP23: 2032-10-31 | OQ23: 2032-11-30 | OR23: 2032-12-31 | OS23: 2033-01-31 | OT23: 2033-02-28 | OU23: 2033-03-31 | OV23: 2033-04-30 | OW23: 2033-05-31 | OX23: 2033-06-30 | OY23: 2033-07-31 | OZ23: 2033-08-31 | PA23: 2033-09-30 | PB23: 2033-10-31 | PC23: 2033-11-30 | PD23: 2033-12-31 | PE23: 2034-01-31 | PF23: 2034-02-28 | PG23: 2034-03-31 | PH23: 2034-04-30 | PI23: 2034-05-31
B24: USES | D24: START | E24: END | F24: METHOD | G24: ="/BUILDABLE "&Unit_Type -> /BUILDABLE SF | H24: /UNIT | I24: AMOUNT | K24: Cum. Spent % | L24: =SUM($L$62:L62)/Project_Cost_Total -> 0.02309162201 | M24: =SUM($L$62:M62)/Project_Cost_Total -> 0.02418163863 | N24: =SUM($L$62:N62)/Project_Cost_Total -> 0.02568334493 | O24: =SUM($L$62:O62)/Project_Cost_Total -> 0.02976302075 | P24: =SUM($L$62:P62)/Project_Cost_Total -> 0.03833509263 | Q24: =SUM($L$62:Q62)/Project_Cost_Total -> 0.07460821177 | R24: =SUM($L$62:R62)/Project_Cost_Total -> 0.1159984778 | S24: =SUM($L$62:S62)/Project_Cost_Total -> 0.1497102017 | T24: =SUM($L$62:T62)/Project_Cost_Total -> 0.1908590658 | U24: =SUM($L$62:U62)/Project_Cost_Total -> 0.2505822996 | V24: =SUM($L$62:V62)/Project_Cost_Total -> 0.3092563521 | W24: =SUM($L$62:W62)/Project_Cost_Total -> 0.3764456084 | X24: =SUM($L$62:X62)/Project_Cost_Total -> 0.4501941177 | Y24: =SUM($L$62:Y62)/Project_Cost_Total -> 0.527555699 | Z24: =SUM($L$62:Z62)/Project_Cost_Total -> 0.6053192569 | AA24: =SUM($L$62:AA62)/Project_Cost_Total -> 0.6800276785 | AB24: =SUM($L$62:AB62)/Project_Cost_Total -> 0.7486030256 | AC24: =SUM($L$62:AC62)/Project_Cost_Total -> 0.8090407161 | AD24: =SUM($L$62:AD62)/Project_Cost_Total -> 0.8622148463 | AE24: =SUM($L$62:AE62)/Project_Cost_Total -> 0.9060992935 | AF24: =SUM($L$62:AF62)/Project_Cost_Total -> 0.9413777615 | AG24: =SUM($L$62:AG62)/Project_Cost_Total -> 0.97022332 | AH24: =SUM($L$62:AH62)/Project_Cost_Total -> 0.9935539376 | AI24: =SUM($L$62:AI62)/Project_Cost_Total -> 0.9966969242 | AJ24: =SUM($L$62:AJ62)/Project_Cost_Total -> 0.998623251 | AK24: =SUM($L$62:AK62)/Project_Cost_Total -> 0.9993116255 | AL24: =SUM($L$62:AL62)/Project_Cost_Total -> 1 | AM24: =SUM($L$62:AM62)/Project_Cost_Total -> 1 | AN24: =SUM($L$62:AN62)/Project_Cost_Total -> 1 | AO24: =SUM($L$62:AO62)/Project_Cost_Total -> 1 | AP24: =SUM($L$62:AP62)/Project_Cost_Total -> 1 | AQ24: =SUM($L$62:AQ62)/Project_Cost_Total -> 1 | AR24: =SUM($L$62:AR62)/Project_Cost_Total -> 1 | AS24: =SUM($L$62:AS62)/Project_Cost_Total -> 1 | AT24: =SUM($L$62:AT62)/Project_Cost_Total -> 1 | AU24: =SUM($L$62:AU62)/Project_Cost_Total -> 1 | AV24: =SUM($L$62:AV62)/Project_Cost_Total -> 1 | AW24: =SUM($L$62:AW62)/Project_Cost_Total -> 1 | AX24: =SUM($L$62:AX62)/Project_Cost_Total -> 1 | AY24: =SUM($L$62:AY62)/Project_Cost_Total -> 1 | AZ24: =SUM($L$62:AZ62)/Project_Cost_Total -> 1 | BA24: =SUM($L$62:BA62)/Project_Cost_Total -> 1 | BB24: =SUM($L$62:BB62)/Project_Cost_Total -> 1 | BC24: =SUM($L$62:BC62)/Project_Cost_Total -> 1 | BD24: =SUM($L$62:BD62)/Project_Cost_Total -> 1 | BE24: =SUM($L$62:BE62)/Project_Cost_Total -> 1 | BF24: =SUM($L$62:BF62)/Project_Cost_Total -> 1 | BG24: =SUM($L$62:BG62)/Project_Cost_Total -> 1 | BH24: =SUM($L$62:BH62)/Project_Cost_Total -> 1 | BI24: =SUM($L$62:BI62)/Project_Cost_Total -> 1 | BJ24: =SUM($L$62:BJ62)/Project_Cost_Total -> 1 | BK24: =SUM($L$62:BK62)/Project_Cost_Total -> 1 | BL24: =SUM($L$62:BL62)/Project_Cost_Total -> 1 | BM24: =SUM($L$62:BM62)/Project_Cost_Total -> 1 | BN24: =SUM($L$62:BN62)/Project_Cost_Total -> 1 | BO24: =SUM($L$62:BO62)/Project_Cost_Total -> 1 | BP24: =SUM($L$62:BP62)/Project_Cost_Total -> 1 | BQ24: =SUM($L$62:BQ62)/Project_Cost_Total -> 1 | BR24: =SUM($L$62:BR62)/Project_Cost_Total -> 1 | BS24: =SUM($L$62:BS62)/Project_Cost_Total -> 1 | BT24: =SUM($L$62:BT62)/Project_Cost_Total -> 1 | BU24: =SUM($L$62:BU62)/Project_Cost_Total -> 1 | BV24: =SUM($L$62:BV62)/Project_Cost_Total -> 1 | BW24: =SUM($L$62:BW62)/Project_Cost_Total -> 1 | BX24: =SUM($L$62:BX62)/Project_Cost_Total -> 1 | BY24: =SUM($L$62:BY62)/Project_Cost_Total -> 1 | BZ24: =SUM($L$62:BZ62)/Project_Cost_Total -> 1 | CA24: =SUM($L$62:CA62)/Project_Cost_Total -> 1 | CB24: =SUM($L$62:CB62)/Project_Cost_Total -> 1 | CC24: =SUM($L$62:CC62)/Project_Cost_Total -> 1 | CD24: =SUM($L$62:CD62)/Project_Cost_Total -> 1 | CE24: =SUM($L$62:CE62)/Project_Cost_Total -> 1 | CF24: =SUM($L$62:CF62)/Project_Cost_Total -> 1 | CG24: =SUM($L$62:CG62)/Project_Cost_Total -> 1 | CH24: =SUM($L$62:CH62)/Project_Cost_Total -> 1 | CI24: =SUM($L$62:CI62)/Project_Cost_Total -> 1 | CJ24: =SUM($L$62:CJ62)/Project_Cost_Total -> 1 | CK24: =SUM($L$62:CK62)/Project_Cost_Total -> 1 | CL24: =SUM($L$62:CL62)/Project_Cost_Total -> 1 | CM24: =SUM($L$62:CM62)/Project_Cost_Total -> 1 | CN24: =SUM($L$62:CN62)/Project_Cost_Total -> 1 | CO24: =SUM($L$62:CO62)/Project_Cost_Total -> 1 | CP24: =SUM($L$62:CP62)/Project_Cost_Total -> 1 | CQ24: =SUM($L$62:CQ62)/Project_Cost_Total -> 1 | CR24: =SUM($L$62:CR62)/Project_Cost_Total -> 1 | CS24: =SUM($L$62:CS62)/Project_Cost_Total -> 1 | CT24: =SUM($L$62:CT62)/Project_Cost_Total -> 1 | CU24: =SUM($L$62:CU62)/Project_Cost_Total -> 1 | CV24: =SUM($L$62:CV62)/Project_Cost_Total -> 1 | CW24: =SUM($L$62:CW62)/Project_Cost_Total -> 1 | CX24: =SUM($L$62:CX62)/Project_Cost_Total -> 1 | CY24: =SUM($L$62:CY62)/Project_Cost_Total -> 1 | CZ24: =SUM($L$62:CZ62)/Project_Cost_Total -> 1 | DA24: =SUM($L$62:DA62)/Project_Cost_Total -> 1 | DB24: =SUM($L$62:DB62)/Project_Cost_Total -> 1 | DC24: =SUM($L$62:DC62)/Project_Cost_Total -> 1 | DD24: =SUM($L$62:DD62)/Project_Cost_Total -> 1 | DE24: =SUM($L$62:DE62)/Project_Cost_Total -> 1 | DF24: =SUM($L$62:DF62)/Project_Cost_Total -> 1 | DG24: =SUM($L$62:DG62)/Project_Cost_Total -> 1 | DH24: =SUM($L$62:DH62)/Project_Cost_Total -> 1 | DI24: =SUM($L$62:DI62)/Project_Cost_Total -> 1 | DJ24: =SUM($L$62:DJ62)/Project_Cost_Total -> 1 | DK24: =SUM($L$62:DK62)/Project_Cost_Total -> 1 | DL24: =SUM($L$62:DL62)/Project_Cost_Total -> 1 | DM24: =SUM($L$62:DM62)/Project_Cost_Total -> 1 | DN24: =SUM($L$62:DN62)/Project_Cost_Total -> 1 | DO24: =SUM($L$62:DO62)/Project_Cost_Total -> 1 | DP24: =SUM($L$62:DP62)/Project_Cost_Total -> 1 | DQ24: =SUM($L$62:DQ62)/Project_Cost_Total -> 1 | DR24: =SUM($L$62:DR62)/Project_Cost_Total -> 1 | DS24: =SUM($L$62:DS62)/Project_Cost_Total -> 1 | DT24: =SUM($L$62:DT62)/Project_Cost_Total -> 1 | DU24: =SUM($L$62:DU62)/Project_Cost_Total -> 1 | DV24: =SUM($L$62:DV62)/Project_Cost_Total -> 1 | DW24: =SUM($L$62:DW62)/Project_Cost_Total -> 1 | DX24: =SUM($L$62:DX62)/Project_Cost_Total -> 1 | DY24: =SUM($L$62:DY62)/Project_Cost_Total -> 1 | DZ24: =SUM($L$62:DZ62)/Project_Cost_Total -> 1 | EA24: =SUM($L$62:EA62)/Project_Cost_Total -> 1 | EB24: =SUM($L$62:EB62)/Project_Cost_Total -> 1 | EC24: =SUM($L$62:EC62)/Project_Cost_Total -> 1 | ED24: =SUM($L$62:ED62)/Project_Cost_Total -> 1 | EE24: =SUM($L$62:EE62)/Project_Cost_Total -> 1 | EF24: =SUM($L$62:EF62)/Project_Cost_Total -> 1 | EG24: =SUM($L$62:EG62)/Project_Cost_Total -> 1 | EH24: =SUM($L$62:EH62)/Project_Cost_Total -> 1 | EI24: =SUM($L$62:EI62)/Project_Cost_Total -> 1 | EJ24: =SUM($L$62:EJ62)/Project_Cost_Total -> 1 | EK24: =SUM($L$62:EK62)/Project_Cost_Total -> 1 | EL24: =SUM($L$62:EL62)/Project_Cost_Total -> 1 | EM24: =SUM($L$62:EM62)/Project_Cost_Total -> 1 | EN24: =SUM($L$62:EN62)/Project_Cost_Total -> 1 | KA24: =B24 -> USES | KC24: Start | KD24: End | KE24: Length | KF24: Amount
B25: Land Costs | K25: Spent % | L25: =L24 -> 0.02309162201 | M25: =M24-L24 -> 0.001090016622 | N25: =N24-M24 -> 0.001501706303 | O25: 0.00407967582 | P25: 0.008572071883 | Q25: 0.03627311913 | R25: 0.04139026605 | S25: 0.03371172387 | T25: 0.0411488641 | U25: 0.0597232338 | V25: 0.05867405253 | W25: 0.06718925633 | X25: 0.07374850923 | Y25: 0.0773615813 | Z25: 0.07776355797 | AA25: 0.0747084216 | AB25: 0.06857534705 | AC25: 0.06043769054 | AD25: 0.05317413013 | AE25: 0.04388444729 | AF25: 0.03527846794 | AG25: 0.02884555856 | AH25: 0.02333061755 | AI25: 0.003142986557 | AJ25: 0.00192632681 | AK25: 0.0006883745163 | AL25: 0.0006883745163 | AM25: 0 | AN25: 0 | AO25: 0 | AP25: 0 | AQ25: 0 | AR25: 0 | AS25: 0 | AT25: 0 | AU25: 0 | AV25: 0 | AW25: 0 | AX25: 0 | AY25: 0 | AZ25: 0 | BA25: 0 | BB25: 0 | BC25: 0 | BD25: 0 | BE25: 0 | BF25: 0 | BG25: 0 | BH25: 0 | BI25: 0 | BJ25: 0 | BK25: 0 | BL25: 0 | BM25: 0 | BN25: 0 | BO25: 0 | BP25: 0 | BQ25: 0 | BR25: 0 | BS25: 0 | BT25: 0 | BU25: 0 | BV25: 0 | BW25: 0 | BX25: 0 | BY25: 0 | BZ25: =BZ24-BY24 -> 0 | CA25: 0 | CB25: 0 | CC25: 0 | CD25: 0 | CE25: 0 | CF25: 0 | CG25: 0 | CH25: 0 | CI25: 0 | CJ25: 0 | CK25: 0 | CL25: 0 | CM25: 0 | CN25: 0 | CO25: 0 | CP25: 0 | CQ25: 0 | CR25: 0 | CS25: 0 | CT25: 0 | CU25: 0 | CV25: 0 | CW25: 0 | CX25: 0 | CY25: 0 | CZ25: 0 | DA25: 0 | DB25: 0 | DC25: 0 | DD25: 0 | DE25: 0 | DF25: 0 | DG25: 0 | DH25: 0 | DI25: 0 | DJ25: 0 | DK25: 0 | DL25: 0 | DM25: 0 | DN25: 0 | DO25: 0 | DP25: 0 | DQ25: 0 | DR25: 0 | DS25: 0 | DT25: 0 | DU25: 0 | DV25: 0 | DW25: 0 | DX25: 0 | DY25: 0 | DZ25: 0 | EA25: 0 | EB25: 0 | EC25: 0 | ED25: 0 | EE25: 0 | EF25: 0 | EG25: 0 | EH25: 0 | EI25: 0 | EJ25: 0 | EK25: 0 | EL25: =EL24-EK24 -> 0 | EM25: =EM24-EL24 -> 0 | EN25: =EN24-EM24 -> 0 | KA25: Land Costs
B26: ='Development Budget'!B16 -> Deposit(s) | D26: 0 | E26: 0 | F26: Straight-Line | G26: =I26/$E$18 -> 0 | H26: =I26/Units -> 0 | I26: =IF('Development Budget'!$Q$3="Original Budget",'Development Budget'!D16,'Development Budget'!G16) -> 0 | K26: =IF(ROUND(SUM(L26:EN26),0)=ROUND(I26,0),"","Incomplete") ->  | L26: =AND(L$22>=$D26,L$22<=$E26)*($F26="Straight-Line")*($I26/$ES26)+($F26="S-Curve")*EV26+OR($F26="Steady Growth",$F26="Steady Decline")*KG26+($F26="Detail")*'Development Budget'!T16 -> 0 | M26: =AND(M$22>=$D26,M$22<=$E26)*($F26="Straight-Line")*($I26/$ES26)+($F26="S-Curve")*EW26+OR($F26="Steady Growth",$F26="Steady Decline")*KH26+($F26="Detail")*'Development Budget'!U16 -> 0 | N26: =AND(N$22>=$D26,N$22<=$E26)*($F26="Straight-Line")*($I26/$ES26)+($F26="S-Curve")*EX26+OR($F26="Steady Growth",$F26="Steady Decline")*KI26+($F26="Detail")*'Development Budget'!V16 -> 0 | O26: =AND(O$22>=$D26,O$22<=$E26)*($F26="Straight-Line")*($I26/$ES26)+($F26="S-Curve")*EY26+OR($F26="Steady Growth",$F26="Steady Decline")*KJ26+($F26="Detail")*'Development Budget'!W16 -> 0 | P26: =AND(P$22>=$D26,P$22<=$E26)*($F26="Straight-Line")*($I26/$ES26)+($F26="S-Curve")*EZ26+OR($F26="Steady Growth",$F26="Steady Decline")*KK26+($F26="Detail")*'Development Budget'!X16 -> 0 | Q26: =AND(Q$22>=$D26,Q$22<=$E26)*($F26="Straight-Line")*($I26/$ES26)+($F26="S-Curve")*FA26+OR($F26="Steady Growth",$F26="Steady Decline")*KL26+($F26="Detail")*'Development Budget'!Y16 -> 0 | R26: =AND(R$22>=$D26,R$22<=$E26)*($F26="Straight-Line")*($I26/$ES26)+($F26="S-Curve")*FB26+OR($F26="Steady Growth",$F26="Steady Decline")*KM26+($F26="Detail")*'Development Budget'!Z16 -> 0 | S26: =AND(S$22>=$D26,S$22<=$E26)*($F26="Straight-Line")*($I26/$ES26)+($F26="S-Curve")*FC26+OR($F26="Steady Growth",$F26="Steady Decline")*KN26+($F26="Detail")*'Development Budget'!AA16 -> 0 | T26: =AND(T$22>=$D26,T$22<=$E26)*($F26="Straight-Line")*($I26/$ES26)+($F26="S-Curve")*FD26+OR($F26="Steady Growth",$F26="Steady Decline")*KO26+($F26="Detail")*'Development Budget'!AB16 -> 0 | U26: =AND(U$22>=$D26,U$22<=$E26)*($F26="Straight-Line")*($I26/$ES26)+($F26="S-Curve")*FE26+OR($F26="Steady Growth",$F26="Steady Decline")*KP26+($F26="Detail")*'Development Budget'!AC16 -> 0 | V26: =AND(V$22>=$D26,V$22<=$E26)*($F26="Straight-Line")*($I26/$ES26)+($F26="S-Curve")*FF26+OR($F26="Steady Growth",$F26="Steady Decline")*KQ26+($F26="Detail")*'Development Budget'!AD16 -> 0 | W26: =AND(W$22>=$D26,W$22<=$E26)*($F26="Straight-Line")*($I26/$ES26)+($F26="S-Curve")*FG26+OR($F26="Steady Growth",$F26="Steady Decline")*KR26+($F26="Detail")*'Development Budget'!AE16 -> 0 | X26: =AND(X$22>=$D26,X$22<=$E26)*($F26="Straight-Line")*($I26/$ES26)+($F26="S-Curve")*FH26+OR($F26="Steady Growth",$F26="Steady Decline")*KS26+($F26="Detail")*'Development Budget'!AF16 -> 0 | Y26: =AND(Y$22>=$D26,Y$22<=$E26)*($F26="Straight-Line")*($I26/$ES26)+($F26="S-Curve")*FI26+OR($F26="Steady Growth",$F26="Steady Decline")*KT26+($F26="Detail")*'Development Budget'!AG16 -> 0 | Z26: =AND(Z$22>=$D26,Z$22<=$E26)*($F26="Straight-Line")*($I26/$ES26)+($F26="S-Curve")*FJ26+OR($F26="Steady Growth",$F26="Steady Decline")*KU26+($F26="Detail")*'Development Budget'!AH16 -> 0 | AA26: =AND(AA$22>=$D26,AA$22<=$E26)*($F26="Straight-Line")*($I26/$ES26)+($F26="S-Curve")*FK26+OR($F26="Steady Growth",$F26="Steady Decline")*KV26+($F26="Detail")*'Development Budget'!AI16 -> 0 | AB26: =AND(AB$22>=$D26,AB$22<=$E26)*($F26="Straight-Line")*($I26/$ES26)+($F26="S-Curve")*FL26+OR($F26="Steady Growth",$F26="Steady Decline")*KW26+($F26="Detail")*'Development Budget'!AJ16 -> 0 | AC26: =AND(AC$22>=$D26,AC$22<=$E26)*($F26="Straight-Line")*($I26/$ES26)+($F26="S-Curve")*FM26+OR($F26="Steady Growth",$F26="Steady Decline")*KX26+($F26="Detail")*'Development Budget'!AK16 -> 0 | AD26: =AND(AD$22>=$D26,AD$22<=$E26)*($F26="Straight-Line")*($I26/$ES26)+($F26="S-Curve")*FN26+OR($F26="Steady Growth",$F26="Steady Decline")*KY26+($F26="Detail")*'Development Budget'!AL16 -> 0 | AE26: =AND(AE$22>=$D26,AE$22<=$E26)*($F26="Straight-Line")*($I26/$ES26)+($F26="S-Curve")*FO26+OR($F26="Steady Growth",$F26="Steady Decline")*KZ26+($F26="Detail")*'Development Budget'!AM16 -> 0 | AF26: =AND(AF$22>=$D26,AF$22<=$E26)*($F26="Straight-Line")*($I26/$ES26)+($F26="S-Curve")*FP26+OR($F26="Steady Growth",$F26="Steady Decline")*LA26+($F26="Detail")*'Development Budget'!AN16 -> 0 | AG26: =AND(AG$22>=$D26,AG$22<=$E26)*($F26="Straight-Line")*($I26/$ES26)+($F26="S-Curve")*FQ26+OR($F26="Steady Growth",$F26="Steady Decline")*LB26+($F26="Detail")*'Development Budget'!AO16 -> 0 | AH26: =AND(AH$22>=$D26,AH$22<=$E26)*($F26="Straight-Line")*($I26/$ES26)+($F26="S-Curve")*FR26+OR($F26="Steady Growth",$F26="Steady Decline")*LC26+($F26="Detail")*'Development Budget'!AP16 -> 0 | AI26: =AND(AI$22>=$D26,AI$22<=$E26)*($F26="Straight-Line")*($I26/$ES26)+($F26="S-Curve")*FS26+OR($F26="Steady Growth",$F26="Steady Decline")*LD26+($F26="Detail")*'Development Budget'!AQ16 -> 0 | AJ26: =AND(AJ$22>=$D26,AJ$22<=$E26)*($F26="Straight-Line")*($I26/$ES26)+($F26="S-Curve")*FT26+OR($F26="Steady Growth",$F26="Steady Decline")*LE26+($F26="Detail")*'Development Budget'!AR16 -> 0 | AK26: =AND(AK$22>=$D26,AK$22<=$E26)*($F26="Straight-Line")*($I26/$ES26)+($F26="S-Curve")*FU26+OR($F26="Steady Growth",$F26="Steady Decline")*LF26+($F26="Detail")*'Development Budget'!AS16 -> 0 | AL26: =AND(AL$22>=$D26,AL$22<=$E26)*($F26="Straight-Line")*($I26/$ES26)+($F26="S-Curve")*FV26+OR($F26="Steady Growth",$F26="Steady Decline")*LG26+($F26="Detail")*'Development Budget'!AT16 -> 0 | AM26: =AND(AM$22>=$D26,AM$22<=$E26)*($F26="Straight-Line")*($I26/$ES26)+($F26="S-Curve")*FW26+OR($F26="Steady Growth",$F26="Steady Decline")*LH26+($F26="Detail")*'Development Budget'!AU16 -> 0 | AN26: =AND(AN$22>=$D26,AN$22<=$E26)*($F26="Straight-Line")*($I26/$ES26)+($F26="S-Curve")*FX26+OR($F26="Steady Growth",$F26="Steady Decline")*LI26+($F26="Detail")*'Development Budget'!AV16 -> 0 | AO26: =AND(AO$22>=$D26,AO$22<=$E26)*($F26="Straight-Line")*($I26/$ES26)+($F26="S-Curve")*FY26+OR($F26="Steady Growth",$F26="Steady Decline")*LJ26+($F26="Detail")*'Development Budget'!AW16 -> 0 | AP26: =AND(AP$22>=$D26,AP$22<=$E26)*($F26="Straight-Line")*($I26/$ES26)+($F26="S-Curve")*FZ26+OR($F26="Steady Growth",$F26="Steady Decline")*LK26+($F26="Detail")*'Development Budget'!AX16 -> 0 | AQ26: =AND(AQ$22>=$D26,AQ$22<=$E26)*($F26="Straight-Line")*($I26/$ES26)+($F26="S-Curve")*GA26+OR($F26="Steady Growth",$F26="Steady Decline")*LL26+($F26="Detail")*'Development Budget'!AY16 -> 0 | AR26: =AND(AR$22>=$D26,AR$22<=$E26)*($F26="Straight-Line")*($I26/$ES26)+($F26="S-Curve")*GB26+OR($F26="Steady Growth",$F26="Steady Decline")*LM26+($F26="Detail")*'Development Budget'!AZ16 -> 0 | AS26: =AND(AS$22>=$D26,AS$22<=$E26)*($F26="Straight-Line")*($I26/$ES26)+($F26="S-Curve")*GC26+OR($F26="Steady Growth",$F26="Steady Decline")*LN26+($F26="Detail")*'Development Budget'!BA16 -> 0 | AT26: =AND(AT$22>=$D26,AT$22<=$E26)*($F26="Straight-Line")*($I26/$ES26)+($F26="S-Curve")*GD26+OR($F26="Steady Growth",$F26="Steady Decline")*LO26+($F26="Detail")*'Development Budget'!BB16 -> 0 | AU26: =AND(AU$22>=$D26,AU$22<=$E26)*($F26="Straight-Line")*($I26/$ES26)+($F26="S-Curve")*GE26+OR($F26="Steady Growth",$F26="Steady Decline")*LP26+($F26="Detail")*'Development Budget'!BC16 -> 0 | AV26: =AND(AV$22>=$D26,AV$22<=$E26)*($F26="Straight-Line")*($I26/$ES26)+($F26="S-Curve")*GF26+OR($F26="Steady Growth",$F26="Steady Decline")*LQ26+($F26="Detail")*'Development Budget'!BD16 -> 0 | AW26: =AND(AW$22>=$D26,AW$22<=$E26)*($F26="Straight-Line")*($I26/$ES26)+($F26="S-Curve")*GG26+OR($F26="Steady Growth",$F26="Steady Decline")*LR26+($F26="Detail")*'Development Budget'!BE16 -> 0 | AX26: =AND(AX$22>=$D26,AX$22<=$E26)*($F26="Straight-Line")*($I26/$ES26)+($F26="S-Curve")*GH26+OR($F26="Steady Growth",$F26="Steady Decline")*LS26+($F26="Detail")*'Development Budget'!BF16 -> 0 | AY26: =AND(AY$22>=$D26,AY$22<=$E26)*($F26="Straight-Line")*($I26/$ES26)+($F26="S-Curve")*GI26+OR($F26="Steady Growth",$F26="Steady Decline")*LT26+($F26="Detail")*'Development Budget'!BG16 -> 0 | AZ26: =AND(AZ$22>=$D26,AZ$22<=$E26)*($F26="Straight-Line")*($I26/$ES26)+($F26="S-Curve")*GJ26+OR($F26="Steady Growth",$F26="Steady Decline")*LU26+($F26="Detail")*'Development Budget'!BH16 -> 0 | BA26: =AND(BA$22>=$D26,BA$22<=$E26)*($F26="Straight-Line")*($I26/$ES26)+($F26="S-Curve")*GK26+OR($F26="Steady Growth",$F26="Steady Decline")*LV26+($F26="Detail")*'Development Budget'!BI16 -> 0 | BB26: =AND(BB$22>=$D26,BB$22<=$E26)*($F26="Straight-Line")*($I26/$ES26)+($F26="S-Curve")*GL26+OR($F26="Steady Growth",$F26="Steady Decline")*LW26+($F26="Detail")*'Development Budget'!BJ16 -> 0 | BC26: =AND(BC$22>=$D26,BC$22<=$E26)*($F26="Straight-Line")*($I26/$ES26)+($F26="S-Curve")*GM26+OR($F26="Steady Growth",$F26="Steady Decline")*LX26+($F26="Detail")*'Development Budget'!BK16 -> 0 | BD26: =AND(BD$22>=$D26,BD$22<=$E26)*($F26="Straight-Line")*($I26/$ES26)+($F26="S-Curve")*GN26+OR($F26="Steady Growth",$F26="Steady Decline")*LY26+($F26="Detail")*'Development Budget'!BL16 -> 0 | BE26: =AND(BE$22>=$D26,BE$22<=$E26)*($F26="Straight-Line")*($I26/$ES26)+($F26="S-Curve")*GO26+OR($F26="Steady Growth",$F26="Steady Decline")*LZ26+($F26="Detail")*'Development Budget'!BM16 -> 0 | BF26: =AND(BF$22>=$D26,BF$22<=$E26)*($F26="Straight-Line")*($I26/$ES26)+($F26="S-Curve")*GP26+OR($F26="Steady Growth",$F26="Steady Decline")*MA26+($F26="Detail")*'Development Budget'!BN16 -> 0 | BG26: =AND(BG$22>=$D26,BG$22<=$E26)*($F26="Straight-Line")*($I26/$ES26)+($F26="S-Curve")*GQ26+OR($F26="Steady Growth",$F26="Steady Decline")*MB26+($F26="Detail")*'Development Budget'!BO16 -> 0 | BH26: =AND(BH$22>=$D26,BH$22<=$E26)*($F26="Straight-Line")*($I26/$ES26)+($F26="S-Curve")*GR26+OR($F26="Steady Growth",$F26="Steady Decline")*MC26+($F26="Detail")*'Development Budget'!BP16 -> 0 | BI26: =AND(BI$22>=$D26,BI$22<=$E26)*($F26="Straight-Line")*($I26/$ES26)+($F26="S-Curve")*GS26+OR($F26="Steady Growth",$F26="Steady Decline")*MD26+($F26="Detail")*'Development Budget'!BQ16 -> 0 | BJ26: =AND(BJ$22>=$D26,BJ$22<=$E26)*($F26="Straight-Line")*($I26/$ES26)+($F26="S-Curve")*GT26+OR($F26="Steady Growth",$F26="Steady Decline")*ME26+($F26="Detail")*'Development Budget'!BR16 -> 0 | BK26: =AND(BK$22>=$D26,BK$22<=$E26)*($F26="Straight-Line")*($I26/$ES26)+($F26="S-Curve")*GU26+OR($F26="Steady Growth",$F26="Steady Decline")*MF26+($F26="Detail")*'Development Budget'!BS16 -> 0 | BL26: =AND(BL$22>=$D26,BL$22<=$E26)*($F26="Straight-Line")*($I26/$ES26)+($F26="S-Curve")*GV26+OR($F26="Steady Growth",$F26="Steady Decline")*MG26+($F26="Detail")*'Development Budget'!BT16 -> 0 | BM26: =AND(BM$22>=$D26,BM$22<=$E26)*($F26="Straight-Line")*($I26/$ES26)+($F26="S-Curve")*GW26+OR($F26="Steady Growth",$F26="Steady Decline")*MH26+($F26="Detail")*'Development Budget'!BU16 -> 0 | BN26: =AND(BN$22>=$D26,BN$22<=$E26)*($F26="Straight-Line")*($I26/$ES26)+($F26="S-Curve")*GX26+OR($F26="Steady Growth",$F26="Steady Decline")*MI26+($F26="Detail")*'Development Budget'!BV16 -> 0 | BO26: =AND(BO$22>=$D26,BO$22<=$E26)*($F26="Straight-Line")*($I26/$ES26)+($F26="S-Curve")*GY26+OR($F26="Steady Growth",$F26="Steady Decline")*MJ26+($F26="Detail")*'Development Budget'!BW16 -> 0 | BP26: =AND(BP$22>=$D26,BP$22<=$E26)*($F26="Straight-Line")*($I26/$ES26)+($F26="S-Curve")*GZ26+OR($F26="Steady Growth",$F26="Steady Decline")*MK26+($F26="Detail")*'Development Budget'!BX16 -> 0 | BQ26: =AND(BQ$22>=$D26,BQ$22<=$E26)*($F26="Straight-Line")*($I26/$ES26)+($F26="S-Curve")*HA26+OR($F26="Steady Growth",$F26="Steady Decline")*ML26+($F26="Detail")*'Development Budget'!BY16 -> 0 | BR26: =AND(BR$22>=$D26,BR$22<=$E26)*($F26="Straight-Line")*($I26/$ES26)+($F26="S-Curve")*HB26+OR($F26="Steady Growth",$F26="Steady Decline")*MM26+($F26="Detail")*'Development Budget'!BZ16 -> 0 | BS26: =AND(BS$22>=$D26,BS$22<=$E26)*($F26="Straight-Line")*($I26/$ES26)+($F26="S-Curve")*HC26+OR($F26="Steady Growth",$F26="Steady Decline")*MN26+($F26="Detail")*'Development Budget'!CA16 -> 0 | BT26: =AND(BT$22>=$D26,BT$22<=$E26)*($F26="Straight-Line")*($I26/$ES26)+($F26="S-Curve")*HD26+OR($F26="Steady Growth",$F26="Steady Decline")*MO26+($F26="Detail")*'Development Budget'!CB16 -> 0 | BU26: =AND(BU$22>=$D26,BU$22<=$E26)*($F26="Straight-Line")*($I26/$ES26)+($F26="S-Curve")*HE26+OR($F26="Steady Growth",$F26="Steady Decline")*MP26+($F26="Detail")*'Development Budget'!CC16 -> 0 | BV26: =AND(BV$22>=$D26,BV$22<=$E26)*($F26="Straight-Line")*($I26/$ES26)+($F26="S-Curve")*HF26+OR($F26="Steady Growth",$F26="Steady Decline")*MQ26+($F26="Detail")*'Development Budget'!CD16 -> 0 | BW26: =AND(BW$22>=$D26,BW$22<=$E26)*($F26="Straight-Line")*($I26/$ES26)+($F26="S-Curve")*HG26+OR($F26="Steady Growth",$F26="Steady Decline")*MR26+($F26="Detail")*'Development Budget'!CE16 -> 0 | BX26: =AND(BX$22>=$D26,BX$22<=$E26)*($F26="Straight-Line")*($I26/$ES26)+($F26="S-Curve")*HH26+OR($F26="Steady Growth",$F26="Steady Decline")*MS26+($F26="Detail")*'Development Budget'!CF16 -> 0 | BY26: =AND(BY$22>=$D26,BY$22<=$E26)*($F26="Straight-Line")*($I26/$ES26)+($F26="S-Curve")*HI26+OR($F26="Steady Growth",$F26="Steady Decline")*MT26+($F26="Detail")*'Development Budget'!CG16 -> 0 | BZ26: =AND(BZ$22>=$D26,BZ$22<=$E26)*($F26="Straight-Line")*($I26/$ES26)+($F26="S-Curve")*HJ26+OR($F26="Steady Growth",$F26="Steady Decline")*MU26+($F26="Detail")*'Development Budget'!CH16 -> 0 | CA26: =AND(CA$22>=$D26,CA$22<=$E26)*($F26="Straight-Line")*($I26/$ES26)+($F26="S-Curve")*HK26+OR($F26="Steady Growth",$F26="Steady Decline")*MV26+($F26="Detail")*'Development Budget'!CI16 -> 0 | CB26: =AND(CB$22>=$D26,CB$22<=$E26)*($F26="Straight-Line")*($I26/$ES26)+($F26="S-Curve")*HL26+OR($F26="Steady Growth",$F26="Steady Decline")*MW26+($F26="Detail")*'Development Budget'!CJ16 -> 0 | CC26: =AND(CC$22>=$D26,CC$22<=$E26)*($F26="Straight-Line")*($I26/$ES26)+($F26="S-Curve")*HM26+OR($F26="Steady Growth",$F26="Steady Decline")*MX26+($F26="Detail")*'Development Budget'!CK16 -> 0 | CD26: =AND(CD$22>=$D26,CD$22<=$E26)*($F26="Straight-Line")*($I26/$ES26)+($F26="S-Curve")*HN26+OR($F26="Steady Growth",$F26="Steady Decline")*MY26+($F26="Detail")*'Development Budget'!CL16 -> 0 | CE26: =AND(CE$22>=$D26,CE$22<=$E26)*($F26="Straight-Line")*($I26/$ES26)+($F26="S-Curve")*HO26+OR($F26="Steady Growth",$F26="Steady Decline")*MZ26+($F26="Detail")*'Development Budget'!CM16 -> 0 | CF26: =AND(CF$22>=$D26,CF$22<=$E26)*($F26="Straight-Line")*($I26/$ES26)+($F26="S-Curve")*HP26+OR($F26="Steady Growth",$F26="Steady Decline")*NA26+($F26="Detail")*'Development Budget'!CN16 -> 0 | CG26: =AND(CG$22>=$D26,CG$22<=$E26)*($F26="Straight-Line")*($I26/$ES26)+($F26="S-Curve")*HQ26+OR($F26="Steady Growth",$F26="Steady Decline")*NB26+($F26="Detail")*'Development Budget'!CO16 -> 0 | CH26: =AND(CH$22>=$D26,CH$22<=$E26)*($F26="Straight-Line")*($I26/$ES26)+($F26="S-Curve")*HR26+OR($F26="Steady Growth",$F26="Steady Decline")*NC26+($F26="Detail")*'Development Budget'!CP16 -> 0 | CI26: =AND(CI$22>=$D26,CI$22<=$E26)*($F26="Straight-Line")*($I26/$ES26)+($F26="S-Curve")*HS26+OR($F26="Steady Growth",$F26="Steady Decline")*ND26+($F26="Detail")*'Development Budget'!CQ16 -> 0 | CJ26: =AND(CJ$22>=$D26,CJ$22<=$E26)*($F26="Straight-Line")*($I26/$ES26)+($F26="S-Curve")*HT26+OR($F26="Steady Growth",$F26="Steady Decline")*NE26+($F26="Detail")*'Development Budget'!CR16 -> 0 | CK26: =AND(CK$22>=$D26,CK$22<=$E26)*($F26="Straight-Line")*($I26/$ES26)+($F26="S-Curve")*HU26+OR($F26="Steady Growth",$F26="Steady Decline")*NF26+($F26="Detail")*'Development Budget'!CS16 -> 0 | CL26: =AND(CL$22>=$D26,CL$22<=$E26)*($F26="Straight-Line")*($I26/$ES26)+($F26="S-Curve")*HV26+OR($F26="Steady Growth",$F26="Steady Decline")*NG26+($F26="Detail")*'Development Budget'!CT16 -> 0 | CM26: =AND(CM$22>=$D26,CM$22<=$E26)*($F26="Straight-Line")*($I26/$ES26)+($F26="S-Curve")*HW26+OR($F26="Steady Growth",$F26="Steady Decline")*NH26+($F26="Detail")*'Development Budget'!CU16 -> 0 | CN26: =AND(CN$22>=$D26,CN$22<=$E26)*($F26="Straight-Line")*($I26/$ES26)+($F26="S-Curve")*HX26+OR($F26="Steady Growth",$F26="Steady Decline")*NI26+($F26="Detail")*'Development Budget'!CV16 -> 0 | CO26: =AND(CO$22>=$D26,CO$22<=$E26)*($F26="Straight-Line")*($I26/$ES26)+($F26="S-Curve")*HY26+OR($F26="Steady Growth",$F26="Steady Decline")*NJ26+($F26="Detail")*'Development Budget'!CW16 -> 0 | CP26: =AND(CP$22>=$D26,CP$22<=$E26)*($F26="Straight-Line")*($I26/$ES26)+($F26="S-Curve")*HZ26+OR($F26="Steady Growth",$F26="Steady Decline")*NK26+($F26="Detail")*'Development Budget'!CX16 -> 0 | CQ26: =AND(CQ$22>=$D26,CQ$22<=$E26)*($F26="Straight-Line")*($I26/$ES26)+($F26="S-Curve")*IA26+OR($F26="Steady Growth",$F26="Steady Decline")*NL26+($F26="Detail")*'Development Budget'!CY16 -> 0 | CR26: =AND(CR$22>=$D26,CR$22<=$E26)*($F26="Straight-Line")*($I26/$ES26)+($F26="S-Curve")*IB26+OR($F26="Steady Growth",$F26="Steady Decline")*NM26+($F26="Detail")*'Development Budget'!CZ16 -> 0 | CS26: =AND(CS$22>=$D26,CS$22<=$E26)*($F26="Straight-Line")*($I26/$ES26)+($F26="S-Curve")*IC26+OR($F26="Steady Growth",$F26="Steady Decline")*NN26+($F26="Detail")*'Development Budget'!DA16 -> 0 | CT26: =AND(CT$22>=$D26,CT$22<=$E26)*($F26="Straight-Line")*($I26/$ES26)+($F26="S-Curve")*ID26+OR($F26="Steady Growth",$F26="Steady Decline")*NO26+($F26="Detail")*'Development Budget'!DB16 -> 0 | CU26: =AND(CU$22>=$D26,CU$22<=$E26)*($F26="Straight-Line")*($I26/$ES26)+($F26="S-Curve")*IE26+OR($F26="Steady Growth",$F26="Steady Decline")*NP26+($F26="Detail")*'Development Budget'!DC16 -> 0 | CV26: =AND(CV$22>=$D26,CV$22<=$E26)*($F26="Straight-Line")*($I26/$ES26)+($F26="S-Curve")*IF26+OR($F26="Steady Growth",$F26="Steady Decline")*NQ26+($F26="Detail")*'Development Budget'!DD16 -> 0 | CW26: =AND(CW$22>=$D26,CW$22<=$E26)*($F26="Straight-Line")*($I26/$ES26)+($F26="S-Curve")*IG26+OR($F26="Steady Growth",$F26="Steady Decline")*NR26+($F26="Detail")*'Development Budget'!DE16 -> 0 | CX26: =AND(CX$22>=$D26,CX$22<=$E26)*($F26="Straight-Line")*($I26/$ES26)+($F26="S-Curve")*IH26+OR($F26="Steady Growth",$F26="Steady Decline")*NS26+($F26="Detail")*'Development Budget'!DF16 -> 0 | CY26: =AND(CY$22>=$D26,CY$22<=$E26)*($F26="Straight-Line")*($I26/$ES26)+($F26="S-Curve")*II26+OR($F26="Steady Growth",$F26="Steady Decline")*NT26+($F26="Detail")*'Development Budget'!DG16 -> 0 | CZ26: =AND(CZ$22>=$D26,CZ$22<=$E26)*($F26="Straight-Line")*($I26/$ES26)+($F26="S-Curve")*IJ26+OR($F26="Steady Growth",$F26="Steady Decline")*NU26+($F26="Detail")*'Development Budget'!DH16 -> 0 | DA26: =AND(DA$22>=$D26,DA$22<=$E26)*($F26="Straight-Line")*($I26/$ES26)+($F26="S-Curve")*IK26+OR($F26="Steady Growth",$F26="Steady Decline")*NV26+($F26="Detail")*'Development Budget'!DI16 -> 0 | DB26: =AND(DB$22>=$D26,DB$22<=$E26)*($F26="Straight-Line")*($I26/$ES26)+($F26="S-Curve")*IL26+OR($F26="Steady Growth",$F26="Steady Decline")*NW26+($F26="Detail")*'Development Budget'!DJ16 -> 0 | DC26: =AND(DC$22>=$D26,DC$22<=$E26)*($F26="Straight-Line")*($I26/$ES26)+($F26="S-Curve")*IM26+OR($F26="Steady Growth",$F26="Steady Decline")*NX26+($F26="Detail")*'Development Budget'!DK16 -> 0 | DD26: =AND(DD$22>=$D26,DD$22<=$E26)*($F26="Straight-Line")*($I26/$ES26)+($F26="S-Curve")*IN26+OR($F26="Steady Growth",$F26="Steady Decline")*NY26+($F26="Detail")*'Development Budget'!DL16 -> 0 | DE26: =AND(DE$22>=$D26,DE$22<=$E26)*($F26="Straight-Line")*($I26/$ES26)+($F26="S-Curve")*IO26+OR($F26="Steady Growth",$F26="Steady Decline")*NZ26+($F26="Detail")*'Development Budget'!DM16 -> 0 | DF26: =AND(DF$22>=$D26,DF$22<=$E26)*($F26="Straight-Line")*($I26/$ES26)+($F26="S-Curve")*IP26+OR($F26="Steady Growth",$F26="Steady Decline")*OA26+($F26="Detail")*'Development Budget'!DN16 -> 0 | DG26: =AND(DG$22>=$D26,DG$22<=$E26)*($F26="Straight-Line")*($I26/$ES26)+($F26="S-Curve")*IQ26+OR($F26="Steady Growth",$F26="Steady Decline")*OB26+($F26="Detail")*'Development Budget'!DO16 -> 0 | DH26: =AND(DH$22>=$D26,DH$22<=$E26)*($F26="Straight-Line")*($I26/$ES26)+($F26="S-Curve")*IR26+OR($F26="Steady Growth",$F26="Steady Decline")*OC26+($F26="Detail")*'Development Budget'!DP16 -> 0 | DI26: =AND(DI$22>=$D26,DI$22<=$E26)*($F26="Straight-Line")*($I26/$ES26)+($F26="S-Curve")*IS26+OR($F26="Steady Growth",$F26="Steady Decline")*OD26+($F26="Detail")*'Development Budget'!DQ16 -> 0 | DJ26: =AND(DJ$22>=$D26,DJ$22<=$E26)*($F26="Straight-Line")*($I26/$ES26)+($F26="S-Curve")*IT26+OR($F26="Steady Growth",$F26="Steady Decline")*OE26+($F26="Detail")*'Development Budget'!DR16 -> 0 | DK26: =AND(DK$22>=$D26,DK$22<=$E26)*($F26="Straight-Line")*($I26/$ES26)+($F26="S-Curve")*IU26+OR($F26="Steady Growth",$F26="Steady Decline")*OF26+($F26="Detail")*'Development Budget'!DS16 -> 0 | DL26: =AND(DL$22>=$D26,DL$22<=$E26)*($F26="Straight-Line")*($I26/$ES26)+($F26="S-Curve")*IV26+OR($F26="Steady Growth",$F26="Steady Decline")*OG26+($F26="Detail")*'Development Budget'!DT16 -> 0 | DM26: =AND(DM$22>=$D26,DM$22<=$E26)*($F26="Straight-Line")*($I26/$ES26)+($F26="S-Curve")*IW26+OR($F26="Steady Growth",$F26="Steady Decline")*OH26+($F26="Detail")*'Development Budget'!DU16 -> 0 | DN26: =AND(DN$22>=$D26,DN$22<=$E26)*($F26="Straight-Line")*($I26/$ES26)+($F26="S-Curve")*IX26+OR($F26="Steady Growth",$F26="Steady Decline")*OI26+($F26="Detail")*'Development Budget'!DV16 -> 0 | DO26: =AND(DO$22>=$D26,DO$22<=$E26)*($F26="Straight-Line")*($I26/$ES26)+($F26="S-Curve")*IY26+OR($F26="Steady Growth",$F26="Steady Decline")*OJ26+($F26="Detail")*'Development Budget'!DW16 -> 0 | DP26: =AND(DP$22>=$D26,DP$22<=$E26)*($F26="Straight-Line")*($I26/$ES26)+($F26="S-Curve")*IZ26+OR($F26="Steady Growth",$F26="Steady Decline")*OK26+($F26="Detail")*'Development Budget'!DX16 -> 0 | DQ26: =AND(DQ$22>=$D26,DQ$22<=$E26)*($F26="Straight-Line")*($I26/$ES26)+($F26="S-Curve")*JA26+OR($F26="Steady Growth",$F26="Steady Decline")*OL26+($F26="Detail")*'Development Budget'!DY16 -> 0 | DR26: =AND(DR$22>=$D26,DR$22<=$E26)*($F26="Straight-Line")*($I26/$ES26)+($F26="S-Curve")*JB26+OR($F26="Steady Growth",$F26="Steady Decline")*OM26+($F26="Detail")*'Development Budget'!DZ16 -> 0 | DS26: =AND(DS$22>=$D26,DS$22<=$E26)*($F26="Straight-Line")*($I26/$ES26)+($F26="S-Curve")*JC26+OR($F26="Steady Growth",$F26="Steady Decline")*ON26+($F26="Detail")*'Development Budget'!EA16 -> 0 | DT26: =AND(DT$22>=$D26,DT$22<=$E26)*($F26="Straight-Line")*($I26/$ES26)+($F26="S-Curve")*JD26+OR($F26="Steady Growth",$F26="Steady Decline")*OO26+($F26="Detail")*'Development Budget'!EB16 -> 0 | DU26: =AND(DU$22>=$D26,DU$22<=$E26)*($F26="Straight-Line")*($I26/$ES26)+($F26="S-Curve")*JE26+OR($F26="Steady Growth",$F26="Steady Decline")*OP26+($F26="Detail")*'Development Budget'!EC16 -> 0 | DV26: =AND(DV$22>=$D26,DV$22<=$E26)*($F26="Straight-Line")*($I26/$ES26)+($F26="S-Curve")*JF26+OR($F26="Steady Growth",$F26="Steady Decline")*OQ26+($F26="Detail")*'Development Budget'!ED16 -> 0 | DW26: =AND(DW$22>=$D26,DW$22<=$E26)*($F26="Straight-Line")*($I26/$ES26)+($F26="S-Curve")*JG26+OR($F26="Steady Growth",$F26="Steady Decline")*OR26+($F26="Detail")*'Development Budget'!EE16 -> 0 | DX26: =AND(DX$22>=$D26,DX$22<=$E26)*($F26="Straight-Line")*($I26/$ES26)+($F26="S-Curve")*JH26+OR($F26="Steady Growth",$F26="Steady Decline")*OS26+($F26="Detail")*'Development Budget'!EF16 -> 0 | DY26: =AND(DY$22>=$D26,DY$22<=$E26)*($F26="Straight-Line")*($I26/$ES26)+($F26="S-Curve")*JI26+OR($F26="Steady Growth",$F26="Steady Decline")*OT26+($F26="Detail")*'Development Budget'!EG16 -> 0 | DZ26: =AND(DZ$22>=$D26,DZ$22<=$E26)*($F26="Straight-Line")*($I26/$ES26)+($F26="S-Curve")*JJ26+OR($F26="Steady Growth",$F26="Steady Decline")*OU26+($F26="Detail")*'Development Budget'!EH16 -> 0 | EA26: =AND(EA$22>=$D26,EA$22<=$E26)*($F26="Straight-Line")*($I26/$ES26)+($F26="S-Curve")*JK26+OR($F26="Steady Growth",$F26="Steady Decline")*OV26+($F26="Detail")*'Development Budget'!EI16 -> 0 | EB26: =AND(EB$22>=$D26,EB$22<=$E26)*($F26="Straight-Line")*($I26/$ES26)+($F26="S-Curve")*JL26+OR($F26="Steady Growth",$F26="Steady Decline")*OW26+($F26="Detail")*'Development Budget'!EJ16 -> 0 | EC26: =AND(EC$22>=$D26,EC$22<=$E26)*($F26="Straight-Line")*($I26/$ES26)+($F26="S-Curve")*JM26+OR($F26="Steady Growth",$F26="Steady Decline")*OX26+($F26="Detail")*'Development Budget'!EK16 -> 0 | ED26: =AND(ED$22>=$D26,ED$22<=$E26)*($F26="Straight-Line")*($I26/$ES26)+($F26="S-Curve")*JN26+OR($F26="Steady Growth",$F26="Steady Decline")*OY26+($F26="Detail")*'Development Budget'!EL16 -> 0 | EE26: =AND(EE$22>=$D26,EE$22<=$E26)*($F26="Straight-Line")*($I26/$ES26)+($F26="S-Curve")*JO26+OR($F26="Steady Growth",$F26="Steady Decline")*OZ26+($F26="Detail")*'Development Budget'!EM16 -> 0 | EF26: =AND(EF$22>=$D26,EF$22<=$E26)*($F26="Straight-Line")*($I26/$ES26)+($F26="S-Curve")*JP26+OR($F26="Steady Growth",$F26="Steady Decline")*PA26+($F26="Detail")*'Development Budget'!EN16 -> 0 | EG26: =AND(EG$22>=$D26,EG$22<=$E26)*($F26="Straight-Line")*($I26/$ES26)+($F26="S-Curve")*JQ26+OR($F26="Steady Growth",$F26="Steady Decline")*PB26+($F26="Detail")*'Development Budget'!EO16 -> 0 | EH26: =AND(EH$22>=$D26,EH$22<=$E26)*($F26="Straight-Line")*($I26/$ES26)+($F26="S-Curve")*JR26+OR($F26="Steady Growth",$F26="Steady Decline")*PC26+($F26="Detail")*'Development Budget'!EP16 -> 0 | EI26: =AND(EI$22>=$D26,EI$22<=$E26)*($F26="Straight-Line")*($I26/$ES26)+($F26="S-Curve")*JS26+OR($F26="Steady Growth",$F26="Steady Decline")*PD26+($F26="Detail")*'Development Budget'!EQ16 -> 0 | EJ26: =AND(EJ$22>=$D26,EJ$22<=$E26)*($F26="Straight-Line")*($I26/$ES26)+($F26="S-Curve")*JT26+OR($F26="Steady Growth",$F26="Steady Decline")*PE26+($F26="Detail")*'Development Budget'!ER16 -> 0 | EK26: =AND(EK$22>=$D26,EK$22<=$E26)*($F26="Straight-Line")*($I26/$ES26)+($F26="S-Curve")*JU26+OR($F26="Steady Growth",$F26="Steady Decline")*PF26+($F26="Detail")*'Development Budget'!ES16 -> 0 | EL26: =AND(EL$22>=$D26,EL$22<=$E26)*($F26="Straight-Line")*($I26/$ES26)+($F26="S-Curve")*JV26+OR($F26="Steady Growth",$F26="Steady Decline")*PG26+($F26="Detail")*'Development Budget'!ET16 -> 0 | EM26: =AND(EM$22>=$D26,EM$22<=$E26)*($F26="Straight-Line")*($I26/$ES26)+($F26="S-Curve")*JW26+OR($F26="Steady Growth",$F26="Steady Decline")*PH26+($F26="Detail")*'Development Budget'!EU16 -> 0 | EN26: =AND(EN$22>=$D26,EN$22<=$E26)*($F26="Straight-Line")*($I26/$ES26)+($F26="S-Curve")*JX26+OR($F26="Steady Growth",$F26="Steady Decline")*PI26+($F26="Detail")*'Development Budget'!EV16 -> 0 | EP26: =I26 -> 0 | EQ26: =INDEX($L$23:$EN$23,1,$D26+1) -> 2023-05-31 | ER26: =INDEX($L$23:$EN$23,1,$E26+1) -> 2023-05-31 | ES26: =+E26-D26+1 -> 1 | ET26: =F26 -> Straight-Line | EU26: =ES26/Scurve_Dist -> 0.25 | EV26: =AND($ET26="S-Curve",EV$23>=$EQ26,EV$23<=$ER26)*(_xlfn.NORM.DIST((YEAR(EV$23)-YEAR($EQ26))*12+MONTH(EV$23)-MONTH($EQ26)+1,$ES26/2,$EU26,TRUE)-_xlfn.NORM.DIST((YEAR(EV$23)-YEAR($EQ26))*12+MONTH(EV$23)-MONTH($EQ26),$ES26/2,$EU26,TRUE))/(1-2*_xlfn.NORM.DIST(0,$ES26/2,$EU26,TRUE))*$EP26 -> 0 | EW26: =AND($ET26="S-Curve",EW$23>=$EQ26,EW$23<=$ER26)*(_xlfn.NORM.DIST((YEAR(EW$23)-YEAR($EQ26))*12+MONTH(EW$23)-MONTH($EQ26)+1,$ES26/2,$EU26,TRUE)-_xlfn.NORM.DIST((YEAR(EW$23)-YEAR($EQ26))*12+MONTH(EW$23)-MONTH($EQ26),$ES26/2,$EU26,TRUE))/(1-2*_xlfn.NORM.DIST(0,$ES26/2,$EU26,TRUE))*$EP26 -> 0 | EX26: 0 | EY26: 0 | EZ26: 0 | FA26: 0 | FB26: 0 | FC26: 0 | FD26: 0 | FE26: 0 | FF26: 0 | FG26: 0 | FH26: 0 | FI26: 0 | FJ26: 0 | FK26: 0 | FL26: 0 | FM26: 0 | FN26: 0 | FO26: 0 | FP26: 0 | FQ26: 0 | FR26: 0 | FS26: 0 | FT26: 0 | FU26: 0 | FV26: 0 | FW26: 0 | FX26: 0 | FY26: 0 | FZ26: 0 | GA26: 0 | GB26: 0 | GC26: 0 | GD26: 0 | GE26: 0 | GF26: 0 | GG26: 0 | GH26: 0 | GI26: 0 | GJ26: 0 | GK26: 0 | GL26: 0 | GM26: 0 | GN26: 0 | GO26: 0 | GP26: 0 | GQ26: 0 | GR26: 0 | GS26: 0 | GT26: 0 | GU26: 0 | GV26: 0 | GW26: 0 | GX26: 0 | GY26: 0 | GZ26: 0 | HA26: 0 | HB26: 0 | HC26: 0 | HD26: 0 | HE26: 0 | HF26: 0 | HG26: 0 | HH26: 0 | HI26: =AND($ET26="S-Curve",HI$23>=$EQ26,HI$23<=$ER26)*(_xlfn.NORM.DIST((YEAR(HI$23)-YEAR($EQ26))*12+MONTH(HI$23)-MONTH($EQ26)+1,$ES26/2,$EU26,TRUE)-_xlfn.NORM.DIST((YEAR(HI$23)-YEAR($EQ26))*12+MONTH(HI$23)-MONTH($EQ26),$ES26/2,$EU26,TRUE))/(1-2*_xlfn.NORM.DIST(0,$ES26/2,$EU26,TRUE))*$EP26 -> 0 | HJ26: 0 | HK26: 0 | HL26: 0 | HM26: 0 | HN26: 0 | HO26: 0 | HP26: 0 | HQ26: 0 | HR26: 0 | HS26: 0 | HT26: 0 | HU26: 0 | HV26: 0 | HW26: 0 | HX26: 0 | HY26: 0 | HZ26: 0 | IA26: 0 | IB26: 0 | IC26: 0 | ID26: 0 | IE26: 0 | IF26: 0 | IG26: 0 | IH26: 0 | II26: 0 | IJ26: 0 | IK26: 0 | IL26: 0 | IM26: 0 | IN26: 0 | IO26: 0 | IP26: 0 | IQ26: 0 | IR26: 0 | IS26: 0 | IT26: 0 | IU26: 0 | IV26: 0 | IW26: 0 | IX26: 0 | IY26: 0 | IZ26: 0 | JA26: 0 | JB26: 0 | JC26: 0 | JD26: 0 | JE26: 0 | JF26: 0 | JG26: 0 | JH26: 0 | JI26: 0 | JJ26: 0 | JK26: 0 | JL26: 0 | JM26: 0 | JN26: 0 | JO26: 0 | JP26: 0 | JQ26: 0 | JR26: 0 | JS26: 0 | JT26: 0 | JU26: =AND($ET26="S-Curve",JU$23>=$EQ26,JU$23<=$ER26)*(_xlfn.NORM.DIST((YEAR(JU$23)-YEAR($EQ26))*12+MONTH(JU$23)-MONTH($EQ26)+1,$ES26/2,$EU26,TRUE)-_xlfn.NORM.DIST((YEAR(JU$23)-YEAR($EQ26))*12+MONTH(JU$23)-MONTH($EQ26),$ES26/2,$EU26,TRUE))/(1-2*_xlfn.NORM.DIST(0,$ES26/2,$EU26,TRUE))*$EP26 -> 0 | JV26: 0 | JW26: 0 | JX26: 0 | KA26: Deposit(s) | KC26: =D26 -> 0 | KD26: 0 | KE26: =KD26-KC26+1 -> 1 | KF26: =I26 -> 0 | KG26: =AND(KG$22>=$KC26,KG$22<=$KD26)*(IF($F26="Steady Growth",KG$22-$KC26,$KD26-KG$22)+1)/($KE26*($KE26+1)/2)*$KF26 -> 0 | KH26: 0 | KI26: 0 | KJ26: 0 | KK26: 0 | KL26: 0 | KM26: 0 | KN26: 0 | KO26: 0 | KP26: 0 | KQ26: =AND(KQ$22>=$KC26,KQ$22<=$KD26)*(IF($F26="Steady Growth",KQ$22-$KC26,$KD26-KQ$22)+1)/($KE26*($KE26+1)/2)*$KF26 -> 0 | KR26: 0 | KS26: 0 | KT26: 0 | KU26: 0 | KV26: 0 | KW26: 0 | KX26: 0 | KY26: 0 | KZ26: 0 | LA26: =AND(LA$22>=$KC26,LA$22<=$KD26)*(IF($F26="Steady Growth",LA$22-$KC26,$KD26-LA$22)+1)/($KE26*($KE26+1)/2)*$KF26 -> 0 | LB26: 0 | LC26: 0 | LD26: 0 | LE26: 0 | LF26: 0 | LG26: 0 | LH26: 0 | LI26: 0 | LJ26: 0 | LK26: =AND(LK$22>=$KC26,LK$22<=$KD26)*(IF($F26="Steady Growth",LK$22-$KC26,$KD26-LK$22)+1)/($KE26*($KE26+1)/2)*$KF26 -> 0 | LL26: 0 | LM26: 0 | LN26: 0 | LO26: 0 | LP26: 0 | LQ26: 0 | LR26: 0 | LS26: 0 | LT26: 0 | LU26: =AND(LU$22>=$KC26,LU$22<=$KD26)*(IF($F26="Steady Growth",LU$22-$KC26,$KD26-LU$22)+1)/($KE26*($KE26+1)/2)*$KF26 -> 0 | LV26: 0 | LW26: 0 | LX26: 0 | LY26: 0 | LZ26: 0 | MA26: 0 | MB26: 0 | MC26: 0 | MD26: 0 | ME26: =AND(ME$22>=$KC26,ME$22<=$KD26)*(IF($F26="Steady Growth",ME$22-$KC26,$KD26-ME$22)+1)/($KE26*($KE26+1)/2)*$KF26 -> 0 | MF26: 0 | MG26: 0 | MH26: 0 | MI26: 0 | MJ26: 0 | MK26: 0 | ML26: 0 | MM26: 0 | MN26: 0 | MO26: =AND(MO$22>=$KC26,MO$22<=$KD26)*(IF($F26="Steady Growth",MO$22-$KC26,$KD26-MO$22)+1)/($KE26*($KE26+1)/2)*$KF26 -> 0 | MP26: 0 | MQ26: 0 | MR26: 0 | MS26: 0 | MT26: 0 | MU26: 0 | MV26: 0 | MW26: 0 | MX26: 0 | MY26: =AND(MY$22>=$KC26,MY$22<=$KD26)*(IF($F26="Steady Growth",MY$22-$KC26,$KD26-MY$22)+1)/($KE26*($KE26+1)/2)*$KF26 -> 0 | MZ26: 0 | NA26: 0 | NB26: 0 | NC26: 0 | ND26: 0 | NE26: 0 | NF26: 0 | NG26: 0 | NH26: 0 | NI26: =AND(NI$22>=$KC26,NI$22<=$KD26)*(IF($F26="Steady Growth",NI$22-$KC26,$KD26-NI$22)+1)/($KE26*($KE26+1)/2)*$KF26 -> 0 | NJ26: 0 | NK26: 0 | NL26: 0 | NM26: 0 | NN26: 0 | NO26: 0 | NP26: 0 | NQ26: 0 | NR26: 0 | NS26: =AND(NS$22>=$KC26,NS$22<=$KD26)*(IF($F26="Steady Growth",NS$22-$KC26,$KD26-NS$22)+1)/($KE26*($KE26+1)/2)*$KF26 -> 0 | NT26: 0 | NU26: 0 | NV26: 0 | NW26: 0 | NX26: 0 | NY26: 0 | NZ26: 0 | OA26: 0 | OB26: 0 | OC26: =AND(OC$22>=$KC26,OC$22<=$KD26)*(IF($F26="Steady Growth",OC$22-$KC26,$KD26-OC$22)+1)/($KE26*($KE26+1)/2)*$KF26 -> 0 | OD26: 0 | OE26: 0 | OF26: 0 | OG26: 0 | OH26: 0 | OI26: 0 | OJ26: 0 | OK26: 0 | OL26: 0 | OM26: =AND(OM$22>=$KC26,OM$22<=$KD26)*(IF($F26="Steady Growth",OM$22-$KC26,$KD26-OM$22)+1)/($KE26*($KE26+1)/2)*$KF26 -> 0 | ON26: 0 | OO26: 0 | OP26: 0 | OQ26: 0 | OR26: 0 | OS26: 0 | OT26: 0 | OU26: 0 | OV26: 0 | OW26: =AND(OW$22>=$KC26,OW$22<=$KD26)*(IF($F26="Steady Growth",OW$22-$KC26,$KD26-OW$22)+1)/($KE26*($KE26+1)/2)*$KF26 -> 0 | OX26: 0 | OY26: 0 | OZ26: 0 | PA26: 0 | PB26: 0 | PC26: 0 | PD26: 0 | PE26: 0 | PF26: 0 | PG26: 0 | PH26: 0 | PI26: 0
